Workbook

Sheet BS
D1: TOTAL | E1: ACTIVIDADES | I1: INTERVENCIONES QUIRÚRGICAS | P1: INTERVENCIONES QUIRÚRGICAS MAYORES NO AMBULATORIAS ELECTIVAS | S1: INTERVENCIONES QUIRÚRGICAS MAYORES AMBULATORIAS ELECTIVA | V1: INTERVENCIONES QUIRÚRGICAS MAYORES AMBULATORIAS URGENCIA | Y1: INTERVENCIONES QUIRÚRGICAS MAYORES NO AMBULATORIAS URGENCIA | AB1: PROCEDENCIA | AE1: PRODUCCION INTRA HOSPITAL | AH1: OPERATIVO | AI1: COMPRAS REALIZADAS | AK1: VENTAS DE SERVICIOS | AL1: TRANSFERENCIA 2022 | AM1: TOTAL FACTURADO
B2: CODIGO | C2: GLOSA | E2: TOTAL BENEFI-CIARIOS | F2: BENEFICIARIOS | H2: NO BENEFI-CIARIOS | I2: TOTAL BENEFI- CIARIOS | J2: PRINCIPAL | M2: SECUNDARIA | S2: < 15 AÑOS | V2: < 15 AÑOS | Y2: < 15 AÑOS
F3: MAI | G3: MLE | J3: MAI | K3: MLE | L3: NO BENEFI-CIARIO | M3: MAI | N3: MLE | O3: NO BENEFI-CIARIO | P3: TOTAL | Q3: < 15 AÑOS | R3: 15 AÑOS Y MÁS | S3: TOTAL | T3: < 15 AÑOS | U3: 15 AÑOS Y MÁS | V3: TOTAL | W3: < 15 AÑOS | X3: 15 AÑOS Y MÁS | Y3: TOTAL | Z3: < 15 AÑOS | AA3: 15 AÑOS Y MÁS | AB3: ATENCION CERRADA | AC3: ATENCION ABIERTA | AD3: EMERGENCIA | AE3: POR HONO- RARIOS | AF3: POR CONVENIOS | AG3: POR CONSULTO- RES DE LLAMADA | AI3: AL SISTEMA | AJ3: EXTRA-SISTEMA
C4: CONSULTAS Y ATENCION MEDICA
C5: CONSULTAS DE ESPECIALIDADES MEDICAS
A6: 01014275 | B6: 0101201 | C6: Consulta Médica de Especialidad en Dermatología | D6: =IFERROR(VLOOKUP($A6,Filtro_!$A$5:$AK$2954,2,FALSE),0) -> 4781 | E6: =IFERROR(VLOOKUP($A6,Filtro_!$A$5:$AK$2954,3,FALSE),0) -> 4775 | F6: =IFERROR(VLOOKUP($A6,Filtro_!$A$5:$AK$2954,4,FALSE),0) -> 4775 | G6: =IFERROR(VLOOKUP($A6,Filtro_!$A$5:$AK$2954,5,FALSE),0) -> 0 | H6: =IFERROR(VLOOKUP($A6,Filtro_!$A$5:$AK$2954,6,FALSE),0) -> 6 | AB6: =IFERROR(VLOOKUP($A6,Filtro_!$A$5:$AK$2954,26,FALSE),0) -> 0 | AC6: =IFERROR(VLOOKUP($A6,Filtro_!$A$5:$AK$2954,27,FALSE),0) -> 4781 | AD6: =IFERROR(VLOOKUP($A6,Filtro_!$A$5:$AK$2954,28,FALSE),0) -> 0 | AE6: =IFERROR(VLOOKUP($A6,Filtro_!$A$5:$AK$2954,29,FALSE),0) -> 0 | AF6: =IFERROR(VLOOKUP($A6,Filtro_!$A$5:$AK$2954,30,FALSE),0) -> 0 | AG6: =IFERROR(VLOOKUP($A6,Filtro_!$A$5:$AK$2954,31,FALSE),0) -> 0 | AH6: =IFERROR(VLOOKUP($A6,Filtro_!$A$5:$AK$2954,32,FALSE),0) -> 0 | AI6: =IFERROR(VLOOKUP($A6,Filtro_!$A$5:$AK$2954,33,FALSE),0) -> 0 | AJ6: =IFERROR(VLOOKUP($A6,Filtro_!$A$5:$AK$2954,34,FALSE),0) -> 0 | AK6: =IFERROR(VLOOKUP($A6,Filtro_!$A$5:$AK$2954,35,FALSE),0) -> 0 | AL6: 9,050 | AM6: =AL6*F6 -> 43,213,750
A7: 01014276 | B7: 0101202 | C7: Consulta Médica de Especialidad en Geriatría | D7: =IFERROR(VLOOKUP($A7,Filtro_!$A$5:$AK$2954,2,FALSE),0) -> 1520 | E7: =IFERROR(VLOOKUP($A7,Filtro_!$A$5:$AK$2954,3,FALSE),0) -> 1520 | F7: =IFERROR(VLOOKUP($A7,Filtro_!$A$5:$AK$2954,4,FALSE),0) -> 1520 | G7: =IFERROR(VLOOKUP($A7,Filtro_!$A$5:$AK$2954,5,FALSE),0) -> 0 | H7: =IFERROR(VLOOKUP($A7,Filtro_!$A$5:$AK$2954,6,FALSE),0) -> 0 | AB7: =IFERROR(VLOOKUP($A7,Filtro_!$A$5:$AK$2954,26,FALSE),0) -> 0 | AC7: =IFERROR(VLOOKUP($A7,Filtro_!$A$5:$AK$2954,27,FALSE),0) -> 1520 | AD7: =IFERROR(VLOOKUP($A7,Filtro_!$A$5:$AK$2954,28,FALSE),0) -> 0 | AE7: =IFERROR(VLOOKUP($A7,Filtro_!$A$5:$AK$2954,29,FALSE),0) -> 0 | AF7: =IFERROR(VLOOKUP($A7,Filtro_!$A$5:$AK$2954,30,FALSE),0) -> 0 | AG7: =IFERROR(VLOOKUP($A7,Filtro_!$A$5:$AK$2954,31,FALSE),0) -> 0 | AH7: =IFERROR(VLOOKUP($A7,Filtro_!$A$5:$AK$2954,32,FALSE),0) -> 0 | AI7: =IFERROR(VLOOKUP($A7,Filtro_!$A$5:$AK$2954,33,FALSE),0) -> 0 | AJ7: =IFERROR(VLOOKUP($A7,Filtro_!$A$5:$AK$2954,34,FALSE),0) -> 0 | AK7: =IFERROR(VLOOKUP($A7,Filtro_!$A$5:$AK$2954,35,FALSE),0) -> 0 | AL7: 9,050 | AM7: 13,756,000
A8: 01014277 | B8: 0101203 | C8: Consulta Médica de Especialidad en Neurocirugía | D8: =IFERROR(VLOOKUP($A8,Filtro_!$A$5:$AK$2954,2,FALSE),0) -> 6343 | E8: =IFERROR(VLOOKUP($A8,Filtro_!$A$5:$AK$2954,3,FALSE),0) -> 6343 | F8: =IFERROR(VLOOKUP($A8,Filtro_!$A$5:$AK$2954,4,FALSE),0) -> 6343 | G8: =IFERROR(VLOOKUP($A8,Filtro_!$A$5:$AK$2954,5,FALSE),0) -> 0 | H8: =IFERROR(VLOOKUP($A8,Filtro_!$A$5:$AK$2954,6,FALSE),0) -> 0 | AB8: =IFERROR(VLOOKUP($A8,Filtro_!$A$5:$AK$2954,26,FALSE),0) -> 0 | AC8: =IFERROR(VLOOKUP($A8,Filtro_!$A$5:$AK$2954,27,FALSE),0) -> 6343 | AD8: =IFERROR(VLOOKUP($A8,Filtro_!$A$5:$AK$2954,28,FALSE),0) -> 0 | AE8: =IFERROR(VLOOKUP($A8,Filtro_!$A$5:$AK$2954,29,FALSE),0) -> 0 | AF8: =IFERROR(VLOOKUP($A8,Filtro_!$A$5:$AK$2954,30,FALSE),0) -> 0 | AG8: =IFERROR(VLOOKUP($A8,Filtro_!$A$5:$AK$2954,31,FALSE),0) -> 0 | AH8: =IFERROR(VLOOKUP($A8,Filtro_!$A$5:$AK$2954,32,FALSE),0) -> 0 | AI8: =IFERROR(VLOOKUP($A8,Filtro_!$A$5:$AK$2954,33,FALSE),0) -> 0 | AJ8: =IFERROR(VLOOKUP($A8,Filtro_!$A$5:$AK$2954,34,FALSE),0) -> 0 | AK8: =IFERROR(VLOOKUP($A8,Filtro_!$A$5:$AK$2954,35,FALSE),0) -> 0 | AL8: 9,050 | AM8: 57,404,150
A9: 01014278 | B9: 0101204 | C9: Consulta Médica de Especialidad en Oftalmología | D9: =IFERROR(VLOOKUP($A9,Filtro_!$A$5:$AK$2954,2,FALSE),0) -> 24737 | E9: =IFERROR(VLOOKUP($A9,Filtro_!$A$5:$AK$2954,3,FALSE),0) -> 24657 | F9: =IFERROR(VLOOKUP($A9,Filtro_!$A$5:$AK$2954,4,FALSE),0) -> 24657 | G9: =IFERROR(VLOOKUP($A9,Filtro_!$A$5:$AK$2954,5,FALSE),0) -> 0 | H9: =IFERROR(VLOOKUP($A9,Filtro_!$A$5:$AK$2954,6,FALSE),0) -> 80 | AB9: =IFERROR(VLOOKUP($A9,Filtro_!$A$5:$AK$2954,26,FALSE),0) -> 0 | AC9: =IFERROR(VLOOKUP($A9,Filtro_!$A$5:$AK$2954,27,FALSE),0) -> 24737 | AD9: =IFERROR(VLOOKUP($A9,Filtro_!$A$5:$AK$2954,28,FALSE),0) -> 0 | AE9: =IFERROR(VLOOKUP($A9,Filtro_!$A$5:$AK$2954,29,FALSE),0) -> 413 | AF9: =IFERROR(VLOOKUP($A9,Filtro_!$A$5:$AK$2954,30,FALSE),0) -> 0 | AG9: =IFERROR(VLOOKUP($A9,Filtro_!$A$5:$AK$2954,31,FALSE),0) -> 0 | AH9: =IFERROR(VLOOKUP($A9,Filtro_!$A$5:$AK$2954,32,FALSE),0) -> 0 | AI9: =IFERROR(VLOOKUP($A9,Filtro_!$A$5:$AK$2954,33,FALSE),0) -> 0 | AJ9: =IFERROR(VLOOKUP($A9,Filtro_!$A$5:$AK$2954,34,FALSE),0) -> 0 | AK9: =IFERROR(VLOOKUP($A9,Filtro_!$A$5:$AK$2954,35,FALSE),0) -> 0 | AL9: 9,050 | AM9: 223,145,850
A10: 01014279 | B10: 0101205 | C10: Consulta Médica de Especialidad en Otorrinolaringología | D10: =IFERROR(VLOOKUP($A10,Filtro_!$A$5:$AK$2954,2,FALSE),0) -> 22009 | E10: =IFERROR(VLOOKUP($A10,Filtro_!$A$5:$AK$2954,3,FALSE),0) -> 21953 | F10: =IFERROR(VLOOKUP($A10,Filtro_!$A$5:$AK$2954,4,FALSE),0) -> 21953 | G10: =IFERROR(VLOOKUP($A10,Filtro_!$A$5:$AK$2954,5,FALSE),0) -> 0 | H10: =IFERROR(VLOOKUP($A10,Filtro_!$A$5:$AK$2954,6,FALSE),0) -> 56 | AB10: =IFERROR(VLOOKUP($A10,Filtro_!$A$5:$AK$2954,26,FALSE),0) -> 0 | AC10: =IFERROR(VLOOKUP($A10,Filtro_!$A$5:$AK$2954,27,FALSE),0) -> 22009 | AD10: =IFERROR(VLOOKUP($A10,Filtro_!$A$5:$AK$2954,28,FALSE),0) -> 0 | AE10: =IFERROR(VLOOKUP($A10,Filtro_!$A$5:$AK$2954,29,FALSE),0) -> 2990 | AF10: =IFERROR(VLOOKUP($A10,Filtro_!$A$5:$AK$2954,30,FALSE),0) -> 0 | AG10: =IFERROR(VLOOKUP($A10,Filtro_!$A$5:$AK$2954,31,FALSE),0) -> 0 | AH10: =IFERROR(VLOOKUP($A10,Filtro_!$A$5:$AK$2954,32,FALSE),0) -> 0 | AI10: =IFERROR(VLOOKUP($A10,Filtro_!$A$5:$AK$2954,33,FALSE),0) -> 0 | AJ10: =IFERROR(VLOOKUP($A10,Filtro_!$A$5:$AK$2954,34,FALSE),0) -> 0 | AK10: =IFERROR(VLOOKUP($A10,Filtro_!$A$5:$AK$2954,35,FALSE),0) -> 0 | AL10: 9,050 | AM10: 198,674,650
A11: 01014280 | B11: 0101206 | C11: Consulta Médica de Especialidad en Reumatología | D11: =IFERROR(VLOOKUP($A11,Filtro_!$A$5:$AK$2954,2,FALSE),0) -> 5370 | E11: =IFERROR(VLOOKUP($A11,Filtro_!$A$5:$AK$2954,3,FALSE),0) -> 5355 | F11: =IFERROR(VLOOKUP($A11,Filtro_!$A$5:$AK$2954,4,FALSE),0) -> 5355 | G11: =IFERROR(VLOOKUP($A11,Filtro_!$A$5:$AK$2954,5,FALSE),0) -> 0 | H11: =IFERROR(VLOOKUP($A11,Filtro_!$A$5:$AK$2954,6,FALSE),0) -> 15 | AB11: =IFERROR(VLOOKUP($A11,Filtro_!$A$5:$AK$2954,26,FALSE),0) -> 0 | AC11: =IFERROR(VLOOKUP($A11,Filtro_!$A$5:$AK$2954,27,FALSE),0) -> 5370 | AD11: =IFERROR(VLOOKUP($A11,Filtro_!$A$5:$AK$2954,28,FALSE),0) -> 0 | AE11: =IFERROR(VLOOKUP($A11,Filtro_!$A$5:$AK$2954,29,FALSE),0) -> 0 | AF11: =IFERROR(VLOOKUP($A11,Filtro_!$A$5:$AK$2954,30,FALSE),0) -> 0 | AG11: =IFERROR(VLOOKUP($A11,Filtro_!$A$5:$AK$2954,31,FALSE),0) -> 0 | AH11: =IFERROR(VLOOKUP($A11,Filtro_!$A$5:$AK$2954,32,FALSE),0) -> 0 | AI11: =IFERROR(VLOOKUP($A11,Filtro_!$A$5:$AK$2954,33,FALSE),0) -> 0 | AJ11: =IFERROR(VLOOKUP($A11,Filtro_!$A$5:$AK$2954,34,FALSE),0) -> 0 | AK11: =IFERROR(VLOOKUP($A11,Filtro_!$A$5:$AK$2954,35,FALSE),0) -> 0 | AL11: 9,050 | AM11: 48,462,750
A12: 01014281 | B12: 0101207 | C12: Consulta Médica de Especialidad en Endocrinología Adulto | D12: =IFERROR(VLOOKUP($A12,Filtro_!$A$5:$AK$2954,2,FALSE),0) -> 5733 | E12: =IFERROR(VLOOKUP($A12,Filtro_!$A$5:$AK$2954,3,FALSE),0) -> 5728 | F12: =IFERROR(VLOOKUP($A12,Filtro_!$A$5:$AK$2954,4,FALSE),0) -> 5725 | G12: =IFERROR(VLOOKUP($A12,Filtro_!$A$5:$AK$2954,5,FALSE),0) -> 3 | H12: =IFERROR(VLOOKUP($A12,Filtro_!$A$5:$AK$2954,6,FALSE),0) -> 5 | AB12: =IFERROR(VLOOKUP($A12,Filtro_!$A$5:$AK$2954,26,FALSE),0) -> 0 | AC12: =IFERROR(VLOOKUP($A12,Filtro_!$A$5:$AK$2954,27,FALSE),0) -> 5733 | AD12: =IFERROR(VLOOKUP($A12,Filtro_!$A$5:$AK$2954,28,FALSE),0) -> 0 | AE12: =IFERROR(VLOOKUP($A12,Filtro_!$A$5:$AK$2954,29,FALSE),0) -> 0 | AF12: =IFERROR(VLOOKUP($A12,Filtro_!$A$5:$AK$2954,30,FALSE),0) -> 0 | AG12: =IFERROR(VLOOKUP($A12,Filtro_!$A$5:$AK$2954,31,FALSE),0) -> 0 | AH12: =IFERROR(VLOOKUP($A12,Filtro_!$A$5:$AK$2954,32,FALSE),0) -> 0 | AI12: =IFERROR(VLOOKUP($A12,Filtro_!$A$5:$AK$2954,33,FALSE),0) -> 0 | AJ12: =IFERROR(VLOOKUP($A12,Filtro_!$A$5:$AK$2954,34,FALSE),0) -> 0 | AK12: =IFERROR(VLOOKUP($A12,Filtro_!$A$5:$AK$2954,35,FALSE),0) -> 0 | AL12: 9,050 | AM12: 51,811,250
A13: 01014282 | B13: 0101208 | C13: Consulta Médica de Especialidad en Endocrinología Pediátrica | D13: =IFERROR(VLOOKUP($A13,Filtro_!$A$5:$AK$2954,2,FALSE),0) -> 4789 | E13: =IFERROR(VLOOKUP($A13,Filtro_!$A$5:$AK$2954,3,FALSE),0) -> 4786 | F13: =IFERROR(VLOOKUP($A13,Filtro_!$A$5:$AK$2954,4,FALSE),0) -> 4786 | G13: =IFERROR(VLOOKUP($A13,Filtro_!$A$5:$AK$2954,5,FALSE),0) -> 0 | H13: =IFERROR(VLOOKUP($A13,Filtro_!$A$5:$AK$2954,6,FALSE),0) -> 3 | AB13: =IFERROR(VLOOKUP($A13,Filtro_!$A$5:$AK$2954,26,FALSE),0) -> 0 | AC13: =IFERROR(VLOOKUP($A13,Filtro_!$A$5:$AK$2954,27,FALSE),0) -> 4789 | AD13: =IFERROR(VLOOKUP($A13,Filtro_!$A$5:$AK$2954,28,FALSE),0) -> 0 | AE13: =IFERROR(VLOOKUP($A13,Filtro_!$A$5:$AK$2954,29,FALSE),0) -> 0 | AF13: =IFERROR(VLOOKUP($A13,Filtro_!$A$5:$AK$2954,30,FALSE),0) -> 0 | AG13: =IFERROR(VLOOKUP($A13,Filtro_!$A$5:$AK$2954,31,FALSE),0) -> 0 | AH13: =IFERROR(VLOOKUP($A13,Filtro_!$A$5:$AK$2954,32,FALSE),0) -> 0 | AI13: =IFERROR(VLOOKUP($A13,Filtro_!$A$5:$AK$2954,33,FALSE),0) -> 0 | AJ13: =IFERROR(VLOOKUP($A13,Filtro_!$A$5:$AK$2954,34,FALSE),0) -> 0 | AK13: =IFERROR(VLOOKUP($A13,Filtro_!$A$5:$AK$2954,35,FALSE),0) -> 0 | AL13: 9,050 | AM13: 43,313,300
A14: 01014283 | B14: 0101209 | C14: Consulta Médica de Especialidad en Neurología Adultos | D14: =IFERROR(VLOOKUP($A14,Filtro_!$A$5:$AK$2954,2,FALSE),0) -> 11369 | E14: =IFERROR(VLOOKUP($A14,Filtro_!$A$5:$AK$2954,3,FALSE),0) -> 11359 | F14: =IFERROR(VLOOKUP($A14,Filtro_!$A$5:$AK$2954,4,FALSE),0) -> 11359 | G14: =IFERROR(VLOOKUP($A14,Filtro_!$A$5:$AK$2954,5,FALSE),0) -> 0 | H14: =IFERROR(VLOOKUP($A14,Filtro_!$A$5:$AK$2954,6,FALSE),0) -> 10 | AB14: =IFERROR(VLOOKUP($A14,Filtro_!$A$5:$AK$2954,26,FALSE),0) -> 0 | AC14: =IFERROR(VLOOKUP($A14,Filtro_!$A$5:$AK$2954,27,FALSE),0) -> 11369 | AD14: =IFERROR(VLOOKUP($A14,Filtro_!$A$5:$AK$2954,28,FALSE),0) -> 0 | AE14: =IFERROR(VLOOKUP($A14,Filtro_!$A$5:$AK$2954,29,FALSE),0) -> 562 | AF14: =IFERROR(VLOOKUP($A14,Filtro_!$A$5:$AK$2954,30,FALSE),0) -> 0 | AG14: =IFERROR(VLOOKUP($A14,Filtro_!$A$5:$AK$2954,31,FALSE),0) -> 0 | AH14: =IFERROR(VLOOKUP($A14,Filtro_!$A$5:$AK$2954,32,FALSE),0) -> 0 | AI14: =IFERROR(VLOOKUP($A14,Filtro_!$A$5:$AK$2954,33,FALSE),0) -> 0 | AJ14: =IFERROR(VLOOKUP($A14,Filtro_!$A$5:$AK$2954,34,FALSE),0) -> 0 | AK14: =IFERROR(VLOOKUP($A14,Filtro_!$A$5:$AK$2954,35,FALSE),0) -> 0 | AL14: 9,050 | AM14: 102,798,950
A15: 01014284 | B15: 0101210 | C15: Consulta Médica de Especialidad en Neurología Pediátrica | D15: =IFERROR(VLOOKUP($A15,Filtro_!$A$5:$AK$2954,2,FALSE),0) -> 7751 | E15: =IFERROR(VLOOKUP($A15,Filtro_!$A$5:$AK$2954,3,FALSE),0) -> 7737 | F15: =IFERROR(VLOOKUP($A15,Filtro_!$A$5:$AK$2954,4,FALSE),0) -> 7737 | G15: =IFERROR(VLOOKUP($A15,Filtro_!$A$5:$AK$2954,5,FALSE),0) -> 0 | H15: =IFERROR(VLOOKUP($A15,Filtro_!$A$5:$AK$2954,6,FALSE),0) -> 14 | AB15: =IFERROR(VLOOKUP($A15,Filtro_!$A$5:$AK$2954,26,FALSE),0) -> 0 | AC15: =IFERROR(VLOOKUP($A15,Filtro_!$A$5:$AK$2954,27,FALSE),0) -> 7751 | AD15: =IFERROR(VLOOKUP($A15,Filtro_!$A$5:$AK$2954,28,FALSE),0) -> 0 | AE15: =IFERROR(VLOOKUP($A15,Filtro_!$A$5:$AK$2954,29,FALSE),0) -> 0 | AF15: =IFERROR(VLOOKUP($A15,Filtro_!$A$5:$AK$2954,30,FALSE),0) -> 0 | AG15: =IFERROR(VLOOKUP($A15,Filtro_!$A$5:$AK$2954,31,FALSE),0) -> 0 | AH15: =IFERROR(VLOOKUP($A15,Filtro_!$A$5:$AK$2954,32,FALSE),0) -> 0 | AI15: =IFERROR(VLOOKUP($A15,Filtro_!$A$5:$AK$2954,33,FALSE),0) -> 0 | AJ15: =IFERROR(VLOOKUP($A15,Filtro_!$A$5:$AK$2954,34,FALSE),0) -> 0 | AK15: =IFERROR(VLOOKUP($A15,Filtro_!$A$5:$AK$2954,35,FALSE),0) -> 0 | AL15: 9,050 | AM15: 70,019,850
A16: 01014285 | B16: 0101211 | C16: Consulta Médica de Especialidad en Oncología Médica | D16: =IFERROR(VLOOKUP($A16,Filtro_!$A$5:$AK$2954,2,FALSE),0) -> 9097 | E16: =IFERROR(VLOOKUP($A16,Filtro_!$A$5:$AK$2954,3,FALSE),0) -> 9068 | F16: =IFERROR(VLOOKUP($A16,Filtro_!$A$5:$AK$2954,4,FALSE),0) -> 9068 | G16: =IFERROR(VLOOKUP($A16,Filtro_!$A$5:$AK$2954,5,FALSE),0) -> 0 | H16: =IFERROR(VLOOKUP($A16,Filtro_!$A$5:$AK$2954,6,FALSE),0) -> 29 | AB16: =IFERROR(VLOOKUP($A16,Filtro_!$A$5:$AK$2954,26,FALSE),0) -> 0 | AC16: =IFERROR(VLOOKUP($A16,Filtro_!$A$5:$AK$2954,27,FALSE),0) -> 9097 | AD16: =IFERROR(VLOOKUP($A16,Filtro_!$A$5:$AK$2954,28,FALSE),0) -> 0 | AE16: =IFERROR(VLOOKUP($A16,Filtro_!$A$5:$AK$2954,29,FALSE),0) -> 0 | AF16: =IFERROR(VLOOKUP($A16,Filtro_!$A$5:$AK$2954,30,FALSE),0) -> 0 | AG16: =IFERROR(VLOOKUP($A16,Filtro_!$A$5:$AK$2954,31,FALSE),0) -> 0 | AH16: =IFERROR(VLOOKUP($A16,Filtro_!$A$5:$AK$2954,32,FALSE),0) -> 0 | AI16: =IFERROR(VLOOKUP($A16,Filtro_!$A$5:$AK$2954,33,FALSE),0) -> 0 | AJ16: =IFERROR(VLOOKUP($A16,Filtro_!$A$5:$AK$2954,34,FALSE),0) -> 0 | AK16: =IFERROR(VLOOKUP($A16,Filtro_!$A$5:$AK$2954,35,FALSE),0) -> 0 | AL16: 9,050 | AM16: 82,065,400
A17: 01014286 | B17: 0101212 | C17: Consulta Médica de Especialidad en Psiquiatría adultos | D17: =IFERROR(VLOOKUP($A17,Filtro_!$A$5:$AK$2954,2,FALSE),0) -> 18828 | E17: =IFERROR(VLOOKUP($A17,Filtro_!$A$5:$AK$2954,3,FALSE),0) -> 18783 | F17: =IFERROR(VLOOKUP($A17,Filtro_!$A$5:$AK$2954,4,FALSE),0) -> 18783 | G17: =IFERROR(VLOOKUP($A17,Filtro_!$A$5:$AK$2954,5,FALSE),0) -> 0 | H17: =IFERROR(VLOOKUP($A17,Filtro_!$A$5:$AK$2954,6,FALSE),0) -> 45 | AB17: =IFERROR(VLOOKUP($A17,Filtro_!$A$5:$AK$2954,26,FALSE),0) -> 0 | AC17: =IFERROR(VLOOKUP($A17,Filtro_!$A$5:$AK$2954,27,FALSE),0) -> 18828 | AD17: =IFERROR(VLOOKUP($A17,Filtro_!$A$5:$AK$2954,28,FALSE),0) -> 0 | AE17: =IFERROR(VLOOKUP($A17,Filtro_!$A$5:$AK$2954,29,FALSE),0) -> 0 | AF17: =IFERROR(VLOOKUP($A17,Filtro_!$A$5:$AK$2954,30,FALSE),0) -> 0 | AG17: =IFERROR(VLOOKUP($A17,Filtro_!$A$5:$AK$2954,31,FALSE),0) -> 0 | AH17: =IFERROR(VLOOKUP($A17,Filtro_!$A$5:$AK$2954,32,FALSE),0) -> 0 | AI17: =IFERROR(VLOOKUP($A17,Filtro_!$A$5:$AK$2954,33,FALSE),0) -> 0 | AJ17: =IFERROR(VLOOKUP($A17,Filtro_!$A$5:$AK$2954,34,FALSE),0) -> 0 | AK17: =IFERROR(VLOOKUP($A17,Filtro_!$A$5:$AK$2954,35,FALSE),0) -> 0 | AL17: 9,050 | AM17: 169,986,150
A18: 01014287 | B18: 0101213 | C18: Consulta Médica de Especialidad en Psiquiatría pediátrica y de la adolescencia | D18: =IFERROR(VLOOKUP($A18,Filtro_!$A$5:$AK$2954,2,FALSE),0) -> 6095 | E18: =IFERROR(VLOOKUP($A18,Filtro_!$A$5:$AK$2954,3,FALSE),0) -> 6090 | F18: =IFERROR(VLOOKUP($A18,Filtro_!$A$5:$AK$2954,4,FALSE),0) -> 6090 | G18: =IFERROR(VLOOKUP($A18,Filtro_!$A$5:$AK$2954,5,FALSE),0) -> 0 | H18: =IFERROR(VLOOKUP($A18,Filtro_!$A$5:$AK$2954,6,FALSE),0) -> 5 | AB18: =IFERROR(VLOOKUP($A18,Filtro_!$A$5:$AK$2954,26,FALSE),0) -> 0 | AC18: =IFERROR(VLOOKUP($A18,Filtro_!$A$5:$AK$2954,27,FALSE),0) -> 6095 | AD18: =IFERROR(VLOOKUP($A18,Filtro_!$A$5:$AK$2954,28,FALSE),0) -> 0 | AE18: =IFERROR(VLOOKUP($A18,Filtro_!$A$5:$AK$2954,29,FALSE),0) -> 0 | AF18: =IFERROR(VLOOKUP($A18,Filtro_!$A$5:$AK$2954,30,FALSE),0) -> 0 | AG18: =IFERROR(VLOOKUP($A18,Filtro_!$A$5:$AK$2954,31,FALSE),0) -> 0 | AH18: =IFERROR(VLOOKUP($A18,Filtro_!$A$5:$AK$2954,32,FALSE),0) -> 0 | AI18: =IFERROR(VLOOKUP($A18,Filtro_!$A$5:$AK$2954,33,FALSE),0) -> 0 | AJ18: =IFERROR(VLOOKUP($A18,Filtro_!$A$5:$AK$2954,34,FALSE),0) -> 0 | AK18: =IFERROR(VLOOKUP($A18,Filtro_!$A$5:$AK$2954,35,FALSE),0) -> 0 | AL18: 9,050 | AM18: 55,114,500
A19: 01014288 | B19: 0101300 | C19: Consulta Médica otras Especialidades | D19: =IFERROR(VLOOKUP($A19,Filtro_!$A$5:$AK$2954,2,FALSE),0) -> 10203 | E19: =IFERROR(VLOOKUP($A19,Filtro_!$A$5:$AK$2954,3,FALSE),0) -> 10202 | F19: =IFERROR(VLOOKUP($A19,Filtro_!$A$5:$AK$2954,4,FALSE),0) -> 10202 | G19: =IFERROR(VLOOKUP($A19,Filtro_!$A$5:$AK$2954,5,FALSE),0) -> 0 | H19: =IFERROR(VLOOKUP($A19,Filtro_!$A$5:$AK$2954,6,FALSE),0) -> 1 | AB19: =IFERROR(VLOOKUP($A19,Filtro_!$A$5:$AK$2954,26,FALSE),0) -> 0 | AC19: =IFERROR(VLOOKUP($A19,Filtro_!$A$5:$AK$2954,27,FALSE),0) -> 10203 | AD19: =IFERROR(VLOOKUP($A19,Filtro_!$A$5:$AK$2954,28,FALSE),0) -> 0 | AE19: =IFERROR(VLOOKUP($A19,Filtro_!$A$5:$AK$2954,29,FALSE),0) -> 0 | AF19: =IFERROR(VLOOKUP($A19,Filtro_!$A$5:$AK$2954,30,FALSE),0) -> 0 | AG19: =IFERROR(VLOOKUP($A19,Filtro_!$A$5:$AK$2954,31,FALSE),0) -> 0 | AH19: =IFERROR(VLOOKUP($A19,Filtro_!$A$5:$AK$2954,32,FALSE),0) -> 0 | AI19: =IFERROR(VLOOKUP($A19,Filtro_!$A$5:$AK$2954,33,FALSE),0) -> 0 | AJ19: =IFERROR(VLOOKUP($A19,Filtro_!$A$5:$AK$2954,34,FALSE),0) -> 0 | AK19: =IFERROR(VLOOKUP($A19,Filtro_!$A$5:$AK$2954,35,FALSE),0) -> 0 | AL19: 9,050 | AM19: 92,328,100
A20: 01014289 | B20: 0101301 | C20: Consulta Médica de Especialidad en Cardiología | D20: =IFERROR(VLOOKUP($A20,Filtro_!$A$5:$AK$2954,2,FALSE),0) -> 13951 | E20: =IFERROR(VLOOKUP($A20,Filtro_!$A$5:$AK$2954,3,FALSE),0) -> 13933 | F20: =IFERROR(VLOOKUP($A20,Filtro_!$A$5:$AK$2954,4,FALSE),0) -> 13933 | G20: =IFERROR(VLOOKUP($A20,Filtro_!$A$5:$AK$2954,5,FALSE),0) -> 0 | H20: =IFERROR(VLOOKUP($A20,Filtro_!$A$5:$AK$2954,6,FALSE),0) -> 18 | AB20: =IFERROR(VLOOKUP($A20,Filtro_!$A$5:$AK$2954,26,FALSE),0) -> 0 | AC20: =IFERROR(VLOOKUP($A20,Filtro_!$A$5:$AK$2954,27,FALSE),0) -> 13951 | AD20: =IFERROR(VLOOKUP($A20,Filtro_!$A$5:$AK$2954,28,FALSE),0) -> 0 | AE20: =IFERROR(VLOOKUP($A20,Filtro_!$A$5:$AK$2954,29,FALSE),0) -> 8 | AF20: =IFERROR(VLOOKUP($A20,Filtro_!$A$5:$AK$2954,30,FALSE),0) -> 0 | AG20: =IFERROR(VLOOKUP($A20,Filtro_!$A$5:$AK$2954,31,FALSE),0) -> 0 | AH20: =IFERROR(VLOOKUP($A20,Filtro_!$A$5:$AK$2954,32,FALSE),0) -> 0 | AI20: =IFERROR(VLOOKUP($A20,Filtro_!$A$5:$AK$2954,33,FALSE),0) -> 0 | AJ20: =IFERROR(VLOOKUP($A20,Filtro_!$A$5:$AK$2954,34,FALSE),0) -> 0 | AK20: =IFERROR(VLOOKUP($A20,Filtro_!$A$5:$AK$2954,35,FALSE),0) -> 0 | AL20: 9,050 | AM20: 126,093,650
A21: 01014290 | B21: 0101302 | C21: Consulta Médica de Especialidad en Hematología | D21: =IFERROR(VLOOKUP($A21,Filtro_!$A$5:$AK$2954,2,FALSE),0) -> 7856 | E21: =IFERROR(VLOOKUP($A21,Filtro_!$A$5:$AK$2954,3,FALSE),0) -> 7843 | F21: =IFERROR(VLOOKUP($A21,Filtro_!$A$5:$AK$2954,4,FALSE),0) -> 7843 | G21: =IFERROR(VLOOKUP($A21,Filtro_!$A$5:$AK$2954,5,FALSE),0) -> 0 | H21: =IFERROR(VLOOKUP($A21,Filtro_!$A$5:$AK$2954,6,FALSE),0) -> 13 | AB21: =IFERROR(VLOOKUP($A21,Filtro_!$A$5:$AK$2954,26,FALSE),0) -> 0 | AC21: =IFERROR(VLOOKUP($A21,Filtro_!$A$5:$AK$2954,27,FALSE),0) -> 7856 | AD21: =IFERROR(VLOOKUP($A21,Filtro_!$A$5:$AK$2954,28,FALSE),0) -> 0 | AE21: =IFERROR(VLOOKUP($A21,Filtro_!$A$5:$AK$2954,29,FALSE),0) -> 0 | AF21: =IFERROR(VLOOKUP($A21,Filtro_!$A$5:$AK$2954,30,FALSE),0) -> 0 | AG21: =IFERROR(VLOOKUP($A21,Filtro_!$A$5:$AK$2954,31,FALSE),0) -> 0 | AH21: =IFERROR(VLOOKUP($A21,Filtro_!$A$5:$AK$2954,32,FALSE),0) -> 0 | AI21: =IFERROR(VLOOKUP($A21,Filtro_!$A$5:$AK$2954,33,FALSE),0) -> 0 | AJ21: =IFERROR(VLOOKUP($A21,Filtro_!$A$5:$AK$2954,34,FALSE),0) -> 0 | AK21: =IFERROR(VLOOKUP($A21,Filtro_!$A$5:$AK$2954,35,FALSE),0) -> 0 | AL21: 9,050 | AM21: 70,979,150
A22: 01014291 | B22: 0101303 | C22: Consulta Médica de Especialidad en Infectología | D22: =IFERROR(VLOOKUP($A22,Filtro_!$A$5:$AK$2954,2,FALSE),0) -> 5281 | E22: =IFERROR(VLOOKUP($A22,Filtro_!$A$5:$AK$2954,3,FALSE),0) -> 5274 | F22: =IFERROR(VLOOKUP($A22,Filtro_!$A$5:$AK$2954,4,FALSE),0) -> 5274 | G22: =IFERROR(VLOOKUP($A22,Filtro_!$A$5:$AK$2954,5,FALSE),0) -> 0 | H22: =IFERROR(VLOOKUP($A22,Filtro_!$A$5:$AK$2954,6,FALSE),0) -> 7 | AB22: =IFERROR(VLOOKUP($A22,Filtro_!$A$5:$AK$2954,26,FALSE),0) -> 0 | AC22: =IFERROR(VLOOKUP($A22,Filtro_!$A$5:$AK$2954,27,FALSE),0) -> 5281 | AD22: =IFERROR(VLOOKUP($A22,Filtro_!$A$5:$AK$2954,28,FALSE),0) -> 0 | AE22: =IFERROR(VLOOKUP($A22,Filtro_!$A$5:$AK$2954,29,FALSE),0) -> 0 | AF22: =IFERROR(VLOOKUP($A22,Filtro_!$A$5:$AK$2954,30,FALSE),0) -> 0 | AG22: =IFERROR(VLOOKUP($A22,Filtro_!$A$5:$AK$2954,31,FALSE),0) -> 0 | AH22: =IFERROR(VLOOKUP($A22,Filtro_!$A$5:$AK$2954,32,FALSE),0) -> 0 | AI22: =IFERROR(VLOOKUP($A22,Filtro_!$A$5:$AK$2954,33,FALSE),0) -> 0 | AJ22: =IFERROR(VLOOKUP($A22,Filtro_!$A$5:$AK$2954,34,FALSE),0) -> 0 | AK22: =IFERROR(VLOOKUP($A22,Filtro_!$A$5:$AK$2954,35,FALSE),0) -> 0 | AL22: 9,050 | AM22: 47,729,700
A23: 01014292 | B23: 0101304 | C23: Consulta Médica de Especialidad en Inmunología | D23: =IFERROR(VLOOKUP($A23,Filtro_!$A$5:$AK$2954,2,FALSE),0) -> 1739 | E23: =IFERROR(VLOOKUP($A23,Filtro_!$A$5:$AK$2954,3,FALSE),0) -> 1739 | F23: =IFERROR(VLOOKUP($A23,Filtro_!$A$5:$AK$2954,4,FALSE),0) -> 1739 | G23: =IFERROR(VLOOKUP($A23,Filtro_!$A$5:$AK$2954,5,FALSE),0) -> 0 | H23: =IFERROR(VLOOKUP($A23,Filtro_!$A$5:$AK$2954,6,FALSE),0) -> 0 | AB23: =IFERROR(VLOOKUP($A23,Filtro_!$A$5:$AK$2954,26,FALSE),0) -> 0 | AC23: =IFERROR(VLOOKUP($A23,Filtro_!$A$5:$AK$2954,27,FALSE),0) -> 1739 | AD23: =IFERROR(VLOOKUP($A23,Filtro_!$A$5:$AK$2954,28,FALSE),0) -> 0 | AE23: =IFERROR(VLOOKUP($A23,Filtro_!$A$5:$AK$2954,29,FALSE),0) -> 0 | AF23: =IFERROR(VLOOKUP($A23,Filtro_!$A$5:$AK$2954,30,FALSE),0) -> 0 | AG23: =IFERROR(VLOOKUP($A23,Filtro_!$A$5:$AK$2954,31,FALSE),0) -> 0 | AH23: =IFERROR(VLOOKUP($A23,Filtro_!$A$5:$AK$2954,32,FALSE),0) -> 0 | AI23: =IFERROR(VLOOKUP($A23,Filtro_!$A$5:$AK$2954,33,FALSE),0) -> 0 | AJ23: =IFERROR(VLOOKUP($A23,Filtro_!$A$5:$AK$2954,34,FALSE),0) -> 0 | AK23: =IFERROR(VLOOKUP($A23,Filtro_!$A$5:$AK$2954,35,FALSE),0) -> 0 | AL23: 9,050 | AM23: 15,737,950
A24: 01014293 | B24: 0101305 | C24: Consulta Médica de Especialidad en Medicina Familiar | D24: =IFERROR(VLOOKUP($A24,Filtro_!$A$5:$AK$2954,2,FALSE),0) -> 30 | E24: =IFERROR(VLOOKUP($A24,Filtro_!$A$5:$AK$2954,3,FALSE),0) -> 30 | F24: =IFERROR(VLOOKUP($A24,Filtro_!$A$5:$AK$2954,4,FALSE),0) -> 30 | G24: =IFERROR(VLOOKUP($A24,Filtro_!$A$5:$AK$2954,5,FALSE),0) -> 0 | H24: =IFERROR(VLOOKUP($A24,Filtro_!$A$5:$AK$2954,6,FALSE),0) -> 0 | AB24: =IFERROR(VLOOKUP($A24,Filtro_!$A$5:$AK$2954,26,FALSE),0) -> 0 | AC24: =IFERROR(VLOOKUP($A24,Filtro_!$A$5:$AK$2954,27,FALSE),0) -> 30 | AD24: =IFERROR(VLOOKUP($A24,Filtro_!$A$5:$AK$2954,28,FALSE),0) -> 0 | AE24: =IFERROR(VLOOKUP($A24,Filtro_!$A$5:$AK$2954,29,FALSE),0) -> 0 | AF24: =IFERROR(VLOOKUP($A24,Filtro_!$A$5:$AK$2954,30,FALSE),0) -> 0 | AG24: =IFERROR(VLOOKUP($A24,Filtro_!$A$5:$AK$2954,31,FALSE),0) -> 0 | AH24: =IFERROR(VLOOKUP($A24,Filtro_!$A$5:$AK$2954,32,FALSE),0) -> 0 | AI24: =IFERROR(VLOOKUP($A24,Filtro_!$A$5:$AK$2954,33,FALSE),0) -> 0 | AJ24: =IFERROR(VLOOKUP($A24,Filtro_!$A$5:$AK$2954,34,FALSE),0) -> 0 | AK24: =IFERROR(VLOOKUP($A24,Filtro_!$A$5:$AK$2954,35,FALSE),0) -> 0 | AL24: 9,050 | AM24: 271,500
A25: 01014294 | B25: 0101306 | C25: Consulta Médica de Especialidad en Medicina Física y Rehabilitación | D25: =IFERROR(VLOOKUP($A25,Filtro_!$A$5:$AK$2954,2,FALSE),0) -> 6563 | E25: =IFERROR(VLOOKUP($A25,Filtro_!$A$5:$AK$2954,3,FALSE),0) -> 6558 | F25: =IFERROR(VLOOKUP($A25,Filtro_!$A$5:$AK$2954,4,FALSE),0) -> 6558 | G25: =IFERROR(VLOOKUP($A25,Filtro_!$A$5:$AK$2954,5,FALSE),0) -> 0 | H25: =IFERROR(VLOOKUP($A25,Filtro_!$A$5:$AK$2954,6,FALSE),0) -> 5 | AB25: =IFERROR(VLOOKUP($A25,Filtro_!$A$5:$AK$2954,26,FALSE),0) -> 0 | AC25: =IFERROR(VLOOKUP($A25,Filtro_!$A$5:$AK$2954,27,FALSE),0) -> 6693 | AD25: =IFERROR(VLOOKUP($A25,Filtro_!$A$5:$AK$2954,28,FALSE),0) -> 0 | AE25: =IFERROR(VLOOKUP($A25,Filtro_!$A$5:$AK$2954,29,FALSE),0) -> 0 | AF25: =IFERROR(VLOOKUP($A25,Filtro_!$A$5:$AK$2954,30,FALSE),0) -> 0 | AG25: =IFERROR(VLOOKUP($A25,Filtro_!$A$5:$AK$2954,31,FALSE),0) -> 0 | AH25: =IFERROR(VLOOKUP($A25,Filtro_!$A$5:$AK$2954,32,FALSE),0) -> 0 | AI25: =IFERROR(VLOOKUP($A25,Filtro_!$A$5:$AK$2954,33,FALSE),0) -> 0 | AJ25: =IFERROR(VLOOKUP($A25,Filtro_!$A$5:$AK$2954,34,FALSE),0) -> 0 | AK25: =IFERROR(VLOOKUP($A25,Filtro_!$A$5:$AK$2954,35,FALSE),0) -> 0 | AL25: 9,050 | AM25: 59,349,900
A26: 01014295 | B26: 0101307 | C26: Consulta Médica de Especialidad en Medicina Interna | D26: =IFERROR(VLOOKUP($A26,Filtro_!$A$5:$AK$2954,2,FALSE),0) -> 39383 | E26: =IFERROR(VLOOKUP($A26,Filtro_!$A$5:$AK$2954,3,FALSE),0) -> 39286 | F26: =IFERROR(VLOOKUP($A26,Filtro_!$A$5:$AK$2954,4,FALSE),0) -> 39286 | G26: =IFERROR(VLOOKUP($A26,Filtro_!$A$5:$AK$2954,5,FALSE),0) -> 0 | H26: =IFERROR(VLOOKUP($A26,Filtro_!$A$5:$AK$2954,6,FALSE),0) -> 97 | AB26: =IFERROR(VLOOKUP($A26,Filtro_!$A$5:$AK$2954,26,FALSE),0) -> 0 | AC26: =IFERROR(VLOOKUP($A26,Filtro_!$A$5:$AK$2954,27,FALSE),0) -> 39500 | AD26: =IFERROR(VLOOKUP($A26,Filtro_!$A$5:$AK$2954,28,FALSE),0) -> 3 | AE26: =IFERROR(VLOOKUP($A26,Filtro_!$A$5:$AK$2954,29,FALSE),0) -> 755 | AF26: =IFERROR(VLOOKUP($A26,Filtro_!$A$5:$AK$2954,30,FALSE),0) -> 0 | AG26: =IFERROR(VLOOKUP($A26,Filtro_!$A$5:$AK$2954,31,FALSE),0) -> 0 | AH26: =IFERROR(VLOOKUP($A26,Filtro_!$A$5:$AK$2954,32,FALSE),0) -> 0 | AI26: =IFERROR(VLOOKUP($A26,Filtro_!$A$5:$AK$2954,33,FALSE),0) -> 0 | AJ26: =IFERROR(VLOOKUP($A26,Filtro_!$A$5:$AK$2954,34,FALSE),0) -> 0 | AK26: =IFERROR(VLOOKUP($A26,Filtro_!$A$5:$AK$2954,35,FALSE),0) -> 0 | AL26: 9,050 | AM26: 355,538,300
A27: 01012816 | B27: 0101308 | C27: Consulta Médica de Especialidad en Obstetricia y Ginecología | D27: =IFERROR(VLOOKUP($A27,Filtro_!$A$5:$AK$2954,2,FALSE),0) -> 44211 | E27: =IFERROR(VLOOKUP($A27,Filtro_!$A$5:$AK$2954,3,FALSE),0) -> 44179 | F27: =IFERROR(VLOOKUP($A27,Filtro_!$A$5:$AK$2954,4,FALSE),0) -> 44179 | G27: =IFERROR(VLOOKUP($A27,Filtro_!$A$5:$AK$2954,5,FALSE),0) -> 0 | H27: =IFERROR(VLOOKUP($A27,Filtro_!$A$5:$AK$2954,6,FALSE),0) -> 32 | AB27: =IFERROR(VLOOKUP($A27,Filtro_!$A$5:$AK$2954,26,FALSE),0) -> 208 | AC27: =IFERROR(VLOOKUP($A27,Filtro_!$A$5:$AK$2954,27,FALSE),0) -> 42254 | AD27: =IFERROR(VLOOKUP($A27,Filtro_!$A$5:$AK$2954,28,FALSE),0) -> 1632 | AE27: =IFERROR(VLOOKUP($A27,Filtro_!$A$5:$AK$2954,29,FALSE),0) -> 537 | AF27: =IFERROR(VLOOKUP($A27,Filtro_!$A$5:$AK$2954,30,FALSE),0) -> 0 | AG27: =IFERROR(VLOOKUP($A27,Filtro_!$A$5:$AK$2954,31,FALSE),0) -> 0 | AH27: =IFERROR(VLOOKUP($A27,Filtro_!$A$5:$AK$2954,32,FALSE),0) -> 0 | AI27: =IFERROR(VLOOKUP($A27,Filtro_!$A$5:$AK$2954,33,FALSE),0) -> 0 | AJ27: =IFERROR(VLOOKUP($A27,Filtro_!$A$5:$AK$2954,34,FALSE),0) -> 0 | AK27: =IFERROR(VLOOKUP($A27,Filtro_!$A$5:$AK$2954,35,FALSE),0) -> 0 | AL27: 9,050 | AM27: 399,819,950
A28: 01014296 | B28: 0101309 | C28: Consulta Médica de Especialidad en Pediatría | D28: =IFERROR(VLOOKUP($A28,Filtro_!$A$5:$AK$2954,2,FALSE),0) -> 13387 | E28: =IFERROR(VLOOKUP($A28,Filtro_!$A$5:$AK$2954,3,FALSE),0) -> 13379 | F28: =IFERROR(VLOOKUP($A28,Filtro_!$A$5:$AK$2954,4,FALSE),0) -> 13379 | G28: =IFERROR(VLOOKUP($A28,Filtro_!$A$5:$AK$2954,5,FALSE),0) -> 0 | H28: =IFERROR(VLOOKUP($A28,Filtro_!$A$5:$AK$2954,6,FALSE),0) -> 8 | AB28: =IFERROR(VLOOKUP($A28,Filtro_!$A$5:$AK$2954,26,FALSE),0) -> 0 | AC28: =IFERROR(VLOOKUP($A28,Filtro_!$A$5:$AK$2954,27,FALSE),0) -> 13256 | AD28: =IFERROR(VLOOKUP($A28,Filtro_!$A$5:$AK$2954,28,FALSE),0) -> 0 | AE28: =IFERROR(VLOOKUP($A28,Filtro_!$A$5:$AK$2954,29,FALSE),0) -> 0 | AF28: =IFERROR(VLOOKUP($A28,Filtro_!$A$5:$AK$2954,30,FALSE),0) -> 0 | AG28: =IFERROR(VLOOKUP($A28,Filtro_!$A$5:$AK$2954,31,FALSE),0) -> 0 | AH28: =IFERROR(VLOOKUP($A28,Filtro_!$A$5:$AK$2954,32,FALSE),0) -> 0 | AI28: =IFERROR(VLOOKUP($A28,Filtro_!$A$5:$AK$2954,33,FALSE),0) -> 0 | AJ28: =IFERROR(VLOOKUP($A28,Filtro_!$A$5:$AK$2954,34,FALSE),0) -> 0 | AK28: =IFERROR(VLOOKUP($A28,Filtro_!$A$5:$AK$2954,35,FALSE),0) -> 0 | AL28: 9,050 | AM28: 121,079,950
A29: 01014297 | B29: 0101310 | C29: Consulta Médica de Especialidad en Traumatología y Ortopedia | D29: =IFERROR(VLOOKUP($A29,Filtro_!$A$5:$AK$2954,2,FALSE),0) -> 34065 | E29: =IFERROR(VLOOKUP($A29,Filtro_!$A$5:$AK$2954,3,FALSE),0) -> 33479 | F29: =IFERROR(VLOOKUP($A29,Filtro_!$A$5:$AK$2954,4,FALSE),0) -> 33479 | G29: =IFERROR(VLOOKUP($A29,Filtro_!$A$5:$AK$2954,5,FALSE),0) -> 0 | H29: =IFERROR(VLOOKUP($A29,Filtro_!$A$5:$AK$2954,6,FALSE),0) -> 586 | AB29: =IFERROR(VLOOKUP($A29,Filtro_!$A$5:$AK$2954,26,FALSE),0) -> 0 | AC29: =IFERROR(VLOOKUP($A29,Filtro_!$A$5:$AK$2954,27,FALSE),0) -> 34065 | AD29: =IFERROR(VLOOKUP($A29,Filtro_!$A$5:$AK$2954,28,FALSE),0) -> 0 | AE29: =IFERROR(VLOOKUP($A29,Filtro_!$A$5:$AK$2954,29,FALSE),0) -> 1210 | AF29: =IFERROR(VLOOKUP($A29,Filtro_!$A$5:$AK$2954,30,FALSE),0) -> 0 | AG29: =IFERROR(VLOOKUP($A29,Filtro_!$A$5:$AK$2954,31,FALSE),0) -> 0 | AH29: =IFERROR(VLOOKUP($A29,Filtro_!$A$5:$AK$2954,32,FALSE),0) -> 0 | AI29: =IFERROR(VLOOKUP($A29,Filtro_!$A$5:$AK$2954,33,FALSE),0) -> 0 | AJ29: =IFERROR(VLOOKUP($A29,Filtro_!$A$5:$AK$2954,34,FALSE),0) -> 0 | AK29: =IFERROR(VLOOKUP($A29,Filtro_!$A$5:$AK$2954,35,FALSE),0) -> 0 | AL29: 9,050 | AM29: 302,984,950
A30: 01014298 | B30: 0101311 | C30: Consulta Médica de Especialidad en Urología | D30: =IFERROR(VLOOKUP($A30,Filtro_!$A$5:$AK$2954,2,FALSE),0) -> 17112 | E30: =IFERROR(VLOOKUP($A30,Filtro_!$A$5:$AK$2954,3,FALSE),0) -> 17102 | F30: =IFERROR(VLOOKUP($A30,Filtro_!$A$5:$AK$2954,4,FALSE),0) -> 17102 | G30: =IFERROR(VLOOKUP($A30,Filtro_!$A$5:$AK$2954,5,FALSE),0) -> 0 | H30: =IFERROR(VLOOKUP($A30,Filtro_!$A$5:$AK$2954,6,FALSE),0) -> 10 | AB30: =IFERROR(VLOOKUP($A30,Filtro_!$A$5:$AK$2954,26,FALSE),0) -> 0 | AC30: =IFERROR(VLOOKUP($A30,Filtro_!$A$5:$AK$2954,27,FALSE),0) -> 17112 | AD30: =IFERROR(VLOOKUP($A30,Filtro_!$A$5:$AK$2954,28,FALSE),0) -> 0 | AE30: =IFERROR(VLOOKUP($A30,Filtro_!$A$5:$AK$2954,29,FALSE),0) -> 2371 | AF30: =IFERROR(VLOOKUP($A30,Filtro_!$A$5:$AK$2954,30,FALSE),0) -> 0 | AG30: =IFERROR(VLOOKUP($A30,Filtro_!$A$5:$AK$2954,31,FALSE),0) -> 0 | AH30: =IFERROR(VLOOKUP($A30,Filtro_!$A$5:$AK$2954,32,FALSE),0) -> 0 | AI30: =IFERROR(VLOOKUP($A30,Filtro_!$A$5:$AK$2954,33,FALSE),0) -> 0 | AJ30: =IFERROR(VLOOKUP($A30,Filtro_!$A$5:$AK$2954,34,FALSE),0) -> 0 | AK30: =IFERROR(VLOOKUP($A30,Filtro_!$A$5:$AK$2954,35,FALSE),0) -> 0 | AL30: 9,050 | AM30: 154,773,100
A31: 01014299 | B31: 0101312 | C31: Consulta Médica de Especialidad en Cirugía General | D31: =IFERROR(VLOOKUP($A31,Filtro_!$A$5:$AK$2954,2,FALSE),0) -> 25911 | E31: =IFERROR(VLOOKUP($A31,Filtro_!$A$5:$AK$2954,3,FALSE),0) -> 25905 | F31: =IFERROR(VLOOKUP($A31,Filtro_!$A$5:$AK$2954,4,FALSE),0) -> 25905 | G31: =IFERROR(VLOOKUP($A31,Filtro_!$A$5:$AK$2954,5,FALSE),0) -> 0 | H31: =IFERROR(VLOOKUP($A31,Filtro_!$A$5:$AK$2954,6,FALSE),0) -> 6 | AB31: =IFERROR(VLOOKUP($A31,Filtro_!$A$5:$AK$2954,26,FALSE),0) -> 0 | AC31: =IFERROR(VLOOKUP($A31,Filtro_!$A$5:$AK$2954,27,FALSE),0) -> 25905 | AD31: =IFERROR(VLOOKUP($A31,Filtro_!$A$5:$AK$2954,28,FALSE),0) -> 6 | AE31: =IFERROR(VLOOKUP($A31,Filtro_!$A$5:$AK$2954,29,FALSE),0) -> 3329 | AF31: =IFERROR(VLOOKUP($A31,Filtro_!$A$5:$AK$2954,30,FALSE),0) -> 0 | AG31: =IFERROR(VLOOKUP($A31,Filtro_!$A$5:$AK$2954,31,FALSE),0) -> 0 | AH31: =IFERROR(VLOOKUP($A31,Filtro_!$A$5:$AK$2954,32,FALSE),0) -> 0 | AI31: =IFERROR(VLOOKUP($A31,Filtro_!$A$5:$AK$2954,33,FALSE),0) -> 0 | AJ31: =IFERROR(VLOOKUP($A31,Filtro_!$A$5:$AK$2954,34,FALSE),0) -> 0 | AK31: =IFERROR(VLOOKUP($A31,Filtro_!$A$5:$AK$2954,35,FALSE),0) -> 0 | AL31: 9,050 | AM31: 234,440,250
A32: 01014300 | B32: 0101313 | C32: Consulta Médica de Especialidad en Cirugía de Cabeza, Cuello y Maxilofacial | D32: =IFERROR(VLOOKUP($A32,Filtro_!$A$5:$AK$2954,2,FALSE),0) -> 1180 | E32: =IFERROR(VLOOKUP($A32,Filtro_!$A$5:$AK$2954,3,FALSE),0) -> 1177 | F32: =IFERROR(VLOOKUP($A32,Filtro_!$A$5:$AK$2954,4,FALSE),0) -> 1177 | G32: =IFERROR(VLOOKUP($A32,Filtro_!$A$5:$AK$2954,5,FALSE),0) -> 0 | H32: =IFERROR(VLOOKUP($A32,Filtro_!$A$5:$AK$2954,6,FALSE),0) -> 3 | AB32: =IFERROR(VLOOKUP($A32,Filtro_!$A$5:$AK$2954,26,FALSE),0) -> 0 | AC32: =IFERROR(VLOOKUP($A32,Filtro_!$A$5:$AK$2954,27,FALSE),0) -> 1180 | AD32: =IFERROR(VLOOKUP($A32,Filtro_!$A$5:$AK$2954,28,FALSE),0) -> 0 | AE32: =IFERROR(VLOOKUP($A32,Filtro_!$A$5:$AK$2954,29,FALSE),0) -> 0 | AF32: =IFERROR(VLOOKUP($A32,Filtro_!$A$5:$AK$2954,30,FALSE),0) -> 0 | AG32: =IFERROR(VLOOKUP($A32,Filtro_!$A$5:$AK$2954,31,FALSE),0) -> 0 | AH32: =IFERROR(VLOOKUP($A32,Filtro_!$A$5:$AK$2954,32,FALSE),0) -> 0 | AI32: =IFERROR(VLOOKUP($A32,Filtro_!$A$5:$AK$2954,33,FALSE),0) -> 0 | AJ32: =IFERROR(VLOOKUP($A32,Filtro_!$A$5:$AK$2954,34,FALSE),0) -> 0 | AK32: =IFERROR(VLOOKUP($A32,Filtro_!$A$5:$AK$2954,35,FALSE),0) -> 0 | AL32: 9,050 | AM32: 10,651,850
A33: 01014301 | B33: 0101314 | C33: Consulta Médica de Especialidad en Cirugía Cardiovascular | D33: =IFERROR(VLOOKUP($A33,Filtro_!$A$5:$AK$2954,2,FALSE),0) -> 0 | E33: =IFERROR(VLOOKUP($A33,Filtro_!$A$5:$AK$2954,3,FALSE),0) -> 0 | F33: =IFERROR(VLOOKUP($A33,Filtro_!$A$5:$AK$2954,4,FALSE),0) -> 0 | G33: =IFERROR(VLOOKUP($A33,Filtro_!$A$5:$AK$2954,5,FALSE),0) -> 0 | H33: =IFERROR(VLOOKUP($A33,Filtro_!$A$5:$AK$2954,6,FALSE),0) -> 0 | AB33: =IFERROR(VLOOKUP($A33,Filtro_!$A$5:$AK$2954,26,FALSE),0) -> 0 | AC33: =IFERROR(VLOOKUP($A33,Filtro_!$A$5:$AK$2954,27,FALSE),0) -> 0 | AD33: =IFERROR(VLOOKUP($A33,Filtro_!$A$5:$AK$2954,28,FALSE),0) -> 0 | AE33: =IFERROR(VLOOKUP($A33,Filtro_!$A$5:$AK$2954,29,FALSE),0) -> 0 | AF33: =IFERROR(VLOOKUP($A33,Filtro_!$A$5:$AK$2954,30,FALSE),0) -> 0 | AG33: =IFERROR(VLOOKUP($A33,Filtro_!$A$5:$AK$2954,31,FALSE),0) -> 0 | AH33: =IFERROR(VLOOKUP($A33,Filtro_!$A$5:$AK$2954,32,FALSE),0) -> 0 | AI33: =IFERROR(VLOOKUP($A33,Filtro_!$A$5:$AK$2954,33,FALSE),0) -> 0 | AJ33: =IFERROR(VLOOKUP($A33,Filtro_!$A$5:$AK$2954,34,FALSE),0) -> 0 | AK33: =IFERROR(VLOOKUP($A33,Filtro_!$A$5:$AK$2954,35,FALSE),0) -> 0 | AL33: 9,050 | AM33: 0
A34: 01014302 | B34: 0101315 | C34: Consulta Médica de Especialidad en Cirugía de Tórax | D34: =IFERROR(VLOOKUP($A34,Filtro_!$A$5:$AK$2954,2,FALSE),0) -> 1055 | E34: =IFERROR(VLOOKUP($A34,Filtro_!$A$5:$AK$2954,3,FALSE),0) -> 1055 | F34: =IFERROR(VLOOKUP($A34,Filtro_!$A$5:$AK$2954,4,FALSE),0) -> 1055 | G34: =IFERROR(VLOOKUP($A34,Filtro_!$A$5:$AK$2954,5,FALSE),0) -> 0 | H34: =IFERROR(VLOOKUP($A34,Filtro_!$A$5:$AK$2954,6,FALSE),0) -> 0 | AB34: =IFERROR(VLOOKUP($A34,Filtro_!$A$5:$AK$2954,26,FALSE),0) -> 0 | AC34: =IFERROR(VLOOKUP($A34,Filtro_!$A$5:$AK$2954,27,FALSE),0) -> 1055 | AD34: =IFERROR(VLOOKUP($A34,Filtro_!$A$5:$AK$2954,28,FALSE),0) -> 0 | AE34: =IFERROR(VLOOKUP($A34,Filtro_!$A$5:$AK$2954,29,FALSE),0) -> 0 | AF34: =IFERROR(VLOOKUP($A34,Filtro_!$A$5:$AK$2954,30,FALSE),0) -> 0 | AG34: =IFERROR(VLOOKUP($A34,Filtro_!$A$5:$AK$2954,31,FALSE),0) -> 0 | AH34: =IFERROR(VLOOKUP($A34,Filtro_!$A$5:$AK$2954,32,FALSE),0) -> 0 | AI34: =IFERROR(VLOOKUP($A34,Filtro_!$A$5:$AK$2954,33,FALSE),0) -> 0 | AJ34: =IFERROR(VLOOKUP($A34,Filtro_!$A$5:$AK$2954,34,FALSE),0) -> 0 | AK34: =IFERROR(VLOOKUP($A34,Filtro_!$A$5:$AK$2954,35,FALSE),0) -> 0 | AL34: 9,050 | AM34: 9,547,750
A35: 01014303 | B35: 0101316 | C35: Consulta Médica de Especialidad en Cirugía Plástica y Reparadora | D35: =IFERROR(VLOOKUP($A35,Filtro_!$A$5:$AK$2954,2,FALSE),0) -> 435 | E35: =IFERROR(VLOOKUP($A35,Filtro_!$A$5:$AK$2954,3,FALSE),0) -> 433 | F35: =IFERROR(VLOOKUP($A35,Filtro_!$A$5:$AK$2954,4,FALSE),0) -> 433 | G35: =IFERROR(VLOOKUP($A35,Filtro_!$A$5:$AK$2954,5,FALSE),0) -> 0 | H35: =IFERROR(VLOOKUP($A35,Filtro_!$A$5:$AK$2954,6,FALSE),0) -> 2 | AB35: =IFERROR(VLOOKUP($A35,Filtro_!$A$5:$AK$2954,26,FALSE),0) -> 0 | AC35: =IFERROR(VLOOKUP($A35,Filtro_!$A$5:$AK$2954,27,FALSE),0) -> 435 | AD35: =IFERROR(VLOOKUP($A35,Filtro_!$A$5:$AK$2954,28,FALSE),0) -> 0 | AE35: =IFERROR(VLOOKUP($A35,Filtro_!$A$5:$AK$2954,29,FALSE),0) -> 0 | AF35: =IFERROR(VLOOKUP($A35,Filtro_!$A$5:$AK$2954,30,FALSE),0) -> 0 | AG35: =IFERROR(VLOOKUP($A35,Filtro_!$A$5:$AK$2954,31,FALSE),0) -> 0 | AH35: =IFERROR(VLOOKUP($A35,Filtro_!$A$5:$AK$2954,32,FALSE),0) -> 0 | AI35: =IFERROR(VLOOKUP($A35,Filtro_!$A$5:$AK$2954,33,FALSE),0) -> 0 | AJ35: =IFERROR(VLOOKUP($A35,Filtro_!$A$5:$AK$2954,34,FALSE),0) -> 0 | AK35: =IFERROR(VLOOKUP($A35,Filtro_!$A$5:$AK$2954,35,FALSE),0) -> 0 | AL35: 9,050 | AM35: 3,918,650
A36: 01014304 | B36: 0101317 | C36: Consulta Médica de Especialidad en Cirugía Pediátrica | D36: =IFERROR(VLOOKUP($A36,Filtro_!$A$5:$AK$2954,2,FALSE),0) -> 10246 | E36: =IFERROR(VLOOKUP($A36,Filtro_!$A$5:$AK$2954,3,FALSE),0) -> 10222 | F36: =IFERROR(VLOOKUP($A36,Filtro_!$A$5:$AK$2954,4,FALSE),0) -> 10222 | G36: =IFERROR(VLOOKUP($A36,Filtro_!$A$5:$AK$2954,5,FALSE),0) -> 0 | H36: =IFERROR(VLOOKUP($A36,Filtro_!$A$5:$AK$2954,6,FALSE),0) -> 24 | AB36: =IFERROR(VLOOKUP($A36,Filtro_!$A$5:$AK$2954,26,FALSE),0) -> 0 | AC36: =IFERROR(VLOOKUP($A36,Filtro_!$A$5:$AK$2954,27,FALSE),0) -> 10245 | AD36: =IFERROR(VLOOKUP($A36,Filtro_!$A$5:$AK$2954,28,FALSE),0) -> 1 | AE36: =IFERROR(VLOOKUP($A36,Filtro_!$A$5:$AK$2954,29,FALSE),0) -> 0 | AF36: =IFERROR(VLOOKUP($A36,Filtro_!$A$5:$AK$2954,30,FALSE),0) -> 0 | AG36: =IFERROR(VLOOKUP($A36,Filtro_!$A$5:$AK$2954,31,FALSE),0) -> 0 | AH36: =IFERROR(VLOOKUP($A36,Filtro_!$A$5:$AK$2954,32,FALSE),0) -> 0 | AI36: =IFERROR(VLOOKUP($A36,Filtro_!$A$5:$AK$2954,33,FALSE),0) -> 0 | AJ36: =IFERROR(VLOOKUP($A36,Filtro_!$A$5:$AK$2954,34,FALSE),0) -> 0 | AK36: =IFERROR(VLOOKUP($A36,Filtro_!$A$5:$AK$2954,35,FALSE),0) -> 0 | AL36: 9,050 | AM36: 92,509,100
A37: 01014305 | B37: 0101318 | C37: Consulta Médica de Especialidad en Cirugía Vascular Periférica | D37: =IFERROR(VLOOKUP($A37,Filtro_!$A$5:$AK$2954,2,FALSE),0) -> 2790 | E37: =IFERROR(VLOOKUP($A37,Filtro_!$A$5:$AK$2954,3,FALSE),0) -> 2790 | F37: =IFERROR(VLOOKUP($A37,Filtro_!$A$5:$AK$2954,4,FALSE),0) -> 2790 | G37: =IFERROR(VLOOKUP($A37,Filtro_!$A$5:$AK$2954,5,FALSE),0) -> 0 | H37: =IFERROR(VLOOKUP($A37,Filtro_!$A$5:$AK$2954,6,FALSE),0) -> 0 | AB37: =IFERROR(VLOOKUP($A37,Filtro_!$A$5:$AK$2954,26,FALSE),0) -> 0 | AC37: =IFERROR(VLOOKUP($A37,Filtro_!$A$5:$AK$2954,27,FALSE),0) -> 2790 | AD37: =IFERROR(VLOOKUP($A37,Filtro_!$A$5:$AK$2954,28,FALSE),0) -> 0 | AE37: =IFERROR(VLOOKUP($A37,Filtro_!$A$5:$AK$2954,29,FALSE),0) -> 0 | AF37: =IFERROR(VLOOKUP($A37,Filtro_!$A$5:$AK$2954,30,FALSE),0) -> 0 | AG37: =IFERROR(VLOOKUP($A37,Filtro_!$A$5:$AK$2954,31,FALSE),0) -> 0 | AH37: =IFERROR(VLOOKUP($A37,Filtro_!$A$5:$AK$2954,32,FALSE),0) -> 0 | AI37: =IFERROR(VLOOKUP($A37,Filtro_!$A$5:$AK$2954,33,FALSE),0) -> 0 | AJ37: =IFERROR(VLOOKUP($A37,Filtro_!$A$5:$AK$2954,34,FALSE),0) -> 0 | AK37: =IFERROR(VLOOKUP($A37,Filtro_!$A$5:$AK$2954,35,FALSE),0) -> 0 | AL37: 9,050 | AM37: 25,249,500
A38: 01014306 | B38: 0101319 | C38: Consulta Médica de Especialidad en Coloproctología | D38: =IFERROR(VLOOKUP($A38,Filtro_!$A$5:$AK$2954,2,FALSE),0) -> 2904 | E38: =IFERROR(VLOOKUP($A38,Filtro_!$A$5:$AK$2954,3,FALSE),0) -> 2903 | F38: =IFERROR(VLOOKUP($A38,Filtro_!$A$5:$AK$2954,4,FALSE),0) -> 2903 | G38: =IFERROR(VLOOKUP($A38,Filtro_!$A$5:$AK$2954,5,FALSE),0) -> 0 | H38: =IFERROR(VLOOKUP($A38,Filtro_!$A$5:$AK$2954,6,FALSE),0) -> 1 | AB38: =IFERROR(VLOOKUP($A38,Filtro_!$A$5:$AK$2954,26,FALSE),0) -> 0 | AC38: =IFERROR(VLOOKUP($A38,Filtro_!$A$5:$AK$2954,27,FALSE),0) -> 2904 | AD38: =IFERROR(VLOOKUP($A38,Filtro_!$A$5:$AK$2954,28,FALSE),0) -> 0 | AE38: =IFERROR(VLOOKUP($A38,Filtro_!$A$5:$AK$2954,29,FALSE),0) -> 0 | AF38: =IFERROR(VLOOKUP($A38,Filtro_!$A$5:$AK$2954,30,FALSE),0) -> 0 | AG38: =IFERROR(VLOOKUP($A38,Filtro_!$A$5:$AK$2954,31,FALSE),0) -> 0 | AH38: =IFERROR(VLOOKUP($A38,Filtro_!$A$5:$AK$2954,32,FALSE),0) -> 0 | AI38: =IFERROR(VLOOKUP($A38,Filtro_!$A$5:$AK$2954,33,FALSE),0) -> 0 | AJ38: =IFERROR(VLOOKUP($A38,Filtro_!$A$5:$AK$2954,34,FALSE),0) -> 0 | AK38: =IFERROR(VLOOKUP($A38,Filtro_!$A$5:$AK$2954,35,FALSE),0) -> 0 | AL38: 9,050 | AM38: 26,272,150
A39: 01014307 | B39: 0101320 | C39: Consulta Médica de Especialidad en Diabetología | D39: =IFERROR(VLOOKUP($A39,Filtro_!$A$5:$AK$2954,2,FALSE),0) -> 696 | E39: =IFERROR(VLOOKUP($A39,Filtro_!$A$5:$AK$2954,3,FALSE),0) -> 696 | F39: =IFERROR(VLOOKUP($A39,Filtro_!$A$5:$AK$2954,4,FALSE),0) -> 696 | G39: =IFERROR(VLOOKUP($A39,Filtro_!$A$5:$AK$2954,5,FALSE),0) -> 0 | H39: =IFERROR(VLOOKUP($A39,Filtro_!$A$5:$AK$2954,6,FALSE),0) -> 0 | AB39: =IFERROR(VLOOKUP($A39,Filtro_!$A$5:$AK$2954,26,FALSE),0) -> 0 | AC39: =IFERROR(VLOOKUP($A39,Filtro_!$A$5:$AK$2954,27,FALSE),0) -> 696 | AD39: =IFERROR(VLOOKUP($A39,Filtro_!$A$5:$AK$2954,28,FALSE),0) -> 0 | AE39: =IFERROR(VLOOKUP($A39,Filtro_!$A$5:$AK$2954,29,FALSE),0) -> 0 | AF39: =IFERROR(VLOOKUP($A39,Filtro_!$A$5:$AK$2954,30,FALSE),0) -> 0 | AG39: =IFERROR(VLOOKUP($A39,Filtro_!$A$5:$AK$2954,31,FALSE),0) -> 0 | AH39: =IFERROR(VLOOKUP($A39,Filtro_!$A$5:$AK$2954,32,FALSE),0) -> 0 | AI39: =IFERROR(VLOOKUP($A39,Filtro_!$A$5:$AK$2954,33,FALSE),0) -> 0 | AJ39: =IFERROR(VLOOKUP($A39,Filtro_!$A$5:$AK$2954,34,FALSE),0) -> 0 | AK39: =IFERROR(VLOOKUP($A39,Filtro_!$A$5:$AK$2954,35,FALSE),0) -> 0 | AL39: 9,050 | AM39: 6,298,800
A40: 01014308 | B40: 0101321 | C40: Consulta Médica de Especialidad en Enfermedades Respiratorias Adulto | D40: =IFERROR(VLOOKUP($A40,Filtro_!$A$5:$AK$2954,2,FALSE),0) -> 5198 | E40: =IFERROR(VLOOKUP($A40,Filtro_!$A$5:$AK$2954,3,FALSE),0) -> 5196 | F40: =IFERROR(VLOOKUP($A40,Filtro_!$A$5:$AK$2954,4,FALSE),0) -> 5196 | G40: =IFERROR(VLOOKUP($A40,Filtro_!$A$5:$AK$2954,5,FALSE),0) -> 0 | H40: =IFERROR(VLOOKUP($A40,Filtro_!$A$5:$AK$2954,6,FALSE),0) -> 2 | AB40: =IFERROR(VLOOKUP($A40,Filtro_!$A$5:$AK$2954,26,FALSE),0) -> 0 | AC40: =IFERROR(VLOOKUP($A40,Filtro_!$A$5:$AK$2954,27,FALSE),0) -> 5198 | AD40: =IFERROR(VLOOKUP($A40,Filtro_!$A$5:$AK$2954,28,FALSE),0) -> 0 | AE40: =IFERROR(VLOOKUP($A40,Filtro_!$A$5:$AK$2954,29,FALSE),0) -> 97 | AF40: =IFERROR(VLOOKUP($A40,Filtro_!$A$5:$AK$2954,30,FALSE),0) -> 0 | AG40: =IFERROR(VLOOKUP($A40,Filtro_!$A$5:$AK$2954,31,FALSE),0) -> 0 | AH40: =IFERROR(VLOOKUP($A40,Filtro_!$A$5:$AK$2954,32,FALSE),0) -> 0 | AI40: =IFERROR(VLOOKUP($A40,Filtro_!$A$5:$AK$2954,33,FALSE),0) -> 0 | AJ40: =IFERROR(VLOOKUP($A40,Filtro_!$A$5:$AK$2954,34,FALSE),0) -> 0 | AK40: =IFERROR(VLOOKUP($A40,Filtro_!$A$5:$AK$2954,35,FALSE),0) -> 0 | AL40: 9,050 | AM40: 47,023,800
A41: 01014309 | B41: 0101322 | C41: Consulta Médica de Especialidad en Enfermedades Respiratorias Pediátricas | D41: =IFERROR(VLOOKUP($A41,Filtro_!$A$5:$AK$2954,2,FALSE),0) -> 4166 | E41: =IFERROR(VLOOKUP($A41,Filtro_!$A$5:$AK$2954,3,FALSE),0) -> 4155 | F41: =IFERROR(VLOOKUP($A41,Filtro_!$A$5:$AK$2954,4,FALSE),0) -> 4155 | G41: =IFERROR(VLOOKUP($A41,Filtro_!$A$5:$AK$2954,5,FALSE),0) -> 0 | H41: =IFERROR(VLOOKUP($A41,Filtro_!$A$5:$AK$2954,6,FALSE),0) -> 11 | AB41: =IFERROR(VLOOKUP($A41,Filtro_!$A$5:$AK$2954,26,FALSE),0) -> 0 | AC41: =IFERROR(VLOOKUP($A41,Filtro_!$A$5:$AK$2954,27,FALSE),0) -> 4166 | AD41: =IFERROR(VLOOKUP($A41,Filtro_!$A$5:$AK$2954,28,FALSE),0) -> 0 | AE41: =IFERROR(VLOOKUP($A41,Filtro_!$A$5:$AK$2954,29,FALSE),0) -> 0 | AF41: =IFERROR(VLOOKUP($A41,Filtro_!$A$5:$AK$2954,30,FALSE),0) -> 0 | AG41: =IFERROR(VLOOKUP($A41,Filtro_!$A$5:$AK$2954,31,FALSE),0) -> 0 | AH41: =IFERROR(VLOOKUP($A41,Filtro_!$A$5:$AK$2954,32,FALSE),0) -> 0 | AI41: =IFERROR(VLOOKUP($A41,Filtro_!$A$5:$AK$2954,33,FALSE),0) -> 0 | AJ41: =IFERROR(VLOOKUP($A41,Filtro_!$A$5:$AK$2954,34,FALSE),0) -> 0 | AK41: =IFERROR(VLOOKUP($A41,Filtro_!$A$5:$AK$2954,35,FALSE),0) -> 0 | AL41: 9,050 | AM41: 37,602,750
A42: 01014310 | B42: 0101323 | C42: Consulta Médica de Especialidad en Gastroenterología Adulto | D42: =IFERROR(VLOOKUP($A42,Filtro_!$A$5:$AK$2954,2,FALSE),0) -> 5055 | E42: =IFERROR(VLOOKUP($A42,Filtro_!$A$5:$AK$2954,3,FALSE),0) -> 5054 | F42: =IFERROR(VLOOKUP($A42,Filtro_!$A$5:$AK$2954,4,FALSE),0) -> 5054 | G42: =IFERROR(VLOOKUP($A42,Filtro_!$A$5:$AK$2954,5,FALSE),0) -> 0 | H42: =IFERROR(VLOOKUP($A42,Filtro_!$A$5:$AK$2954,6,FALSE),0) -> 1 | AB42: =IFERROR(VLOOKUP($A42,Filtro_!$A$5:$AK$2954,26,FALSE),0) -> 0 | AC42: =IFERROR(VLOOKUP($A42,Filtro_!$A$5:$AK$2954,27,FALSE),0) -> 5055 | AD42: =IFERROR(VLOOKUP($A42,Filtro_!$A$5:$AK$2954,28,FALSE),0) -> 0 | AE42: =IFERROR(VLOOKUP($A42,Filtro_!$A$5:$AK$2954,29,FALSE),0) -> 0 | AF42: =IFERROR(VLOOKUP($A42,Filtro_!$A$5:$AK$2954,30,FALSE),0) -> 0 | AG42: =IFERROR(VLOOKUP($A42,Filtro_!$A$5:$AK$2954,31,FALSE),0) -> 0 | AH42: =IFERROR(VLOOKUP($A42,Filtro_!$A$5:$AK$2954,32,FALSE),0) -> 0 | AI42: =IFERROR(VLOOKUP($A42,Filtro_!$A$5:$AK$2954,33,FALSE),0) -> 0 | AJ42: =IFERROR(VLOOKUP($A42,Filtro_!$A$5:$AK$2954,34,FALSE),0) -> 0 | AK42: =IFERROR(VLOOKUP($A42,Filtro_!$A$5:$AK$2954,35,FALSE),0) -> 0 | AL42: 9,050 | AM42: 45,738,700
A43: 01014311 | B43: 0101324 | C43: Consulta Médica de Especialidad en Gastroenterología Pediátrico | D43: =IFERROR(VLOOKUP($A43,Filtro_!$A$5:$AK$2954,2,FALSE),0) -> 3272 | E43: =IFERROR(VLOOKUP($A43,Filtro_!$A$5:$AK$2954,3,FALSE),0) -> 3268 | F43: =IFERROR(VLOOKUP($A43,Filtro_!$A$5:$AK$2954,4,FALSE),0) -> 3268 | G43: =IFERROR(VLOOKUP($A43,Filtro_!$A$5:$AK$2954,5,FALSE),0) -> 0 | H43: =IFERROR(VLOOKUP($A43,Filtro_!$A$5:$AK$2954,6,FALSE),0) -> 4 | AB43: =IFERROR(VLOOKUP($A43,Filtro_!$A$5:$AK$2954,26,FALSE),0) -> 0 | AC43: =IFERROR(VLOOKUP($A43,Filtro_!$A$5:$AK$2954,27,FALSE),0) -> 3272 | AD43: =IFERROR(VLOOKUP($A43,Filtro_!$A$5:$AK$2954,28,FALSE),0) -> 0 | AE43: =IFERROR(VLOOKUP($A43,Filtro_!$A$5:$AK$2954,29,FALSE),0) -> 0 | AF43: =IFERROR(VLOOKUP($A43,Filtro_!$A$5:$AK$2954,30,FALSE),0) -> 0 | AG43: =IFERROR(VLOOKUP($A43,Filtro_!$A$5:$AK$2954,31,FALSE),0) -> 0 | AH43: =IFERROR(VLOOKUP($A43,Filtro_!$A$5:$AK$2954,32,FALSE),0) -> 0 | AI43: =IFERROR(VLOOKUP($A43,Filtro_!$A$5:$AK$2954,33,FALSE),0) -> 0 | AJ43: =IFERROR(VLOOKUP($A43,Filtro_!$A$5:$AK$2954,34,FALSE),0) -> 0 | AK43: =IFERROR(VLOOKUP($A43,Filtro_!$A$5:$AK$2954,35,FALSE),0) -> 0 | AL43: 9,050 | AM43: 29,575,400
A44: 01014312 | B44: 0101325 | C44: Consulta Médica de Especialidad en Genética Clínica | D44: =IFERROR(VLOOKUP($A44,Filtro_!$A$5:$AK$2954,2,FALSE),0) -> 10 | E44: =IFERROR(VLOOKUP($A44,Filtro_!$A$5:$AK$2954,3,FALSE),0) -> 10 | F44: =IFERROR(VLOOKUP($A44,Filtro_!$A$5:$AK$2954,4,FALSE),0) -> 10 | G44: =IFERROR(VLOOKUP($A44,Filtro_!$A$5:$AK$2954,5,FALSE),0) -> 0 | H44: =IFERROR(VLOOKUP($A44,Filtro_!$A$5:$AK$2954,6,FALSE),0) -> 0 | AB44: =IFERROR(VLOOKUP($A44,Filtro_!$A$5:$AK$2954,26,FALSE),0) -> 0 | AC44: =IFERROR(VLOOKUP($A44,Filtro_!$A$5:$AK$2954,27,FALSE),0) -> 10 | AD44: =IFERROR(VLOOKUP($A44,Filtro_!$A$5:$AK$2954,28,FALSE),0) -> 0 | AE44: =IFERROR(VLOOKUP($A44,Filtro_!$A$5:$AK$2954,29,FALSE),0) -> 0 | AF44: =IFERROR(VLOOKUP($A44,Filtro_!$A$5:$AK$2954,30,FALSE),0) -> 0 | AG44: =IFERROR(VLOOKUP($A44,Filtro_!$A$5:$AK$2954,31,FALSE),0) -> 0 | AH44: =IFERROR(VLOOKUP($A44,Filtro_!$A$5:$AK$2954,32,FALSE),0) -> 0 | AI44: =IFERROR(VLOOKUP($A44,Filtro_!$A$5:$AK$2954,33,FALSE),0) -> 0 | AJ44: =IFERROR(VLOOKUP($A44,Filtro_!$A$5:$AK$2954,34,FALSE),0) -> 0 | AK44: =IFERROR(VLOOKUP($A44,Filtro_!$A$5:$AK$2954,35,FALSE),0) -> 0 | AL44: 9,050 | AM44: 90,500
A45: 01014313 | B45: 0101326 | C45: Consulta Médica de Especialidad en Nefrología Adulto | D45: =IFERROR(VLOOKUP($A45,Filtro_!$A$5:$AK$2954,2,FALSE),0) -> 7473 | E45: =IFERROR(VLOOKUP($A45,Filtro_!$A$5:$AK$2954,3,FALSE),0) -> 7470 | F45: =IFERROR(VLOOKUP($A45,Filtro_!$A$5:$AK$2954,4,FALSE),0) -> 7470 | G45: =IFERROR(VLOOKUP($A45,Filtro_!$A$5:$AK$2954,5,FALSE),0) -> 0 | H45: =IFERROR(VLOOKUP($A45,Filtro_!$A$5:$AK$2954,6,FALSE),0) -> 3 | AB45: =IFERROR(VLOOKUP($A45,Filtro_!$A$5:$AK$2954,26,FALSE),0) -> 0 | AC45: =IFERROR(VLOOKUP($A45,Filtro_!$A$5:$AK$2954,27,FALSE),0) -> 7473 | AD45: =IFERROR(VLOOKUP($A45,Filtro_!$A$5:$AK$2954,28,FALSE),0) -> 0 | AE45: =IFERROR(VLOOKUP($A45,Filtro_!$A$5:$AK$2954,29,FALSE),0) -> 0 | AF45: =IFERROR(VLOOKUP($A45,Filtro_!$A$5:$AK$2954,30,FALSE),0) -> 0 | AG45: =IFERROR(VLOOKUP($A45,Filtro_!$A$5:$AK$2954,31,FALSE),0) -> 0 | AH45: =IFERROR(VLOOKUP($A45,Filtro_!$A$5:$AK$2954,32,FALSE),0) -> 0 | AI45: =IFERROR(VLOOKUP($A45,Filtro_!$A$5:$AK$2954,33,FALSE),0) -> 0 | AJ45: =IFERROR(VLOOKUP($A45,Filtro_!$A$5:$AK$2954,34,FALSE),0) -> 0 | AK45: =IFERROR(VLOOKUP($A45,Filtro_!$A$5:$AK$2954,35,FALSE),0) -> 0 | AL45: 9,050 | AM45: 67,603,500
A46: 01014314 | B46: 0101327 | C46: Consulta Médica de Especialidad en Nefrología Pediátrico | D46: =IFERROR(VLOOKUP($A46,Filtro_!$A$5:$AK$2954,2,FALSE),0) -> 1627 | E46: =IFERROR(VLOOKUP($A46,Filtro_!$A$5:$AK$2954,3,FALSE),0) -> 1619 | F46: =IFERROR(VLOOKUP($A46,Filtro_!$A$5:$AK$2954,4,FALSE),0) -> 1619 | G46: =IFERROR(VLOOKUP($A46,Filtro_!$A$5:$AK$2954,5,FALSE),0) -> 0 | H46: =IFERROR(VLOOKUP($A46,Filtro_!$A$5:$AK$2954,6,FALSE),0) -> 8 | AB46: =IFERROR(VLOOKUP($A46,Filtro_!$A$5:$AK$2954,26,FALSE),0) -> 0 | AC46: =IFERROR(VLOOKUP($A46,Filtro_!$A$5:$AK$2954,27,FALSE),0) -> 1627 | AD46: =IFERROR(VLOOKUP($A46,Filtro_!$A$5:$AK$2954,28,FALSE),0) -> 0 | AE46: =IFERROR(VLOOKUP($A46,Filtro_!$A$5:$AK$2954,29,FALSE),0) -> 0 | AF46: =IFERROR(VLOOKUP($A46,Filtro_!$A$5:$AK$2954,30,FALSE),0) -> 0 | AG46: =IFERROR(VLOOKUP($A46,Filtro_!$A$5:$AK$2954,31,FALSE),0) -> 0 | AH46: =IFERROR(VLOOKUP($A46,Filtro_!$A$5:$AK$2954,32,FALSE),0) -> 0 | AI46: =IFERROR(VLOOKUP($A46,Filtro_!$A$5:$AK$2954,33,FALSE),0) -> 0 | AJ46: =IFERROR(VLOOKUP($A46,Filtro_!$A$5:$AK$2954,34,FALSE),0) -> 0 | AK46: =IFERROR(VLOOKUP($A46,Filtro_!$A$5:$AK$2954,35,FALSE),0) -> 0 | AL46: 9,050 | AM46: 14,651,950
A47: 01014315 | B47: 0101328 | C47: Consulta Médica de Especialidad en Neonatología | D47: =IFERROR(VLOOKUP($A47,Filtro_!$A$5:$AK$2954,2,FALSE),0) -> 1983 | E47: =IFERROR(VLOOKUP($A47,Filtro_!$A$5:$AK$2954,3,FALSE),0) -> 1969 | F47: =IFERROR(VLOOKUP($A47,Filtro_!$A$5:$AK$2954,4,FALSE),0) -> 1969 | G47: =IFERROR(VLOOKUP($A47,Filtro_!$A$5:$AK$2954,5,FALSE),0) -> 0 | H47: =IFERROR(VLOOKUP($A47,Filtro_!$A$5:$AK$2954,6,FALSE),0) -> 14 | AB47: =IFERROR(VLOOKUP($A47,Filtro_!$A$5:$AK$2954,26,FALSE),0) -> 0 | AC47: =IFERROR(VLOOKUP($A47,Filtro_!$A$5:$AK$2954,27,FALSE),0) -> 1983 | AD47: =IFERROR(VLOOKUP($A47,Filtro_!$A$5:$AK$2954,28,FALSE),0) -> 0 | AE47: =IFERROR(VLOOKUP($A47,Filtro_!$A$5:$AK$2954,29,FALSE),0) -> 0 | AF47: =IFERROR(VLOOKUP($A47,Filtro_!$A$5:$AK$2954,30,FALSE),0) -> 0 | AG47: =IFERROR(VLOOKUP($A47,Filtro_!$A$5:$AK$2954,31,FALSE),0) -> 0 | AH47: =IFERROR(VLOOKUP($A47,Filtro_!$A$5:$AK$2954,32,FALSE),0) -> 0 | AI47: =IFERROR(VLOOKUP($A47,Filtro_!$A$5:$AK$2954,33,FALSE),0) -> 0 | AJ47: =IFERROR(VLOOKUP($A47,Filtro_!$A$5:$AK$2954,34,FALSE),0) -> 0 | AK47: =IFERROR(VLOOKUP($A47,Filtro_!$A$5:$AK$2954,35,FALSE),0) -> 0 | AL47: 9,050 | AM47: 17,819,450
A48: 01014316 | B48: 0101329 | C48: Consulta Médica de Especialidad en Anestesiología | D48: =IFERROR(VLOOKUP($A48,Filtro_!$A$5:$AK$2954,2,FALSE),0) -> 6675 | E48: =IFERROR(VLOOKUP($A48,Filtro_!$A$5:$AK$2954,3,FALSE),0) -> 6674 | F48: =IFERROR(VLOOKUP($A48,Filtro_!$A$5:$AK$2954,4,FALSE),0) -> 6674 | G48: =IFERROR(VLOOKUP($A48,Filtro_!$A$5:$AK$2954,5,FALSE),0) -> 0 | H48: =IFERROR(VLOOKUP($A48,Filtro_!$A$5:$AK$2954,6,FALSE),0) -> 1 | AB48: =IFERROR(VLOOKUP($A48,Filtro_!$A$5:$AK$2954,26,FALSE),0) -> 0 | AC48: =IFERROR(VLOOKUP($A48,Filtro_!$A$5:$AK$2954,27,FALSE),0) -> 6675 | AD48: =IFERROR(VLOOKUP($A48,Filtro_!$A$5:$AK$2954,28,FALSE),0) -> 0 | AE48: =IFERROR(VLOOKUP($A48,Filtro_!$A$5:$AK$2954,29,FALSE),0) -> 0 | AF48: =IFERROR(VLOOKUP($A48,Filtro_!$A$5:$AK$2954,30,FALSE),0) -> 0 | AG48: =IFERROR(VLOOKUP($A48,Filtro_!$A$5:$AK$2954,31,FALSE),0) -> 0 | AH48: =IFERROR(VLOOKUP($A48,Filtro_!$A$5:$AK$2954,32,FALSE),0) -> 0 | AI48: =IFERROR(VLOOKUP($A48,Filtro_!$A$5:$AK$2954,33,FALSE),0) -> 0 | AJ48: =IFERROR(VLOOKUP($A48,Filtro_!$A$5:$AK$2954,34,FALSE),0) -> 0 | AK48: =IFERROR(VLOOKUP($A48,Filtro_!$A$5:$AK$2954,35,FALSE),0) -> 0 | AL48: 9,050 | AM48: 60,399,700
A49: 01014703 | B49: 0101330 | C49: Consulta Médica de Especialidad en Medicina de Urgencia | AL49: 0 | AM49: 0
A50: 01014317 | B50: 0101331 | C50: Consulta Médica de Especialidad en Radioterapia Oncológica | D50: =IFERROR(VLOOKUP($A50,Filtro_!$A$5:$AK$2954,2,FALSE),0) -> 0 | E50: =IFERROR(VLOOKUP($A50,Filtro_!$A$5:$AK$2954,3,FALSE),0) -> 0 | F50: =IFERROR(VLOOKUP($A50,Filtro_!$A$5:$AK$2954,4,FALSE),0) -> 0 | G50: =IFERROR(VLOOKUP($A50,Filtro_!$A$5:$AK$2954,5,FALSE),0) -> 0 | H50: =IFERROR(VLOOKUP($A50,Filtro_!$A$5:$AK$2954,6,FALSE),0) -> 0 | AB50: =IFERROR(VLOOKUP($A50,Filtro_!$A$5:$AK$2954,26,FALSE),0) -> 0 | AC50: =IFERROR(VLOOKUP($A50,Filtro_!$A$5:$AK$2954,27,FALSE),0) -> 0 | AD50: =IFERROR(VLOOKUP($A50,Filtro_!$A$5:$AK$2954,28,FALSE),0) -> 0 | AE50: =IFERROR(VLOOKUP($A50,Filtro_!$A$5:$AK$2954,29,FALSE),0) -> 0 | AF50: =IFERROR(VLOOKUP($A50,Filtro_!$A$5:$AK$2954,30,FALSE),0) -> 0 | AG50: =IFERROR(VLOOKUP($A50,Filtro_!$A$5:$AK$2954,31,FALSE),0) -> 0 | AH50: =IFERROR(VLOOKUP($A50,Filtro_!$A$5:$AK$2954,32,FALSE),0) -> 0 | AI50: =IFERROR(VLOOKUP($A50,Filtro_!$A$5:$AK$2954,33,FALSE),0) -> 0 | AJ50: =IFERROR(VLOOKUP($A50,Filtro_!$A$5:$AK$2954,34,FALSE),0) -> 0 | AK50: =IFERROR(VLOOKUP($A50,Filtro_!$A$5:$AK$2954,35,FALSE),0) -> 0 | AL50: 9,050 | AM50: =AL50*F50 -> 0
A51: 01014318 | B51: 0101332 | C51: Consulta Médica de Especialidad en Ginecología Pediátrica y de la Adolescencia | D51: =IFERROR(VLOOKUP($A51,Filtro_!$A$5:$AK$2954,2,FALSE),0) -> 567 | E51: =IFERROR(VLOOKUP($A51,Filtro_!$A$5:$AK$2954,3,FALSE),0) -> 566 | F51: =IFERROR(VLOOKUP($A51,Filtro_!$A$5:$AK$2954,4,FALSE),0) -> 566 | G51: =IFERROR(VLOOKUP($A51,Filtro_!$A$5:$AK$2954,5,FALSE),0) -> 0 | H51: =IFERROR(VLOOKUP($A51,Filtro_!$A$5:$AK$2954,6,FALSE),0) -> 1 | AB51: =IFERROR(VLOOKUP($A51,Filtro_!$A$5:$AK$2954,26,FALSE),0) -> 0 | AC51: =IFERROR(VLOOKUP($A51,Filtro_!$A$5:$AK$2954,27,FALSE),0) -> 567 | AD51: =IFERROR(VLOOKUP($A51,Filtro_!$A$5:$AK$2954,28,FALSE),0) -> 0 | AE51: =IFERROR(VLOOKUP($A51,Filtro_!$A$5:$AK$2954,29,FALSE),0) -> 0 | AF51: =IFERROR(VLOOKUP($A51,Filtro_!$A$5:$AK$2954,30,FALSE),0) -> 0 | AG51: =IFERROR(VLOOKUP($A51,Filtro_!$A$5:$AK$2954,31,FALSE),0) -> 0 | AH51: =IFERROR(VLOOKUP($A51,Filtro_!$A$5:$AK$2954,32,FALSE),0) -> 0 | AI51: =IFERROR(VLOOKUP($A51,Filtro_!$A$5:$AK$2954,33,FALSE),0) -> 0 | AJ51: =IFERROR(VLOOKUP($A51,Filtro_!$A$5:$AK$2954,34,FALSE),0) -> 0 | AK51: =IFERROR(VLOOKUP($A51,Filtro_!$A$5:$AK$2954,35,FALSE),0) -> 0 | AL51: 9,050 | AM51: =AL51*F51 -> 5,122,300
A52: 01014704 | B52: 0101333 | C52: Consulta Médica de Especialidad en Medicina Materno Fetal | AL52: 0 | AM52: 0
A53: 01014319 | B53: 0101334 | C53: Consulta Médica de Especialidad en Medicina Nuclear | D53: =IFERROR(VLOOKUP($A53,Filtro_!$A$5:$AK$2954,2,FALSE),0) -> 0 | E53: =IFERROR(VLOOKUP($A53,Filtro_!$A$5:$AK$2954,3,FALSE),0) -> 0 | F53: =IFERROR(VLOOKUP($A53,Filtro_!$A$5:$AK$2954,4,FALSE),0) -> 0 | G53: =IFERROR(VLOOKUP($A53,Filtro_!$A$5:$AK$2954,5,FALSE),0) -> 0 | H53: =IFERROR(VLOOKUP($A53,Filtro_!$A$5:$AK$2954,6,FALSE),0) -> 0 | AB53: =IFERROR(VLOOKUP($A53,Filtro_!$A$5:$AK$2954,26,FALSE),0) -> 0 | AC53: =IFERROR(VLOOKUP($A53,Filtro_!$A$5:$AK$2954,27,FALSE),0) -> 0 | AD53: =IFERROR(VLOOKUP($A53,Filtro_!$A$5:$AK$2954,28,FALSE),0) -> 0 | AE53: =IFERROR(VLOOKUP($A53,Filtro_!$A$5:$AK$2954,29,FALSE),0) -> 0 | AF53: =IFERROR(VLOOKUP($A53,Filtro_!$A$5:$AK$2954,30,FALSE),0) -> 0 | AG53: =IFERROR(VLOOKUP($A53,Filtro_!$A$5:$AK$2954,31,FALSE),0) -> 0 | AH53: =IFERROR(VLOOKUP($A53,Filtro_!$A$5:$AK$2954,32,FALSE),0) -> 0 | AI53: =IFERROR(VLOOKUP($A53,Filtro_!$A$5:$AK$2954,33,FALSE),0) -> 0 | AJ53: =IFERROR(VLOOKUP($A53,Filtro_!$A$5:$AK$2954,34,FALSE),0) -> 0 | AK53: =IFERROR(VLOOKUP($A53,Filtro_!$A$5:$AK$2954,35,FALSE),0) -> 0 | AL53: 9,050 | AM53: =AL53*F53 -> 0
C54: TOTAL ARANCEL MAI | D54: =SUM(D6:D53) -> 403446 | E54: =SUM(E6:E53) -> 402320 | F54: =SUM(F6:F53) -> 402317 | G54: =SUM(G6:G53) -> 3 | H54: =SUM(H6:H53) -> 1126 | AB54: =SUM(AB6:AB53) -> 208 | AC54: 401598 | AD54: 1642 | AE54: 12272 | AF54: 0 | AG54: 0 | AH54: 0 | AI54: 0 | AJ54: 0 | AK54: 0 | AM54: =SUM(AM6:AM53) -> 3,640,968,850
C55: OTRAS CONSULTAS MEDICAS
A56: 01010014 | B56: 0101001 | C56: Consulta Medicina General | D56: =IFERROR(VLOOKUP($A56,Filtro_!$A$5:$AK$2954,2,FALSE),0) -> 75517 | E56: =IFERROR(VLOOKUP($A56,Filtro_!$A$5:$AK$2954,3,FALSE),0) -> 75517 | F56: =IFERROR(VLOOKUP($A56,Filtro_!$A$5:$AK$2954,4,FALSE),0) -> 75517 | G56: =IFERROR(VLOOKUP($A56,Filtro_!$A$5:$AK$2954,5,FALSE),0) -> 0 | H56: =IFERROR(VLOOKUP($A56,Filtro_!$A$5:$AK$2954,6,FALSE),0) -> 0 | AB56: =IFERROR(VLOOKUP($A56,Filtro_!$A$5:$AK$2954,26,FALSE),0) -> 0 | AC56: =IFERROR(VLOOKUP($A56,Filtro_!$A$5:$AK$2954,27,FALSE),0) -> 75517 | AD56: =IFERROR(VLOOKUP($A56,Filtro_!$A$5:$AK$2954,28,FALSE),0) -> 0 | AE56: =IFERROR(VLOOKUP($A56,Filtro_!$A$5:$AK$2954,29,FALSE),0) -> 0 | AF56: =IFERROR(VLOOKUP($A56,Filtro_!$A$5:$AK$2954,30,FALSE),0) -> 0 | AG56: =IFERROR(VLOOKUP($A56,Filtro_!$A$5:$AK$2954,31,FALSE),0) -> 0 | AH56: =IFERROR(VLOOKUP($A56,Filtro_!$A$5:$AK$2954,32,FALSE),0) -> 0 | AI56: =IFERROR(VLOOKUP($A56,Filtro_!$A$5:$AK$2954,33,FALSE),0) -> 0 | AJ56: =IFERROR(VLOOKUP($A56,Filtro_!$A$5:$AK$2954,34,FALSE),0) -> 0 | AK56: =IFERROR(VLOOKUP($A56,Filtro_!$A$5:$AK$2954,35,FALSE),0) -> 0 | AL56: 6,360 | AM56: =AL56*F56 -> 480,288,120
A57: 01014320 | B57: 0101007 | C57: Atención médica del recién nacido en sala de parto o pabellón quirúrgico c/s reanimación cardio-respiratoria | D57: =IFERROR(VLOOKUP($A57,Filtro_!$A$5:$AK$2954,2,FALSE),0) -> 3911 | E57: =IFERROR(VLOOKUP($A57,Filtro_!$A$5:$AK$2954,3,FALSE),0) -> 3852 | F57: =IFERROR(VLOOKUP($A57,Filtro_!$A$5:$AK$2954,4,FALSE),0) -> 3464 | G57: =IFERROR(VLOOKUP($A57,Filtro_!$A$5:$AK$2954,5,FALSE),0) -> 388 | H57: =IFERROR(VLOOKUP($A57,Filtro_!$A$5:$AK$2954,6,FALSE),0) -> 59 | AB57: =IFERROR(VLOOKUP($A57,Filtro_!$A$5:$AK$2954,26,FALSE),0) -> 2044 | AC57: =IFERROR(VLOOKUP($A57,Filtro_!$A$5:$AK$2954,27,FALSE),0) -> 889 | AD57: =IFERROR(VLOOKUP($A57,Filtro_!$A$5:$AK$2954,28,FALSE),0) -> 978 | AE57: =IFERROR(VLOOKUP($A57,Filtro_!$A$5:$AK$2954,29,FALSE),0) -> 0 | AF57: =IFERROR(VLOOKUP($A57,Filtro_!$A$5:$AK$2954,30,FALSE),0) -> 0 | AG57: =IFERROR(VLOOKUP($A57,Filtro_!$A$5:$AK$2954,31,FALSE),0) -> 0 | AH57: =IFERROR(VLOOKUP($A57,Filtro_!$A$5:$AK$2954,32,FALSE),0) -> 0 | AI57: =IFERROR(VLOOKUP($A57,Filtro_!$A$5:$AK$2954,33,FALSE),0) -> 0 | AJ57: =IFERROR(VLOOKUP($A57,Filtro_!$A$5:$AK$2954,34,FALSE),0) -> 0 | AK57: =IFERROR(VLOOKUP($A57,Filtro_!$A$5:$AK$2954,35,FALSE),0) -> 0 | AL57: 16,790 | AM57: =AL57*F57 -> 58,160,560
A58: 01014321 | B58: 0101103 | C58: Consulta en Unidades de Urgencia Hospitalaria | D58: =IFERROR(VLOOKUP($A58,Filtro_!$A$5:$AK$2954,2,FALSE),0) -> 300516 | E58: =IFERROR(VLOOKUP($A58,Filtro_!$A$5:$AK$2954,3,FALSE),0) -> 287016 | F58: =IFERROR(VLOOKUP($A58,Filtro_!$A$5:$AK$2954,4,FALSE),0) -> 287016 | G58: =IFERROR(VLOOKUP($A58,Filtro_!$A$5:$AK$2954,5,FALSE),0) -> 0 | H58: =IFERROR(VLOOKUP($A58,Filtro_!$A$5:$AK$2954,6,FALSE),0) -> 13500 | AB58: =IFERROR(VLOOKUP($A58,Filtro_!$A$5:$AK$2954,26,FALSE),0) -> 0 | AC58: =IFERROR(VLOOKUP($A58,Filtro_!$A$5:$AK$2954,27,FALSE),0) -> 8370 | AD58: =IFERROR(VLOOKUP($A58,Filtro_!$A$5:$AK$2954,28,FALSE),0) -> 285686 | AE58: =IFERROR(VLOOKUP($A58,Filtro_!$A$5:$AK$2954,29,FALSE),0) -> 0 | AF58: =IFERROR(VLOOKUP($A58,Filtro_!$A$5:$AK$2954,30,FALSE),0) -> 0 | AG58: =IFERROR(VLOOKUP($A58,Filtro_!$A$5:$AK$2954,31,FALSE),0) -> 0 | AH58: =IFERROR(VLOOKUP($A58,Filtro_!$A$5:$AK$2954,32,FALSE),0) -> 0 | AI58: =IFERROR(VLOOKUP($A58,Filtro_!$A$5:$AK$2954,33,FALSE),0) -> 0 | AJ58: =IFERROR(VLOOKUP($A58,Filtro_!$A$5:$AK$2954,34,FALSE),0) -> 0 | AK58: =IFERROR(VLOOKUP($A58,Filtro_!$A$5:$AK$2954,35,FALSE),0) -> 0 | AL58: 9,050 | AM58: =AL58*F58 -> 2,597,494,800
C59: TOTAL OTRAS CONSULTAS MÉDICAS | D59: =SUM(D56:D58) -> 379944 | E59: =SUM(E56:E58) -> 366385 | F59: =SUM(F56:F58) -> 365997 | G59: =SUM(G56:G58) -> 388 | H59: =SUM(H56:H58) -> 13559 | AB59: =SUM(AB56:AB58) -> 2044 | AC59: 84776 | AD59: 286664 | AE59: 0 | AF59: 0 | AG59: 0 | AH59: 0 | AI59: 0 | AJ59: 0 | AK59: 0 | AM59: =SUM(AM56:AM58) -> 3135943480
C60: TOTAL PRODUCCION | D60: =SUM(D54+D59) -> 783390 | E60: =SUM(E54+E59) -> 768705 | F60: =SUM(F54+F59) -> 768314 | G60: =SUM(G54+G59) -> 391 | H60: =SUM(H54+H59) -> 14685 | AB60: =SUM(AB54+AB59) -> 2252 | AC60: 486374 | AD60: 288306 | AE60: 12272 | AF60: 0 | AG60: 0 | AH60: 0 | AI60: 0 | AJ60: 0 | AK60: 0 | AM60: =SUM(AM54+AM59) -> 6776912330
C61: CONSULTAS POR OTROS PROFESIONALES DE LA SALUD
A62: 01010020 | B62: 0102002 | C62: Control de salud niño con EDP por enfermera | D62: =IFERROR(VLOOKUP($A62,Filtro_!$A$5:$AK$2954,2,FALSE),0) -> 7848 | E62: =IFERROR(VLOOKUP($A62,Filtro_!$A$5:$AK$2954,3,FALSE),0) -> 7848 | F62: =IFERROR(VLOOKUP($A62,Filtro_!$A$5:$AK$2954,4,FALSE),0) -> 7848 | G62: =IFERROR(VLOOKUP($A62,Filtro_!$A$5:$AK$2954,5,FALSE),0) -> 0 | H62: =IFERROR(VLOOKUP($A62,Filtro_!$A$5:$AK$2954,6,FALSE),0) -> 0 | AB62: =IFERROR(VLOOKUP($A62,Filtro_!$A$5:$AK$2954,26,FALSE),0) -> 0 | AC62: =IFERROR(VLOOKUP($A62,Filtro_!$A$5:$AK$2954,27,FALSE),0) -> 3206 | AD62: =IFERROR(VLOOKUP($A62,Filtro_!$A$5:$AK$2954,28,FALSE),0) -> 4642 | AE62: =IFERROR(VLOOKUP($A62,Filtro_!$A$5:$AK$2954,29,FALSE),0) -> 0 | AF62: =IFERROR(VLOOKUP($A62,Filtro_!$A$5:$AK$2954,30,FALSE),0) -> 0 | AG62: =IFERROR(VLOOKUP($A62,Filtro_!$A$5:$AK$2954,31,FALSE),0) -> 0 | AH62: =IFERROR(VLOOKUP($A62,Filtro_!$A$5:$AK$2954,32,FALSE),0) -> 0 | AI62: =IFERROR(VLOOKUP($A62,Filtro_!$A$5:$AK$2954,33,FALSE),0) -> 0 | AJ62: =IFERROR(VLOOKUP($A62,Filtro_!$A$5:$AK$2954,34,FALSE),0) -> 0 | AK62: =IFERROR(VLOOKUP($A62,Filtro_!$A$5:$AK$2954,35,FALSE),0) -> 0 | AL62: 2,410 | AM62: =AL62*F62 -> 18,913,680
A63: 01010021 | B63: 0102003 | C63: Consulta o control por auxiliar de enfermería | D63: =IFERROR(VLOOKUP($A63,Filtro_!$A$5:$AK$2954,2,FALSE),0) -> 20580 | E63: =IFERROR(VLOOKUP($A63,Filtro_!$A$5:$AK$2954,3,FALSE),0) -> 20579 | F63: =IFERROR(VLOOKUP($A63,Filtro_!$A$5:$AK$2954,4,FALSE),0) -> 20579 | G63: =IFERROR(VLOOKUP($A63,Filtro_!$A$5:$AK$2954,5,FALSE),0) -> 0 | H63: =IFERROR(VLOOKUP($A63,Filtro_!$A$5:$AK$2954,6,FALSE),0) -> 1 | AB63: =IFERROR(VLOOKUP($A63,Filtro_!$A$5:$AK$2954,26,FALSE),0) -> 0 | AC63: =IFERROR(VLOOKUP($A63,Filtro_!$A$5:$AK$2954,27,FALSE),0) -> 3144 | AD63: =IFERROR(VLOOKUP($A63,Filtro_!$A$5:$AK$2954,28,FALSE),0) -> 17439 | AE63: =IFERROR(VLOOKUP($A63,Filtro_!$A$5:$AK$2954,29,FALSE),0) -> 0 | AF63: =IFERROR(VLOOKUP($A63,Filtro_!$A$5:$AK$2954,30,FALSE),0) -> 0 | AG63: =IFERROR(VLOOKUP($A63,Filtro_!$A$5:$AK$2954,31,FALSE),0) -> 0 | AH63: =IFERROR(VLOOKUP($A63,Filtro_!$A$5:$AK$2954,32,FALSE),0) -> 0 | AI63: =IFERROR(VLOOKUP($A63,Filtro_!$A$5:$AK$2954,33,FALSE),0) -> 0 | AJ63: =IFERROR(VLOOKUP($A63,Filtro_!$A$5:$AK$2954,34,FALSE),0) -> 0 | AK63: =IFERROR(VLOOKUP($A63,Filtro_!$A$5:$AK$2954,35,FALSE),0) -> 0 | AL63: 780 | AM63: 16,051,620
A64: 01010022 | B64: 0102005 | C64: Consulta por fonoaudiólogo | D64: =IFERROR(VLOOKUP($A64,Filtro_!$A$5:$AK$2954,2,FALSE),0) -> 27573 | E64: =IFERROR(VLOOKUP($A64,Filtro_!$A$5:$AK$2954,3,FALSE),0) -> 27546 | F64: =IFERROR(VLOOKUP($A64,Filtro_!$A$5:$AK$2954,4,FALSE),0) -> 27546 | G64: =IFERROR(VLOOKUP($A64,Filtro_!$A$5:$AK$2954,5,FALSE),0) -> 0 | H64: =IFERROR(VLOOKUP($A64,Filtro_!$A$5:$AK$2954,6,FALSE),0) -> 27 | AB64: =IFERROR(VLOOKUP($A64,Filtro_!$A$5:$AK$2954,26,FALSE),0) -> 10579 | AC64: =IFERROR(VLOOKUP($A64,Filtro_!$A$5:$AK$2954,27,FALSE),0) -> 11947 | AD64: =IFERROR(VLOOKUP($A64,Filtro_!$A$5:$AK$2954,28,FALSE),0) -> 5047 | AE64: =IFERROR(VLOOKUP($A64,Filtro_!$A$5:$AK$2954,29,FALSE),0) -> 0 | AF64: =IFERROR(VLOOKUP($A64,Filtro_!$A$5:$AK$2954,30,FALSE),0) -> 0 | AG64: =IFERROR(VLOOKUP($A64,Filtro_!$A$5:$AK$2954,31,FALSE),0) -> 0 | AH64: =IFERROR(VLOOKUP($A64,Filtro_!$A$5:$AK$2954,32,FALSE),0) -> 0 | AI64: =IFERROR(VLOOKUP($A64,Filtro_!$A$5:$AK$2954,33,FALSE),0) -> 0 | AJ64: =IFERROR(VLOOKUP($A64,Filtro_!$A$5:$AK$2954,34,FALSE),0) -> 0 | AK64: =IFERROR(VLOOKUP($A64,Filtro_!$A$5:$AK$2954,35,FALSE),0) -> 0 | AL64: 1,920 | AM64: 52,888,320
A65: 01014322 | B65: 0102008 | C65: Consulta o control por enfermera | D65: =IFERROR(VLOOKUP($A65,Filtro_!$A$5:$AK$2954,2,FALSE),0) -> 118754 | E65: =IFERROR(VLOOKUP($A65,Filtro_!$A$5:$AK$2954,3,FALSE),0) -> 118421 | F65: =IFERROR(VLOOKUP($A65,Filtro_!$A$5:$AK$2954,4,FALSE),0) -> 118421 | G65: =IFERROR(VLOOKUP($A65,Filtro_!$A$5:$AK$2954,5,FALSE),0) -> 0 | H65: =IFERROR(VLOOKUP($A65,Filtro_!$A$5:$AK$2954,6,FALSE),0) -> 333 | AB65: =IFERROR(VLOOKUP($A65,Filtro_!$A$5:$AK$2954,26,FALSE),0) -> 2 | AC65: =IFERROR(VLOOKUP($A65,Filtro_!$A$5:$AK$2954,27,FALSE),0) -> 99058 | AD65: =IFERROR(VLOOKUP($A65,Filtro_!$A$5:$AK$2954,28,FALSE),0) -> 19694 | AE65: =IFERROR(VLOOKUP($A65,Filtro_!$A$5:$AK$2954,29,FALSE),0) -> 0 | AF65: =IFERROR(VLOOKUP($A65,Filtro_!$A$5:$AK$2954,30,FALSE),0) -> 0 | AG65: =IFERROR(VLOOKUP($A65,Filtro_!$A$5:$AK$2954,31,FALSE),0) -> 0 | AH65: =IFERROR(VLOOKUP($A65,Filtro_!$A$5:$AK$2954,32,FALSE),0) -> 0 | AI65: =IFERROR(VLOOKUP($A65,Filtro_!$A$5:$AK$2954,33,FALSE),0) -> 0 | AJ65: =IFERROR(VLOOKUP($A65,Filtro_!$A$5:$AK$2954,34,FALSE),0) -> 0 | AK65: =IFERROR(VLOOKUP($A65,Filtro_!$A$5:$AK$2954,35,FALSE),0) -> 0 | AL65: 1,410 | AM65: 166,973,610
A66: 01014323 | B66: 0102009 | C66: Consulta o control por matrona | D66: =IFERROR(VLOOKUP($A66,Filtro_!$A$5:$AK$2954,2,FALSE),0) -> 54588 | E66: =IFERROR(VLOOKUP($A66,Filtro_!$A$5:$AK$2954,3,FALSE),0) -> 54355 | F66: =IFERROR(VLOOKUP($A66,Filtro_!$A$5:$AK$2954,4,FALSE),0) -> 54355 | G66: =IFERROR(VLOOKUP($A66,Filtro_!$A$5:$AK$2954,5,FALSE),0) -> 0 | H66: =IFERROR(VLOOKUP($A66,Filtro_!$A$5:$AK$2954,6,FALSE),0) -> 233 | AB66: =IFERROR(VLOOKUP($A66,Filtro_!$A$5:$AK$2954,26,FALSE),0) -> 477 | AC66: =IFERROR(VLOOKUP($A66,Filtro_!$A$5:$AK$2954,27,FALSE),0) -> 49435 | AD66: =IFERROR(VLOOKUP($A66,Filtro_!$A$5:$AK$2954,28,FALSE),0) -> 4676 | AE66: =IFERROR(VLOOKUP($A66,Filtro_!$A$5:$AK$2954,29,FALSE),0) -> 0 | AF66: =IFERROR(VLOOKUP($A66,Filtro_!$A$5:$AK$2954,30,FALSE),0) -> 0 | AG66: =IFERROR(VLOOKUP($A66,Filtro_!$A$5:$AK$2954,31,FALSE),0) -> 0 | AH66: =IFERROR(VLOOKUP($A66,Filtro_!$A$5:$AK$2954,32,FALSE),0) -> 0 | AI66: =IFERROR(VLOOKUP($A66,Filtro_!$A$5:$AK$2954,33,FALSE),0) -> 0 | AJ66: =IFERROR(VLOOKUP($A66,Filtro_!$A$5:$AK$2954,34,FALSE),0) -> 0 | AK66: =IFERROR(VLOOKUP($A66,Filtro_!$A$5:$AK$2954,35,FALSE),0) -> 0 | AL66: 1,410 | AM66: 76,640,550
A67: 01014324 | B67: 0102010 | C67: Consulta o control por nutricionista | D67: =IFERROR(VLOOKUP($A67,Filtro_!$A$5:$AK$2954,2,FALSE),0) -> 27431 | E67: =IFERROR(VLOOKUP($A67,Filtro_!$A$5:$AK$2954,3,FALSE),0) -> 27389 | F67: =IFERROR(VLOOKUP($A67,Filtro_!$A$5:$AK$2954,4,FALSE),0) -> 27389 | G67: =IFERROR(VLOOKUP($A67,Filtro_!$A$5:$AK$2954,5,FALSE),0) -> 0 | H67: =IFERROR(VLOOKUP($A67,Filtro_!$A$5:$AK$2954,6,FALSE),0) -> 42 | AB67: =IFERROR(VLOOKUP($A67,Filtro_!$A$5:$AK$2954,26,FALSE),0) -> 0 | AC67: =IFERROR(VLOOKUP($A67,Filtro_!$A$5:$AK$2954,27,FALSE),0) -> 27179 | AD67: =IFERROR(VLOOKUP($A67,Filtro_!$A$5:$AK$2954,28,FALSE),0) -> 252 | AE67: =IFERROR(VLOOKUP($A67,Filtro_!$A$5:$AK$2954,29,FALSE),0) -> 0 | AF67: =IFERROR(VLOOKUP($A67,Filtro_!$A$5:$AK$2954,30,FALSE),0) -> 0 | AG67: =IFERROR(VLOOKUP($A67,Filtro_!$A$5:$AK$2954,31,FALSE),0) -> 0 | AH67: =IFERROR(VLOOKUP($A67,Filtro_!$A$5:$AK$2954,32,FALSE),0) -> 0 | AI67: =IFERROR(VLOOKUP($A67,Filtro_!$A$5:$AK$2954,33,FALSE),0) -> 0 | AJ67: =IFERROR(VLOOKUP($A67,Filtro_!$A$5:$AK$2954,34,FALSE),0) -> 0 | AK67: =IFERROR(VLOOKUP($A67,Filtro_!$A$5:$AK$2954,35,FALSE),0) -> 0 | AL67: 1,410 | AM67: 38,618,490
C68: TOTAL ARANCEL MAI | D68: =SUM(D62:D67) -> 256774 | E68: =SUM(E62:E67) -> 256138 | F68: =SUM(F62:F67) -> 256138 | G68: =SUM(G62:G67) -> 0 | H68: =SUM(H62:H67) -> 636 | AB68: =SUM(AB62:AB67) -> 11058 | AC68: 193969 | AD68: 51750 | AE68: 0 | AF68: 0 | AG68: 0 | AH68: 0 | AI68: 0 | AJ68: 0 | AK68: 0 | AM68: =SUM(AM62:AM67) -> 370,086,270
A69: 01010025 | B69: 01010025 | C69: Consulta por otros profesionales | D69: =IFERROR(VLOOKUP($A69,Filtro_!$A$5:$AK$2954,2,FALSE),0) -> 25358 | E69: =IFERROR(VLOOKUP($A69,Filtro_!$A$5:$AK$2954,3,FALSE),0) -> 25210 | F69: =IFERROR(VLOOKUP($A69,Filtro_!$A$5:$AK$2954,4,FALSE),0) -> 25210 | G69: =IFERROR(VLOOKUP($A69,Filtro_!$A$5:$AK$2954,5,FALSE),0) -> 0 | H69: =IFERROR(VLOOKUP($A69,Filtro_!$A$5:$AK$2954,6,FALSE),0) -> 148 | AB69: =IFERROR(VLOOKUP($A69,Filtro_!$A$5:$AK$2954,26,FALSE),0) -> 0 | AC69: =IFERROR(VLOOKUP($A69,Filtro_!$A$5:$AK$2954,27,FALSE),0) -> 25104 | AD69: =IFERROR(VLOOKUP($A69,Filtro_!$A$5:$AK$2954,28,FALSE),0) -> 254 | AE69: =IFERROR(VLOOKUP($A69,Filtro_!$A$5:$AK$2954,29,FALSE),0) -> 827 | AF69: =IFERROR(VLOOKUP($A69,Filtro_!$A$5:$AK$2954,30,FALSE),0) -> 0 | AG69: =IFERROR(VLOOKUP($A69,Filtro_!$A$5:$AK$2954,31,FALSE),0) -> 0 | AH69: =IFERROR(VLOOKUP($A69,Filtro_!$A$5:$AK$2954,32,FALSE),0) -> 0 | AI69: =IFERROR(VLOOKUP($A69,Filtro_!$A$5:$AK$2954,33,FALSE),0) -> 0 | AJ69: =IFERROR(VLOOKUP($A69,Filtro_!$A$5:$AK$2954,34,FALSE),0) -> 0 | AK69: =IFERROR(VLOOKUP($A69,Filtro_!$A$5:$AK$2954,35,FALSE),0) -> 0 | AL69: 0 | AM69: 0
A70: 01012817 | B70: 01012817 | C70: Consulta por Trabajador(a) Social | D70: =IFERROR(VLOOKUP($A70,Filtro_!$A$5:$AK$2954,2,FALSE),0) -> 13792 | E70: =IFERROR(VLOOKUP($A70,Filtro_!$A$5:$AK$2954,3,FALSE),0) -> 13272 | F70: =IFERROR(VLOOKUP($A70,Filtro_!$A$5:$AK$2954,4,FALSE),0) -> 13272 | G70: =IFERROR(VLOOKUP($A70,Filtro_!$A$5:$AK$2954,5,FALSE),0) -> 0 | H70: =IFERROR(VLOOKUP($A70,Filtro_!$A$5:$AK$2954,6,FALSE),0) -> 520 | AB70: =IFERROR(VLOOKUP($A70,Filtro_!$A$5:$AK$2954,26,FALSE),0) -> 328 | AC70: =IFERROR(VLOOKUP($A70,Filtro_!$A$5:$AK$2954,27,FALSE),0) -> 13377 | AD70: =IFERROR(VLOOKUP($A70,Filtro_!$A$5:$AK$2954,28,FALSE),0) -> 87 | AE70: =IFERROR(VLOOKUP($A70,Filtro_!$A$5:$AK$2954,29,FALSE),0) -> 0 | AF70: =IFERROR(VLOOKUP($A70,Filtro_!$A$5:$AK$2954,30,FALSE),0) -> 0 | AG70: =IFERROR(VLOOKUP($A70,Filtro_!$A$5:$AK$2954,31,FALSE),0) -> 0 | AH70: =IFERROR(VLOOKUP($A70,Filtro_!$A$5:$AK$2954,32,FALSE),0) -> 0 | AI70: =IFERROR(VLOOKUP($A70,Filtro_!$A$5:$AK$2954,33,FALSE),0) -> 0 | AJ70: =IFERROR(VLOOKUP($A70,Filtro_!$A$5:$AK$2954,34,FALSE),0) -> 0 | AK70: =IFERROR(VLOOKUP($A70,Filtro_!$A$5:$AK$2954,35,FALSE),0) -> 0 | AL70: 0 | AM70: 0
C71: TOTAL ARANCEL MLE Y NO ARANCELADO | D71: =SUM(D69:D70) -> 39150 | E71: =SUM(E69:E70) -> 38482 | F71: =SUM(F69:F70) -> 38482 | G71: =SUM(G69:G70) -> 0 | H71: =SUM(H69:H70) -> 668 | AB71: =SUM(AB69:AB70) -> 328 | AC71: 38481 | AD71: 341 | AE71: 827 | AF71: 0 | AG71: 0 | AH71: 0 | AI71: 0 | AJ71: 0 | AK71: 0
C72: TOTAL PRODUCCION | D72: =SUM(D68+D71) -> 295924 | E72: =SUM(E68+E71) -> 294620 | F72: =SUM(F68+F71) -> 294620 | G72: =SUM(G68+G71) -> 0 | H72: =SUM(H68+H71) -> 1304 | AB72: =SUM(AB68+AB71) -> 11386 | AC72: 232450 | AD72: 52091 | AE72: 827 | AF72: 0 | AG72: 0 | AH72: 0 | AI72: 0 | AJ72: 0 | AK72: 0 | AM72: =SUM(AM68+AM71) -> 370,086,270
C73: TELEMEDICINA POR PROFESIONALES MÉDICOS
C74: TELECONSULTAS
A75: 01013100 | B75: 0108001 | C75: Teleconsulta Medicina General | D75: =IFERROR(VLOOKUP($A75,Filtro_!$A$5:$AK$2954,2,FALSE),0) -> 0 | E75: =IFERROR(VLOOKUP($A75,Filtro_!$A$5:$AK$2954,3,FALSE),0) -> 0 | F75: =IFERROR(VLOOKUP($A75,Filtro_!$A$5:$AK$2954,4,FALSE),0) -> 0 | G75: =IFERROR(VLOOKUP($A75,Filtro_!$A$5:$AK$2954,5,FALSE),0) -> 0 | H75: =IFERROR(VLOOKUP($A75,Filtro_!$A$5:$AK$2954,6,FALSE),0) -> 0 | AB75: =IFERROR(VLOOKUP($A75,Filtro_!$A$5:$AK$2954,26,FALSE),0) -> 0 | AC75: =IFERROR(VLOOKUP($A75,Filtro_!$A$5:$AK$2954,27,FALSE),0) -> 0 | AD75: =IFERROR(VLOOKUP($A75,Filtro_!$A$5:$AK$2954,28,FALSE),0) -> 0 | AE75: =IFERROR(VLOOKUP($A75,Filtro_!$A$5:$AK$2954,29,FALSE),0) -> 0 | AF75: =IFERROR(VLOOKUP($A75,Filtro_!$A$5:$AK$2954,30,FALSE),0) -> 0 | AG75: =IFERROR(VLOOKUP($A75,Filtro_!$A$5:$AK$2954,31,FALSE),0) -> 0 | AH75: =IFERROR(VLOOKUP($A75,Filtro_!$A$5:$AK$2954,32,FALSE),0) -> 0 | AI75: =IFERROR(VLOOKUP($A75,Filtro_!$A$5:$AK$2954,33,FALSE),0) -> 0 | AJ75: =IFERROR(VLOOKUP($A75,Filtro_!$A$5:$AK$2954,34,FALSE),0) -> 0 | AK75: =IFERROR(VLOOKUP($A75,Filtro_!$A$5:$AK$2954,35,FALSE),0) -> 0 | AL75: 5,290 | AM75: =AL75*F75 -> 0
A76: 01014325 | B76: 0108201 | C76: Teleconsulta Médica de Especialidad en Dermatología | D76: =IFERROR(VLOOKUP($A76,Filtro_!$A$5:$AK$2954,2,FALSE),0) -> 137 | E76: =IFERROR(VLOOKUP($A76,Filtro_!$A$5:$AK$2954,3,FALSE),0) -> 137 | F76: =IFERROR(VLOOKUP($A76,Filtro_!$A$5:$AK$2954,4,FALSE),0) -> 137 | G76: =IFERROR(VLOOKUP($A76,Filtro_!$A$5:$AK$2954,5,FALSE),0) -> 0 | H76: =IFERROR(VLOOKUP($A76,Filtro_!$A$5:$AK$2954,6,FALSE),0) -> 0 | AB76: =IFERROR(VLOOKUP($A76,Filtro_!$A$5:$AK$2954,26,FALSE),0) -> 0 | AC76: =IFERROR(VLOOKUP($A76,Filtro_!$A$5:$AK$2954,27,FALSE),0) -> 137 | AD76: =IFERROR(VLOOKUP($A76,Filtro_!$A$5:$AK$2954,28,FALSE),0) -> 0 | AE76: =IFERROR(VLOOKUP($A76,Filtro_!$A$5:$AK$2954,29,FALSE),0) -> 0 | AF76: =IFERROR(VLOOKUP($A76,Filtro_!$A$5:$AK$2954,30,FALSE),0) -> 0 | AG76: =IFERROR(VLOOKUP($A76,Filtro_!$A$5:$AK$2954,31,FALSE),0) -> 0 | AH76: =IFERROR(VLOOKUP($A76,Filtro_!$A$5:$AK$2954,32,FALSE),0) -> 0 | AI76: =IFERROR(VLOOKUP($A76,Filtro_!$A$5:$AK$2954,33,FALSE),0) -> 0 | AJ76: =IFERROR(VLOOKUP($A76,Filtro_!$A$5:$AK$2954,34,FALSE),0) -> 0 | AK76: =IFERROR(VLOOKUP($A76,Filtro_!$A$5:$AK$2954,35,FALSE),0) -> 0 | AL76: 7,530 | AM76: 1,031,610
A77: 01014326 | B77: 0108202 | C77: Teleconsulta Médica de Especialidad en Geriatría | D77: =IFERROR(VLOOKUP($A77,Filtro_!$A$5:$AK$2954,2,FALSE),0) -> 6 | E77: =IFERROR(VLOOKUP($A77,Filtro_!$A$5:$AK$2954,3,FALSE),0) -> 6 | F77: =IFERROR(VLOOKUP($A77,Filtro_!$A$5:$AK$2954,4,FALSE),0) -> 6 | G77: =IFERROR(VLOOKUP($A77,Filtro_!$A$5:$AK$2954,5,FALSE),0) -> 0 | H77: =IFERROR(VLOOKUP($A77,Filtro_!$A$5:$AK$2954,6,FALSE),0) -> 0 | AB77: =IFERROR(VLOOKUP($A77,Filtro_!$A$5:$AK$2954,26,FALSE),0) -> 0 | AC77: =IFERROR(VLOOKUP($A77,Filtro_!$A$5:$AK$2954,27,FALSE),0) -> 6 | AD77: =IFERROR(VLOOKUP($A77,Filtro_!$A$5:$AK$2954,28,FALSE),0) -> 0 | AE77: =IFERROR(VLOOKUP($A77,Filtro_!$A$5:$AK$2954,29,FALSE),0) -> 0 | AF77: =IFERROR(VLOOKUP($A77,Filtro_!$A$5:$AK$2954,30,FALSE),0) -> 0 | AG77: =IFERROR(VLOOKUP($A77,Filtro_!$A$5:$AK$2954,31,FALSE),0) -> 0 | AH77: =IFERROR(VLOOKUP($A77,Filtro_!$A$5:$AK$2954,32,FALSE),0) -> 0 | AI77: =IFERROR(VLOOKUP($A77,Filtro_!$A$5:$AK$2954,33,FALSE),0) -> 0 | AJ77: =IFERROR(VLOOKUP($A77,Filtro_!$A$5:$AK$2954,34,FALSE),0) -> 0 | AK77: =IFERROR(VLOOKUP($A77,Filtro_!$A$5:$AK$2954,35,FALSE),0) -> 0 | AL77: 7,530 | AM77: 45,180
A78: 01014327 | B78: 0108206 | C78: Teleconsulta Médica de Especialidad en Reumatología | D78: =IFERROR(VLOOKUP($A78,Filtro_!$A$5:$AK$2954,2,FALSE),0) -> 82 | E78: =IFERROR(VLOOKUP($A78,Filtro_!$A$5:$AK$2954,3,FALSE),0) -> 82 | F78: =IFERROR(VLOOKUP($A78,Filtro_!$A$5:$AK$2954,4,FALSE),0) -> 82 | G78: =IFERROR(VLOOKUP($A78,Filtro_!$A$5:$AK$2954,5,FALSE),0) -> 0 | H78: =IFERROR(VLOOKUP($A78,Filtro_!$A$5:$AK$2954,6,FALSE),0) -> 0 | AB78: =IFERROR(VLOOKUP($A78,Filtro_!$A$5:$AK$2954,26,FALSE),0) -> 0 | AC78: =IFERROR(VLOOKUP($A78,Filtro_!$A$5:$AK$2954,27,FALSE),0) -> 82 | AD78: =IFERROR(VLOOKUP($A78,Filtro_!$A$5:$AK$2954,28,FALSE),0) -> 0 | AE78: =IFERROR(VLOOKUP($A78,Filtro_!$A$5:$AK$2954,29,FALSE),0) -> 0 | AF78: =IFERROR(VLOOKUP($A78,Filtro_!$A$5:$AK$2954,30,FALSE),0) -> 0 | AG78: =IFERROR(VLOOKUP($A78,Filtro_!$A$5:$AK$2954,31,FALSE),0) -> 0 | AH78: =IFERROR(VLOOKUP($A78,Filtro_!$A$5:$AK$2954,32,FALSE),0) -> 0 | AI78: =IFERROR(VLOOKUP($A78,Filtro_!$A$5:$AK$2954,33,FALSE),0) -> 0 | AJ78: =IFERROR(VLOOKUP($A78,Filtro_!$A$5:$AK$2954,34,FALSE),0) -> 0 | AK78: =IFERROR(VLOOKUP($A78,Filtro_!$A$5:$AK$2954,35,FALSE),0) -> 0 | AL78: 7,530 | AM78: 617,460
A79: 01014328 | B79: 0108207 | C79: Teleconsulta Médica de Especialidad en Endocrinología Adulto | D79: =IFERROR(VLOOKUP($A79,Filtro_!$A$5:$AK$2954,2,FALSE),0) -> 195 | E79: =IFERROR(VLOOKUP($A79,Filtro_!$A$5:$AK$2954,3,FALSE),0) -> 195 | F79: =IFERROR(VLOOKUP($A79,Filtro_!$A$5:$AK$2954,4,FALSE),0) -> 195 | G79: =IFERROR(VLOOKUP($A79,Filtro_!$A$5:$AK$2954,5,FALSE),0) -> 0 | H79: =IFERROR(VLOOKUP($A79,Filtro_!$A$5:$AK$2954,6,FALSE),0) -> 0 | AB79: =IFERROR(VLOOKUP($A79,Filtro_!$A$5:$AK$2954,26,FALSE),0) -> 0 | AC79: =IFERROR(VLOOKUP($A79,Filtro_!$A$5:$AK$2954,27,FALSE),0) -> 195 | AD79: =IFERROR(VLOOKUP($A79,Filtro_!$A$5:$AK$2954,28,FALSE),0) -> 0 | AE79: =IFERROR(VLOOKUP($A79,Filtro_!$A$5:$AK$2954,29,FALSE),0) -> 0 | AF79: =IFERROR(VLOOKUP($A79,Filtro_!$A$5:$AK$2954,30,FALSE),0) -> 0 | AG79: =IFERROR(VLOOKUP($A79,Filtro_!$A$5:$AK$2954,31,FALSE),0) -> 0 | AH79: =IFERROR(VLOOKUP($A79,Filtro_!$A$5:$AK$2954,32,FALSE),0) -> 0 | AI79: =IFERROR(VLOOKUP($A79,Filtro_!$A$5:$AK$2954,33,FALSE),0) -> 0 | AJ79: =IFERROR(VLOOKUP($A79,Filtro_!$A$5:$AK$2954,34,FALSE),0) -> 0 | AK79: =IFERROR(VLOOKUP($A79,Filtro_!$A$5:$AK$2954,35,FALSE),0) -> 0 | AL79: 7,530 | AM79: 1,468,350
A80: 01014329 | B80: 0108208 | C80: Teleconsulta Médica de Especialidad en Endocrinología Pediátrica | D80: =IFERROR(VLOOKUP($A80,Filtro_!$A$5:$AK$2954,2,FALSE),0) -> 67 | E80: =IFERROR(VLOOKUP($A80,Filtro_!$A$5:$AK$2954,3,FALSE),0) -> 67 | F80: =IFERROR(VLOOKUP($A80,Filtro_!$A$5:$AK$2954,4,FALSE),0) -> 67 | G80: =IFERROR(VLOOKUP($A80,Filtro_!$A$5:$AK$2954,5,FALSE),0) -> 0 | H80: =IFERROR(VLOOKUP($A80,Filtro_!$A$5:$AK$2954,6,FALSE),0) -> 0 | AB80: =IFERROR(VLOOKUP($A80,Filtro_!$A$5:$AK$2954,26,FALSE),0) -> 0 | AC80: =IFERROR(VLOOKUP($A80,Filtro_!$A$5:$AK$2954,27,FALSE),0) -> 67 | AD80: =IFERROR(VLOOKUP($A80,Filtro_!$A$5:$AK$2954,28,FALSE),0) -> 0 | AE80: =IFERROR(VLOOKUP($A80,Filtro_!$A$5:$AK$2954,29,FALSE),0) -> 0 | AF80: =IFERROR(VLOOKUP($A80,Filtro_!$A$5:$AK$2954,30,FALSE),0) -> 0 | AG80: =IFERROR(VLOOKUP($A80,Filtro_!$A$5:$AK$2954,31,FALSE),0) -> 0 | AH80: =IFERROR(VLOOKUP($A80,Filtro_!$A$5:$AK$2954,32,FALSE),0) -> 0 | AI80: =IFERROR(VLOOKUP($A80,Filtro_!$A$5:$AK$2954,33,FALSE),0) -> 0 | AJ80: =IFERROR(VLOOKUP($A80,Filtro_!$A$5:$AK$2954,34,FALSE),0) -> 0 | AK80: =IFERROR(VLOOKUP($A80,Filtro_!$A$5:$AK$2954,35,FALSE),0) -> 0 | AL80: 7,530 | AM80: 504,510
A81: 01014330 | B81: 0108209 | C81: Teleconsulta Médica de Especialidad en Neurología Adultos | D81: =IFERROR(VLOOKUP($A81,Filtro_!$A$5:$AK$2954,2,FALSE),0) -> 292 | E81: =IFERROR(VLOOKUP($A81,Filtro_!$A$5:$AK$2954,3,FALSE),0) -> 292 | F81: =IFERROR(VLOOKUP($A81,Filtro_!$A$5:$AK$2954,4,FALSE),0) -> 292 | G81: =IFERROR(VLOOKUP($A81,Filtro_!$A$5:$AK$2954,5,FALSE),0) -> 0 | H81: =IFERROR(VLOOKUP($A81,Filtro_!$A$5:$AK$2954,6,FALSE),0) -> 0 | AB81: =IFERROR(VLOOKUP($A81,Filtro_!$A$5:$AK$2954,26,FALSE),0) -> 26 | AC81: =IFERROR(VLOOKUP($A81,Filtro_!$A$5:$AK$2954,27,FALSE),0) -> 266 | AD81: =IFERROR(VLOOKUP($A81,Filtro_!$A$5:$AK$2954,28,FALSE),0) -> 0 | AE81: =IFERROR(VLOOKUP($A81,Filtro_!$A$5:$AK$2954,29,FALSE),0) -> 0 | AF81: =IFERROR(VLOOKUP($A81,Filtro_!$A$5:$AK$2954,30,FALSE),0) -> 0 | AG81: =IFERROR(VLOOKUP($A81,Filtro_!$A$5:$AK$2954,31,FALSE),0) -> 0 | AH81: =IFERROR(VLOOKUP($A81,Filtro_!$A$5:$AK$2954,32,FALSE),0) -> 0 | AI81: =IFERROR(VLOOKUP($A81,Filtro_!$A$5:$AK$2954,33,FALSE),0) -> 0 | AJ81: =IFERROR(VLOOKUP($A81,Filtro_!$A$5:$AK$2954,34,FALSE),0) -> 0 | AK81: =IFERROR(VLOOKUP($A81,Filtro_!$A$5:$AK$2954,35,FALSE),0) -> 0 | AL81: 7,530 | AM81: 2,198,760
A82: 01014331 | B82: 0108210 | C82: Teleconsulta Médica de Especialidad en Neurología Pediátrica | D82: =IFERROR(VLOOKUP($A82,Filtro_!$A$5:$AK$2954,2,FALSE),0) -> 100 | E82: =IFERROR(VLOOKUP($A82,Filtro_!$A$5:$AK$2954,3,FALSE),0) -> 100 | F82: =IFERROR(VLOOKUP($A82,Filtro_!$A$5:$AK$2954,4,FALSE),0) -> 100 | G82: =IFERROR(VLOOKUP($A82,Filtro_!$A$5:$AK$2954,5,FALSE),0) -> 0 | H82: =IFERROR(VLOOKUP($A82,Filtro_!$A$5:$AK$2954,6,FALSE),0) -> 0 | AB82: =IFERROR(VLOOKUP($A82,Filtro_!$A$5:$AK$2954,26,FALSE),0) -> 16 | AC82: =IFERROR(VLOOKUP($A82,Filtro_!$A$5:$AK$2954,27,FALSE),0) -> 84 | AD82: =IFERROR(VLOOKUP($A82,Filtro_!$A$5:$AK$2954,28,FALSE),0) -> 0 | AE82: =IFERROR(VLOOKUP($A82,Filtro_!$A$5:$AK$2954,29,FALSE),0) -> 0 | AF82: =IFERROR(VLOOKUP($A82,Filtro_!$A$5:$AK$2954,30,FALSE),0) -> 0 | AG82: =IFERROR(VLOOKUP($A82,Filtro_!$A$5:$AK$2954,31,FALSE),0) -> 0 | AH82: =IFERROR(VLOOKUP($A82,Filtro_!$A$5:$AK$2954,32,FALSE),0) -> 0 | AI82: =IFERROR(VLOOKUP($A82,Filtro_!$A$5:$AK$2954,33,FALSE),0) -> 0 | AJ82: =IFERROR(VLOOKUP($A82,Filtro_!$A$5:$AK$2954,34,FALSE),0) -> 0 | AK82: =IFERROR(VLOOKUP($A82,Filtro_!$A$5:$AK$2954,35,FALSE),0) -> 0 | AL82: 7,530 | AM82: 753,000
A83: 01014332 | B83: 0108211 | C83: Teleconsulta Médica de Especialidad en Oncología Médica | D83: =IFERROR(VLOOKUP($A83,Filtro_!$A$5:$AK$2954,2,FALSE),0) -> 7590 | E83: =IFERROR(VLOOKUP($A83,Filtro_!$A$5:$AK$2954,3,FALSE),0) -> 7590 | F83: =IFERROR(VLOOKUP($A83,Filtro_!$A$5:$AK$2954,4,FALSE),0) -> 7590 | G83: =IFERROR(VLOOKUP($A83,Filtro_!$A$5:$AK$2954,5,FALSE),0) -> 0 | H83: =IFERROR(VLOOKUP($A83,Filtro_!$A$5:$AK$2954,6,FALSE),0) -> 0 | AB83: =IFERROR(VLOOKUP($A83,Filtro_!$A$5:$AK$2954,26,FALSE),0) -> 0 | AC83: =IFERROR(VLOOKUP($A83,Filtro_!$A$5:$AK$2954,27,FALSE),0) -> 7590 | AD83: =IFERROR(VLOOKUP($A83,Filtro_!$A$5:$AK$2954,28,FALSE),0) -> 0 | AE83: =IFERROR(VLOOKUP($A83,Filtro_!$A$5:$AK$2954,29,FALSE),0) -> 0 | AF83: =IFERROR(VLOOKUP($A83,Filtro_!$A$5:$AK$2954,30,FALSE),0) -> 0 | AG83: =IFERROR(VLOOKUP($A83,Filtro_!$A$5:$AK$2954,31,FALSE),0) -> 0 | AH83: =IFERROR(VLOOKUP($A83,Filtro_!$A$5:$AK$2954,32,FALSE),0) -> 0 | AI83: =IFERROR(VLOOKUP($A83,Filtro_!$A$5:$AK$2954,33,FALSE),0) -> 0 | AJ83: =IFERROR(VLOOKUP($A83,Filtro_!$A$5:$AK$2954,34,FALSE),0) -> 0 | AK83: =IFERROR(VLOOKUP($A83,Filtro_!$A$5:$AK$2954,35,FALSE),0) -> 0 | AL83: 7,530 | AM83: 57,152,700
A84: 01014333 | B84: 0108212 | C84: Teleconsulta Médica de Especialidad en Psiquiatría adultos | D84: =IFERROR(VLOOKUP($A84,Filtro_!$A$5:$AK$2954,2,FALSE),0) -> 825 | E84: =IFERROR(VLOOKUP($A84,Filtro_!$A$5:$AK$2954,3,FALSE),0) -> 825 | F84: =IFERROR(VLOOKUP($A84,Filtro_!$A$5:$AK$2954,4,FALSE),0) -> 825 | G84: =IFERROR(VLOOKUP($A84,Filtro_!$A$5:$AK$2954,5,FALSE),0) -> 0 | H84: =IFERROR(VLOOKUP($A84,Filtro_!$A$5:$AK$2954,6,FALSE),0) -> 0 | AB84: =IFERROR(VLOOKUP($A84,Filtro_!$A$5:$AK$2954,26,FALSE),0) -> 0 | AC84: =IFERROR(VLOOKUP($A84,Filtro_!$A$5:$AK$2954,27,FALSE),0) -> 825 | AD84: =IFERROR(VLOOKUP($A84,Filtro_!$A$5:$AK$2954,28,FALSE),0) -> 0 | AE84: =IFERROR(VLOOKUP($A84,Filtro_!$A$5:$AK$2954,29,FALSE),0) -> 0 | AF84: =IFERROR(VLOOKUP($A84,Filtro_!$A$5:$AK$2954,30,FALSE),0) -> 0 | AG84: =IFERROR(VLOOKUP($A84,Filtro_!$A$5:$AK$2954,31,FALSE),0) -> 0 | AH84: =IFERROR(VLOOKUP($A84,Filtro_!$A$5:$AK$2954,32,FALSE),0) -> 0 | AI84: =IFERROR(VLOOKUP($A84,Filtro_!$A$5:$AK$2954,33,FALSE),0) -> 0 | AJ84: =IFERROR(VLOOKUP($A84,Filtro_!$A$5:$AK$2954,34,FALSE),0) -> 0 | AK84: =IFERROR(VLOOKUP($A84,Filtro_!$A$5:$AK$2954,35,FALSE),0) -> 0 | AL84: 7,530 | AM84: 6,212,250
A85: 01014334 | B85: 0108213 | C85: Teleconsulta Médica de Especialidad en Psiquiatría pediátrica y de la adolescencia | D85: =IFERROR(VLOOKUP($A85,Filtro_!$A$5:$AK$2954,2,FALSE),0) -> 284 | E85: =IFERROR(VLOOKUP($A85,Filtro_!$A$5:$AK$2954,3,FALSE),0) -> 284 | F85: =IFERROR(VLOOKUP($A85,Filtro_!$A$5:$AK$2954,4,FALSE),0) -> 284 | G85: =IFERROR(VLOOKUP($A85,Filtro_!$A$5:$AK$2954,5,FALSE),0) -> 0 | H85: =IFERROR(VLOOKUP($A85,Filtro_!$A$5:$AK$2954,6,FALSE),0) -> 0 | AB85: =IFERROR(VLOOKUP($A85,Filtro_!$A$5:$AK$2954,26,FALSE),0) -> 0 | AC85: =IFERROR(VLOOKUP($A85,Filtro_!$A$5:$AK$2954,27,FALSE),0) -> 269 | AD85: =IFERROR(VLOOKUP($A85,Filtro_!$A$5:$AK$2954,28,FALSE),0) -> 0 | AE85: =IFERROR(VLOOKUP($A85,Filtro_!$A$5:$AK$2954,29,FALSE),0) -> 0 | AF85: =IFERROR(VLOOKUP($A85,Filtro_!$A$5:$AK$2954,30,FALSE),0) -> 0 | AG85: =IFERROR(VLOOKUP($A85,Filtro_!$A$5:$AK$2954,31,FALSE),0) -> 0 | AH85: =IFERROR(VLOOKUP($A85,Filtro_!$A$5:$AK$2954,32,FALSE),0) -> 0 | AI85: =IFERROR(VLOOKUP($A85,Filtro_!$A$5:$AK$2954,33,FALSE),0) -> 0 | AJ85: =IFERROR(VLOOKUP($A85,Filtro_!$A$5:$AK$2954,34,FALSE),0) -> 0 | AK85: =IFERROR(VLOOKUP($A85,Filtro_!$A$5:$AK$2954,35,FALSE),0) -> 0 | AL85: 7,530 | AM85: 2,138,520
A86: 01014335 | B86: 0108301 | C86: Teleconsulta Médica de Especialidad en Cardiología | D86: =IFERROR(VLOOKUP($A86,Filtro_!$A$5:$AK$2954,2,FALSE),0) -> 9 | E86: =IFERROR(VLOOKUP($A86,Filtro_!$A$5:$AK$2954,3,FALSE),0) -> 9 | F86: =IFERROR(VLOOKUP($A86,Filtro_!$A$5:$AK$2954,4,FALSE),0) -> 9 | G86: =IFERROR(VLOOKUP($A86,Filtro_!$A$5:$AK$2954,5,FALSE),0) -> 0 | H86: =IFERROR(VLOOKUP($A86,Filtro_!$A$5:$AK$2954,6,FALSE),0) -> 0 | AB86: =IFERROR(VLOOKUP($A86,Filtro_!$A$5:$AK$2954,26,FALSE),0) -> 0 | AC86: =IFERROR(VLOOKUP($A86,Filtro_!$A$5:$AK$2954,27,FALSE),0) -> 9 | AD86: =IFERROR(VLOOKUP($A86,Filtro_!$A$5:$AK$2954,28,FALSE),0) -> 0 | AE86: =IFERROR(VLOOKUP($A86,Filtro_!$A$5:$AK$2954,29,FALSE),0) -> 0 | AF86: =IFERROR(VLOOKUP($A86,Filtro_!$A$5:$AK$2954,30,FALSE),0) -> 0 | AG86: =IFERROR(VLOOKUP($A86,Filtro_!$A$5:$AK$2954,31,FALSE),0) -> 0 | AH86: =IFERROR(VLOOKUP($A86,Filtro_!$A$5:$AK$2954,32,FALSE),0) -> 0 | AI86: =IFERROR(VLOOKUP($A86,Filtro_!$A$5:$AK$2954,33,FALSE),0) -> 0 | AJ86: =IFERROR(VLOOKUP($A86,Filtro_!$A$5:$AK$2954,34,FALSE),0) -> 0 | AK86: =IFERROR(VLOOKUP($A86,Filtro_!$A$5:$AK$2954,35,FALSE),0) -> 0 | AL86: 7,530 | AM86: 67,770
A87: 01014336 | B87: 0108302 | C87: Teleconsulta Médica de Especialidad en Hematología | D87: =IFERROR(VLOOKUP($A87,Filtro_!$A$5:$AK$2954,2,FALSE),0) -> 1828 | E87: =IFERROR(VLOOKUP($A87,Filtro_!$A$5:$AK$2954,3,FALSE),0) -> 1828 | F87: =IFERROR(VLOOKUP($A87,Filtro_!$A$5:$AK$2954,4,FALSE),0) -> 1828 | G87: =IFERROR(VLOOKUP($A87,Filtro_!$A$5:$AK$2954,5,FALSE),0) -> 0 | H87: =IFERROR(VLOOKUP($A87,Filtro_!$A$5:$AK$2954,6,FALSE),0) -> 0 | AB87: =IFERROR(VLOOKUP($A87,Filtro_!$A$5:$AK$2954,26,FALSE),0) -> 0 | AC87: =IFERROR(VLOOKUP($A87,Filtro_!$A$5:$AK$2954,27,FALSE),0) -> 1828 | AD87: =IFERROR(VLOOKUP($A87,Filtro_!$A$5:$AK$2954,28,FALSE),0) -> 0 | AE87: =IFERROR(VLOOKUP($A87,Filtro_!$A$5:$AK$2954,29,FALSE),0) -> 0 | AF87: =IFERROR(VLOOKUP($A87,Filtro_!$A$5:$AK$2954,30,FALSE),0) -> 0 | AG87: =IFERROR(VLOOKUP($A87,Filtro_!$A$5:$AK$2954,31,FALSE),0) -> 0 | AH87: =IFERROR(VLOOKUP($A87,Filtro_!$A$5:$AK$2954,32,FALSE),0) -> 0 | AI87: =IFERROR(VLOOKUP($A87,Filtro_!$A$5:$AK$2954,33,FALSE),0) -> 0 | AJ87: =IFERROR(VLOOKUP($A87,Filtro_!$A$5:$AK$2954,34,FALSE),0) -> 0 | AK87: =IFERROR(VLOOKUP($A87,Filtro_!$A$5:$AK$2954,35,FALSE),0) -> 0 | AL87: 7,530 | AM87: 13,764,840
A88: 01014337 | B88: 0108303 | C88: Teleconsulta Médica de Especialidad en Infectología | D88: =IFERROR(VLOOKUP($A88,Filtro_!$A$5:$AK$2954,2,FALSE),0) -> 3 | E88: =IFERROR(VLOOKUP($A88,Filtro_!$A$5:$AK$2954,3,FALSE),0) -> 3 | F88: =IFERROR(VLOOKUP($A88,Filtro_!$A$5:$AK$2954,4,FALSE),0) -> 3 | G88: =IFERROR(VLOOKUP($A88,Filtro_!$A$5:$AK$2954,5,FALSE),0) -> 0 | H88: =IFERROR(VLOOKUP($A88,Filtro_!$A$5:$AK$2954,6,FALSE),0) -> 0 | AB88: =IFERROR(VLOOKUP($A88,Filtro_!$A$5:$AK$2954,26,FALSE),0) -> 0 | AC88: =IFERROR(VLOOKUP($A88,Filtro_!$A$5:$AK$2954,27,FALSE),0) -> 3 | AD88: =IFERROR(VLOOKUP($A88,Filtro_!$A$5:$AK$2954,28,FALSE),0) -> 0 | AE88: =IFERROR(VLOOKUP($A88,Filtro_!$A$5:$AK$2954,29,FALSE),0) -> 0 | AF88: =IFERROR(VLOOKUP($A88,Filtro_!$A$5:$AK$2954,30,FALSE),0) -> 0 | AG88: =IFERROR(VLOOKUP($A88,Filtro_!$A$5:$AK$2954,31,FALSE),0) -> 0 | AH88: =IFERROR(VLOOKUP($A88,Filtro_!$A$5:$AK$2954,32,FALSE),0) -> 0 | AI88: =IFERROR(VLOOKUP($A88,Filtro_!$A$5:$AK$2954,33,FALSE),0) -> 0 | AJ88: =IFERROR(VLOOKUP($A88,Filtro_!$A$5:$AK$2954,34,FALSE),0) -> 0 | AK88: =IFERROR(VLOOKUP($A88,Filtro_!$A$5:$AK$2954,35,FALSE),0) -> 0 | AL88: 7,530 | AM88: 22,590
A89: 01014338 | B89: 0108304 | C89: Teleconsulta Médica de Especialidad en Inmunología | D89: =IFERROR(VLOOKUP($A89,Filtro_!$A$5:$AK$2954,2,FALSE),0) -> 376 | E89: =IFERROR(VLOOKUP($A89,Filtro_!$A$5:$AK$2954,3,FALSE),0) -> 375 | F89: =IFERROR(VLOOKUP($A89,Filtro_!$A$5:$AK$2954,4,FALSE),0) -> 375 | G89: =IFERROR(VLOOKUP($A89,Filtro_!$A$5:$AK$2954,5,FALSE),0) -> 0 | H89: =IFERROR(VLOOKUP($A89,Filtro_!$A$5:$AK$2954,6,FALSE),0) -> 1 | AB89: =IFERROR(VLOOKUP($A89,Filtro_!$A$5:$AK$2954,26,FALSE),0) -> 0 | AC89: =IFERROR(VLOOKUP($A89,Filtro_!$A$5:$AK$2954,27,FALSE),0) -> 376 | AD89: =IFERROR(VLOOKUP($A89,Filtro_!$A$5:$AK$2954,28,FALSE),0) -> 0 | AE89: =IFERROR(VLOOKUP($A89,Filtro_!$A$5:$AK$2954,29,FALSE),0) -> 0 | AF89: =IFERROR(VLOOKUP($A89,Filtro_!$A$5:$AK$2954,30,FALSE),0) -> 0 | AG89: =IFERROR(VLOOKUP($A89,Filtro_!$A$5:$AK$2954,31,FALSE),0) -> 0 | AH89: =IFERROR(VLOOKUP($A89,Filtro_!$A$5:$AK$2954,32,FALSE),0) -> 0 | AI89: =IFERROR(VLOOKUP($A89,Filtro_!$A$5:$AK$2954,33,FALSE),0) -> 0 | AJ89: =IFERROR(VLOOKUP($A89,Filtro_!$A$5:$AK$2954,34,FALSE),0) -> 0 | AK89: =IFERROR(VLOOKUP($A89,Filtro_!$A$5:$AK$2954,35,FALSE),0) -> 0 | AL89: 7,530 | AM89: 2,823,750
A90: 01014339 | B90: 0108305 | C90: Teleconsulta Médica de Especialidad en Medicina Familiar | D90: =IFERROR(VLOOKUP($A90,Filtro_!$A$5:$AK$2954,2,FALSE),0) -> 0 | E90: =IFERROR(VLOOKUP($A90,Filtro_!$A$5:$AK$2954,3,FALSE),0) -> 0 | F90: =IFERROR(VLOOKUP($A90,Filtro_!$A$5:$AK$2954,4,FALSE),0) -> 0 | G90: =IFERROR(VLOOKUP($A90,Filtro_!$A$5:$AK$2954,5,FALSE),0) -> 0 | H90: =IFERROR(VLOOKUP($A90,Filtro_!$A$5:$AK$2954,6,FALSE),0) -> 0 | AB90: =IFERROR(VLOOKUP($A90,Filtro_!$A$5:$AK$2954,26,FALSE),0) -> 0 | AC90: =IFERROR(VLOOKUP($A90,Filtro_!$A$5:$AK$2954,27,FALSE),0) -> 0 | AD90: =IFERROR(VLOOKUP($A90,Filtro_!$A$5:$AK$2954,28,FALSE),0) -> 0 | AE90: =IFERROR(VLOOKUP($A90,Filtro_!$A$5:$AK$2954,29,FALSE),0) -> 0 | AF90: =IFERROR(VLOOKUP($A90,Filtro_!$A$5:$AK$2954,30,FALSE),0) -> 0 | AG90: =IFERROR(VLOOKUP($A90,Filtro_!$A$5:$AK$2954,31,FALSE),0) -> 0 | AH90: =IFERROR(VLOOKUP($A90,Filtro_!$A$5:$AK$2954,32,FALSE),0) -> 0 | AI90: =IFERROR(VLOOKUP($A90,Filtro_!$A$5:$AK$2954,33,FALSE),0) -> 0 | AJ90: =IFERROR(VLOOKUP($A90,Filtro_!$A$5:$AK$2954,34,FALSE),0) -> 0 | AK90: =IFERROR(VLOOKUP($A90,Filtro_!$A$5:$AK$2954,35,FALSE),0) -> 0 | AL90: 7,530 | AM90: 0
A91: 01014340 | B91: 0108306 | C91: Teleconsulta Médica de Especialidad en Medicina Física y Rehabilitación | D91: =IFERROR(VLOOKUP($A91,Filtro_!$A$5:$AK$2954,2,FALSE),0) -> 68 | E91: =IFERROR(VLOOKUP($A91,Filtro_!$A$5:$AK$2954,3,FALSE),0) -> 68 | F91: =IFERROR(VLOOKUP($A91,Filtro_!$A$5:$AK$2954,4,FALSE),0) -> 68 | G91: =IFERROR(VLOOKUP($A91,Filtro_!$A$5:$AK$2954,5,FALSE),0) -> 0 | H91: =IFERROR(VLOOKUP($A91,Filtro_!$A$5:$AK$2954,6,FALSE),0) -> 0 | AB91: =IFERROR(VLOOKUP($A91,Filtro_!$A$5:$AK$2954,26,FALSE),0) -> 0 | AC91: =IFERROR(VLOOKUP($A91,Filtro_!$A$5:$AK$2954,27,FALSE),0) -> 68 | AD91: =IFERROR(VLOOKUP($A91,Filtro_!$A$5:$AK$2954,28,FALSE),0) -> 0 | AE91: =IFERROR(VLOOKUP($A91,Filtro_!$A$5:$AK$2954,29,FALSE),0) -> 0 | AF91: =IFERROR(VLOOKUP($A91,Filtro_!$A$5:$AK$2954,30,FALSE),0) -> 0 | AG91: =IFERROR(VLOOKUP($A91,Filtro_!$A$5:$AK$2954,31,FALSE),0) -> 0 | AH91: =IFERROR(VLOOKUP($A91,Filtro_!$A$5:$AK$2954,32,FALSE),0) -> 0 | AI91: =IFERROR(VLOOKUP($A91,Filtro_!$A$5:$AK$2954,33,FALSE),0) -> 0 | AJ91: =IFERROR(VLOOKUP($A91,Filtro_!$A$5:$AK$2954,34,FALSE),0) -> 0 | AK91: =IFERROR(VLOOKUP($A91,Filtro_!$A$5:$AK$2954,35,FALSE),0) -> 0 | AL91: 7,530 | AM91: 512,040
A92: 01014341 | B92: 0108307 | C92: Teleconsulta Médica de Especialidad en Medicina Interna | D92: =IFERROR(VLOOKUP($A92,Filtro_!$A$5:$AK$2954,2,FALSE),0) -> 5646 | E92: =IFERROR(VLOOKUP($A92,Filtro_!$A$5:$AK$2954,3,FALSE),0) -> 5619 | F92: =IFERROR(VLOOKUP($A92,Filtro_!$A$5:$AK$2954,4,FALSE),0) -> 5619 | G92: =IFERROR(VLOOKUP($A92,Filtro_!$A$5:$AK$2954,5,FALSE),0) -> 0 | H92: =IFERROR(VLOOKUP($A92,Filtro_!$A$5:$AK$2954,6,FALSE),0) -> 27 | AB92: =IFERROR(VLOOKUP($A92,Filtro_!$A$5:$AK$2954,26,FALSE),0) -> 0 | AC92: =IFERROR(VLOOKUP($A92,Filtro_!$A$5:$AK$2954,27,FALSE),0) -> 5646 | AD92: =IFERROR(VLOOKUP($A92,Filtro_!$A$5:$AK$2954,28,FALSE),0) -> 0 | AE92: =IFERROR(VLOOKUP($A92,Filtro_!$A$5:$AK$2954,29,FALSE),0) -> 0 | AF92: =IFERROR(VLOOKUP($A92,Filtro_!$A$5:$AK$2954,30,FALSE),0) -> 0 | AG92: =IFERROR(VLOOKUP($A92,Filtro_!$A$5:$AK$2954,31,FALSE),0) -> 0 | AH92: =IFERROR(VLOOKUP($A92,Filtro_!$A$5:$AK$2954,32,FALSE),0) -> 0 | AI92: =IFERROR(VLOOKUP($A92,Filtro_!$A$5:$AK$2954,33,FALSE),0) -> 0 | AJ92: =IFERROR(VLOOKUP($A92,Filtro_!$A$5:$AK$2954,34,FALSE),0) -> 0 | AK92: =IFERROR(VLOOKUP($A92,Filtro_!$A$5:$AK$2954,35,FALSE),0) -> 0 | AL92: 7,530 | AM92: 42,311,070
A93: 01014342 | B93: 0108308 | C93: Teleconsulta Médica de Especialidad en Obstetricia y Ginecología | D93: =IFERROR(VLOOKUP($A93,Filtro_!$A$5:$AK$2954,2,FALSE),0) -> 21 | E93: =IFERROR(VLOOKUP($A93,Filtro_!$A$5:$AK$2954,3,FALSE),0) -> 21 | F93: =IFERROR(VLOOKUP($A93,Filtro_!$A$5:$AK$2954,4,FALSE),0) -> 21 | G93: =IFERROR(VLOOKUP($A93,Filtro_!$A$5:$AK$2954,5,FALSE),0) -> 0 | H93: =IFERROR(VLOOKUP($A93,Filtro_!$A$5:$AK$2954,6,FALSE),0) -> 0 | AB93: =IFERROR(VLOOKUP($A93,Filtro_!$A$5:$AK$2954,26,FALSE),0) -> 0 | AC93: =IFERROR(VLOOKUP($A93,Filtro_!$A$5:$AK$2954,27,FALSE),0) -> 21 | AD93: =IFERROR(VLOOKUP($A93,Filtro_!$A$5:$AK$2954,28,FALSE),0) -> 0 | AE93: =IFERROR(VLOOKUP($A93,Filtro_!$A$5:$AK$2954,29,FALSE),0) -> 0 | AF93: =IFERROR(VLOOKUP($A93,Filtro_!$A$5:$AK$2954,30,FALSE),0) -> 0 | AG93: =IFERROR(VLOOKUP($A93,Filtro_!$A$5:$AK$2954,31,FALSE),0) -> 0 | AH93: =IFERROR(VLOOKUP($A93,Filtro_!$A$5:$AK$2954,32,FALSE),0) -> 0 | AI93: =IFERROR(VLOOKUP($A93,Filtro_!$A$5:$AK$2954,33,FALSE),0) -> 0 | AJ93: =IFERROR(VLOOKUP($A93,Filtro_!$A$5:$AK$2954,34,FALSE),0) -> 0 | AK93: =IFERROR(VLOOKUP($A93,Filtro_!$A$5:$AK$2954,35,FALSE),0) -> 0 | AL93: 7,530 | AM93: 158,130
A94: 01014343 | B94: 0108309 | C94: Teleconsulta Médica de Especialidad en Pediatría | D94: =IFERROR(VLOOKUP($A94,Filtro_!$A$5:$AK$2954,2,FALSE),0) -> 387 | E94: =IFERROR(VLOOKUP($A94,Filtro_!$A$5:$AK$2954,3,FALSE),0) -> 383 | F94: =IFERROR(VLOOKUP($A94,Filtro_!$A$5:$AK$2954,4,FALSE),0) -> 383 | G94: =IFERROR(VLOOKUP($A94,Filtro_!$A$5:$AK$2954,5,FALSE),0) -> 0 | H94: =IFERROR(VLOOKUP($A94,Filtro_!$A$5:$AK$2954,6,FALSE),0) -> 4 | AB94: =IFERROR(VLOOKUP($A94,Filtro_!$A$5:$AK$2954,26,FALSE),0) -> 0 | AC94: =IFERROR(VLOOKUP($A94,Filtro_!$A$5:$AK$2954,27,FALSE),0) -> 387 | AD94: =IFERROR(VLOOKUP($A94,Filtro_!$A$5:$AK$2954,28,FALSE),0) -> 0 | AE94: =IFERROR(VLOOKUP($A94,Filtro_!$A$5:$AK$2954,29,FALSE),0) -> 0 | AF94: =IFERROR(VLOOKUP($A94,Filtro_!$A$5:$AK$2954,30,FALSE),0) -> 0 | AG94: =IFERROR(VLOOKUP($A94,Filtro_!$A$5:$AK$2954,31,FALSE),0) -> 0 | AH94: =IFERROR(VLOOKUP($A94,Filtro_!$A$5:$AK$2954,32,FALSE),0) -> 0 | AI94: =IFERROR(VLOOKUP($A94,Filtro_!$A$5:$AK$2954,33,FALSE),0) -> 0 | AJ94: =IFERROR(VLOOKUP($A94,Filtro_!$A$5:$AK$2954,34,FALSE),0) -> 0 | AK94: =IFERROR(VLOOKUP($A94,Filtro_!$A$5:$AK$2954,35,FALSE),0) -> 0 | AL94: 7,530 | AM94: 2,883,990
A95: 01014344 | B95: 0108310 | C95: Teleconsulta Médica de Especialidad en Traumatología y Ortopedia | D95: =IFERROR(VLOOKUP($A95,Filtro_!$A$5:$AK$2954,2,FALSE),0) -> 0 | E95: =IFERROR(VLOOKUP($A95,Filtro_!$A$5:$AK$2954,3,FALSE),0) -> 0 | F95: =IFERROR(VLOOKUP($A95,Filtro_!$A$5:$AK$2954,4,FALSE),0) -> 0 | G95: =IFERROR(VLOOKUP($A95,Filtro_!$A$5:$AK$2954,5,FALSE),0) -> 0 | H95: =IFERROR(VLOOKUP($A95,Filtro_!$A$5:$AK$2954,6,FALSE),0) -> 0 | AB95: =IFERROR(VLOOKUP($A95,Filtro_!$A$5:$AK$2954,26,FALSE),0) -> 0 | AC95: =IFERROR(VLOOKUP($A95,Filtro_!$A$5:$AK$2954,27,FALSE),0) -> 0 | AD95: =IFERROR(VLOOKUP($A95,Filtro_!$A$5:$AK$2954,28,FALSE),0) -> 0 | AE95: =IFERROR(VLOOKUP($A95,Filtro_!$A$5:$AK$2954,29,FALSE),0) -> 0 | AF95: =IFERROR(VLOOKUP($A95,Filtro_!$A$5:$AK$2954,30,FALSE),0) -> 0 | AG95: =IFERROR(VLOOKUP($A95,Filtro_!$A$5:$AK$2954,31,FALSE),0) -> 0 | AH95: =IFERROR(VLOOKUP($A95,Filtro_!$A$5:$AK$2954,32,FALSE),0) -> 0 | AI95: =IFERROR(VLOOKUP($A95,Filtro_!$A$5:$AK$2954,33,FALSE),0) -> 0 | AJ95: =IFERROR(VLOOKUP($A95,Filtro_!$A$5:$AK$2954,34,FALSE),0) -> 0 | AK95: =IFERROR(VLOOKUP($A95,Filtro_!$A$5:$AK$2954,35,FALSE),0) -> 0 | AL95: 7,530 | AM95: 0
A96: 01014345 | B96: 0108311 | C96: Teleconsulta Médica de Especialidad en Urología | D96: =IFERROR(VLOOKUP($A96,Filtro_!$A$5:$AK$2954,2,FALSE),0) -> 1 | E96: =IFERROR(VLOOKUP($A96,Filtro_!$A$5:$AK$2954,3,FALSE),0) -> 1 | F96: =IFERROR(VLOOKUP($A96,Filtro_!$A$5:$AK$2954,4,FALSE),0) -> 1 | G96: =IFERROR(VLOOKUP($A96,Filtro_!$A$5:$AK$2954,5,FALSE),0) -> 0 | H96: =IFERROR(VLOOKUP($A96,Filtro_!$A$5:$AK$2954,6,FALSE),0) -> 0 | AB96: =IFERROR(VLOOKUP($A96,Filtro_!$A$5:$AK$2954,26,FALSE),0) -> 0 | AC96: =IFERROR(VLOOKUP($A96,Filtro_!$A$5:$AK$2954,27,FALSE),0) -> 1 | AD96: =IFERROR(VLOOKUP($A96,Filtro_!$A$5:$AK$2954,28,FALSE),0) -> 0 | AE96: =IFERROR(VLOOKUP($A96,Filtro_!$A$5:$AK$2954,29,FALSE),0) -> 0 | AF96: =IFERROR(VLOOKUP($A96,Filtro_!$A$5:$AK$2954,30,FALSE),0) -> 0 | AG96: =IFERROR(VLOOKUP($A96,Filtro_!$A$5:$AK$2954,31,FALSE),0) -> 0 | AH96: =IFERROR(VLOOKUP($A96,Filtro_!$A$5:$AK$2954,32,FALSE),0) -> 0 | AI96: =IFERROR(VLOOKUP($A96,Filtro_!$A$5:$AK$2954,33,FALSE),0) -> 0 | AJ96: =IFERROR(VLOOKUP($A96,Filtro_!$A$5:$AK$2954,34,FALSE),0) -> 0 | AK96: =IFERROR(VLOOKUP($A96,Filtro_!$A$5:$AK$2954,35,FALSE),0) -> 0 | AL96: 7,530 | AM96: 7,530
A97: 01014346 | B97: 0108319 | C97: Teleconsulta Médica de Especialidad en Coloproctología | D97: =IFERROR(VLOOKUP($A97,Filtro_!$A$5:$AK$2954,2,FALSE),0) -> 12 | E97: =IFERROR(VLOOKUP($A97,Filtro_!$A$5:$AK$2954,3,FALSE),0) -> 12 | F97: =IFERROR(VLOOKUP($A97,Filtro_!$A$5:$AK$2954,4,FALSE),0) -> 12 | G97: =IFERROR(VLOOKUP($A97,Filtro_!$A$5:$AK$2954,5,FALSE),0) -> 0 | H97: =IFERROR(VLOOKUP($A97,Filtro_!$A$5:$AK$2954,6,FALSE),0) -> 0 | AB97: =IFERROR(VLOOKUP($A97,Filtro_!$A$5:$AK$2954,26,FALSE),0) -> 0 | AC97: =IFERROR(VLOOKUP($A97,Filtro_!$A$5:$AK$2954,27,FALSE),0) -> 12 | AD97: =IFERROR(VLOOKUP($A97,Filtro_!$A$5:$AK$2954,28,FALSE),0) -> 0 | AE97: =IFERROR(VLOOKUP($A97,Filtro_!$A$5:$AK$2954,29,FALSE),0) -> 0 | AF97: =IFERROR(VLOOKUP($A97,Filtro_!$A$5:$AK$2954,30,FALSE),0) -> 0 | AG97: =IFERROR(VLOOKUP($A97,Filtro_!$A$5:$AK$2954,31,FALSE),0) -> 0 | AH97: =IFERROR(VLOOKUP($A97,Filtro_!$A$5:$AK$2954,32,FALSE),0) -> 0 | AI97: =IFERROR(VLOOKUP($A97,Filtro_!$A$5:$AK$2954,33,FALSE),0) -> 0 | AJ97: =IFERROR(VLOOKUP($A97,Filtro_!$A$5:$AK$2954,34,FALSE),0) -> 0 | AK97: =IFERROR(VLOOKUP($A97,Filtro_!$A$5:$AK$2954,35,FALSE),0) -> 0 | AL97: 7,530 | AM97: 90,360
A98: 01014347 | B98: 0108320 | C98: Teleconsulta Médica de Especialidad en Diabetología | D98: =IFERROR(VLOOKUP($A98,Filtro_!$A$5:$AK$2954,2,FALSE),0) -> 14 | E98: =IFERROR(VLOOKUP($A98,Filtro_!$A$5:$AK$2954,3,FALSE),0) -> 14 | F98: =IFERROR(VLOOKUP($A98,Filtro_!$A$5:$AK$2954,4,FALSE),0) -> 14 | G98: =IFERROR(VLOOKUP($A98,Filtro_!$A$5:$AK$2954,5,FALSE),0) -> 0 | H98: =IFERROR(VLOOKUP($A98,Filtro_!$A$5:$AK$2954,6,FALSE),0) -> 0 | AB98: =IFERROR(VLOOKUP($A98,Filtro_!$A$5:$AK$2954,26,FALSE),0) -> 0 | AC98: =IFERROR(VLOOKUP($A98,Filtro_!$A$5:$AK$2954,27,FALSE),0) -> 14 | AD98: =IFERROR(VLOOKUP($A98,Filtro_!$A$5:$AK$2954,28,FALSE),0) -> 0 | AE98: =IFERROR(VLOOKUP($A98,Filtro_!$A$5:$AK$2954,29,FALSE),0) -> 0 | AF98: =IFERROR(VLOOKUP($A98,Filtro_!$A$5:$AK$2954,30,FALSE),0) -> 0 | AG98: =IFERROR(VLOOKUP($A98,Filtro_!$A$5:$AK$2954,31,FALSE),0) -> 0 | AH98: =IFERROR(VLOOKUP($A98,Filtro_!$A$5:$AK$2954,32,FALSE),0) -> 0 | AI98: =IFERROR(VLOOKUP($A98,Filtro_!$A$5:$AK$2954,33,FALSE),0) -> 0 | AJ98: =IFERROR(VLOOKUP($A98,Filtro_!$A$5:$AK$2954,34,FALSE),0) -> 0 | AK98: =IFERROR(VLOOKUP($A98,Filtro_!$A$5:$AK$2954,35,FALSE),0) -> 0 | AL98: 7,530 | AM98: 105,420
A99: 01014348 | B99: 0108321 | C99: Teleconsulta Médica de Especialidad en Enfermedades Respiratorias Adulto | D99: =IFERROR(VLOOKUP($A99,Filtro_!$A$5:$AK$2954,2,FALSE),0) -> 65 | E99: =IFERROR(VLOOKUP($A99,Filtro_!$A$5:$AK$2954,3,FALSE),0) -> 65 | F99: =IFERROR(VLOOKUP($A99,Filtro_!$A$5:$AK$2954,4,FALSE),0) -> 65 | G99: =IFERROR(VLOOKUP($A99,Filtro_!$A$5:$AK$2954,5,FALSE),0) -> 0 | H99: =IFERROR(VLOOKUP($A99,Filtro_!$A$5:$AK$2954,6,FALSE),0) -> 0 | AB99: =IFERROR(VLOOKUP($A99,Filtro_!$A$5:$AK$2954,26,FALSE),0) -> 0 | AC99: =IFERROR(VLOOKUP($A99,Filtro_!$A$5:$AK$2954,27,FALSE),0) -> 65 | AD99: =IFERROR(VLOOKUP($A99,Filtro_!$A$5:$AK$2954,28,FALSE),0) -> 0 | AE99: =IFERROR(VLOOKUP($A99,Filtro_!$A$5:$AK$2954,29,FALSE),0) -> 0 | AF99: =IFERROR(VLOOKUP($A99,Filtro_!$A$5:$AK$2954,30,FALSE),0) -> 0 | AG99: =IFERROR(VLOOKUP($A99,Filtro_!$A$5:$AK$2954,31,FALSE),0) -> 0 | AH99: =IFERROR(VLOOKUP($A99,Filtro_!$A$5:$AK$2954,32,FALSE),0) -> 0 | AI99: =IFERROR(VLOOKUP($A99,Filtro_!$A$5:$AK$2954,33,FALSE),0) -> 0 | AJ99: =IFERROR(VLOOKUP($A99,Filtro_!$A$5:$AK$2954,34,FALSE),0) -> 0 | AK99: =IFERROR(VLOOKUP($A99,Filtro_!$A$5:$AK$2954,35,FALSE),0) -> 0 | AL99: 7,530 | AM99: 489,450
A100: 01014349 | B100: 0108322 | C100: Teleconsulta Médica de Especialidad en Enfermedades Respiratorias Pediátricas | D100: =IFERROR(VLOOKUP($A100,Filtro_!$A$5:$AK$2954,2,FALSE),0) -> 163 | E100: =IFERROR(VLOOKUP($A100,Filtro_!$A$5:$AK$2954,3,FALSE),0) -> 163 | F100: =IFERROR(VLOOKUP($A100,Filtro_!$A$5:$AK$2954,4,FALSE),0) -> 163 | G100: =IFERROR(VLOOKUP($A100,Filtro_!$A$5:$AK$2954,5,FALSE),0) -> 0 | H100: =IFERROR(VLOOKUP($A100,Filtro_!$A$5:$AK$2954,6,FALSE),0) -> 0 | AB100: =IFERROR(VLOOKUP($A100,Filtro_!$A$5:$AK$2954,26,FALSE),0) -> 0 | AC100: =IFERROR(VLOOKUP($A100,Filtro_!$A$5:$AK$2954,27,FALSE),0) -> 163 | AD100: =IFERROR(VLOOKUP($A100,Filtro_!$A$5:$AK$2954,28,FALSE),0) -> 0 | AE100: =IFERROR(VLOOKUP($A100,Filtro_!$A$5:$AK$2954,29,FALSE),0) -> 0 | AF100: =IFERROR(VLOOKUP($A100,Filtro_!$A$5:$AK$2954,30,FALSE),0) -> 0 | AG100: =IFERROR(VLOOKUP($A100,Filtro_!$A$5:$AK$2954,31,FALSE),0) -> 0 | AH100: =IFERROR(VLOOKUP($A100,Filtro_!$A$5:$AK$2954,32,FALSE),0) -> 0 | AI100: =IFERROR(VLOOKUP($A100,Filtro_!$A$5:$AK$2954,33,FALSE),0) -> 0 | AJ100: =IFERROR(VLOOKUP($A100,Filtro_!$A$5:$AK$2954,34,FALSE),0) -> 0 | AK100: =IFERROR(VLOOKUP($A100,Filtro_!$A$5:$AK$2954,35,FALSE),0) -> 0 | AL100: 7,530 | AM100: 1,227,390
A101: 01014350 | B101: 0108323 | C101: Teleconsulta Médica de Especialidad en Gastroenterología Adulto | D101: =IFERROR(VLOOKUP($A101,Filtro_!$A$5:$AK$2954,2,FALSE),0) -> 34 | E101: =IFERROR(VLOOKUP($A101,Filtro_!$A$5:$AK$2954,3,FALSE),0) -> 34 | F101: =IFERROR(VLOOKUP($A101,Filtro_!$A$5:$AK$2954,4,FALSE),0) -> 34 | G101: =IFERROR(VLOOKUP($A101,Filtro_!$A$5:$AK$2954,5,FALSE),0) -> 0 | H101: =IFERROR(VLOOKUP($A101,Filtro_!$A$5:$AK$2954,6,FALSE),0) -> 0 | AB101: =IFERROR(VLOOKUP($A101,Filtro_!$A$5:$AK$2954,26,FALSE),0) -> 0 | AC101: =IFERROR(VLOOKUP($A101,Filtro_!$A$5:$AK$2954,27,FALSE),0) -> 34 | AD101: =IFERROR(VLOOKUP($A101,Filtro_!$A$5:$AK$2954,28,FALSE),0) -> 0 | AE101: =IFERROR(VLOOKUP($A101,Filtro_!$A$5:$AK$2954,29,FALSE),0) -> 0 | AF101: =IFERROR(VLOOKUP($A101,Filtro_!$A$5:$AK$2954,30,FALSE),0) -> 0 | AG101: =IFERROR(VLOOKUP($A101,Filtro_!$A$5:$AK$2954,31,FALSE),0) -> 0 | AH101: =IFERROR(VLOOKUP($A101,Filtro_!$A$5:$AK$2954,32,FALSE),0) -> 0 | AI101: =IFERROR(VLOOKUP($A101,Filtro_!$A$5:$AK$2954,33,FALSE),0) -> 0 | AJ101: =IFERROR(VLOOKUP($A101,Filtro_!$A$5:$AK$2954,34,FALSE),0) -> 0 | AK101: =IFERROR(VLOOKUP($A101,Filtro_!$A$5:$AK$2954,35,FALSE),0) -> 0 | AL101: 7,530 | AM101: 256,020
A102: 01014351 | B102: 0108324 | C102: Teleconsulta Médica de Especialidad en Gastroenterología Pediátrico | D102: =IFERROR(VLOOKUP($A102,Filtro_!$A$5:$AK$2954,2,FALSE),0) -> 48 | E102: =IFERROR(VLOOKUP($A102,Filtro_!$A$5:$AK$2954,3,FALSE),0) -> 48 | F102: =IFERROR(VLOOKUP($A102,Filtro_!$A$5:$AK$2954,4,FALSE),0) -> 48 | G102: =IFERROR(VLOOKUP($A102,Filtro_!$A$5:$AK$2954,5,FALSE),0) -> 0 | H102: =IFERROR(VLOOKUP($A102,Filtro_!$A$5:$AK$2954,6,FALSE),0) -> 0 | AB102: =IFERROR(VLOOKUP($A102,Filtro_!$A$5:$AK$2954,26,FALSE),0) -> 0 | AC102: =IFERROR(VLOOKUP($A102,Filtro_!$A$5:$AK$2954,27,FALSE),0) -> 48 | AD102: =IFERROR(VLOOKUP($A102,Filtro_!$A$5:$AK$2954,28,FALSE),0) -> 0 | AE102: =IFERROR(VLOOKUP($A102,Filtro_!$A$5:$AK$2954,29,FALSE),0) -> 0 | AF102: =IFERROR(VLOOKUP($A102,Filtro_!$A$5:$AK$2954,30,FALSE),0) -> 0 | AG102: =IFERROR(VLOOKUP($A102,Filtro_!$A$5:$AK$2954,31,FALSE),0) -> 0 | AH102: =IFERROR(VLOOKUP($A102,Filtro_!$A$5:$AK$2954,32,FALSE),0) -> 0 | AI102: =IFERROR(VLOOKUP($A102,Filtro_!$A$5:$AK$2954,33,FALSE),0) -> 0 | AJ102: =IFERROR(VLOOKUP($A102,Filtro_!$A$5:$AK$2954,34,FALSE),0) -> 0 | AK102: =IFERROR(VLOOKUP($A102,Filtro_!$A$5:$AK$2954,35,FALSE),0) -> 0 | AL102: 7,530 | AM102: 361,440
A103: 01014352 | B103: 0108325 | C103: Teleconsulta Médica de Especialidad en Genética Clínica | D103: =IFERROR(VLOOKUP($A103,Filtro_!$A$5:$AK$2954,2,FALSE),0) -> 0 | E103: =IFERROR(VLOOKUP($A103,Filtro_!$A$5:$AK$2954,3,FALSE),0) -> 0 | F103: =IFERROR(VLOOKUP($A103,Filtro_!$A$5:$AK$2954,4,FALSE),0) -> 0 | G103: =IFERROR(VLOOKUP($A103,Filtro_!$A$5:$AK$2954,5,FALSE),0) -> 0 | H103: =IFERROR(VLOOKUP($A103,Filtro_!$A$5:$AK$2954,6,FALSE),0) -> 0 | AB103: =IFERROR(VLOOKUP($A103,Filtro_!$A$5:$AK$2954,26,FALSE),0) -> 0 | AC103: =IFERROR(VLOOKUP($A103,Filtro_!$A$5:$AK$2954,27,FALSE),0) -> 0 | AD103: =IFERROR(VLOOKUP($A103,Filtro_!$A$5:$AK$2954,28,FALSE),0) -> 0 | AE103: =IFERROR(VLOOKUP($A103,Filtro_!$A$5:$AK$2954,29,FALSE),0) -> 0 | AF103: =IFERROR(VLOOKUP($A103,Filtro_!$A$5:$AK$2954,30,FALSE),0) -> 0 | AG103: =IFERROR(VLOOKUP($A103,Filtro_!$A$5:$AK$2954,31,FALSE),0) -> 0 | AH103: =IFERROR(VLOOKUP($A103,Filtro_!$A$5:$AK$2954,32,FALSE),0) -> 0 | AI103: =IFERROR(VLOOKUP($A103,Filtro_!$A$5:$AK$2954,33,FALSE),0) -> 0 | AJ103: =IFERROR(VLOOKUP($A103,Filtro_!$A$5:$AK$2954,34,FALSE),0) -> 0 | AK103: =IFERROR(VLOOKUP($A103,Filtro_!$A$5:$AK$2954,35,FALSE),0) -> 0 | AL103: 7,530 | AM103: 0
A104: 01014353 | B104: 0108326 | C104: Teleconsulta Médica de Especialidad en Nefrología Adulto | D104: =IFERROR(VLOOKUP($A104,Filtro_!$A$5:$AK$2954,2,FALSE),0) -> 776 | E104: =IFERROR(VLOOKUP($A104,Filtro_!$A$5:$AK$2954,3,FALSE),0) -> 771 | F104: =IFERROR(VLOOKUP($A104,Filtro_!$A$5:$AK$2954,4,FALSE),0) -> 771 | G104: =IFERROR(VLOOKUP($A104,Filtro_!$A$5:$AK$2954,5,FALSE),0) -> 0 | H104: =IFERROR(VLOOKUP($A104,Filtro_!$A$5:$AK$2954,6,FALSE),0) -> 5 | AB104: =IFERROR(VLOOKUP($A104,Filtro_!$A$5:$AK$2954,26,FALSE),0) -> 0 | AC104: =IFERROR(VLOOKUP($A104,Filtro_!$A$5:$AK$2954,27,FALSE),0) -> 776 | AD104: =IFERROR(VLOOKUP($A104,Filtro_!$A$5:$AK$2954,28,FALSE),0) -> 0 | AE104: =IFERROR(VLOOKUP($A104,Filtro_!$A$5:$AK$2954,29,FALSE),0) -> 0 | AF104: =IFERROR(VLOOKUP($A104,Filtro_!$A$5:$AK$2954,30,FALSE),0) -> 0 | AG104: =IFERROR(VLOOKUP($A104,Filtro_!$A$5:$AK$2954,31,FALSE),0) -> 0 | AH104: =IFERROR(VLOOKUP($A104,Filtro_!$A$5:$AK$2954,32,FALSE),0) -> 0 | AI104: =IFERROR(VLOOKUP($A104,Filtro_!$A$5:$AK$2954,33,FALSE),0) -> 0 | AJ104: =IFERROR(VLOOKUP($A104,Filtro_!$A$5:$AK$2954,34,FALSE),0) -> 0 | AK104: =IFERROR(VLOOKUP($A104,Filtro_!$A$5:$AK$2954,35,FALSE),0) -> 0 | AL104: 7,530 | AM104: 5,805,630
A105: 01014354 | B105: 0108327 | C105: Teleconsulta Médica de Especialidad en Nefrología Pediátrico | D105: =IFERROR(VLOOKUP($A105,Filtro_!$A$5:$AK$2954,2,FALSE),0) -> 37 | E105: =IFERROR(VLOOKUP($A105,Filtro_!$A$5:$AK$2954,3,FALSE),0) -> 37 | F105: =IFERROR(VLOOKUP($A105,Filtro_!$A$5:$AK$2954,4,FALSE),0) -> 37 | G105: =IFERROR(VLOOKUP($A105,Filtro_!$A$5:$AK$2954,5,FALSE),0) -> 0 | H105: =IFERROR(VLOOKUP($A105,Filtro_!$A$5:$AK$2954,6,FALSE),0) -> 0 | AB105: =IFERROR(VLOOKUP($A105,Filtro_!$A$5:$AK$2954,26,FALSE),0) -> 0 | AC105: =IFERROR(VLOOKUP($A105,Filtro_!$A$5:$AK$2954,27,FALSE),0) -> 37 | AD105: =IFERROR(VLOOKUP($A105,Filtro_!$A$5:$AK$2954,28,FALSE),0) -> 0 | AE105: =IFERROR(VLOOKUP($A105,Filtro_!$A$5:$AK$2954,29,FALSE),0) -> 0 | AF105: =IFERROR(VLOOKUP($A105,Filtro_!$A$5:$AK$2954,30,FALSE),0) -> 0 | AG105: =IFERROR(VLOOKUP($A105,Filtro_!$A$5:$AK$2954,31,FALSE),0) -> 0 | AH105: =IFERROR(VLOOKUP($A105,Filtro_!$A$5:$AK$2954,32,FALSE),0) -> 0 | AI105: =IFERROR(VLOOKUP($A105,Filtro_!$A$5:$AK$2954,33,FALSE),0) -> 0 | AJ105: =IFERROR(VLOOKUP($A105,Filtro_!$A$5:$AK$2954,34,FALSE),0) -> 0 | AK105: =IFERROR(VLOOKUP($A105,Filtro_!$A$5:$AK$2954,35,FALSE),0) -> 0 | AL105: 7,530 | AM105: 278,610
A106: 01014355 | B106: 0108331 | C106: Teleconsulta Médica de Especialidad en Radioterapia Oncológica | D106: =IFERROR(VLOOKUP($A106,Filtro_!$A$5:$AK$2954,2,FALSE),0) -> 0 | E106: =IFERROR(VLOOKUP($A106,Filtro_!$A$5:$AK$2954,3,FALSE),0) -> 0 | F106: =IFERROR(VLOOKUP($A106,Filtro_!$A$5:$AK$2954,4,FALSE),0) -> 0 | G106: =IFERROR(VLOOKUP($A106,Filtro_!$A$5:$AK$2954,5,FALSE),0) -> 0 | H106: =IFERROR(VLOOKUP($A106,Filtro_!$A$5:$AK$2954,6,FALSE),0) -> 0 | AB106: =IFERROR(VLOOKUP($A106,Filtro_!$A$5:$AK$2954,26,FALSE),0) -> 0 | AC106: =IFERROR(VLOOKUP($A106,Filtro_!$A$5:$AK$2954,27,FALSE),0) -> 0 | AD106: =IFERROR(VLOOKUP($A106,Filtro_!$A$5:$AK$2954,28,FALSE),0) -> 0 | AE106: =IFERROR(VLOOKUP($A106,Filtro_!$A$5:$AK$2954,29,FALSE),0) -> 0 | AF106: =IFERROR(VLOOKUP($A106,Filtro_!$A$5:$AK$2954,30,FALSE),0) -> 0 | AG106: =IFERROR(VLOOKUP($A106,Filtro_!$A$5:$AK$2954,31,FALSE),0) -> 0 | AH106: =IFERROR(VLOOKUP($A106,Filtro_!$A$5:$AK$2954,32,FALSE),0) -> 0 | AI106: =IFERROR(VLOOKUP($A106,Filtro_!$A$5:$AK$2954,33,FALSE),0) -> 0 | AJ106: =IFERROR(VLOOKUP($A106,Filtro_!$A$5:$AK$2954,34,FALSE),0) -> 0 | AK106: =IFERROR(VLOOKUP($A106,Filtro_!$A$5:$AK$2954,35,FALSE),0) -> 0 | AL106: 7,530 | AM106: 0
A107: 01014356 | B107: 0108203 | C107: Teleconsulta Médica de Especialidad en Neurocirugía | D107: =IFERROR(VLOOKUP($A107,Filtro_!$A$5:$AK$2954,2,FALSE),0) -> 0 | E107: =IFERROR(VLOOKUP($A107,Filtro_!$A$5:$AK$2954,3,FALSE),0) -> 0 | F107: =IFERROR(VLOOKUP($A107,Filtro_!$A$5:$AK$2954,4,FALSE),0) -> 0 | G107: =IFERROR(VLOOKUP($A107,Filtro_!$A$5:$AK$2954,5,FALSE),0) -> 0 | H107: =IFERROR(VLOOKUP($A107,Filtro_!$A$5:$AK$2954,6,FALSE),0) -> 0 | AB107: =IFERROR(VLOOKUP($A107,Filtro_!$A$5:$AK$2954,26,FALSE),0) -> 0 | AC107: =IFERROR(VLOOKUP($A107,Filtro_!$A$5:$AK$2954,27,FALSE),0) -> 0 | AD107: =IFERROR(VLOOKUP($A107,Filtro_!$A$5:$AK$2954,28,FALSE),0) -> 0 | AE107: =IFERROR(VLOOKUP($A107,Filtro_!$A$5:$AK$2954,29,FALSE),0) -> 0 | AF107: =IFERROR(VLOOKUP($A107,Filtro_!$A$5:$AK$2954,30,FALSE),0) -> 0 | AG107: =IFERROR(VLOOKUP($A107,Filtro_!$A$5:$AK$2954,31,FALSE),0) -> 0 | AH107: =IFERROR(VLOOKUP($A107,Filtro_!$A$5:$AK$2954,32,FALSE),0) -> 0 | AI107: =IFERROR(VLOOKUP($A107,Filtro_!$A$5:$AK$2954,33,FALSE),0) -> 0 | AJ107: =IFERROR(VLOOKUP($A107,Filtro_!$A$5:$AK$2954,34,FALSE),0) -> 0 | AK107: =IFERROR(VLOOKUP($A107,Filtro_!$A$5:$AK$2954,35,FALSE),0) -> 0 | AL107: 7,530 | AM107: 0
A108: 01014357 | B108: 0108204 | C108: Teleconsulta Médica de Especialidad en Oftalmología | D108: =IFERROR(VLOOKUP($A108,Filtro_!$A$5:$AK$2954,2,FALSE),0) -> 275 | E108: =IFERROR(VLOOKUP($A108,Filtro_!$A$5:$AK$2954,3,FALSE),0) -> 275 | F108: =IFERROR(VLOOKUP($A108,Filtro_!$A$5:$AK$2954,4,FALSE),0) -> 275 | G108: =IFERROR(VLOOKUP($A108,Filtro_!$A$5:$AK$2954,5,FALSE),0) -> 0 | H108: =IFERROR(VLOOKUP($A108,Filtro_!$A$5:$AK$2954,6,FALSE),0) -> 0 | AB108: =IFERROR(VLOOKUP($A108,Filtro_!$A$5:$AK$2954,26,FALSE),0) -> 0 | AC108: =IFERROR(VLOOKUP($A108,Filtro_!$A$5:$AK$2954,27,FALSE),0) -> 275 | AD108: =IFERROR(VLOOKUP($A108,Filtro_!$A$5:$AK$2954,28,FALSE),0) -> 0 | AE108: =IFERROR(VLOOKUP($A108,Filtro_!$A$5:$AK$2954,29,FALSE),0) -> 0 | AF108: =IFERROR(VLOOKUP($A108,Filtro_!$A$5:$AK$2954,30,FALSE),0) -> 0 | AG108: =IFERROR(VLOOKUP($A108,Filtro_!$A$5:$AK$2954,31,FALSE),0) -> 0 | AH108: =IFERROR(VLOOKUP($A108,Filtro_!$A$5:$AK$2954,32,FALSE),0) -> 0 | AI108: =IFERROR(VLOOKUP($A108,Filtro_!$A$5:$AK$2954,33,FALSE),0) -> 0 | AJ108: =IFERROR(VLOOKUP($A108,Filtro_!$A$5:$AK$2954,34,FALSE),0) -> 0 | AK108: =IFERROR(VLOOKUP($A108,Filtro_!$A$5:$AK$2954,35,FALSE),0) -> 0 | AL108: 7,530 | AM108: 2,070,750
A109: 01014358 | B109: 0108205 | C109: Teleconsulta Médica de Especialidad en Otorrinolaringología | D109: =IFERROR(VLOOKUP($A109,Filtro_!$A$5:$AK$2954,2,FALSE),0) -> 1 | E109: =IFERROR(VLOOKUP($A109,Filtro_!$A$5:$AK$2954,3,FALSE),0) -> 1 | F109: =IFERROR(VLOOKUP($A109,Filtro_!$A$5:$AK$2954,4,FALSE),0) -> 1 | G109: =IFERROR(VLOOKUP($A109,Filtro_!$A$5:$AK$2954,5,FALSE),0) -> 0 | H109: =IFERROR(VLOOKUP($A109,Filtro_!$A$5:$AK$2954,6,FALSE),0) -> 0 | AB109: =IFERROR(VLOOKUP($A109,Filtro_!$A$5:$AK$2954,26,FALSE),0) -> 0 | AC109: =IFERROR(VLOOKUP($A109,Filtro_!$A$5:$AK$2954,27,FALSE),0) -> 1 | AD109: =IFERROR(VLOOKUP($A109,Filtro_!$A$5:$AK$2954,28,FALSE),0) -> 0 | AE109: =IFERROR(VLOOKUP($A109,Filtro_!$A$5:$AK$2954,29,FALSE),0) -> 0 | AF109: =IFERROR(VLOOKUP($A109,Filtro_!$A$5:$AK$2954,30,FALSE),0) -> 0 | AG109: =IFERROR(VLOOKUP($A109,Filtro_!$A$5:$AK$2954,31,FALSE),0) -> 0 | AH109: =IFERROR(VLOOKUP($A109,Filtro_!$A$5:$AK$2954,32,FALSE),0) -> 0 | AI109: =IFERROR(VLOOKUP($A109,Filtro_!$A$5:$AK$2954,33,FALSE),0) -> 0 | AJ109: =IFERROR(VLOOKUP($A109,Filtro_!$A$5:$AK$2954,34,FALSE),0) -> 0 | AK109: =IFERROR(VLOOKUP($A109,Filtro_!$A$5:$AK$2954,35,FALSE),0) -> 0 | AL109: 7,530 | AM109: 7,530
A110: 01014359 | B110: 0108312 | C110: Teleconsulta Médica de Especialidad en Cirugía General | D110: =IFERROR(VLOOKUP($A110,Filtro_!$A$5:$AK$2954,2,FALSE),0) -> 110 | E110: =IFERROR(VLOOKUP($A110,Filtro_!$A$5:$AK$2954,3,FALSE),0) -> 110 | F110: =IFERROR(VLOOKUP($A110,Filtro_!$A$5:$AK$2954,4,FALSE),0) -> 110 | G110: =IFERROR(VLOOKUP($A110,Filtro_!$A$5:$AK$2954,5,FALSE),0) -> 0 | H110: =IFERROR(VLOOKUP($A110,Filtro_!$A$5:$AK$2954,6,FALSE),0) -> 0 | AB110: =IFERROR(VLOOKUP($A110,Filtro_!$A$5:$AK$2954,26,FALSE),0) -> 0 | AC110: =IFERROR(VLOOKUP($A110,Filtro_!$A$5:$AK$2954,27,FALSE),0) -> 110 | AD110: =IFERROR(VLOOKUP($A110,Filtro_!$A$5:$AK$2954,28,FALSE),0) -> 0 | AE110: =IFERROR(VLOOKUP($A110,Filtro_!$A$5:$AK$2954,29,FALSE),0) -> 0 | AF110: =IFERROR(VLOOKUP($A110,Filtro_!$A$5:$AK$2954,30,FALSE),0) -> 0 | AG110: =IFERROR(VLOOKUP($A110,Filtro_!$A$5:$AK$2954,31,FALSE),0) -> 0 | AH110: =IFERROR(VLOOKUP($A110,Filtro_!$A$5:$AK$2954,32,FALSE),0) -> 0 | AI110: =IFERROR(VLOOKUP($A110,Filtro_!$A$5:$AK$2954,33,FALSE),0) -> 0 | AJ110: =IFERROR(VLOOKUP($A110,Filtro_!$A$5:$AK$2954,34,FALSE),0) -> 0 | AK110: =IFERROR(VLOOKUP($A110,Filtro_!$A$5:$AK$2954,35,FALSE),0) -> 0 | AL110: 7,530 | AM110: 828,300
A111: 01014360 | B111: 0108313 | C111: Teleconsulta Médica de Especialidad en Cirugía de Cabeza, Cuello y Maxilofacial | D111: =IFERROR(VLOOKUP($A111,Filtro_!$A$5:$AK$2954,2,FALSE),0) -> 1 | E111: =IFERROR(VLOOKUP($A111,Filtro_!$A$5:$AK$2954,3,FALSE),0) -> 1 | F111: =IFERROR(VLOOKUP($A111,Filtro_!$A$5:$AK$2954,4,FALSE),0) -> 1 | G111: =IFERROR(VLOOKUP($A111,Filtro_!$A$5:$AK$2954,5,FALSE),0) -> 0 | H111: =IFERROR(VLOOKUP($A111,Filtro_!$A$5:$AK$2954,6,FALSE),0) -> 0 | AB111: =IFERROR(VLOOKUP($A111,Filtro_!$A$5:$AK$2954,26,FALSE),0) -> 0 | AC111: =IFERROR(VLOOKUP($A111,Filtro_!$A$5:$AK$2954,27,FALSE),0) -> 1 | AD111: =IFERROR(VLOOKUP($A111,Filtro_!$A$5:$AK$2954,28,FALSE),0) -> 0 | AE111: =IFERROR(VLOOKUP($A111,Filtro_!$A$5:$AK$2954,29,FALSE),0) -> 0 | AF111: =IFERROR(VLOOKUP($A111,Filtro_!$A$5:$AK$2954,30,FALSE),0) -> 0 | AG111: =IFERROR(VLOOKUP($A111,Filtro_!$A$5:$AK$2954,31,FALSE),0) -> 0 | AH111: =IFERROR(VLOOKUP($A111,Filtro_!$A$5:$AK$2954,32,FALSE),0) -> 0 | AI111: =IFERROR(VLOOKUP($A111,Filtro_!$A$5:$AK$2954,33,FALSE),0) -> 0 | AJ111: =IFERROR(VLOOKUP($A111,Filtro_!$A$5:$AK$2954,34,FALSE),0) -> 0 | AK111: =IFERROR(VLOOKUP($A111,Filtro_!$A$5:$AK$2954,35,FALSE),0) -> 0 | AL111: 7,530 | AM111: 7,530
A112: 01014361 | B112: 0108314 | C112: Teleconsulta Médica de Especialidad en Cirugía Cardiovascular | D112: =IFERROR(VLOOKUP($A112,Filtro_!$A$5:$AK$2954,2,FALSE),0) -> 0 | E112: =IFERROR(VLOOKUP($A112,Filtro_!$A$5:$AK$2954,3,FALSE),0) -> 0 | F112: =IFERROR(VLOOKUP($A112,Filtro_!$A$5:$AK$2954,4,FALSE),0) -> 0 | G112: =IFERROR(VLOOKUP($A112,Filtro_!$A$5:$AK$2954,5,FALSE),0) -> 0 | H112: =IFERROR(VLOOKUP($A112,Filtro_!$A$5:$AK$2954,6,FALSE),0) -> 0 | AB112: =IFERROR(VLOOKUP($A112,Filtro_!$A$5:$AK$2954,26,FALSE),0) -> 0 | AC112: =IFERROR(VLOOKUP($A112,Filtro_!$A$5:$AK$2954,27,FALSE),0) -> 0 | AD112: =IFERROR(VLOOKUP($A112,Filtro_!$A$5:$AK$2954,28,FALSE),0) -> 0 | AE112: =IFERROR(VLOOKUP($A112,Filtro_!$A$5:$AK$2954,29,FALSE),0) -> 0 | AF112: =IFERROR(VLOOKUP($A112,Filtro_!$A$5:$AK$2954,30,FALSE),0) -> 0 | AG112: =IFERROR(VLOOKUP($A112,Filtro_!$A$5:$AK$2954,31,FALSE),0) -> 0 | AH112: =IFERROR(VLOOKUP($A112,Filtro_!$A$5:$AK$2954,32,FALSE),0) -> 0 | AI112: =IFERROR(VLOOKUP($A112,Filtro_!$A$5:$AK$2954,33,FALSE),0) -> 0 | AJ112: =IFERROR(VLOOKUP($A112,Filtro_!$A$5:$AK$2954,34,FALSE),0) -> 0 | AK112: =IFERROR(VLOOKUP($A112,Filtro_!$A$5:$AK$2954,35,FALSE),0) -> 0 | AL112: 7,530 | AM112: 0
A113: 01014362 | B113: 0108315 | C113: Teleconsulta Médica de Especialidad en Cirugía de Tórax | D113: =IFERROR(VLOOKUP($A113,Filtro_!$A$5:$AK$2954,2,FALSE),0) -> 2 | E113: =IFERROR(VLOOKUP($A113,Filtro_!$A$5:$AK$2954,3,FALSE),0) -> 2 | F113: =IFERROR(VLOOKUP($A113,Filtro_!$A$5:$AK$2954,4,FALSE),0) -> 2 | G113: =IFERROR(VLOOKUP($A113,Filtro_!$A$5:$AK$2954,5,FALSE),0) -> 0 | H113: =IFERROR(VLOOKUP($A113,Filtro_!$A$5:$AK$2954,6,FALSE),0) -> 0 | AB113: =IFERROR(VLOOKUP($A113,Filtro_!$A$5:$AK$2954,26,FALSE),0) -> 0 | AC113: =IFERROR(VLOOKUP($A113,Filtro_!$A$5:$AK$2954,27,FALSE),0) -> 2 | AD113: =IFERROR(VLOOKUP($A113,Filtro_!$A$5:$AK$2954,28,FALSE),0) -> 0 | AE113: =IFERROR(VLOOKUP($A113,Filtro_!$A$5:$AK$2954,29,FALSE),0) -> 0 | AF113: =IFERROR(VLOOKUP($A113,Filtro_!$A$5:$AK$2954,30,FALSE),0) -> 0 | AG113: =IFERROR(VLOOKUP($A113,Filtro_!$A$5:$AK$2954,31,FALSE),0) -> 0 | AH113: =IFERROR(VLOOKUP($A113,Filtro_!$A$5:$AK$2954,32,FALSE),0) -> 0 | AI113: =IFERROR(VLOOKUP($A113,Filtro_!$A$5:$AK$2954,33,FALSE),0) -> 0 | AJ113: =IFERROR(VLOOKUP($A113,Filtro_!$A$5:$AK$2954,34,FALSE),0) -> 0 | AK113: =IFERROR(VLOOKUP($A113,Filtro_!$A$5:$AK$2954,35,FALSE),0) -> 0 | AL113: 7,530 | AM113: 15,060
A114: 01014363 | B114: 0108316 | C114: Teleconsulta Médica de Especialidad en Cirugía Plástica y Reparadora | D114: =IFERROR(VLOOKUP($A114,Filtro_!$A$5:$AK$2954,2,FALSE),0) -> 0 | E114: =IFERROR(VLOOKUP($A114,Filtro_!$A$5:$AK$2954,3,FALSE),0) -> 0 | F114: =IFERROR(VLOOKUP($A114,Filtro_!$A$5:$AK$2954,4,FALSE),0) -> 0 | G114: =IFERROR(VLOOKUP($A114,Filtro_!$A$5:$AK$2954,5,FALSE),0) -> 0 | H114: =IFERROR(VLOOKUP($A114,Filtro_!$A$5:$AK$2954,6,FALSE),0) -> 0 | AB114: =IFERROR(VLOOKUP($A114,Filtro_!$A$5:$AK$2954,26,FALSE),0) -> 0 | AC114: =IFERROR(VLOOKUP($A114,Filtro_!$A$5:$AK$2954,27,FALSE),0) -> 0 | AD114: =IFERROR(VLOOKUP($A114,Filtro_!$A$5:$AK$2954,28,FALSE),0) -> 0 | AE114: =IFERROR(VLOOKUP($A114,Filtro_!$A$5:$AK$2954,29,FALSE),0) -> 0 | AF114: =IFERROR(VLOOKUP($A114,Filtro_!$A$5:$AK$2954,30,FALSE),0) -> 0 | AG114: =IFERROR(VLOOKUP($A114,Filtro_!$A$5:$AK$2954,31,FALSE),0) -> 0 | AH114: =IFERROR(VLOOKUP($A114,Filtro_!$A$5:$AK$2954,32,FALSE),0) -> 0 | AI114: =IFERROR(VLOOKUP($A114,Filtro_!$A$5:$AK$2954,33,FALSE),0) -> 0 | AJ114: =IFERROR(VLOOKUP($A114,Filtro_!$A$5:$AK$2954,34,FALSE),0) -> 0 | AK114: =IFERROR(VLOOKUP($A114,Filtro_!$A$5:$AK$2954,35,FALSE),0) -> 0 | AL114: 7,530 | AM114: 0
A115: 01014364 | B115: 0108317 | C115: Teleconsulta Médica de Especialidad en Cirugía Pediátrica | D115: =IFERROR(VLOOKUP($A115,Filtro_!$A$5:$AK$2954,2,FALSE),0) -> 3 | E115: =IFERROR(VLOOKUP($A115,Filtro_!$A$5:$AK$2954,3,FALSE),0) -> 3 | F115: =IFERROR(VLOOKUP($A115,Filtro_!$A$5:$AK$2954,4,FALSE),0) -> 3 | G115: =IFERROR(VLOOKUP($A115,Filtro_!$A$5:$AK$2954,5,FALSE),0) -> 0 | H115: =IFERROR(VLOOKUP($A115,Filtro_!$A$5:$AK$2954,6,FALSE),0) -> 0 | AB115: =IFERROR(VLOOKUP($A115,Filtro_!$A$5:$AK$2954,26,FALSE),0) -> 0 | AC115: =IFERROR(VLOOKUP($A115,Filtro_!$A$5:$AK$2954,27,FALSE),0) -> 3 | AD115: =IFERROR(VLOOKUP($A115,Filtro_!$A$5:$AK$2954,28,FALSE),0) -> 0 | AE115: =IFERROR(VLOOKUP($A115,Filtro_!$A$5:$AK$2954,29,FALSE),0) -> 0 | AF115: =IFERROR(VLOOKUP($A115,Filtro_!$A$5:$AK$2954,30,FALSE),0) -> 0 | AG115: =IFERROR(VLOOKUP($A115,Filtro_!$A$5:$AK$2954,31,FALSE),0) -> 0 | AH115: =IFERROR(VLOOKUP($A115,Filtro_!$A$5:$AK$2954,32,FALSE),0) -> 0 | AI115: =IFERROR(VLOOKUP($A115,Filtro_!$A$5:$AK$2954,33,FALSE),0) -> 0 | AJ115: =IFERROR(VLOOKUP($A115,Filtro_!$A$5:$AK$2954,34,FALSE),0) -> 0 | AK115: =IFERROR(VLOOKUP($A115,Filtro_!$A$5:$AK$2954,35,FALSE),0) -> 0 | AL115: 7,530 | AM115: 22,590
A116: 01014365 | B116: 0108318 | C116: Teleconsulta Médica de Especialidad en Cirugía Vascular Periférica | D116: =IFERROR(VLOOKUP($A116,Filtro_!$A$5:$AK$2954,2,FALSE),0) -> 0 | E116: =IFERROR(VLOOKUP($A116,Filtro_!$A$5:$AK$2954,3,FALSE),0) -> 0 | F116: =IFERROR(VLOOKUP($A116,Filtro_!$A$5:$AK$2954,4,FALSE),0) -> 0 | G116: =IFERROR(VLOOKUP($A116,Filtro_!$A$5:$AK$2954,5,FALSE),0) -> 0 | H116: =IFERROR(VLOOKUP($A116,Filtro_!$A$5:$AK$2954,6,FALSE),0) -> 0 | AB116: =IFERROR(VLOOKUP($A116,Filtro_!$A$5:$AK$2954,26,FALSE),0) -> 0 | AC116: =IFERROR(VLOOKUP($A116,Filtro_!$A$5:$AK$2954,27,FALSE),0) -> 0 | AD116: =IFERROR(VLOOKUP($A116,Filtro_!$A$5:$AK$2954,28,FALSE),0) -> 0 | AE116: =IFERROR(VLOOKUP($A116,Filtro_!$A$5:$AK$2954,29,FALSE),0) -> 0 | AF116: =IFERROR(VLOOKUP($A116,Filtro_!$A$5:$AK$2954,30,FALSE),0) -> 0 | AG116: =IFERROR(VLOOKUP($A116,Filtro_!$A$5:$AK$2954,31,FALSE),0) -> 0 | AH116: =IFERROR(VLOOKUP($A116,Filtro_!$A$5:$AK$2954,32,FALSE),0) -> 0 | AI116: =IFERROR(VLOOKUP($A116,Filtro_!$A$5:$AK$2954,33,FALSE),0) -> 0 | AJ116: =IFERROR(VLOOKUP($A116,Filtro_!$A$5:$AK$2954,34,FALSE),0) -> 0 | AK116: =IFERROR(VLOOKUP($A116,Filtro_!$A$5:$AK$2954,35,FALSE),0) -> 0 | AL116: 7,530 | AM116: 0
A117: 01014366 | B117: 0108329 | C117: Teleconsulta Médica de Especialidad en Anestesiología | D117: =IFERROR(VLOOKUP($A117,Filtro_!$A$5:$AK$2954,2,FALSE),0) -> 3047 | E117: =IFERROR(VLOOKUP($A117,Filtro_!$A$5:$AK$2954,3,FALSE),0) -> 3016 | F117: =IFERROR(VLOOKUP($A117,Filtro_!$A$5:$AK$2954,4,FALSE),0) -> 3016 | G117: =IFERROR(VLOOKUP($A117,Filtro_!$A$5:$AK$2954,5,FALSE),0) -> 0 | H117: =IFERROR(VLOOKUP($A117,Filtro_!$A$5:$AK$2954,6,FALSE),0) -> 31 | AB117: =IFERROR(VLOOKUP($A117,Filtro_!$A$5:$AK$2954,26,FALSE),0) -> 0 | AC117: =IFERROR(VLOOKUP($A117,Filtro_!$A$5:$AK$2954,27,FALSE),0) -> 3047 | AD117: =IFERROR(VLOOKUP($A117,Filtro_!$A$5:$AK$2954,28,FALSE),0) -> 0 | AE117: =IFERROR(VLOOKUP($A117,Filtro_!$A$5:$AK$2954,29,FALSE),0) -> 1700 | AF117: =IFERROR(VLOOKUP($A117,Filtro_!$A$5:$AK$2954,30,FALSE),0) -> 0 | AG117: =IFERROR(VLOOKUP($A117,Filtro_!$A$5:$AK$2954,31,FALSE),0) -> 0 | AH117: =IFERROR(VLOOKUP($A117,Filtro_!$A$5:$AK$2954,32,FALSE),0) -> 0 | AI117: =IFERROR(VLOOKUP($A117,Filtro_!$A$5:$AK$2954,33,FALSE),0) -> 0 | AJ117: =IFERROR(VLOOKUP($A117,Filtro_!$A$5:$AK$2954,34,FALSE),0) -> 0 | AK117: =IFERROR(VLOOKUP($A117,Filtro_!$A$5:$AK$2954,35,FALSE),0) -> 0 | AL117: 7,530 | AM117: 22,710,480
A118: 01014367 | B118: 0108332 | C118: Teleconsulta Médica de Especialidad en Ginecología Pediátrica y de la Adolescencia | D118: =IFERROR(VLOOKUP($A118,Filtro_!$A$5:$AK$2954,2,FALSE),0) -> 0 | E118: =IFERROR(VLOOKUP($A118,Filtro_!$A$5:$AK$2954,3,FALSE),0) -> 0 | F118: =IFERROR(VLOOKUP($A118,Filtro_!$A$5:$AK$2954,4,FALSE),0) -> 0 | G118: =IFERROR(VLOOKUP($A118,Filtro_!$A$5:$AK$2954,5,FALSE),0) -> 0 | H118: =IFERROR(VLOOKUP($A118,Filtro_!$A$5:$AK$2954,6,FALSE),0) -> 0 | AB118: =IFERROR(VLOOKUP($A118,Filtro_!$A$5:$AK$2954,26,FALSE),0) -> 0 | AC118: =IFERROR(VLOOKUP($A118,Filtro_!$A$5:$AK$2954,27,FALSE),0) -> 0 | AD118: =IFERROR(VLOOKUP($A118,Filtro_!$A$5:$AK$2954,28,FALSE),0) -> 0 | AE118: =IFERROR(VLOOKUP($A118,Filtro_!$A$5:$AK$2954,29,FALSE),0) -> 0 | AF118: =IFERROR(VLOOKUP($A118,Filtro_!$A$5:$AK$2954,30,FALSE),0) -> 0 | AG118: =IFERROR(VLOOKUP($A118,Filtro_!$A$5:$AK$2954,31,FALSE),0) -> 0 | AH118: =IFERROR(VLOOKUP($A118,Filtro_!$A$5:$AK$2954,32,FALSE),0) -> 0 | AI118: =IFERROR(VLOOKUP($A118,Filtro_!$A$5:$AK$2954,33,FALSE),0) -> 0 | AJ118: =IFERROR(VLOOKUP($A118,Filtro_!$A$5:$AK$2954,34,FALSE),0) -> 0 | AK118: =IFERROR(VLOOKUP($A118,Filtro_!$A$5:$AK$2954,35,FALSE),0) -> 0 | AL118: 7,530 | AM118: 0
A119: 01014368 | B119: 0108333 | C119: Teleconsulta Médica de Especialidad en Medicina Materno Fetal | D119: =IFERROR(VLOOKUP($A119,Filtro_!$A$5:$AK$2954,2,FALSE),0) -> 0 | E119: =IFERROR(VLOOKUP($A119,Filtro_!$A$5:$AK$2954,3,FALSE),0) -> 0 | F119: =IFERROR(VLOOKUP($A119,Filtro_!$A$5:$AK$2954,4,FALSE),0) -> 0 | G119: =IFERROR(VLOOKUP($A119,Filtro_!$A$5:$AK$2954,5,FALSE),0) -> 0 | H119: =IFERROR(VLOOKUP($A119,Filtro_!$A$5:$AK$2954,6,FALSE),0) -> 0 | AB119: =IFERROR(VLOOKUP($A119,Filtro_!$A$5:$AK$2954,26,FALSE),0) -> 0 | AC119: =IFERROR(VLOOKUP($A119,Filtro_!$A$5:$AK$2954,27,FALSE),0) -> 0 | AD119: =IFERROR(VLOOKUP($A119,Filtro_!$A$5:$AK$2954,28,FALSE),0) -> 0 | AE119: =IFERROR(VLOOKUP($A119,Filtro_!$A$5:$AK$2954,29,FALSE),0) -> 0 | AF119: =IFERROR(VLOOKUP($A119,Filtro_!$A$5:$AK$2954,30,FALSE),0) -> 0 | AG119: =IFERROR(VLOOKUP($A119,Filtro_!$A$5:$AK$2954,31,FALSE),0) -> 0 | AH119: =IFERROR(VLOOKUP($A119,Filtro_!$A$5:$AK$2954,32,FALSE),0) -> 0 | AI119: =IFERROR(VLOOKUP($A119,Filtro_!$A$5:$AK$2954,33,FALSE),0) -> 0 | AJ119: =IFERROR(VLOOKUP($A119,Filtro_!$A$5:$AK$2954,34,FALSE),0) -> 0 | AK119: =IFERROR(VLOOKUP($A119,Filtro_!$A$5:$AK$2954,35,FALSE),0) -> 0 | AL119: 7,530 | AM119: 0
A120: 01014369 | B120: 0108334 | C120: Teleconsulta Médica de Especialidad en Medicina Nuclear | D120: =IFERROR(VLOOKUP($A120,Filtro_!$A$5:$AK$2954,2,FALSE),0) -> 0 | E120: =IFERROR(VLOOKUP($A120,Filtro_!$A$5:$AK$2954,3,FALSE),0) -> 0 | F120: =IFERROR(VLOOKUP($A120,Filtro_!$A$5:$AK$2954,4,FALSE),0) -> 0 | G120: =IFERROR(VLOOKUP($A120,Filtro_!$A$5:$AK$2954,5,FALSE),0) -> 0 | H120: =IFERROR(VLOOKUP($A120,Filtro_!$A$5:$AK$2954,6,FALSE),0) -> 0 | AB120: =IFERROR(VLOOKUP($A120,Filtro_!$A$5:$AK$2954,26,FALSE),0) -> 0 | AC120: =IFERROR(VLOOKUP($A120,Filtro_!$A$5:$AK$2954,27,FALSE),0) -> 0 | AD120: =IFERROR(VLOOKUP($A120,Filtro_!$A$5:$AK$2954,28,FALSE),0) -> 0 | AE120: =IFERROR(VLOOKUP($A120,Filtro_!$A$5:$AK$2954,29,FALSE),0) -> 0 | AF120: =IFERROR(VLOOKUP($A120,Filtro_!$A$5:$AK$2954,30,FALSE),0) -> 0 | AG120: =IFERROR(VLOOKUP($A120,Filtro_!$A$5:$AK$2954,31,FALSE),0) -> 0 | AH120: =IFERROR(VLOOKUP($A120,Filtro_!$A$5:$AK$2954,32,FALSE),0) -> 0 | AI120: =IFERROR(VLOOKUP($A120,Filtro_!$A$5:$AK$2954,33,FALSE),0) -> 0 | AJ120: =IFERROR(VLOOKUP($A120,Filtro_!$A$5:$AK$2954,34,FALSE),0) -> 0 | AK120: =IFERROR(VLOOKUP($A120,Filtro_!$A$5:$AK$2954,35,FALSE),0) -> 0 | AL120: 7,530 | AM120: 0
C121: TOTAL | D121: =SUM(D75:D120) -> 22505 | E121: =SUM(E75:E120) -> 22437 | F121: =SUM(F75:F120) -> 22437 | G121: =SUM(G75:G120) -> 0 | H121: =SUM(H75:H120) -> 68 | AB121: =SUM(AB75:AB120) -> 42 | AC121: 22448 | AD121: 0 | AE121: 1700 | AF121: 0 | AG121: 0 | AH121: 0 | AI121: 0 | AJ121: 0 | AK121: 0 | AM121: =SUM(AM75:AM120) -> 168950610
C122: TELEMEDICINA PROFESIONALES NO MÉDICOS
A123: 01014370 | B123: 0108400 | C123: Teleconsulta: Atención Integral de Nutricionista (incluye 3 sesiones) | D123: =IFERROR(VLOOKUP($A123,Filtro_!$A$5:$AK$2954,2,FALSE),0) -> 0 | E123: =IFERROR(VLOOKUP($A123,Filtro_!$A$5:$AK$2954,3,FALSE),0) -> 0 | F123: =IFERROR(VLOOKUP($A123,Filtro_!$A$5:$AK$2954,4,FALSE),0) -> 0 | G123: =IFERROR(VLOOKUP($A123,Filtro_!$A$5:$AK$2954,5,FALSE),0) -> 0 | H123: =IFERROR(VLOOKUP($A123,Filtro_!$A$5:$AK$2954,6,FALSE),0) -> 0 | AB123: =IFERROR(VLOOKUP($A123,Filtro_!$A$5:$AK$2954,26,FALSE),0) -> 0 | AC123: =IFERROR(VLOOKUP($A123,Filtro_!$A$5:$AK$2954,27,FALSE),0) -> 0 | AD123: =IFERROR(VLOOKUP($A123,Filtro_!$A$5:$AK$2954,28,FALSE),0) -> 0 | AE123: =IFERROR(VLOOKUP($A123,Filtro_!$A$5:$AK$2954,29,FALSE),0) -> 0 | AF123: =IFERROR(VLOOKUP($A123,Filtro_!$A$5:$AK$2954,30,FALSE),0) -> 0 | AG123: =IFERROR(VLOOKUP($A123,Filtro_!$A$5:$AK$2954,31,FALSE),0) -> 0 | AH123: =IFERROR(VLOOKUP($A123,Filtro_!$A$5:$AK$2954,32,FALSE),0) -> 0 | AI123: =IFERROR(VLOOKUP($A123,Filtro_!$A$5:$AK$2954,33,FALSE),0) -> 0 | AJ123: =IFERROR(VLOOKUP($A123,Filtro_!$A$5:$AK$2954,34,FALSE),0) -> 0 | AK123: =IFERROR(VLOOKUP($A123,Filtro_!$A$5:$AK$2954,35,FALSE),0) -> 0 | AL123: 21,750 | AM123: =AL123*F123 -> 0
C124: TOTAL | D124: =SUM(D123) -> 0 | E124: =SUM(E123) -> 0 | F124: =SUM(F123) -> 0 | G124: =SUM(G123) -> 0 | H124: =SUM(H123) -> 0 | AB124: =SUM(AB123) -> 0 | AC124: 0 | AD124: 0 | AE124: 0 | AF124: 0 | AG124: 0 | AH124: 0 | AI124: 0 | AJ124: 0 | AK124: 0 | AM124: =SUM(AM123) -> 0
C125: TELEINTERCONSULTA (TELEMEDICINA)
A126: 01014371 | B126: 0109001 | C126: Teleinterconsulta médica | D126: =IFERROR(VLOOKUP($A126,Filtro_!$A$5:$AK$2954,2,FALSE),0) -> 85 | E126: =IFERROR(VLOOKUP($A126,Filtro_!$A$5:$AK$2954,3,FALSE),0) -> 85 | F126: =IFERROR(VLOOKUP($A126,Filtro_!$A$5:$AK$2954,4,FALSE),0) -> 85 | G126: =IFERROR(VLOOKUP($A126,Filtro_!$A$5:$AK$2954,5,FALSE),0) -> 0 | H126: =IFERROR(VLOOKUP($A126,Filtro_!$A$5:$AK$2954,6,FALSE),0) -> 0 | AB126: =IFERROR(VLOOKUP($A126,Filtro_!$A$5:$AK$2954,26,FALSE),0) -> 0 | AC126: =IFERROR(VLOOKUP($A126,Filtro_!$A$5:$AK$2954,27,FALSE),0) -> 85 | AD126: =IFERROR(VLOOKUP($A126,Filtro_!$A$5:$AK$2954,28,FALSE),0) -> 0 | AE126: =IFERROR(VLOOKUP($A126,Filtro_!$A$5:$AK$2954,29,FALSE),0) -> 0 | AF126: =IFERROR(VLOOKUP($A126,Filtro_!$A$5:$AK$2954,30,FALSE),0) -> 0 | AG126: =IFERROR(VLOOKUP($A126,Filtro_!$A$5:$AK$2954,31,FALSE),0) -> 0 | AH126: =IFERROR(VLOOKUP($A126,Filtro_!$A$5:$AK$2954,32,FALSE),0) -> 0 | AI126: =IFERROR(VLOOKUP($A126,Filtro_!$A$5:$AK$2954,33,FALSE),0) -> 0 | AJ126: =IFERROR(VLOOKUP($A126,Filtro_!$A$5:$AK$2954,34,FALSE),0) -> 0 | AK126: =IFERROR(VLOOKUP($A126,Filtro_!$A$5:$AK$2954,35,FALSE),0) -> 0 | AL126: 7,530 | AM126: =AL126*F126 -> 640,050
A127: 01014372 | B127: 0109002 | C127: Teleinterconsulta no médica | D127: =IFERROR(VLOOKUP($A127,Filtro_!$A$5:$AK$2954,2,FALSE),0) -> 0 | E127: =IFERROR(VLOOKUP($A127,Filtro_!$A$5:$AK$2954,3,FALSE),0) -> 0 | F127: =IFERROR(VLOOKUP($A127,Filtro_!$A$5:$AK$2954,4,FALSE),0) -> 0 | G127: =IFERROR(VLOOKUP($A127,Filtro_!$A$5:$AK$2954,5,FALSE),0) -> 0 | H127: =IFERROR(VLOOKUP($A127,Filtro_!$A$5:$AK$2954,6,FALSE),0) -> 0 | AB127: =IFERROR(VLOOKUP($A127,Filtro_!$A$5:$AK$2954,26,FALSE),0) -> 0 | AC127: =IFERROR(VLOOKUP($A127,Filtro_!$A$5:$AK$2954,27,FALSE),0) -> 0 | AD127: =IFERROR(VLOOKUP($A127,Filtro_!$A$5:$AK$2954,28,FALSE),0) -> 0 | AE127: =IFERROR(VLOOKUP($A127,Filtro_!$A$5:$AK$2954,29,FALSE),0) -> 0 | AF127: =IFERROR(VLOOKUP($A127,Filtro_!$A$5:$AK$2954,30,FALSE),0) -> 0 | AG127: =IFERROR(VLOOKUP($A127,Filtro_!$A$5:$AK$2954,31,FALSE),0) -> 0 | AH127: =IFERROR(VLOOKUP($A127,Filtro_!$A$5:$AK$2954,32,FALSE),0) -> 0 | AI127: =IFERROR(VLOOKUP($A127,Filtro_!$A$5:$AK$2954,33,FALSE),0) -> 0 | AJ127: =IFERROR(VLOOKUP($A127,Filtro_!$A$5:$AK$2954,34,FALSE),0) -> 0 | AK127: =IFERROR(VLOOKUP($A127,Filtro_!$A$5:$AK$2954,35,FALSE),0) -> 0 | AL127: 6,400 | AM127: =AL127*F127 -> 0
C128: TOTAL | D128: =SUM(D126:D127) -> 85 | E128: =SUM(E126:E127) -> 85 | F128: =SUM(F126:F127) -> 85 | G128: =SUM(G126:G127) -> 0 | H128: =SUM(H126:H127) -> 0 | AB128: =SUM(AB126:AB127) -> 0 | AC128: 85 | AD128: 0 | AE128: 0 | AF128: 0 | AG128: 0 | AH128: 0 | AI128: 0 | AJ128: 0 | AK128: 0 | AM128: =SUM(AM126:AM127) -> 640,050
C129: EDUCACION DE GRUPO
A130: 01010029 | B130: 0103001 | C130: Educación de grupo por médico | D130: =IFERROR(VLOOKUP($A130,Filtro_!$A$5:$AK$2954,2,FALSE),0) -> 667 | E130: =IFERROR(VLOOKUP($A130,Filtro_!$A$5:$AK$2954,3,FALSE),0) -> 667 | F130: =IFERROR(VLOOKUP($A130,Filtro_!$A$5:$AK$2954,4,FALSE),0) -> 667 | G130: =IFERROR(VLOOKUP($A130,Filtro_!$A$5:$AK$2954,5,FALSE),0) -> 0 | H130: =IFERROR(VLOOKUP($A130,Filtro_!$A$5:$AK$2954,6,FALSE),0) -> 0 | AB130: =IFERROR(VLOOKUP($A130,Filtro_!$A$5:$AK$2954,26,FALSE),0) -> 0 | AC130: =IFERROR(VLOOKUP($A130,Filtro_!$A$5:$AK$2954,27,FALSE),0) -> 667 | AD130: =IFERROR(VLOOKUP($A130,Filtro_!$A$5:$AK$2954,28,FALSE),0) -> 0 | AE130: =IFERROR(VLOOKUP($A130,Filtro_!$A$5:$AK$2954,29,FALSE),0) -> 0 | AF130: =IFERROR(VLOOKUP($A130,Filtro_!$A$5:$AK$2954,30,FALSE),0) -> 0 | AG130: =IFERROR(VLOOKUP($A130,Filtro_!$A$5:$AK$2954,31,FALSE),0) -> 0 | AH130: =IFERROR(VLOOKUP($A130,Filtro_!$A$5:$AK$2954,32,FALSE),0) -> 0 | AI130: =IFERROR(VLOOKUP($A130,Filtro_!$A$5:$AK$2954,33,FALSE),0) -> 0 | AJ130: =IFERROR(VLOOKUP($A130,Filtro_!$A$5:$AK$2954,34,FALSE),0) -> 0 | AK130: =IFERROR(VLOOKUP($A130,Filtro_!$A$5:$AK$2954,35,FALSE),0) -> 0 | AL130: 4,640 | AM130: =AL130*F130 -> 3,094,880
A131: 01010031 | B131: 0103003 | C131: Educación de grupo por Trabajador/a Social | D131: =IFERROR(VLOOKUP($A131,Filtro_!$A$5:$AK$2954,2,FALSE),0) -> 250 | E131: =IFERROR(VLOOKUP($A131,Filtro_!$A$5:$AK$2954,3,FALSE),0) -> 250 | F131: =IFERROR(VLOOKUP($A131,Filtro_!$A$5:$AK$2954,4,FALSE),0) -> 250 | G131: =IFERROR(VLOOKUP($A131,Filtro_!$A$5:$AK$2954,5,FALSE),0) -> 0 | H131: =IFERROR(VLOOKUP($A131,Filtro_!$A$5:$AK$2954,6,FALSE),0) -> 0 | AB131: =IFERROR(VLOOKUP($A131,Filtro_!$A$5:$AK$2954,26,FALSE),0) -> 0 | AC131: =IFERROR(VLOOKUP($A131,Filtro_!$A$5:$AK$2954,27,FALSE),0) -> 250 | AD131: =IFERROR(VLOOKUP($A131,Filtro_!$A$5:$AK$2954,28,FALSE),0) -> 0 | AE131: =IFERROR(VLOOKUP($A131,Filtro_!$A$5:$AK$2954,29,FALSE),0) -> 0 | AF131: =IFERROR(VLOOKUP($A131,Filtro_!$A$5:$AK$2954,30,FALSE),0) -> 0 | AG131: =IFERROR(VLOOKUP($A131,Filtro_!$A$5:$AK$2954,31,FALSE),0) -> 0 | AH131: =IFERROR(VLOOKUP($A131,Filtro_!$A$5:$AK$2954,32,FALSE),0) -> 0 | AI131: =IFERROR(VLOOKUP($A131,Filtro_!$A$5:$AK$2954,33,FALSE),0) -> 0 | AJ131: =IFERROR(VLOOKUP($A131,Filtro_!$A$5:$AK$2954,34,FALSE),0) -> 0 | AK131: =IFERROR(VLOOKUP($A131,Filtro_!$A$5:$AK$2954,35,FALSE),0) -> 0 | AL131: 2,550 | AM131: 637,500
A132: 01010032 | B132: 0103004 | C132: Educación de grupo por auxiliar de enfermería | D132: =IFERROR(VLOOKUP($A132,Filtro_!$A$5:$AK$2954,2,FALSE),0) -> 0 | E132: =IFERROR(VLOOKUP($A132,Filtro_!$A$5:$AK$2954,3,FALSE),0) -> 0 | F132: =IFERROR(VLOOKUP($A132,Filtro_!$A$5:$AK$2954,4,FALSE),0) -> 0 | G132: =IFERROR(VLOOKUP($A132,Filtro_!$A$5:$AK$2954,5,FALSE),0) -> 0 | H132: =IFERROR(VLOOKUP($A132,Filtro_!$A$5:$AK$2954,6,FALSE),0) -> 0 | AB132: =IFERROR(VLOOKUP($A132,Filtro_!$A$5:$AK$2954,26,FALSE),0) -> 0 | AC132: =IFERROR(VLOOKUP($A132,Filtro_!$A$5:$AK$2954,27,FALSE),0) -> 0 | AD132: =IFERROR(VLOOKUP($A132,Filtro_!$A$5:$AK$2954,28,FALSE),0) -> 0 | AE132: =IFERROR(VLOOKUP($A132,Filtro_!$A$5:$AK$2954,29,FALSE),0) -> 0 | AF132: =IFERROR(VLOOKUP($A132,Filtro_!$A$5:$AK$2954,30,FALSE),0) -> 0 | AG132: =IFERROR(VLOOKUP($A132,Filtro_!$A$5:$AK$2954,31,FALSE),0) -> 0 | AH132: =IFERROR(VLOOKUP($A132,Filtro_!$A$5:$AK$2954,32,FALSE),0) -> 0 | AI132: =IFERROR(VLOOKUP($A132,Filtro_!$A$5:$AK$2954,33,FALSE),0) -> 0 | AJ132: =IFERROR(VLOOKUP($A132,Filtro_!$A$5:$AK$2954,34,FALSE),0) -> 0 | AK132: =IFERROR(VLOOKUP($A132,Filtro_!$A$5:$AK$2954,35,FALSE),0) -> 0 | AL132: 780 | AM132: 0
A133: 01014373 | B133: 0103005 | C133: Educación de grupo por enfermera | D133: =IFERROR(VLOOKUP($A133,Filtro_!$A$5:$AK$2954,2,FALSE),0) -> 28329 | E133: =IFERROR(VLOOKUP($A133,Filtro_!$A$5:$AK$2954,3,FALSE),0) -> 28329 | F133: =IFERROR(VLOOKUP($A133,Filtro_!$A$5:$AK$2954,4,FALSE),0) -> 27673 | G133: =IFERROR(VLOOKUP($A133,Filtro_!$A$5:$AK$2954,5,FALSE),0) -> 656 | H133: =IFERROR(VLOOKUP($A133,Filtro_!$A$5:$AK$2954,6,FALSE),0) -> 0 | AB133: =IFERROR(VLOOKUP($A133,Filtro_!$A$5:$AK$2954,26,FALSE),0) -> 26276 | AC133: =IFERROR(VLOOKUP($A133,Filtro_!$A$5:$AK$2954,27,FALSE),0) -> 2053 | AD133: =IFERROR(VLOOKUP($A133,Filtro_!$A$5:$AK$2954,28,FALSE),0) -> 0 | AE133: =IFERROR(VLOOKUP($A133,Filtro_!$A$5:$AK$2954,29,FALSE),0) -> 0 | AF133: =IFERROR(VLOOKUP($A133,Filtro_!$A$5:$AK$2954,30,FALSE),0) -> 0 | AG133: =IFERROR(VLOOKUP($A133,Filtro_!$A$5:$AK$2954,31,FALSE),0) -> 0 | AH133: =IFERROR(VLOOKUP($A133,Filtro_!$A$5:$AK$2954,32,FALSE),0) -> 0 | AI133: =IFERROR(VLOOKUP($A133,Filtro_!$A$5:$AK$2954,33,FALSE),0) -> 0 | AJ133: =IFERROR(VLOOKUP($A133,Filtro_!$A$5:$AK$2954,34,FALSE),0) -> 0 | AK133: =IFERROR(VLOOKUP($A133,Filtro_!$A$5:$AK$2954,35,FALSE),0) -> 0 | AL133: 2,550 | AM133: 70,566,150
A134: 01014374 | B134: 0103006 | C134: Educación de grupo por matrona | D134: =IFERROR(VLOOKUP($A134,Filtro_!$A$5:$AK$2954,2,FALSE),0) -> 2436 | E134: =IFERROR(VLOOKUP($A134,Filtro_!$A$5:$AK$2954,3,FALSE),0) -> 2436 | F134: =IFERROR(VLOOKUP($A134,Filtro_!$A$5:$AK$2954,4,FALSE),0) -> 2436 | G134: =IFERROR(VLOOKUP($A134,Filtro_!$A$5:$AK$2954,5,FALSE),0) -> 0 | H134: =IFERROR(VLOOKUP($A134,Filtro_!$A$5:$AK$2954,6,FALSE),0) -> 0 | AB134: =IFERROR(VLOOKUP($A134,Filtro_!$A$5:$AK$2954,26,FALSE),0) -> 0 | AC134: =IFERROR(VLOOKUP($A134,Filtro_!$A$5:$AK$2954,27,FALSE),0) -> 2436 | AD134: =IFERROR(VLOOKUP($A134,Filtro_!$A$5:$AK$2954,28,FALSE),0) -> 0 | AE134: =IFERROR(VLOOKUP($A134,Filtro_!$A$5:$AK$2954,29,FALSE),0) -> 0 | AF134: =IFERROR(VLOOKUP($A134,Filtro_!$A$5:$AK$2954,30,FALSE),0) -> 0 | AG134: =IFERROR(VLOOKUP($A134,Filtro_!$A$5:$AK$2954,31,FALSE),0) -> 0 | AH134: =IFERROR(VLOOKUP($A134,Filtro_!$A$5:$AK$2954,32,FALSE),0) -> 0 | AI134: =IFERROR(VLOOKUP($A134,Filtro_!$A$5:$AK$2954,33,FALSE),0) -> 0 | AJ134: =IFERROR(VLOOKUP($A134,Filtro_!$A$5:$AK$2954,34,FALSE),0) -> 0 | AK134: =IFERROR(VLOOKUP($A134,Filtro_!$A$5:$AK$2954,35,FALSE),0) -> 0 | AL134: 2,550 | AM134: 6,211,800
A135: 01014375 | B135: 0103007 | C135: Educación de grupo por nutricionista | D135: =IFERROR(VLOOKUP($A135,Filtro_!$A$5:$AK$2954,2,FALSE),0) -> 98 | E135: =IFERROR(VLOOKUP($A135,Filtro_!$A$5:$AK$2954,3,FALSE),0) -> 97 | F135: =IFERROR(VLOOKUP($A135,Filtro_!$A$5:$AK$2954,4,FALSE),0) -> 97 | G135: =IFERROR(VLOOKUP($A135,Filtro_!$A$5:$AK$2954,5,FALSE),0) -> 0 | H135: =IFERROR(VLOOKUP($A135,Filtro_!$A$5:$AK$2954,6,FALSE),0) -> 1 | AB135: =IFERROR(VLOOKUP($A135,Filtro_!$A$5:$AK$2954,26,FALSE),0) -> 0 | AC135: =IFERROR(VLOOKUP($A135,Filtro_!$A$5:$AK$2954,27,FALSE),0) -> 97 | AD135: =IFERROR(VLOOKUP($A135,Filtro_!$A$5:$AK$2954,28,FALSE),0) -> 0 | AE135: =IFERROR(VLOOKUP($A135,Filtro_!$A$5:$AK$2954,29,FALSE),0) -> 0 | AF135: =IFERROR(VLOOKUP($A135,Filtro_!$A$5:$AK$2954,30,FALSE),0) -> 0 | AG135: =IFERROR(VLOOKUP($A135,Filtro_!$A$5:$AK$2954,31,FALSE),0) -> 0 | AH135: =IFERROR(VLOOKUP($A135,Filtro_!$A$5:$AK$2954,32,FALSE),0) -> 0 | AI135: =IFERROR(VLOOKUP($A135,Filtro_!$A$5:$AK$2954,33,FALSE),0) -> 0 | AJ135: =IFERROR(VLOOKUP($A135,Filtro_!$A$5:$AK$2954,34,FALSE),0) -> 0 | AK135: =IFERROR(VLOOKUP($A135,Filtro_!$A$5:$AK$2954,35,FALSE),0) -> 0 | AL135: 2,550 | AM135: 247,350
C136: TOTAL ARANCEL MAI | D136: =SUM(D130:D135) -> 31780 | E136: =SUM(E130:E135) -> 31779 | F136: =SUM(F130:F135) -> 31123 | G136: =SUM(G130:G135) -> 656 | H136: =SUM(H130:H135) -> 1 | AB136: =SUM(AB130:AB135) -> 26276 | AC136: 5503 | AD136: 0 | AE136: 0 | AF136: 0 | AG136: 0 | AH136: 0 | AI136: 0 | AJ136: 0 | AK136: 0 | AM136: =SUM(AM130:AM135) -> 80,757,680
A137: 01010033 | B137: 01010033 | C137: Educación de grupo por otro integrante del equipo de salud | D137: =IFERROR(VLOOKUP($A137,Filtro_!$A$5:$AK$2954,2,FALSE),0) -> 1715 | E137: =IFERROR(VLOOKUP($A137,Filtro_!$A$5:$AK$2954,3,FALSE),0) -> 1715 | F137: =IFERROR(VLOOKUP($A137,Filtro_!$A$5:$AK$2954,4,FALSE),0) -> 1715 | G137: =IFERROR(VLOOKUP($A137,Filtro_!$A$5:$AK$2954,5,FALSE),0) -> 0 | H137: =IFERROR(VLOOKUP($A137,Filtro_!$A$5:$AK$2954,6,FALSE),0) -> 0 | AB137: =IFERROR(VLOOKUP($A137,Filtro_!$A$5:$AK$2954,26,FALSE),0) -> 399 | AC137: =IFERROR(VLOOKUP($A137,Filtro_!$A$5:$AK$2954,27,FALSE),0) -> 1287 | AD137: =IFERROR(VLOOKUP($A137,Filtro_!$A$5:$AK$2954,28,FALSE),0) -> 0 | AE137: =IFERROR(VLOOKUP($A137,Filtro_!$A$5:$AK$2954,29,FALSE),0) -> 0 | AF137: =IFERROR(VLOOKUP($A137,Filtro_!$A$5:$AK$2954,30,FALSE),0) -> 0 | AG137: =IFERROR(VLOOKUP($A137,Filtro_!$A$5:$AK$2954,31,FALSE),0) -> 0 | AH137: =IFERROR(VLOOKUP($A137,Filtro_!$A$5:$AK$2954,32,FALSE),0) -> 0 | AI137: =IFERROR(VLOOKUP($A137,Filtro_!$A$5:$AK$2954,33,FALSE),0) -> 0 | AJ137: =IFERROR(VLOOKUP($A137,Filtro_!$A$5:$AK$2954,34,FALSE),0) -> 0 | AK137: =IFERROR(VLOOKUP($A137,Filtro_!$A$5:$AK$2954,35,FALSE),0) -> 0 | AL137: 0 | AM137: 0
C138: TOTAL ARANCEL MLE Y NO ARANCELADO | D138: =+D137 -> 1715 | E138: =+E137 -> 1715 | F138: =+F137 -> 1715 | G138: =+G137 -> 0 | H138: =+H137 -> 0 | AB138: =+AB137 -> 399 | AC138: 1287 | AD138: 0 | AE138: 0 | AF138: 0 | AG138: 0 | AH138: 0 | AI138: 0 | AJ138: 0 | AK138: 0 | AM138: 0
C139: TOTAL PRODUCCION | D139: =+D138+D136 -> 33495 | E139: =+E138+E136 -> 33494 | F139: =+F138+F136 -> 32838 | G139: =+G138+G136 -> 656 | H139: =+H138+H136 -> 1 | AB139: =+AB138+AB136 -> 26675 | AC139: 6790 | AD139: 0 | AE139: 0 | AF139: 0 | AG139: 0 | AH139: 0 | AI139: 0 | AJ139: 0 | AK139: 0 | AM139: =SUM(AM136+AM138) -> 80,757,680
C140: VISITAS DOMICILIARIAS
A141: 01010035 | B141: 0104002 | C141: Visita a domicilio por asistente social | D141: =IFERROR(VLOOKUP($A141,Filtro_!$A$5:$AK$2954,2,FALSE),0) -> 2719 | E141: =IFERROR(VLOOKUP($A141,Filtro_!$A$5:$AK$2954,3,FALSE),0) -> 2718 | F141: =IFERROR(VLOOKUP($A141,Filtro_!$A$5:$AK$2954,4,FALSE),0) -> 2718 | G141: =IFERROR(VLOOKUP($A141,Filtro_!$A$5:$AK$2954,5,FALSE),0) -> 0 | H141: =IFERROR(VLOOKUP($A141,Filtro_!$A$5:$AK$2954,6,FALSE),0) -> 1 | AB141: =IFERROR(VLOOKUP($A141,Filtro_!$A$5:$AK$2954,26,FALSE),0) -> 2 | AC141: =IFERROR(VLOOKUP($A141,Filtro_!$A$5:$AK$2954,27,FALSE),0) -> 2703 | AD141: =IFERROR(VLOOKUP($A141,Filtro_!$A$5:$AK$2954,28,FALSE),0) -> 0 | AE141: =IFERROR(VLOOKUP($A141,Filtro_!$A$5:$AK$2954,29,FALSE),0) -> 0 | AF141: =IFERROR(VLOOKUP($A141,Filtro_!$A$5:$AK$2954,30,FALSE),0) -> 0 | AG141: =IFERROR(VLOOKUP($A141,Filtro_!$A$5:$AK$2954,31,FALSE),0) -> 0 | AH141: =IFERROR(VLOOKUP($A141,Filtro_!$A$5:$AK$2954,32,FALSE),0) -> 0 | AI141: =IFERROR(VLOOKUP($A141,Filtro_!$A$5:$AK$2954,33,FALSE),0) -> 0 | AJ141: =IFERROR(VLOOKUP($A141,Filtro_!$A$5:$AK$2954,34,FALSE),0) -> 0 | AK141: =IFERROR(VLOOKUP($A141,Filtro_!$A$5:$AK$2954,35,FALSE),0) -> 0 | AL141: 2,210 | AM141: =AL141*F141 -> 6,006,780
A142: 01010036 | B142: 0104003 | C142: Visita a domicilio por auxiliar de enfermería | D142: =IFERROR(VLOOKUP($A142,Filtro_!$A$5:$AK$2954,2,FALSE),0) -> 12471 | E142: =IFERROR(VLOOKUP($A142,Filtro_!$A$5:$AK$2954,3,FALSE),0) -> 12471 | F142: =IFERROR(VLOOKUP($A142,Filtro_!$A$5:$AK$2954,4,FALSE),0) -> 12471 | G142: =IFERROR(VLOOKUP($A142,Filtro_!$A$5:$AK$2954,5,FALSE),0) -> 0 | H142: =IFERROR(VLOOKUP($A142,Filtro_!$A$5:$AK$2954,6,FALSE),0) -> 0 | AB142: =IFERROR(VLOOKUP($A142,Filtro_!$A$5:$AK$2954,26,FALSE),0) -> 11645 | AC142: =IFERROR(VLOOKUP($A142,Filtro_!$A$5:$AK$2954,27,FALSE),0) -> 826 | AD142: =IFERROR(VLOOKUP($A142,Filtro_!$A$5:$AK$2954,28,FALSE),0) -> 0 | AE142: =IFERROR(VLOOKUP($A142,Filtro_!$A$5:$AK$2954,29,FALSE),0) -> 0 | AF142: =IFERROR(VLOOKUP($A142,Filtro_!$A$5:$AK$2954,30,FALSE),0) -> 0 | AG142: =IFERROR(VLOOKUP($A142,Filtro_!$A$5:$AK$2954,31,FALSE),0) -> 0 | AH142: =IFERROR(VLOOKUP($A142,Filtro_!$A$5:$AK$2954,32,FALSE),0) -> 0 | AI142: =IFERROR(VLOOKUP($A142,Filtro_!$A$5:$AK$2954,33,FALSE),0) -> 0 | AJ142: =IFERROR(VLOOKUP($A142,Filtro_!$A$5:$AK$2954,34,FALSE),0) -> 0 | AK142: =IFERROR(VLOOKUP($A142,Filtro_!$A$5:$AK$2954,35,FALSE),0) -> 0 | AL142: 1,270 | AM142: =AL142*F142 -> 15,838,170
A143: 01014376 | B143: 0104004 | C143: Visita a domicilio por enfermera | D143: =IFERROR(VLOOKUP($A143,Filtro_!$A$5:$AK$2954,2,FALSE),0) -> 27848 | E143: =IFERROR(VLOOKUP($A143,Filtro_!$A$5:$AK$2954,3,FALSE),0) -> 27744 | F143: =IFERROR(VLOOKUP($A143,Filtro_!$A$5:$AK$2954,4,FALSE),0) -> 27742 | G143: =IFERROR(VLOOKUP($A143,Filtro_!$A$5:$AK$2954,5,FALSE),0) -> 2 | H143: =IFERROR(VLOOKUP($A143,Filtro_!$A$5:$AK$2954,6,FALSE),0) -> 104 | AB143: =IFERROR(VLOOKUP($A143,Filtro_!$A$5:$AK$2954,26,FALSE),0) -> 18556 | AC143: =IFERROR(VLOOKUP($A143,Filtro_!$A$5:$AK$2954,27,FALSE),0) -> 8960 | AD143: =IFERROR(VLOOKUP($A143,Filtro_!$A$5:$AK$2954,28,FALSE),0) -> 206 | AE143: =IFERROR(VLOOKUP($A143,Filtro_!$A$5:$AK$2954,29,FALSE),0) -> 0 | AF143: =IFERROR(VLOOKUP($A143,Filtro_!$A$5:$AK$2954,30,FALSE),0) -> 0 | AG143: =IFERROR(VLOOKUP($A143,Filtro_!$A$5:$AK$2954,31,FALSE),0) -> 0 | AH143: =IFERROR(VLOOKUP($A143,Filtro_!$A$5:$AK$2954,32,FALSE),0) -> 0 | AI143: =IFERROR(VLOOKUP($A143,Filtro_!$A$5:$AK$2954,33,FALSE),0) -> 0 | AJ143: =IFERROR(VLOOKUP($A143,Filtro_!$A$5:$AK$2954,34,FALSE),0) -> 0 | AK143: =IFERROR(VLOOKUP($A143,Filtro_!$A$5:$AK$2954,35,FALSE),0) -> 0 | AL143: 2,210 | AM143: =AL143*F143 -> 61,309,820
A144: 01014377 | B144: 0104005 | C144: Visita a domicilio por matrona | D144: =IFERROR(VLOOKUP($A144,Filtro_!$A$5:$AK$2954,2,FALSE),0) -> 138 | E144: =IFERROR(VLOOKUP($A144,Filtro_!$A$5:$AK$2954,3,FALSE),0) -> 138 | F144: =IFERROR(VLOOKUP($A144,Filtro_!$A$5:$AK$2954,4,FALSE),0) -> 138 | G144: =IFERROR(VLOOKUP($A144,Filtro_!$A$5:$AK$2954,5,FALSE),0) -> 0 | H144: =IFERROR(VLOOKUP($A144,Filtro_!$A$5:$AK$2954,6,FALSE),0) -> 0 | AB144: =IFERROR(VLOOKUP($A144,Filtro_!$A$5:$AK$2954,26,FALSE),0) -> 0 | AC144: =IFERROR(VLOOKUP($A144,Filtro_!$A$5:$AK$2954,27,FALSE),0) -> 138 | AD144: =IFERROR(VLOOKUP($A144,Filtro_!$A$5:$AK$2954,28,FALSE),0) -> 0 | AE144: =IFERROR(VLOOKUP($A144,Filtro_!$A$5:$AK$2954,29,FALSE),0) -> 0 | AF144: =IFERROR(VLOOKUP($A144,Filtro_!$A$5:$AK$2954,30,FALSE),0) -> 0 | AG144: =IFERROR(VLOOKUP($A144,Filtro_!$A$5:$AK$2954,31,FALSE),0) -> 0 | AH144: =IFERROR(VLOOKUP($A144,Filtro_!$A$5:$AK$2954,32,FALSE),0) -> 0 | AI144: =IFERROR(VLOOKUP($A144,Filtro_!$A$5:$AK$2954,33,FALSE),0) -> 0 | AJ144: =IFERROR(VLOOKUP($A144,Filtro_!$A$5:$AK$2954,34,FALSE),0) -> 0 | AK144: =IFERROR(VLOOKUP($A144,Filtro_!$A$5:$AK$2954,35,FALSE),0) -> 0 | AL144: 2,210 | AM144: =AL144*F144 -> 304,980
A145: 01014378 | B145: 0104006 | C145: Visita a domicilio por nutricionista | D145: =IFERROR(VLOOKUP($A145,Filtro_!$A$5:$AK$2954,2,FALSE),0) -> 1138 | E145: =IFERROR(VLOOKUP($A145,Filtro_!$A$5:$AK$2954,3,FALSE),0) -> 1138 | F145: =IFERROR(VLOOKUP($A145,Filtro_!$A$5:$AK$2954,4,FALSE),0) -> 1138 | G145: =IFERROR(VLOOKUP($A145,Filtro_!$A$5:$AK$2954,5,FALSE),0) -> 0 | H145: =IFERROR(VLOOKUP($A145,Filtro_!$A$5:$AK$2954,6,FALSE),0) -> 0 | AB145: =IFERROR(VLOOKUP($A145,Filtro_!$A$5:$AK$2954,26,FALSE),0) -> 494 | AC145: =IFERROR(VLOOKUP($A145,Filtro_!$A$5:$AK$2954,27,FALSE),0) -> 590 | AD145: =IFERROR(VLOOKUP($A145,Filtro_!$A$5:$AK$2954,28,FALSE),0) -> 0 | AE145: =IFERROR(VLOOKUP($A145,Filtro_!$A$5:$AK$2954,29,FALSE),0) -> 0 | AF145: =IFERROR(VLOOKUP($A145,Filtro_!$A$5:$AK$2954,30,FALSE),0) -> 0 | AG145: =IFERROR(VLOOKUP($A145,Filtro_!$A$5:$AK$2954,31,FALSE),0) -> 0 | AH145: =IFERROR(VLOOKUP($A145,Filtro_!$A$5:$AK$2954,32,FALSE),0) -> 0 | AI145: =IFERROR(VLOOKUP($A145,Filtro_!$A$5:$AK$2954,33,FALSE),0) -> 0 | AJ145: =IFERROR(VLOOKUP($A145,Filtro_!$A$5:$AK$2954,34,FALSE),0) -> 0 | AK145: =IFERROR(VLOOKUP($A145,Filtro_!$A$5:$AK$2954,35,FALSE),0) -> 0 | AL145: 2,210 | AM145: =AL145*F145 -> 2,514,980
C146: TOTAL ARANCEL MAI | D146: =SUM(D141:D145) -> 44314 | E146: =SUM(E141:E145) -> 44209 | F146: =SUM(F141:F145) -> 44207 | G146: =SUM(G141:G145) -> 2 | H146: =SUM(H141:H145) -> 105 | AB146: =SUM(AB141:AB145) -> 30697 | AC146: 13217 | AD146: 206 | AE146: 0 | AF146: 0 | AG146: 0 | AH146: 0 | AI146: 0 | AJ146: 0 | AK146: 0 | AM146: =SUM(AM141:AM145) -> 85,974,730
A147: 01010037 | B147: 01010037 | C147: Visita a domicilio por otro integrante del equipo de salud | D147: =IFERROR(VLOOKUP($A147,Filtro_!$A$5:$AK$2954,2,FALSE),0) -> 21442 | E147: =IFERROR(VLOOKUP($A147,Filtro_!$A$5:$AK$2954,3,FALSE),0) -> 21355 | F147: =IFERROR(VLOOKUP($A147,Filtro_!$A$5:$AK$2954,4,FALSE),0) -> 21355 | G147: =IFERROR(VLOOKUP($A147,Filtro_!$A$5:$AK$2954,5,FALSE),0) -> 0 | H147: =IFERROR(VLOOKUP($A147,Filtro_!$A$5:$AK$2954,6,FALSE),0) -> 87 | AB147: =IFERROR(VLOOKUP($A147,Filtro_!$A$5:$AK$2954,26,FALSE),0) -> 15318 | AC147: =IFERROR(VLOOKUP($A147,Filtro_!$A$5:$AK$2954,27,FALSE),0) -> 6090 | AD147: =IFERROR(VLOOKUP($A147,Filtro_!$A$5:$AK$2954,28,FALSE),0) -> 0 | AE147: =IFERROR(VLOOKUP($A147,Filtro_!$A$5:$AK$2954,29,FALSE),0) -> 0 | AF147: =IFERROR(VLOOKUP($A147,Filtro_!$A$5:$AK$2954,30,FALSE),0) -> 0 | AG147: =IFERROR(VLOOKUP($A147,Filtro_!$A$5:$AK$2954,31,FALSE),0) -> 0 | AH147: =IFERROR(VLOOKUP($A147,Filtro_!$A$5:$AK$2954,32,FALSE),0) -> 0 | AI147: =IFERROR(VLOOKUP($A147,Filtro_!$A$5:$AK$2954,33,FALSE),0) -> 0 | AJ147: =IFERROR(VLOOKUP($A147,Filtro_!$A$5:$AK$2954,34,FALSE),0) -> 0 | AK147: =IFERROR(VLOOKUP($A147,Filtro_!$A$5:$AK$2954,35,FALSE),0) -> 0 | AL147: 0 | AM147: 0
A148: 01010038 | B148: 01010038 | C148: Visita domiciaria por otro profesional y técnicos paramédico | D148: =IFERROR(VLOOKUP($A148,Filtro_!$A$5:$AK$2954,2,FALSE),0) -> 9132 | E148: =IFERROR(VLOOKUP($A148,Filtro_!$A$5:$AK$2954,3,FALSE),0) -> 9132 | F148: =IFERROR(VLOOKUP($A148,Filtro_!$A$5:$AK$2954,4,FALSE),0) -> 9132 | G148: =IFERROR(VLOOKUP($A148,Filtro_!$A$5:$AK$2954,5,FALSE),0) -> 0 | H148: =IFERROR(VLOOKUP($A148,Filtro_!$A$5:$AK$2954,6,FALSE),0) -> 0 | AB148: =IFERROR(VLOOKUP($A148,Filtro_!$A$5:$AK$2954,26,FALSE),0) -> 8106 | AC148: =IFERROR(VLOOKUP($A148,Filtro_!$A$5:$AK$2954,27,FALSE),0) -> 935 | AD148: =IFERROR(VLOOKUP($A148,Filtro_!$A$5:$AK$2954,28,FALSE),0) -> 58 | AE148: =IFERROR(VLOOKUP($A148,Filtro_!$A$5:$AK$2954,29,FALSE),0) -> 0 | AF148: =IFERROR(VLOOKUP($A148,Filtro_!$A$5:$AK$2954,30,FALSE),0) -> 0 | AG148: =IFERROR(VLOOKUP($A148,Filtro_!$A$5:$AK$2954,31,FALSE),0) -> 0 | AH148: =IFERROR(VLOOKUP($A148,Filtro_!$A$5:$AK$2954,32,FALSE),0) -> 0 | AI148: =IFERROR(VLOOKUP($A148,Filtro_!$A$5:$AK$2954,33,FALSE),0) -> 0 | AJ148: =IFERROR(VLOOKUP($A148,Filtro_!$A$5:$AK$2954,34,FALSE),0) -> 0 | AK148: =IFERROR(VLOOKUP($A148,Filtro_!$A$5:$AK$2954,35,FALSE),0) -> 0 | AL148: 0 | AM148: 0
C149: TOTAL ARANCEL MLE Y NO ARANCELADO | D149: =SUM(D147:D148) -> 30574 | E149: =SUM(E147:E148) -> 30487 | F149: =SUM(F147:F148) -> 30487 | G149: =SUM(G147:G148) -> 0 | H149: =SUM(H147:H148) -> 87 | AB149: =SUM(AB147:AB148) -> 23424 | AC149: 7025 | AD149: 58 | AE149: 0 | AF149: 0 | AG149: 0 | AH149: 0 | AI149: 0 | AJ149: 0 | AK149: 0
C150: TOTAL | D150: =SUM(D146+D149) -> 74888 | E150: =SUM(E146+E149) -> 74696 | F150: =SUM(F146+F149) -> 74694 | G150: =SUM(G146+G149) -> 2 | H150: =SUM(H146+H149) -> 192 | AB150: =SUM(AB146+AB149) -> 54121 | AC150: 20242 | AD150: 264 | AE150: 0 | AF150: 0 | AG150: 0 | AH150: 0 | AI150: 0 | AJ150: 0 | AK150: 0 | AM150: =SUM(AM146+AM149) -> 85,974,730
C151: MISCELANEOS
A152: 01010042 | B152: 0106002 | C152: Curación simple ambulatoria | D152: =IFERROR(VLOOKUP($A152,Filtro_!$A$5:$AK$2954,2,FALSE),0) -> 39079 | E152: =IFERROR(VLOOKUP($A152,Filtro_!$A$5:$AK$2954,3,FALSE),0) -> 39053 | F152: =IFERROR(VLOOKUP($A152,Filtro_!$A$5:$AK$2954,4,FALSE),0) -> 39035 | G152: =IFERROR(VLOOKUP($A152,Filtro_!$A$5:$AK$2954,5,FALSE),0) -> 18 | H152: =IFERROR(VLOOKUP($A152,Filtro_!$A$5:$AK$2954,6,FALSE),0) -> 26 | AB152: =IFERROR(VLOOKUP($A152,Filtro_!$A$5:$AK$2954,26,FALSE),0) -> 4196 | AC152: =IFERROR(VLOOKUP($A152,Filtro_!$A$5:$AK$2954,27,FALSE),0) -> 30821 | AD152: =IFERROR(VLOOKUP($A152,Filtro_!$A$5:$AK$2954,28,FALSE),0) -> 4096 | AE152: =IFERROR(VLOOKUP($A152,Filtro_!$A$5:$AK$2954,29,FALSE),0) -> 0 | AF152: =IFERROR(VLOOKUP($A152,Filtro_!$A$5:$AK$2954,30,FALSE),0) -> 0 | AG152: =IFERROR(VLOOKUP($A152,Filtro_!$A$5:$AK$2954,31,FALSE),0) -> 0 | AH152: =IFERROR(VLOOKUP($A152,Filtro_!$A$5:$AK$2954,32,FALSE),0) -> 0 | AI152: =IFERROR(VLOOKUP($A152,Filtro_!$A$5:$AK$2954,33,FALSE),0) -> 0 | AJ152: =IFERROR(VLOOKUP($A152,Filtro_!$A$5:$AK$2954,34,FALSE),0) -> 0 | AK152: =IFERROR(VLOOKUP($A152,Filtro_!$A$5:$AK$2954,35,FALSE),0) -> 0 | AL152: 850 | AM152: =AL152*F152 -> 33,179,750
A153: 01014379 | B153: 0106007 | C153: Oxigenoterapia Hiperbárica (1 sesión) | D153: =IFERROR(VLOOKUP($A153,Filtro_!$A$5:$AK$2954,2,FALSE),0) -> 121 | E153: =IFERROR(VLOOKUP($A153,Filtro_!$A$5:$AK$2954,3,FALSE),0) -> 121 | F153: =IFERROR(VLOOKUP($A153,Filtro_!$A$5:$AK$2954,4,FALSE),0) -> 121 | G153: =IFERROR(VLOOKUP($A153,Filtro_!$A$5:$AK$2954,5,FALSE),0) -> 0 | H153: =IFERROR(VLOOKUP($A153,Filtro_!$A$5:$AK$2954,6,FALSE),0) -> 0 | AB153: =IFERROR(VLOOKUP($A153,Filtro_!$A$5:$AK$2954,26,FALSE),0) -> 0 | AC153: =IFERROR(VLOOKUP($A153,Filtro_!$A$5:$AK$2954,27,FALSE),0) -> 121 | AD153: =IFERROR(VLOOKUP($A153,Filtro_!$A$5:$AK$2954,28,FALSE),0) -> 0 | AE153: =IFERROR(VLOOKUP($A153,Filtro_!$A$5:$AK$2954,29,FALSE),0) -> 0 | AF153: =IFERROR(VLOOKUP($A153,Filtro_!$A$5:$AK$2954,30,FALSE),0) -> 0 | AG153: =IFERROR(VLOOKUP($A153,Filtro_!$A$5:$AK$2954,31,FALSE),0) -> 0 | AH153: =IFERROR(VLOOKUP($A153,Filtro_!$A$5:$AK$2954,32,FALSE),0) -> 0 | AI153: =IFERROR(VLOOKUP($A153,Filtro_!$A$5:$AK$2954,33,FALSE),0) -> 0 | AJ153: =IFERROR(VLOOKUP($A153,Filtro_!$A$5:$AK$2954,34,FALSE),0) -> 0 | AK153: =IFERROR(VLOOKUP($A153,Filtro_!$A$5:$AK$2954,35,FALSE),0) -> 0 | AL153: 26,200 | AM153: =AL153*F153 -> 3,170,200
A154: 01014705 | B154: 0106101 | C154: Atención Integral de Acupuntura | D154: =IFERROR(VLOOKUP($A154,Filtro_!$A$5:$AK$2954,2,FALSE),0) -> 1155 | E154: =IFERROR(VLOOKUP($A154,Filtro_!$A$5:$AK$2954,3,FALSE),0) -> 1155 | F154: =IFERROR(VLOOKUP($A154,Filtro_!$A$5:$AK$2954,4,FALSE),0) -> 1155 | G154: =IFERROR(VLOOKUP($A154,Filtro_!$A$5:$AK$2954,5,FALSE),0) -> 0 | H154: =IFERROR(VLOOKUP($A154,Filtro_!$A$5:$AK$2954,6,FALSE),0) -> 0 | AB154: =IFERROR(VLOOKUP($A154,Filtro_!$A$5:$AK$2954,26,FALSE),0) -> 0 | AC154: =IFERROR(VLOOKUP($A154,Filtro_!$A$5:$AK$2954,27,FALSE),0) -> 1155 | AD154: =IFERROR(VLOOKUP($A154,Filtro_!$A$5:$AK$2954,28,FALSE),0) -> 0 | AE154: =IFERROR(VLOOKUP($A154,Filtro_!$A$5:$AK$2954,29,FALSE),0) -> 0 | AF154: =IFERROR(VLOOKUP($A154,Filtro_!$A$5:$AK$2954,30,FALSE),0) -> 0 | AG154: =IFERROR(VLOOKUP($A154,Filtro_!$A$5:$AK$2954,31,FALSE),0) -> 0 | AH154: =IFERROR(VLOOKUP($A154,Filtro_!$A$5:$AK$2954,32,FALSE),0) -> 0 | AI154: =IFERROR(VLOOKUP($A154,Filtro_!$A$5:$AK$2954,33,FALSE),0) -> 0 | AJ154: =IFERROR(VLOOKUP($A154,Filtro_!$A$5:$AK$2954,34,FALSE),0) -> 0 | AK154: =IFERROR(VLOOKUP($A154,Filtro_!$A$5:$AK$2954,35,FALSE),0) -> 113 | AL154: 6,110 | AM154: =AL154*F154 -> 7,057,050
C155: TOTAL ARANCEL MAI | D155: =SUM(D152:D154) -> 40355 | E155: =SUM(E152:E154) -> 40329 | F155: =SUM(F152:F154) -> 40311 | G155: =SUM(G152:G154) -> 18 | H155: =SUM(H152:H154) -> 26 | AB155: =SUM(AB152:AB154) -> 4196 | AC155: 32097 | AD155: 4096 | AE155: 0 | AF155: 0 | AG155: 0 | AH155: 0 | AI155: 0 | AJ155: 0 | AK155: 113 | AM155: =SUM(AM152:AM154) -> 43407000
A156: 01014706 | B156: 01010043 | C156: Autocontrol pacientes Diabetico insulino dependiente (D.I.D. mensual) | D156: =IFERROR(VLOOKUP($A156,Filtro_!$A$5:$AK$2954,2,FALSE),0) -> 9265 | E156: =IFERROR(VLOOKUP($A156,Filtro_!$A$5:$AK$2954,3,FALSE),0) -> 9265 | F156: =IFERROR(VLOOKUP($A156,Filtro_!$A$5:$AK$2954,4,FALSE),0) -> 9265 | G156: =IFERROR(VLOOKUP($A156,Filtro_!$A$5:$AK$2954,5,FALSE),0) -> 0 | H156: =IFERROR(VLOOKUP($A156,Filtro_!$A$5:$AK$2954,6,FALSE),0) -> 0 | I156: 0 | J156: 0 | K156: 0 | L156: 0 | M156: 0 | N156: 0 | O156: 0 | P156: 0 | Q156: 0 | R156: 0 | S156: 0 | T156: 0 | U156: 0 | V156: 0 | W156: 0 | X156: 0 | Y156: 0 | Z156: 0 | AA156: 0 | AB156: =IFERROR(VLOOKUP($A156,Filtro_!$A$5:$AK$2954,26,FALSE),0) -> 0 | AC156: =IFERROR(VLOOKUP($A156,Filtro_!$A$5:$AK$2954,27,FALSE),0) -> 9265 | AD156: =IFERROR(VLOOKUP($A156,Filtro_!$A$5:$AK$2954,28,FALSE),0) -> 0 | AE156: =IFERROR(VLOOKUP($A156,Filtro_!$A$5:$AK$2954,29,FALSE),0) -> 0 | AF156: =IFERROR(VLOOKUP($A156,Filtro_!$A$5:$AK$2954,30,FALSE),0) -> 0 | AG156: =IFERROR(VLOOKUP($A156,Filtro_!$A$5:$AK$2954,31,FALSE),0) -> 0 | AH156: =IFERROR(VLOOKUP($A156,Filtro_!$A$5:$AK$2954,32,FALSE),0) -> 0 | AI156: =IFERROR(VLOOKUP($A156,Filtro_!$A$5:$AK$2954,33,FALSE),0) -> 0 | AJ156: =IFERROR(VLOOKUP($A156,Filtro_!$A$5:$AK$2954,34,FALSE),0) -> 0 | AK156: =IFERROR(VLOOKUP($A156,Filtro_!$A$5:$AK$2954,35,FALSE),0) -> 0 | AL156: 0 | AM156: 0
A157: 01014707 | B157: 01010044 | C157: Oxigenoterapia domiciliaria (pacientes oxígeno dependientes) | D157: =IFERROR(VLOOKUP($A157,Filtro_!$A$5:$AK$2954,2,FALSE),0) -> 273 | E157: =IFERROR(VLOOKUP($A157,Filtro_!$A$5:$AK$2954,3,FALSE),0) -> 273 | F157: =IFERROR(VLOOKUP($A157,Filtro_!$A$5:$AK$2954,4,FALSE),0) -> 273 | G157: =IFERROR(VLOOKUP($A157,Filtro_!$A$5:$AK$2954,5,FALSE),0) -> 0 | H157: =IFERROR(VLOOKUP($A157,Filtro_!$A$5:$AK$2954,6,FALSE),0) -> 0 | I157: 0 | J157: 0 | K157: 0 | L157: 0 | M157: 0 | N157: 0 | O157: 0 | P157: 0 | Q157: 0 | R157: 0 | S157: 0 | T157: 0 | U157: 0 | V157: 0 | W157: 0 | X157: 0 | Y157: 0 | Z157: 0 | AA157: 0 | AB157: =IFERROR(VLOOKUP($A157,Filtro_!$A$5:$AK$2954,26,FALSE),0) -> 0 | AC157: =IFERROR(VLOOKUP($A157,Filtro_!$A$5:$AK$2954,27,FALSE),0) -> 273 | AD157: =IFERROR(VLOOKUP($A157,Filtro_!$A$5:$AK$2954,28,FALSE),0) -> 0 | AE157: =IFERROR(VLOOKUP($A157,Filtro_!$A$5:$AK$2954,29,FALSE),0) -> 0 | AF157: =IFERROR(VLOOKUP($A157,Filtro_!$A$5:$AK$2954,30,FALSE),0) -> 0 | AG157: =IFERROR(VLOOKUP($A157,Filtro_!$A$5:$AK$2954,31,FALSE),0) -> 0 | AH157: =IFERROR(VLOOKUP($A157,Filtro_!$A$5:$AK$2954,32,FALSE),0) -> 0 | AI157: =IFERROR(VLOOKUP($A157,Filtro_!$A$5:$AK$2954,33,FALSE),0) -> 0 | AJ157: =IFERROR(VLOOKUP($A157,Filtro_!$A$5:$AK$2954,34,FALSE),0) -> 0 | AK157: =IFERROR(VLOOKUP($A157,Filtro_!$A$5:$AK$2954,35,FALSE),0) -> 0 | AL157: 0 | AM157: 0
A158: 01010047 | B158: 01010047 | C158: Procedimientos de podología | D158: =IFERROR(VLOOKUP($A158,Filtro_!$A$5:$AK$2954,2,FALSE),0) -> 2456 | E158: =IFERROR(VLOOKUP($A158,Filtro_!$A$5:$AK$2954,3,FALSE),0) -> 2456 | F158: =IFERROR(VLOOKUP($A158,Filtro_!$A$5:$AK$2954,4,FALSE),0) -> 2456 | G158: =IFERROR(VLOOKUP($A158,Filtro_!$A$5:$AK$2954,5,FALSE),0) -> 0 | H158: =IFERROR(VLOOKUP($A158,Filtro_!$A$5:$AK$2954,6,FALSE),0) -> 0 | I158: 0 | J158: 0 | K158: 0 | L158: 0 | M158: 0 | N158: 0 | O158: 0 | P158: 0 | Q158: 0 | R158: 0 | S158: 0 | T158: 0 | U158: 0 | V158: 0 | W158: 0 | X158: 0 | Y158: 0 | Z158: 0 | AA158: 0 | AB158: =IFERROR(VLOOKUP($A158,Filtro_!$A$5:$AK$2954,26,FALSE),0) -> 101 | AC158: =IFERROR(VLOOKUP($A158,Filtro_!$A$5:$AK$2954,27,FALSE),0) -> 2338 | AD158: =IFERROR(VLOOKUP($A158,Filtro_!$A$5:$AK$2954,28,FALSE),0) -> 0 | AE158: =IFERROR(VLOOKUP($A158,Filtro_!$A$5:$AK$2954,29,FALSE),0) -> 0 | AF158: =IFERROR(VLOOKUP($A158,Filtro_!$A$5:$AK$2954,30,FALSE),0) -> 0 | AG158: =IFERROR(VLOOKUP($A158,Filtro_!$A$5:$AK$2954,31,FALSE),0) -> 0 | AH158: =IFERROR(VLOOKUP($A158,Filtro_!$A$5:$AK$2954,32,FALSE),0) -> 0 | AI158: =IFERROR(VLOOKUP($A158,Filtro_!$A$5:$AK$2954,33,FALSE),0) -> 0 | AJ158: =IFERROR(VLOOKUP($A158,Filtro_!$A$5:$AK$2954,34,FALSE),0) -> 75 | AK158: =IFERROR(VLOOKUP($A158,Filtro_!$A$5:$AK$2954,35,FALSE),0) -> 0 | AL158: 0 | AM158: 0
C159: TOTAL ARANCEL MLE Y NO ARANCELADO | D159: =SUM(D156:D158) -> 11994 | E159: =SUM(E156:E158) -> 11994 | F159: =SUM(F156:F158) -> 11994 | G159: =SUM(G156:G158) -> 0 | H159: =SUM(H156:H158) -> 0 | AB159: =SUM(AB156:AB158) -> 101 | AC159: 11876 | AD159: 0 | AE159: 0 | AF159: 0 | AG159: 0 | AH159: 0 | AI159: 0 | AJ159: 75 | AK159: 0
C160: TOTAL PRODUCCION | D160: =SUM(D155+D159) -> 52349 | E160: =SUM(E155+E159) -> 52323 | F160: =SUM(F155+F159) -> 52305 | G160: =SUM(G155+G159) -> 18 | H160: =SUM(H155+H159) -> 26 | AB160: =SUM(AB155+AB159) -> 4297 | AC160: 43973 | AD160: 4096 | AE160: 0 | AF160: 0 | AG160: 0 | AH160: 0 | AI160: 0 | AJ160: 75 | AK160: 113 | AM160: =SUM(AM155+AM159) -> 43,407,000
C161: OTRAS MISCELANEOS
A162: 01010048 | B162: 5099048 | C162: Hemoglucotest instantáneo | D162: =IFERROR(VLOOKUP($A162,Filtro_!$A$5:$AK$2954,2,FALSE),0) -> 809204 | E162: =IFERROR(VLOOKUP($A162,Filtro_!$A$5:$AK$2954,3,FALSE),0) -> 809204 | F162: =IFERROR(VLOOKUP($A162,Filtro_!$A$5:$AK$2954,4,FALSE),0) -> 809204 | G162: =IFERROR(VLOOKUP($A162,Filtro_!$A$5:$AK$2954,5,FALSE),0) -> 0 | H162: =IFERROR(VLOOKUP($A162,Filtro_!$A$5:$AK$2954,6,FALSE),0) -> 0 | AB162: =IFERROR(VLOOKUP($A162,Filtro_!$A$5:$AK$2954,26,FALSE),0) -> 175000 | AC162: =IFERROR(VLOOKUP($A162,Filtro_!$A$5:$AK$2954,27,FALSE),0) -> 597575 | AD162: =IFERROR(VLOOKUP($A162,Filtro_!$A$5:$AK$2954,28,FALSE),0) -> 36629 | AE162: =IFERROR(VLOOKUP($A162,Filtro_!$A$5:$AK$2954,29,FALSE),0) -> 0 | AF162: =IFERROR(VLOOKUP($A162,Filtro_!$A$5:$AK$2954,30,FALSE),0) -> 0 | AG162: =IFERROR(VLOOKUP($A162,Filtro_!$A$5:$AK$2954,31,FALSE),0) -> 0 | AH162: =IFERROR(VLOOKUP($A162,Filtro_!$A$5:$AK$2954,32,FALSE),0) -> 0 | AI162: =IFERROR(VLOOKUP($A162,Filtro_!$A$5:$AK$2954,33,FALSE),0) -> 0 | AJ162: =IFERROR(VLOOKUP($A162,Filtro_!$A$5:$AK$2954,34,FALSE),0) -> 0 | AK162: =IFERROR(VLOOKUP($A162,Filtro_!$A$5:$AK$2954,35,FALSE),0) -> 0 | AL162: 0 | AM162: 0
A163: 01010049 | B163: 5099008 | C163: Actividad Básica | D163: =IFERROR(VLOOKUP($A163,Filtro_!$A$5:$AK$2954,2,FALSE),0) -> 2012 | E163: =IFERROR(VLOOKUP($A163,Filtro_!$A$5:$AK$2954,3,FALSE),0) -> 2012 | F163: =IFERROR(VLOOKUP($A163,Filtro_!$A$5:$AK$2954,4,FALSE),0) -> 2012 | G163: =IFERROR(VLOOKUP($A163,Filtro_!$A$5:$AK$2954,5,FALSE),0) -> 0 | H163: =IFERROR(VLOOKUP($A163,Filtro_!$A$5:$AK$2954,6,FALSE),0) -> 0 | AB163: =IFERROR(VLOOKUP($A163,Filtro_!$A$5:$AK$2954,26,FALSE),0) -> 0 | AC163: =IFERROR(VLOOKUP($A163,Filtro_!$A$5:$AK$2954,27,FALSE),0) -> 2012 | AD163: =IFERROR(VLOOKUP($A163,Filtro_!$A$5:$AK$2954,28,FALSE),0) -> 0 | AE163: =IFERROR(VLOOKUP($A163,Filtro_!$A$5:$AK$2954,29,FALSE),0) -> 0 | AF163: =IFERROR(VLOOKUP($A163,Filtro_!$A$5:$AK$2954,30,FALSE),0) -> 0 | AG163: =IFERROR(VLOOKUP($A163,Filtro_!$A$5:$AK$2954,31,FALSE),0) -> 0 | AH163: =IFERROR(VLOOKUP($A163,Filtro_!$A$5:$AK$2954,32,FALSE),0) -> 0 | AI163: =IFERROR(VLOOKUP($A163,Filtro_!$A$5:$AK$2954,33,FALSE),0) -> 0 | AJ163: =IFERROR(VLOOKUP($A163,Filtro_!$A$5:$AK$2954,34,FALSE),0) -> 0 | AK163: =IFERROR(VLOOKUP($A163,Filtro_!$A$5:$AK$2954,35,FALSE),0) -> 0 | AL163: 0 | AM163: 0
A164: 01010050 | B164: 5099009 | C164: Actividad Terapeutica | D164: =IFERROR(VLOOKUP($A164,Filtro_!$A$5:$AK$2954,2,FALSE),0) -> 2494 | E164: =IFERROR(VLOOKUP($A164,Filtro_!$A$5:$AK$2954,3,FALSE),0) -> 2494 | F164: =IFERROR(VLOOKUP($A164,Filtro_!$A$5:$AK$2954,4,FALSE),0) -> 2494 | G164: =IFERROR(VLOOKUP($A164,Filtro_!$A$5:$AK$2954,5,FALSE),0) -> 0 | H164: =IFERROR(VLOOKUP($A164,Filtro_!$A$5:$AK$2954,6,FALSE),0) -> 0 | AB164: =IFERROR(VLOOKUP($A164,Filtro_!$A$5:$AK$2954,26,FALSE),0) -> 1096 | AC164: =IFERROR(VLOOKUP($A164,Filtro_!$A$5:$AK$2954,27,FALSE),0) -> 1398 | AD164: =IFERROR(VLOOKUP($A164,Filtro_!$A$5:$AK$2954,28,FALSE),0) -> 0 | AE164: =IFERROR(VLOOKUP($A164,Filtro_!$A$5:$AK$2954,29,FALSE),0) -> 0 | AF164: =IFERROR(VLOOKUP($A164,Filtro_!$A$5:$AK$2954,30,FALSE),0) -> 0 | AG164: =IFERROR(VLOOKUP($A164,Filtro_!$A$5:$AK$2954,31,FALSE),0) -> 0 | AH164: =IFERROR(VLOOKUP($A164,Filtro_!$A$5:$AK$2954,32,FALSE),0) -> 0 | AI164: =IFERROR(VLOOKUP($A164,Filtro_!$A$5:$AK$2954,33,FALSE),0) -> 0 | AJ164: =IFERROR(VLOOKUP($A164,Filtro_!$A$5:$AK$2954,34,FALSE),0) -> 0 | AK164: =IFERROR(VLOOKUP($A164,Filtro_!$A$5:$AK$2954,35,FALSE),0) -> 0 | AL164: 0 | AM164: 0
A165: 01010051 | B165: 5099010 | C165: Evaluacion Actividad | D165: =IFERROR(VLOOKUP($A165,Filtro_!$A$5:$AK$2954,2,FALSE),0) -> 640 | E165: =IFERROR(VLOOKUP($A165,Filtro_!$A$5:$AK$2954,3,FALSE),0) -> 640 | F165: =IFERROR(VLOOKUP($A165,Filtro_!$A$5:$AK$2954,4,FALSE),0) -> 640 | G165: =IFERROR(VLOOKUP($A165,Filtro_!$A$5:$AK$2954,5,FALSE),0) -> 0 | H165: =IFERROR(VLOOKUP($A165,Filtro_!$A$5:$AK$2954,6,FALSE),0) -> 0 | AB165: =IFERROR(VLOOKUP($A165,Filtro_!$A$5:$AK$2954,26,FALSE),0) -> 115 | AC165: =IFERROR(VLOOKUP($A165,Filtro_!$A$5:$AK$2954,27,FALSE),0) -> 525 | AD165: =IFERROR(VLOOKUP($A165,Filtro_!$A$5:$AK$2954,28,FALSE),0) -> 0 | AE165: =IFERROR(VLOOKUP($A165,Filtro_!$A$5:$AK$2954,29,FALSE),0) -> 0 | AF165: =IFERROR(VLOOKUP($A165,Filtro_!$A$5:$AK$2954,30,FALSE),0) -> 0 | AG165: =IFERROR(VLOOKUP($A165,Filtro_!$A$5:$AK$2954,31,FALSE),0) -> 0 | AH165: =IFERROR(VLOOKUP($A165,Filtro_!$A$5:$AK$2954,32,FALSE),0) -> 0 | AI165: =IFERROR(VLOOKUP($A165,Filtro_!$A$5:$AK$2954,33,FALSE),0) -> 0 | AJ165: =IFERROR(VLOOKUP($A165,Filtro_!$A$5:$AK$2954,34,FALSE),0) -> 0 | AK165: =IFERROR(VLOOKUP($A165,Filtro_!$A$5:$AK$2954,35,FALSE),0) -> 0 | AL165: 0 | AM165: 0
A166: 01010052 | B166: 5099011 | C166: Evaluacion prevocacional | D166: =IFERROR(VLOOKUP($A166,Filtro_!$A$5:$AK$2954,2,FALSE),0) -> 0 | E166: =IFERROR(VLOOKUP($A166,Filtro_!$A$5:$AK$2954,3,FALSE),0) -> 0 | F166: =IFERROR(VLOOKUP($A166,Filtro_!$A$5:$AK$2954,4,FALSE),0) -> 0 | G166: =IFERROR(VLOOKUP($A166,Filtro_!$A$5:$AK$2954,5,FALSE),0) -> 0 | H166: =IFERROR(VLOOKUP($A166,Filtro_!$A$5:$AK$2954,6,FALSE),0) -> 0 | AB166: =IFERROR(VLOOKUP($A166,Filtro_!$A$5:$AK$2954,26,FALSE),0) -> 0 | AC166: =IFERROR(VLOOKUP($A166,Filtro_!$A$5:$AK$2954,27,FALSE),0) -> 0 | AD166: =IFERROR(VLOOKUP($A166,Filtro_!$A$5:$AK$2954,28,FALSE),0) -> 0 | AE166: =IFERROR(VLOOKUP($A166,Filtro_!$A$5:$AK$2954,29,FALSE),0) -> 0 | AF166: =IFERROR(VLOOKUP($A166,Filtro_!$A$5:$AK$2954,30,FALSE),0) -> 0 | AG166: =IFERROR(VLOOKUP($A166,Filtro_!$A$5:$AK$2954,31,FALSE),0) -> 0 | AH166: =IFERROR(VLOOKUP($A166,Filtro_!$A$5:$AK$2954,32,FALSE),0) -> 0 | AI166: =IFERROR(VLOOKUP($A166,Filtro_!$A$5:$AK$2954,33,FALSE),0) -> 0 | AJ166: =IFERROR(VLOOKUP($A166,Filtro_!$A$5:$AK$2954,34,FALSE),0) -> 0 | AK166: =IFERROR(VLOOKUP($A166,Filtro_!$A$5:$AK$2954,35,FALSE),0) -> 0 | AL166: 0 | AM166: 0
A167: 01010053 | B167: 5099063 | C167: Evaluación cognitiva | D167: =IFERROR(VLOOKUP($A167,Filtro_!$A$5:$AK$2954,2,FALSE),0) -> 340 | E167: =IFERROR(VLOOKUP($A167,Filtro_!$A$5:$AK$2954,3,FALSE),0) -> 340 | F167: =IFERROR(VLOOKUP($A167,Filtro_!$A$5:$AK$2954,4,FALSE),0) -> 340 | G167: =IFERROR(VLOOKUP($A167,Filtro_!$A$5:$AK$2954,5,FALSE),0) -> 0 | H167: =IFERROR(VLOOKUP($A167,Filtro_!$A$5:$AK$2954,6,FALSE),0) -> 0 | AB167: =IFERROR(VLOOKUP($A167,Filtro_!$A$5:$AK$2954,26,FALSE),0) -> 225 | AC167: =IFERROR(VLOOKUP($A167,Filtro_!$A$5:$AK$2954,27,FALSE),0) -> 115 | AD167: =IFERROR(VLOOKUP($A167,Filtro_!$A$5:$AK$2954,28,FALSE),0) -> 0 | AE167: =IFERROR(VLOOKUP($A167,Filtro_!$A$5:$AK$2954,29,FALSE),0) -> 0 | AF167: =IFERROR(VLOOKUP($A167,Filtro_!$A$5:$AK$2954,30,FALSE),0) -> 0 | AG167: =IFERROR(VLOOKUP($A167,Filtro_!$A$5:$AK$2954,31,FALSE),0) -> 0 | AH167: =IFERROR(VLOOKUP($A167,Filtro_!$A$5:$AK$2954,32,FALSE),0) -> 0 | AI167: =IFERROR(VLOOKUP($A167,Filtro_!$A$5:$AK$2954,33,FALSE),0) -> 0 | AJ167: =IFERROR(VLOOKUP($A167,Filtro_!$A$5:$AK$2954,34,FALSE),0) -> 0 | AK167: =IFERROR(VLOOKUP($A167,Filtro_!$A$5:$AK$2954,35,FALSE),0) -> 0 | AL167: 0 | AM167: 0
A168: 01010054 | B168: 5099064 | C168: Estimulación cognitiva | D168: =IFERROR(VLOOKUP($A168,Filtro_!$A$5:$AK$2954,2,FALSE),0) -> 2501 | E168: =IFERROR(VLOOKUP($A168,Filtro_!$A$5:$AK$2954,3,FALSE),0) -> 2501 | F168: =IFERROR(VLOOKUP($A168,Filtro_!$A$5:$AK$2954,4,FALSE),0) -> 2501 | G168: =IFERROR(VLOOKUP($A168,Filtro_!$A$5:$AK$2954,5,FALSE),0) -> 0 | H168: =IFERROR(VLOOKUP($A168,Filtro_!$A$5:$AK$2954,6,FALSE),0) -> 0 | AB168: =IFERROR(VLOOKUP($A168,Filtro_!$A$5:$AK$2954,26,FALSE),0) -> 2195 | AC168: =IFERROR(VLOOKUP($A168,Filtro_!$A$5:$AK$2954,27,FALSE),0) -> 306 | AD168: =IFERROR(VLOOKUP($A168,Filtro_!$A$5:$AK$2954,28,FALSE),0) -> 0 | AE168: =IFERROR(VLOOKUP($A168,Filtro_!$A$5:$AK$2954,29,FALSE),0) -> 0 | AF168: =IFERROR(VLOOKUP($A168,Filtro_!$A$5:$AK$2954,30,FALSE),0) -> 0 | AG168: =IFERROR(VLOOKUP($A168,Filtro_!$A$5:$AK$2954,31,FALSE),0) -> 0 | AH168: =IFERROR(VLOOKUP($A168,Filtro_!$A$5:$AK$2954,32,FALSE),0) -> 0 | AI168: =IFERROR(VLOOKUP($A168,Filtro_!$A$5:$AK$2954,33,FALSE),0) -> 0 | AJ168: =IFERROR(VLOOKUP($A168,Filtro_!$A$5:$AK$2954,34,FALSE),0) -> 0 | AK168: =IFERROR(VLOOKUP($A168,Filtro_!$A$5:$AK$2954,35,FALSE),0) -> 0 | AL168: 0 | AM168: 0
A169: 01010055 | B169: 5099111 | C169: Curacion avanzada de herida | D169: =IFERROR(VLOOKUP($A169,Filtro_!$A$5:$AK$2954,2,FALSE),0) -> 18523 | E169: =IFERROR(VLOOKUP($A169,Filtro_!$A$5:$AK$2954,3,FALSE),0) -> 18521 | F169: =IFERROR(VLOOKUP($A169,Filtro_!$A$5:$AK$2954,4,FALSE),0) -> 18515 | G169: =IFERROR(VLOOKUP($A169,Filtro_!$A$5:$AK$2954,5,FALSE),0) -> 6 | H169: =IFERROR(VLOOKUP($A169,Filtro_!$A$5:$AK$2954,6,FALSE),0) -> 2 | AB169: =IFERROR(VLOOKUP($A169,Filtro_!$A$5:$AK$2954,26,FALSE),0) -> 2181 | AC169: =IFERROR(VLOOKUP($A169,Filtro_!$A$5:$AK$2954,27,FALSE),0) -> 15857 | AD169: =IFERROR(VLOOKUP($A169,Filtro_!$A$5:$AK$2954,28,FALSE),0) -> 348 | AE169: =IFERROR(VLOOKUP($A169,Filtro_!$A$5:$AK$2954,29,FALSE),0) -> 0 | AF169: =IFERROR(VLOOKUP($A169,Filtro_!$A$5:$AK$2954,30,FALSE),0) -> 0 | AG169: =IFERROR(VLOOKUP($A169,Filtro_!$A$5:$AK$2954,31,FALSE),0) -> 0 | AH169: =IFERROR(VLOOKUP($A169,Filtro_!$A$5:$AK$2954,32,FALSE),0) -> 0 | AI169: =IFERROR(VLOOKUP($A169,Filtro_!$A$5:$AK$2954,33,FALSE),0) -> 0 | AJ169: =IFERROR(VLOOKUP($A169,Filtro_!$A$5:$AK$2954,34,FALSE),0) -> 0 | AK169: =IFERROR(VLOOKUP($A169,Filtro_!$A$5:$AK$2954,35,FALSE),0) -> 0 | AL169: 0 | AM169: 0
A170: 01010056 | B170: 0102701 | C170: Evaluación Motriz Funcional | D170: =IFERROR(VLOOKUP($A170,Filtro_!$A$5:$AK$2954,2,FALSE),0) -> 327 | E170: =IFERROR(VLOOKUP($A170,Filtro_!$A$5:$AK$2954,3,FALSE),0) -> 327 | F170: =IFERROR(VLOOKUP($A170,Filtro_!$A$5:$AK$2954,4,FALSE),0) -> 327 | G170: =IFERROR(VLOOKUP($A170,Filtro_!$A$5:$AK$2954,5,FALSE),0) -> 0 | H170: =IFERROR(VLOOKUP($A170,Filtro_!$A$5:$AK$2954,6,FALSE),0) -> 0 | AB170: =IFERROR(VLOOKUP($A170,Filtro_!$A$5:$AK$2954,26,FALSE),0) -> 192 | AC170: =IFERROR(VLOOKUP($A170,Filtro_!$A$5:$AK$2954,27,FALSE),0) -> 135 | AD170: =IFERROR(VLOOKUP($A170,Filtro_!$A$5:$AK$2954,28,FALSE),0) -> 0 | AE170: =IFERROR(VLOOKUP($A170,Filtro_!$A$5:$AK$2954,29,FALSE),0) -> 0 | AF170: =IFERROR(VLOOKUP($A170,Filtro_!$A$5:$AK$2954,30,FALSE),0) -> 0 | AG170: =IFERROR(VLOOKUP($A170,Filtro_!$A$5:$AK$2954,31,FALSE),0) -> 0 | AH170: =IFERROR(VLOOKUP($A170,Filtro_!$A$5:$AK$2954,32,FALSE),0) -> 0 | AI170: =IFERROR(VLOOKUP($A170,Filtro_!$A$5:$AK$2954,33,FALSE),0) -> 0 | AJ170: =IFERROR(VLOOKUP($A170,Filtro_!$A$5:$AK$2954,34,FALSE),0) -> 0 | AK170: =IFERROR(VLOOKUP($A170,Filtro_!$A$5:$AK$2954,35,FALSE),0) -> 0 | AL170: 0 | AM170: 0
A171: 01010057 | B171: 0102702 | C171: Evaluación cognitiva-perceptual | D171: =IFERROR(VLOOKUP($A171,Filtro_!$A$5:$AK$2954,2,FALSE),0) -> 269 | E171: =IFERROR(VLOOKUP($A171,Filtro_!$A$5:$AK$2954,3,FALSE),0) -> 269 | F171: =IFERROR(VLOOKUP($A171,Filtro_!$A$5:$AK$2954,4,FALSE),0) -> 269 | G171: =IFERROR(VLOOKUP($A171,Filtro_!$A$5:$AK$2954,5,FALSE),0) -> 0 | H171: =IFERROR(VLOOKUP($A171,Filtro_!$A$5:$AK$2954,6,FALSE),0) -> 0 | AB171: =IFERROR(VLOOKUP($A171,Filtro_!$A$5:$AK$2954,26,FALSE),0) -> 157 | AC171: =IFERROR(VLOOKUP($A171,Filtro_!$A$5:$AK$2954,27,FALSE),0) -> 112 | AD171: =IFERROR(VLOOKUP($A171,Filtro_!$A$5:$AK$2954,28,FALSE),0) -> 0 | AE171: =IFERROR(VLOOKUP($A171,Filtro_!$A$5:$AK$2954,29,FALSE),0) -> 0 | AF171: =IFERROR(VLOOKUP($A171,Filtro_!$A$5:$AK$2954,30,FALSE),0) -> 0 | AG171: =IFERROR(VLOOKUP($A171,Filtro_!$A$5:$AK$2954,31,FALSE),0) -> 0 | AH171: =IFERROR(VLOOKUP($A171,Filtro_!$A$5:$AK$2954,32,FALSE),0) -> 0 | AI171: =IFERROR(VLOOKUP($A171,Filtro_!$A$5:$AK$2954,33,FALSE),0) -> 0 | AJ171: =IFERROR(VLOOKUP($A171,Filtro_!$A$5:$AK$2954,34,FALSE),0) -> 0 | AK171: =IFERROR(VLOOKUP($A171,Filtro_!$A$5:$AK$2954,35,FALSE),0) -> 0 | AL171: 0 | AM171: 0
A172: 01010058 | B172: 0102703 | C172: Evaluación independencia en actividades de la vida diaria | D172: =IFERROR(VLOOKUP($A172,Filtro_!$A$5:$AK$2954,2,FALSE),0) -> 329 | E172: =IFERROR(VLOOKUP($A172,Filtro_!$A$5:$AK$2954,3,FALSE),0) -> 329 | F172: =IFERROR(VLOOKUP($A172,Filtro_!$A$5:$AK$2954,4,FALSE),0) -> 329 | G172: =IFERROR(VLOOKUP($A172,Filtro_!$A$5:$AK$2954,5,FALSE),0) -> 0 | H172: =IFERROR(VLOOKUP($A172,Filtro_!$A$5:$AK$2954,6,FALSE),0) -> 0 | AB172: =IFERROR(VLOOKUP($A172,Filtro_!$A$5:$AK$2954,26,FALSE),0) -> 187 | AC172: =IFERROR(VLOOKUP($A172,Filtro_!$A$5:$AK$2954,27,FALSE),0) -> 142 | AD172: =IFERROR(VLOOKUP($A172,Filtro_!$A$5:$AK$2954,28,FALSE),0) -> 0 | AE172: =IFERROR(VLOOKUP($A172,Filtro_!$A$5:$AK$2954,29,FALSE),0) -> 0 | AF172: =IFERROR(VLOOKUP($A172,Filtro_!$A$5:$AK$2954,30,FALSE),0) -> 0 | AG172: =IFERROR(VLOOKUP($A172,Filtro_!$A$5:$AK$2954,31,FALSE),0) -> 0 | AH172: =IFERROR(VLOOKUP($A172,Filtro_!$A$5:$AK$2954,32,FALSE),0) -> 0 | AI172: =IFERROR(VLOOKUP($A172,Filtro_!$A$5:$AK$2954,33,FALSE),0) -> 0 | AJ172: =IFERROR(VLOOKUP($A172,Filtro_!$A$5:$AK$2954,34,FALSE),0) -> 0 | AK172: =IFERROR(VLOOKUP($A172,Filtro_!$A$5:$AK$2954,35,FALSE),0) -> 0 | AL172: 0 | AM172: 0
A173: 01010059 | B173: 0102704 | C173: Evaluación barreras arquitectónicas | D173: =IFERROR(VLOOKUP($A173,Filtro_!$A$5:$AK$2954,2,FALSE),0) -> 0 | E173: =IFERROR(VLOOKUP($A173,Filtro_!$A$5:$AK$2954,3,FALSE),0) -> 0 | F173: =IFERROR(VLOOKUP($A173,Filtro_!$A$5:$AK$2954,4,FALSE),0) -> 0 | G173: =IFERROR(VLOOKUP($A173,Filtro_!$A$5:$AK$2954,5,FALSE),0) -> 0 | H173: =IFERROR(VLOOKUP($A173,Filtro_!$A$5:$AK$2954,6,FALSE),0) -> 0 | AB173: =IFERROR(VLOOKUP($A173,Filtro_!$A$5:$AK$2954,26,FALSE),0) -> 0 | AC173: =IFERROR(VLOOKUP($A173,Filtro_!$A$5:$AK$2954,27,FALSE),0) -> 0 | AD173: =IFERROR(VLOOKUP($A173,Filtro_!$A$5:$AK$2954,28,FALSE),0) -> 0 | AE173: =IFERROR(VLOOKUP($A173,Filtro_!$A$5:$AK$2954,29,FALSE),0) -> 0 | AF173: =IFERROR(VLOOKUP($A173,Filtro_!$A$5:$AK$2954,30,FALSE),0) -> 0 | AG173: =IFERROR(VLOOKUP($A173,Filtro_!$A$5:$AK$2954,31,FALSE),0) -> 0 | AH173: =IFERROR(VLOOKUP($A173,Filtro_!$A$5:$AK$2954,32,FALSE),0) -> 0 | AI173: =IFERROR(VLOOKUP($A173,Filtro_!$A$5:$AK$2954,33,FALSE),0) -> 0 | AJ173: =IFERROR(VLOOKUP($A173,Filtro_!$A$5:$AK$2954,34,FALSE),0) -> 0 | AK173: =IFERROR(VLOOKUP($A173,Filtro_!$A$5:$AK$2954,35,FALSE),0) -> 0 | AL173: 0 | AM173: 0
A174: 01010060 | B174: 0102705 | C174: Evaluación puesto de trabajo | D174: =IFERROR(VLOOKUP($A174,Filtro_!$A$5:$AK$2954,2,FALSE),0) -> 4 | E174: =IFERROR(VLOOKUP($A174,Filtro_!$A$5:$AK$2954,3,FALSE),0) -> 4 | F174: =IFERROR(VLOOKUP($A174,Filtro_!$A$5:$AK$2954,4,FALSE),0) -> 4 | G174: =IFERROR(VLOOKUP($A174,Filtro_!$A$5:$AK$2954,5,FALSE),0) -> 0 | H174: =IFERROR(VLOOKUP($A174,Filtro_!$A$5:$AK$2954,6,FALSE),0) -> 0 | AB174: =IFERROR(VLOOKUP($A174,Filtro_!$A$5:$AK$2954,26,FALSE),0) -> 2 | AC174: =IFERROR(VLOOKUP($A174,Filtro_!$A$5:$AK$2954,27,FALSE),0) -> 2 | AD174: =IFERROR(VLOOKUP($A174,Filtro_!$A$5:$AK$2954,28,FALSE),0) -> 0 | AE174: =IFERROR(VLOOKUP($A174,Filtro_!$A$5:$AK$2954,29,FALSE),0) -> 0 | AF174: =IFERROR(VLOOKUP($A174,Filtro_!$A$5:$AK$2954,30,FALSE),0) -> 0 | AG174: =IFERROR(VLOOKUP($A174,Filtro_!$A$5:$AK$2954,31,FALSE),0) -> 0 | AH174: =IFERROR(VLOOKUP($A174,Filtro_!$A$5:$AK$2954,32,FALSE),0) -> 0 | AI174: =IFERROR(VLOOKUP($A174,Filtro_!$A$5:$AK$2954,33,FALSE),0) -> 0 | AJ174: =IFERROR(VLOOKUP($A174,Filtro_!$A$5:$AK$2954,34,FALSE),0) -> 0 | AK174: =IFERROR(VLOOKUP($A174,Filtro_!$A$5:$AK$2954,35,FALSE),0) -> 0 | AL174: 0 | AM174: 0
A175: 01010061 | B175: 0102706 | C175: Evaluación del desarrollo Psicomotor | D175: =IFERROR(VLOOKUP($A175,Filtro_!$A$5:$AK$2954,2,FALSE),0) -> 452 | E175: =IFERROR(VLOOKUP($A175,Filtro_!$A$5:$AK$2954,3,FALSE),0) -> 452 | F175: =IFERROR(VLOOKUP($A175,Filtro_!$A$5:$AK$2954,4,FALSE),0) -> 452 | G175: =IFERROR(VLOOKUP($A175,Filtro_!$A$5:$AK$2954,5,FALSE),0) -> 0 | H175: =IFERROR(VLOOKUP($A175,Filtro_!$A$5:$AK$2954,6,FALSE),0) -> 0 | AB175: =IFERROR(VLOOKUP($A175,Filtro_!$A$5:$AK$2954,26,FALSE),0) -> 20 | AC175: =IFERROR(VLOOKUP($A175,Filtro_!$A$5:$AK$2954,27,FALSE),0) -> 432 | AD175: =IFERROR(VLOOKUP($A175,Filtro_!$A$5:$AK$2954,28,FALSE),0) -> 0 | AE175: =IFERROR(VLOOKUP($A175,Filtro_!$A$5:$AK$2954,29,FALSE),0) -> 0 | AF175: =IFERROR(VLOOKUP($A175,Filtro_!$A$5:$AK$2954,30,FALSE),0) -> 0 | AG175: =IFERROR(VLOOKUP($A175,Filtro_!$A$5:$AK$2954,31,FALSE),0) -> 0 | AH175: =IFERROR(VLOOKUP($A175,Filtro_!$A$5:$AK$2954,32,FALSE),0) -> 0 | AI175: =IFERROR(VLOOKUP($A175,Filtro_!$A$5:$AK$2954,33,FALSE),0) -> 0 | AJ175: =IFERROR(VLOOKUP($A175,Filtro_!$A$5:$AK$2954,34,FALSE),0) -> 0 | AK175: =IFERROR(VLOOKUP($A175,Filtro_!$A$5:$AK$2954,35,FALSE),0) -> 0 | AL175: 0 | AM175: 0
A176: 01010062 | B176: 0102707 | C176: Reentrenamiento de las funciones cognitiva-perceptual | D176: =IFERROR(VLOOKUP($A176,Filtro_!$A$5:$AK$2954,2,FALSE),0) -> 241 | E176: =IFERROR(VLOOKUP($A176,Filtro_!$A$5:$AK$2954,3,FALSE),0) -> 241 | F176: =IFERROR(VLOOKUP($A176,Filtro_!$A$5:$AK$2954,4,FALSE),0) -> 241 | G176: =IFERROR(VLOOKUP($A176,Filtro_!$A$5:$AK$2954,5,FALSE),0) -> 0 | H176: =IFERROR(VLOOKUP($A176,Filtro_!$A$5:$AK$2954,6,FALSE),0) -> 0 | AB176: =IFERROR(VLOOKUP($A176,Filtro_!$A$5:$AK$2954,26,FALSE),0) -> 197 | AC176: =IFERROR(VLOOKUP($A176,Filtro_!$A$5:$AK$2954,27,FALSE),0) -> 44 | AD176: =IFERROR(VLOOKUP($A176,Filtro_!$A$5:$AK$2954,28,FALSE),0) -> 0 | AE176: =IFERROR(VLOOKUP($A176,Filtro_!$A$5:$AK$2954,29,FALSE),0) -> 0 | AF176: =IFERROR(VLOOKUP($A176,Filtro_!$A$5:$AK$2954,30,FALSE),0) -> 0 | AG176: =IFERROR(VLOOKUP($A176,Filtro_!$A$5:$AK$2954,31,FALSE),0) -> 0 | AH176: =IFERROR(VLOOKUP($A176,Filtro_!$A$5:$AK$2954,32,FALSE),0) -> 0 | AI176: =IFERROR(VLOOKUP($A176,Filtro_!$A$5:$AK$2954,33,FALSE),0) -> 0 | AJ176: =IFERROR(VLOOKUP($A176,Filtro_!$A$5:$AK$2954,34,FALSE),0) -> 0 | AK176: =IFERROR(VLOOKUP($A176,Filtro_!$A$5:$AK$2954,35,FALSE),0) -> 0 | AL176: 0 | AM176: 0
A177: 01010063 | B177: 0102708 | C177: Reentrenamiento de las actividades de la vida diaria | D177: =IFERROR(VLOOKUP($A177,Filtro_!$A$5:$AK$2954,2,FALSE),0) -> 1067 | E177: =IFERROR(VLOOKUP($A177,Filtro_!$A$5:$AK$2954,3,FALSE),0) -> 1067 | F177: =IFERROR(VLOOKUP($A177,Filtro_!$A$5:$AK$2954,4,FALSE),0) -> 1067 | G177: =IFERROR(VLOOKUP($A177,Filtro_!$A$5:$AK$2954,5,FALSE),0) -> 0 | H177: =IFERROR(VLOOKUP($A177,Filtro_!$A$5:$AK$2954,6,FALSE),0) -> 0 | AB177: =IFERROR(VLOOKUP($A177,Filtro_!$A$5:$AK$2954,26,FALSE),0) -> 639 | AC177: =IFERROR(VLOOKUP($A177,Filtro_!$A$5:$AK$2954,27,FALSE),0) -> 428 | AD177: =IFERROR(VLOOKUP($A177,Filtro_!$A$5:$AK$2954,28,FALSE),0) -> 0 | AE177: =IFERROR(VLOOKUP($A177,Filtro_!$A$5:$AK$2954,29,FALSE),0) -> 0 | AF177: =IFERROR(VLOOKUP($A177,Filtro_!$A$5:$AK$2954,30,FALSE),0) -> 0 | AG177: =IFERROR(VLOOKUP($A177,Filtro_!$A$5:$AK$2954,31,FALSE),0) -> 0 | AH177: =IFERROR(VLOOKUP($A177,Filtro_!$A$5:$AK$2954,32,FALSE),0) -> 0 | AI177: =IFERROR(VLOOKUP($A177,Filtro_!$A$5:$AK$2954,33,FALSE),0) -> 0 | AJ177: =IFERROR(VLOOKUP($A177,Filtro_!$A$5:$AK$2954,34,FALSE),0) -> 0 | AK177: =IFERROR(VLOOKUP($A177,Filtro_!$A$5:$AK$2954,35,FALSE),0) -> 0 | AL177: 0 | AM177: 0
A178: 01010064 | B178: 0102709 | C178: Reentrenamiento laboral | D178: =IFERROR(VLOOKUP($A178,Filtro_!$A$5:$AK$2954,2,FALSE),0) -> 0 | E178: =IFERROR(VLOOKUP($A178,Filtro_!$A$5:$AK$2954,3,FALSE),0) -> 0 | F178: =IFERROR(VLOOKUP($A178,Filtro_!$A$5:$AK$2954,4,FALSE),0) -> 0 | G178: =IFERROR(VLOOKUP($A178,Filtro_!$A$5:$AK$2954,5,FALSE),0) -> 0 | H178: =IFERROR(VLOOKUP($A178,Filtro_!$A$5:$AK$2954,6,FALSE),0) -> 0 | AB178: =IFERROR(VLOOKUP($A178,Filtro_!$A$5:$AK$2954,26,FALSE),0) -> 0 | AC178: =IFERROR(VLOOKUP($A178,Filtro_!$A$5:$AK$2954,27,FALSE),0) -> 0 | AD178: =IFERROR(VLOOKUP($A178,Filtro_!$A$5:$AK$2954,28,FALSE),0) -> 0 | AE178: =IFERROR(VLOOKUP($A178,Filtro_!$A$5:$AK$2954,29,FALSE),0) -> 0 | AF178: =IFERROR(VLOOKUP($A178,Filtro_!$A$5:$AK$2954,30,FALSE),0) -> 0 | AG178: =IFERROR(VLOOKUP($A178,Filtro_!$A$5:$AK$2954,31,FALSE),0) -> 0 | AH178: =IFERROR(VLOOKUP($A178,Filtro_!$A$5:$AK$2954,32,FALSE),0) -> 0 | AI178: =IFERROR(VLOOKUP($A178,Filtro_!$A$5:$AK$2954,33,FALSE),0) -> 0 | AJ178: =IFERROR(VLOOKUP($A178,Filtro_!$A$5:$AK$2954,34,FALSE),0) -> 0 | AK178: =IFERROR(VLOOKUP($A178,Filtro_!$A$5:$AK$2954,35,FALSE),0) -> 0 | AL178: 0 | AM178: 0
A179: 01010065 | B179: 01010065 | C179: Comité junta médica | D179: =IFERROR(VLOOKUP($A179,Filtro_!$A$5:$AK$2954,2,FALSE),0) -> 188 | E179: =IFERROR(VLOOKUP($A179,Filtro_!$A$5:$AK$2954,3,FALSE),0) -> 188 | F179: =IFERROR(VLOOKUP($A179,Filtro_!$A$5:$AK$2954,4,FALSE),0) -> 188 | G179: =IFERROR(VLOOKUP($A179,Filtro_!$A$5:$AK$2954,5,FALSE),0) -> 0 | H179: =IFERROR(VLOOKUP($A179,Filtro_!$A$5:$AK$2954,6,FALSE),0) -> 0 | AB179: =IFERROR(VLOOKUP($A179,Filtro_!$A$5:$AK$2954,26,FALSE),0) -> 0 | AC179: =IFERROR(VLOOKUP($A179,Filtro_!$A$5:$AK$2954,27,FALSE),0) -> 188 | AD179: =IFERROR(VLOOKUP($A179,Filtro_!$A$5:$AK$2954,28,FALSE),0) -> 0 | AE179: =IFERROR(VLOOKUP($A179,Filtro_!$A$5:$AK$2954,29,FALSE),0) -> 0 | AF179: =IFERROR(VLOOKUP($A179,Filtro_!$A$5:$AK$2954,30,FALSE),0) -> 0 | AG179: =IFERROR(VLOOKUP($A179,Filtro_!$A$5:$AK$2954,31,FALSE),0) -> 0 | AH179: =IFERROR(VLOOKUP($A179,Filtro_!$A$5:$AK$2954,32,FALSE),0) -> 0 | AI179: =IFERROR(VLOOKUP($A179,Filtro_!$A$5:$AK$2954,33,FALSE),0) -> 0 | AJ179: =IFERROR(VLOOKUP($A179,Filtro_!$A$5:$AK$2954,34,FALSE),0) -> 0 | AK179: =IFERROR(VLOOKUP($A179,Filtro_!$A$5:$AK$2954,35,FALSE),0) -> 0 | AL179: 0 | AM179: 0
A180: 01010066 | B180: 01010066 | C180: Consultorías médicas de especialidades | D180: =IFERROR(VLOOKUP($A180,Filtro_!$A$5:$AK$2954,2,FALSE),0) -> 27309 | E180: =IFERROR(VLOOKUP($A180,Filtro_!$A$5:$AK$2954,3,FALSE),0) -> 27309 | F180: =IFERROR(VLOOKUP($A180,Filtro_!$A$5:$AK$2954,4,FALSE),0) -> 27309 | G180: =IFERROR(VLOOKUP($A180,Filtro_!$A$5:$AK$2954,5,FALSE),0) -> 0 | H180: =IFERROR(VLOOKUP($A180,Filtro_!$A$5:$AK$2954,6,FALSE),0) -> 0 | AB180: =IFERROR(VLOOKUP($A180,Filtro_!$A$5:$AK$2954,26,FALSE),0) -> 0 | AC180: =IFERROR(VLOOKUP($A180,Filtro_!$A$5:$AK$2954,27,FALSE),0) -> 25740 | AD180: =IFERROR(VLOOKUP($A180,Filtro_!$A$5:$AK$2954,28,FALSE),0) -> 1569 | AE180: =IFERROR(VLOOKUP($A180,Filtro_!$A$5:$AK$2954,29,FALSE),0) -> 0 | AF180: =IFERROR(VLOOKUP($A180,Filtro_!$A$5:$AK$2954,30,FALSE),0) -> 0 | AG180: =IFERROR(VLOOKUP($A180,Filtro_!$A$5:$AK$2954,31,FALSE),0) -> 778 | AH180: =IFERROR(VLOOKUP($A180,Filtro_!$A$5:$AK$2954,32,FALSE),0) -> 0 | AI180: =IFERROR(VLOOKUP($A180,Filtro_!$A$5:$AK$2954,33,FALSE),0) -> 0 | AJ180: =IFERROR(VLOOKUP($A180,Filtro_!$A$5:$AK$2954,34,FALSE),0) -> 0 | AK180: =IFERROR(VLOOKUP($A180,Filtro_!$A$5:$AK$2954,35,FALSE),0) -> 0 | AL180: 0 | AM180: 0
A181: 01010067 | B181: 01010067 | C181: Consultorías odontólogos | D181: =IFERROR(VLOOKUP($A181,Filtro_!$A$5:$AK$2954,2,FALSE),0) -> 0 | E181: =IFERROR(VLOOKUP($A181,Filtro_!$A$5:$AK$2954,3,FALSE),0) -> 0 | F181: =IFERROR(VLOOKUP($A181,Filtro_!$A$5:$AK$2954,4,FALSE),0) -> 0 | G181: =IFERROR(VLOOKUP($A181,Filtro_!$A$5:$AK$2954,5,FALSE),0) -> 0 | H181: =IFERROR(VLOOKUP($A181,Filtro_!$A$5:$AK$2954,6,FALSE),0) -> 0 | AB181: =IFERROR(VLOOKUP($A181,Filtro_!$A$5:$AK$2954,26,FALSE),0) -> 0 | AC181: =IFERROR(VLOOKUP($A181,Filtro_!$A$5:$AK$2954,27,FALSE),0) -> 0 | AD181: =IFERROR(VLOOKUP($A181,Filtro_!$A$5:$AK$2954,28,FALSE),0) -> 0 | AE181: =IFERROR(VLOOKUP($A181,Filtro_!$A$5:$AK$2954,29,FALSE),0) -> 0 | AF181: =IFERROR(VLOOKUP($A181,Filtro_!$A$5:$AK$2954,30,FALSE),0) -> 0 | AG181: =IFERROR(VLOOKUP($A181,Filtro_!$A$5:$AK$2954,31,FALSE),0) -> 0 | AH181: =IFERROR(VLOOKUP($A181,Filtro_!$A$5:$AK$2954,32,FALSE),0) -> 0 | AI181: =IFERROR(VLOOKUP($A181,Filtro_!$A$5:$AK$2954,33,FALSE),0) -> 0 | AJ181: =IFERROR(VLOOKUP($A181,Filtro_!$A$5:$AK$2954,34,FALSE),0) -> 0 | AK181: =IFERROR(VLOOKUP($A181,Filtro_!$A$5:$AK$2954,35,FALSE),0) -> 0 | AL181: 0 | AM181: 0
A182: 01010068 | B182: 01010068 | C182: Consejerias Individual por profesional de salud | D182: =IFERROR(VLOOKUP($A182,Filtro_!$A$5:$AK$2954,2,FALSE),0) -> 22882 | E182: =IFERROR(VLOOKUP($A182,Filtro_!$A$5:$AK$2954,3,FALSE),0) -> 22880 | F182: =IFERROR(VLOOKUP($A182,Filtro_!$A$5:$AK$2954,4,FALSE),0) -> 22875 | G182: =IFERROR(VLOOKUP($A182,Filtro_!$A$5:$AK$2954,5,FALSE),0) -> 5 | H182: =IFERROR(VLOOKUP($A182,Filtro_!$A$5:$AK$2954,6,FALSE),0) -> 2 | AB182: =IFERROR(VLOOKUP($A182,Filtro_!$A$5:$AK$2954,26,FALSE),0) -> 4028 | AC182: =IFERROR(VLOOKUP($A182,Filtro_!$A$5:$AK$2954,27,FALSE),0) -> 18854 | AD182: =IFERROR(VLOOKUP($A182,Filtro_!$A$5:$AK$2954,28,FALSE),0) -> 0 | AE182: =IFERROR(VLOOKUP($A182,Filtro_!$A$5:$AK$2954,29,FALSE),0) -> 0 | AF182: =IFERROR(VLOOKUP($A182,Filtro_!$A$5:$AK$2954,30,FALSE),0) -> 0 | AG182: =IFERROR(VLOOKUP($A182,Filtro_!$A$5:$AK$2954,31,FALSE),0) -> 0 | AH182: =IFERROR(VLOOKUP($A182,Filtro_!$A$5:$AK$2954,32,FALSE),0) -> 0 | AI182: =IFERROR(VLOOKUP($A182,Filtro_!$A$5:$AK$2954,33,FALSE),0) -> 0 | AJ182: =IFERROR(VLOOKUP($A182,Filtro_!$A$5:$AK$2954,34,FALSE),0) -> 0 | AK182: =IFERROR(VLOOKUP($A182,Filtro_!$A$5:$AK$2954,35,FALSE),0) -> 0 | AL182: 0 | AM182: 0
A183: 01010069 | B183: 01010069 | C183: Consejerias Familiar por profesionales de salud | D183: =IFERROR(VLOOKUP($A183,Filtro_!$A$5:$AK$2954,2,FALSE),0) -> 928 | E183: =IFERROR(VLOOKUP($A183,Filtro_!$A$5:$AK$2954,3,FALSE),0) -> 928 | F183: =IFERROR(VLOOKUP($A183,Filtro_!$A$5:$AK$2954,4,FALSE),0) -> 928 | G183: =IFERROR(VLOOKUP($A183,Filtro_!$A$5:$AK$2954,5,FALSE),0) -> 0 | H183: =IFERROR(VLOOKUP($A183,Filtro_!$A$5:$AK$2954,6,FALSE),0) -> 0 | AB183: =IFERROR(VLOOKUP($A183,Filtro_!$A$5:$AK$2954,26,FALSE),0) -> 0 | AC183: =IFERROR(VLOOKUP($A183,Filtro_!$A$5:$AK$2954,27,FALSE),0) -> 928 | AD183: =IFERROR(VLOOKUP($A183,Filtro_!$A$5:$AK$2954,28,FALSE),0) -> 0 | AE183: =IFERROR(VLOOKUP($A183,Filtro_!$A$5:$AK$2954,29,FALSE),0) -> 0 | AF183: =IFERROR(VLOOKUP($A183,Filtro_!$A$5:$AK$2954,30,FALSE),0) -> 0 | AG183: =IFERROR(VLOOKUP($A183,Filtro_!$A$5:$AK$2954,31,FALSE),0) -> 0 | AH183: =IFERROR(VLOOKUP($A183,Filtro_!$A$5:$AK$2954,32,FALSE),0) -> 0 | AI183: =IFERROR(VLOOKUP($A183,Filtro_!$A$5:$AK$2954,33,FALSE),0) -> 0 | AJ183: =IFERROR(VLOOKUP($A183,Filtro_!$A$5:$AK$2954,34,FALSE),0) -> 0 | AK183: =IFERROR(VLOOKUP($A183,Filtro_!$A$5:$AK$2954,35,FALSE),0) -> 0 | AL183: 0 | AM183: 0
A184: 01010070 | B184: 01010070 | C184: Instalación de clips en lesiones sangrantes | D184: =IFERROR(VLOOKUP($A184,Filtro_!$A$5:$AK$2954,2,FALSE),0) -> 0 | E184: =IFERROR(VLOOKUP($A184,Filtro_!$A$5:$AK$2954,3,FALSE),0) -> 0 | F184: =IFERROR(VLOOKUP($A184,Filtro_!$A$5:$AK$2954,4,FALSE),0) -> 0 | G184: =IFERROR(VLOOKUP($A184,Filtro_!$A$5:$AK$2954,5,FALSE),0) -> 0 | H184: =IFERROR(VLOOKUP($A184,Filtro_!$A$5:$AK$2954,6,FALSE),0) -> 0 | AB184: =IFERROR(VLOOKUP($A184,Filtro_!$A$5:$AK$2954,26,FALSE),0) -> 0 | AC184: =IFERROR(VLOOKUP($A184,Filtro_!$A$5:$AK$2954,27,FALSE),0) -> 0 | AD184: =IFERROR(VLOOKUP($A184,Filtro_!$A$5:$AK$2954,28,FALSE),0) -> 0 | AE184: =IFERROR(VLOOKUP($A184,Filtro_!$A$5:$AK$2954,29,FALSE),0) -> 0 | AF184: =IFERROR(VLOOKUP($A184,Filtro_!$A$5:$AK$2954,30,FALSE),0) -> 0 | AG184: =IFERROR(VLOOKUP($A184,Filtro_!$A$5:$AK$2954,31,FALSE),0) -> 0 | AH184: =IFERROR(VLOOKUP($A184,Filtro_!$A$5:$AK$2954,32,FALSE),0) -> 0 | AI184: =IFERROR(VLOOKUP($A184,Filtro_!$A$5:$AK$2954,33,FALSE),0) -> 0 | AJ184: =IFERROR(VLOOKUP($A184,Filtro_!$A$5:$AK$2954,34,FALSE),0) -> 0 | AK184: =IFERROR(VLOOKUP($A184,Filtro_!$A$5:$AK$2954,35,FALSE),0) -> 0 | AL184: 0 | AM184: 0
A185: 01010071 | B185: 01010071 | C185: Instalación vendaje compresivo (Coban) | D185: =IFERROR(VLOOKUP($A185,Filtro_!$A$5:$AK$2954,2,FALSE),0) -> 1 | E185: =IFERROR(VLOOKUP($A185,Filtro_!$A$5:$AK$2954,3,FALSE),0) -> 1 | F185: =IFERROR(VLOOKUP($A185,Filtro_!$A$5:$AK$2954,4,FALSE),0) -> 1 | G185: =IFERROR(VLOOKUP($A185,Filtro_!$A$5:$AK$2954,5,FALSE),0) -> 0 | H185: =IFERROR(VLOOKUP($A185,Filtro_!$A$5:$AK$2954,6,FALSE),0) -> 0 | AB185: =IFERROR(VLOOKUP($A185,Filtro_!$A$5:$AK$2954,26,FALSE),0) -> 1 | AC185: =IFERROR(VLOOKUP($A185,Filtro_!$A$5:$AK$2954,27,FALSE),0) -> 0 | AD185: =IFERROR(VLOOKUP($A185,Filtro_!$A$5:$AK$2954,28,FALSE),0) -> 0 | AE185: =IFERROR(VLOOKUP($A185,Filtro_!$A$5:$AK$2954,29,FALSE),0) -> 0 | AF185: =IFERROR(VLOOKUP($A185,Filtro_!$A$5:$AK$2954,30,FALSE),0) -> 0 | AG185: =IFERROR(VLOOKUP($A185,Filtro_!$A$5:$AK$2954,31,FALSE),0) -> 0 | AH185: =IFERROR(VLOOKUP($A185,Filtro_!$A$5:$AK$2954,32,FALSE),0) -> 0 | AI185: =IFERROR(VLOOKUP($A185,Filtro_!$A$5:$AK$2954,33,FALSE),0) -> 0 | AJ185: =IFERROR(VLOOKUP($A185,Filtro_!$A$5:$AK$2954,34,FALSE),0) -> 0 | AK185: =IFERROR(VLOOKUP($A185,Filtro_!$A$5:$AK$2954,35,FALSE),0) -> 0 | AL185: 0 | AM185: 0
C186: TOTAL | D186: =SUM(D162:D185) -> 889711 | E186: =SUM(E162:E185) -> 889707 | F186: =SUM(F162:F185) -> 889696 | G186: =SUM(G162:G185) -> 11 | H186: =SUM(H162:H185) -> 4 | AB186: =SUM(AB162:AB185) -> 186235 | AC186: 664793 | AD186: 38546 | AE186: 0 | AF186: 0 | AG186: 778 | AH186: 0 | AI186: 0 | AJ186: 0 | AK186: 0
C187: TRASPLANTES
A188: 01010072 | B188: 01010072 | C188: Estudio receptor donante cadáver | D188: =IFERROR(VLOOKUP($A188,Filtro_!$A$5:$AK$2954,2,FALSE),0) -> 0 | E188: =IFERROR(VLOOKUP($A188,Filtro_!$A$5:$AK$2954,3,FALSE),0) -> 0 | F188: =IFERROR(VLOOKUP($A188,Filtro_!$A$5:$AK$2954,4,FALSE),0) -> 0 | G188: =IFERROR(VLOOKUP($A188,Filtro_!$A$5:$AK$2954,5,FALSE),0) -> 0 | H188: =IFERROR(VLOOKUP($A188,Filtro_!$A$5:$AK$2954,6,FALSE),0) -> 0 | AB188: =IFERROR(VLOOKUP($A188,Filtro_!$A$5:$AK$2954,26,FALSE),0) -> 0 | AC188: =IFERROR(VLOOKUP($A188,Filtro_!$A$5:$AK$2954,27,FALSE),0) -> 0 | AD188: =IFERROR(VLOOKUP($A188,Filtro_!$A$5:$AK$2954,28,FALSE),0) -> 0 | AE188: =IFERROR(VLOOKUP($A188,Filtro_!$A$5:$AK$2954,29,FALSE),0) -> 0 | AF188: =IFERROR(VLOOKUP($A188,Filtro_!$A$5:$AK$2954,30,FALSE),0) -> 0 | AG188: =IFERROR(VLOOKUP($A188,Filtro_!$A$5:$AK$2954,31,FALSE),0) -> 0 | AH188: =IFERROR(VLOOKUP($A188,Filtro_!$A$5:$AK$2954,32,FALSE),0) -> 0 | AI188: =IFERROR(VLOOKUP($A188,Filtro_!$A$5:$AK$2954,33,FALSE),0) -> 0 | AJ188: =IFERROR(VLOOKUP($A188,Filtro_!$A$5:$AK$2954,34,FALSE),0) -> 0 | AK188: =IFERROR(VLOOKUP($A188,Filtro_!$A$5:$AK$2954,35,FALSE),0) -> 0 | AL188: 0 | AM188: 0
A189: 01010073 | B189: 01010073 | C189: Estudio receptor donante vivo | D189: =IFERROR(VLOOKUP($A189,Filtro_!$A$5:$AK$2954,2,FALSE),0) -> 0 | E189: =IFERROR(VLOOKUP($A189,Filtro_!$A$5:$AK$2954,3,FALSE),0) -> 0 | F189: =IFERROR(VLOOKUP($A189,Filtro_!$A$5:$AK$2954,4,FALSE),0) -> 0 | G189: =IFERROR(VLOOKUP($A189,Filtro_!$A$5:$AK$2954,5,FALSE),0) -> 0 | H189: =IFERROR(VLOOKUP($A189,Filtro_!$A$5:$AK$2954,6,FALSE),0) -> 0 | AB189: =IFERROR(VLOOKUP($A189,Filtro_!$A$5:$AK$2954,26,FALSE),0) -> 0 | AC189: =IFERROR(VLOOKUP($A189,Filtro_!$A$5:$AK$2954,27,FALSE),0) -> 0 | AD189: =IFERROR(VLOOKUP($A189,Filtro_!$A$5:$AK$2954,28,FALSE),0) -> 0 | AE189: =IFERROR(VLOOKUP($A189,Filtro_!$A$5:$AK$2954,29,FALSE),0) -> 0 | AF189: =IFERROR(VLOOKUP($A189,Filtro_!$A$5:$AK$2954,30,FALSE),0) -> 0 | AG189: =IFERROR(VLOOKUP($A189,Filtro_!$A$5:$AK$2954,31,FALSE),0) -> 0 | AH189: =IFERROR(VLOOKUP($A189,Filtro_!$A$5:$AK$2954,32,FALSE),0) -> 0 | AI189: =IFERROR(VLOOKUP($A189,Filtro_!$A$5:$AK$2954,33,FALSE),0) -> 0 | AJ189: =IFERROR(VLOOKUP($A189,Filtro_!$A$5:$AK$2954,34,FALSE),0) -> 0 | AK189: =IFERROR(VLOOKUP($A189,Filtro_!$A$5:$AK$2954,35,FALSE),0) -> 0 | AL189: 0 | AM189: 0
A190: 01010074 | B190: 01010074 | C190: Estudio receptores corazón-pulmón | D190: =IFERROR(VLOOKUP($A190,Filtro_!$A$5:$AK$2954,2,FALSE),0) -> 0 | E190: =IFERROR(VLOOKUP($A190,Filtro_!$A$5:$AK$2954,3,FALSE),0) -> 0 | F190: =IFERROR(VLOOKUP($A190,Filtro_!$A$5:$AK$2954,4,FALSE),0) -> 0 | G190: =IFERROR(VLOOKUP($A190,Filtro_!$A$5:$AK$2954,5,FALSE),0) -> 0 | H190: =IFERROR(VLOOKUP($A190,Filtro_!$A$5:$AK$2954,6,FALSE),0) -> 0 | AB190: =IFERROR(VLOOKUP($A190,Filtro_!$A$5:$AK$2954,26,FALSE),0) -> 0 | AC190: =IFERROR(VLOOKUP($A190,Filtro_!$A$5:$AK$2954,27,FALSE),0) -> 0 | AD190: =IFERROR(VLOOKUP($A190,Filtro_!$A$5:$AK$2954,28,FALSE),0) -> 0 | AE190: =IFERROR(VLOOKUP($A190,Filtro_!$A$5:$AK$2954,29,FALSE),0) -> 0 | AF190: =IFERROR(VLOOKUP($A190,Filtro_!$A$5:$AK$2954,30,FALSE),0) -> 0 | AG190: =IFERROR(VLOOKUP($A190,Filtro_!$A$5:$AK$2954,31,FALSE),0) -> 0 | AH190: =IFERROR(VLOOKUP($A190,Filtro_!$A$5:$AK$2954,32,FALSE),0) -> 0 | AI190: =IFERROR(VLOOKUP($A190,Filtro_!$A$5:$AK$2954,33,FALSE),0) -> 0 | AJ190: =IFERROR(VLOOKUP($A190,Filtro_!$A$5:$AK$2954,34,FALSE),0) -> 0 | AK190: =IFERROR(VLOOKUP($A190,Filtro_!$A$5:$AK$2954,35,FALSE),0) -> 0 | AL190: 0 | AM190: 0
A191: 01010075 | B191: 01010075 | C191: Estudio pacientes trasplante medula ósea | D191: =IFERROR(VLOOKUP($A191,Filtro_!$A$5:$AK$2954,2,FALSE),0) -> 0 | E191: =IFERROR(VLOOKUP($A191,Filtro_!$A$5:$AK$2954,3,FALSE),0) -> 0 | F191: =IFERROR(VLOOKUP($A191,Filtro_!$A$5:$AK$2954,4,FALSE),0) -> 0 | G191: =IFERROR(VLOOKUP($A191,Filtro_!$A$5:$AK$2954,5,FALSE),0) -> 0 | H191: =IFERROR(VLOOKUP($A191,Filtro_!$A$5:$AK$2954,6,FALSE),0) -> 0 | AB191: =IFERROR(VLOOKUP($A191,Filtro_!$A$5:$AK$2954,26,FALSE),0) -> 0 | AC191: =IFERROR(VLOOKUP($A191,Filtro_!$A$5:$AK$2954,27,FALSE),0) -> 0 | AD191: =IFERROR(VLOOKUP($A191,Filtro_!$A$5:$AK$2954,28,FALSE),0) -> 0 | AE191: =IFERROR(VLOOKUP($A191,Filtro_!$A$5:$AK$2954,29,FALSE),0) -> 0 | AF191: =IFERROR(VLOOKUP($A191,Filtro_!$A$5:$AK$2954,30,FALSE),0) -> 0 | AG191: =IFERROR(VLOOKUP($A191,Filtro_!$A$5:$AK$2954,31,FALSE),0) -> 0 | AH191: =IFERROR(VLOOKUP($A191,Filtro_!$A$5:$AK$2954,32,FALSE),0) -> 0 | AI191: =IFERROR(VLOOKUP($A191,Filtro_!$A$5:$AK$2954,33,FALSE),0) -> 0 | AJ191: =IFERROR(VLOOKUP($A191,Filtro_!$A$5:$AK$2954,34,FALSE),0) -> 0 | AK191: =IFERROR(VLOOKUP($A191,Filtro_!$A$5:$AK$2954,35,FALSE),0) -> 0 | AL191: 0 | AM191: 0
A192: 01010076 | B192: 01010076 | C192: Trasplante de medula autólogo | D192: =IFERROR(VLOOKUP($A192,Filtro_!$A$5:$AK$2954,2,FALSE),0) -> 0 | E192: =IFERROR(VLOOKUP($A192,Filtro_!$A$5:$AK$2954,3,FALSE),0) -> 0 | F192: =IFERROR(VLOOKUP($A192,Filtro_!$A$5:$AK$2954,4,FALSE),0) -> 0 | G192: =IFERROR(VLOOKUP($A192,Filtro_!$A$5:$AK$2954,5,FALSE),0) -> 0 | H192: =IFERROR(VLOOKUP($A192,Filtro_!$A$5:$AK$2954,6,FALSE),0) -> 0 | AB192: =IFERROR(VLOOKUP($A192,Filtro_!$A$5:$AK$2954,26,FALSE),0) -> 0 | AC192: =IFERROR(VLOOKUP($A192,Filtro_!$A$5:$AK$2954,27,FALSE),0) -> 0 | AD192: =IFERROR(VLOOKUP($A192,Filtro_!$A$5:$AK$2954,28,FALSE),0) -> 0 | AE192: =IFERROR(VLOOKUP($A192,Filtro_!$A$5:$AK$2954,29,FALSE),0) -> 0 | AF192: =IFERROR(VLOOKUP($A192,Filtro_!$A$5:$AK$2954,30,FALSE),0) -> 0 | AG192: =IFERROR(VLOOKUP($A192,Filtro_!$A$5:$AK$2954,31,FALSE),0) -> 0 | AH192: =IFERROR(VLOOKUP($A192,Filtro_!$A$5:$AK$2954,32,FALSE),0) -> 0 | AI192: =IFERROR(VLOOKUP($A192,Filtro_!$A$5:$AK$2954,33,FALSE),0) -> 0 | AJ192: =IFERROR(VLOOKUP($A192,Filtro_!$A$5:$AK$2954,34,FALSE),0) -> 0 | AK192: =IFERROR(VLOOKUP($A192,Filtro_!$A$5:$AK$2954,35,FALSE),0) -> 0 | AL192: 0 | AM192: 0
A193: 01010077 | B193: 01010077 | C193: Trasplante de medula alógeno | D193: =IFERROR(VLOOKUP($A193,Filtro_!$A$5:$AK$2954,2,FALSE),0) -> 0 | E193: =IFERROR(VLOOKUP($A193,Filtro_!$A$5:$AK$2954,3,FALSE),0) -> 0 | F193: =IFERROR(VLOOKUP($A193,Filtro_!$A$5:$AK$2954,4,FALSE),0) -> 0 | G193: =IFERROR(VLOOKUP($A193,Filtro_!$A$5:$AK$2954,5,FALSE),0) -> 0 | H193: =IFERROR(VLOOKUP($A193,Filtro_!$A$5:$AK$2954,6,FALSE),0) -> 0 | AB193: =IFERROR(VLOOKUP($A193,Filtro_!$A$5:$AK$2954,26,FALSE),0) -> 0 | AC193: =IFERROR(VLOOKUP($A193,Filtro_!$A$5:$AK$2954,27,FALSE),0) -> 0 | AD193: =IFERROR(VLOOKUP($A193,Filtro_!$A$5:$AK$2954,28,FALSE),0) -> 0 | AE193: =IFERROR(VLOOKUP($A193,Filtro_!$A$5:$AK$2954,29,FALSE),0) -> 0 | AF193: =IFERROR(VLOOKUP($A193,Filtro_!$A$5:$AK$2954,30,FALSE),0) -> 0 | AG193: =IFERROR(VLOOKUP($A193,Filtro_!$A$5:$AK$2954,31,FALSE),0) -> 0 | AH193: =IFERROR(VLOOKUP($A193,Filtro_!$A$5:$AK$2954,32,FALSE),0) -> 0 | AI193: =IFERROR(VLOOKUP($A193,Filtro_!$A$5:$AK$2954,33,FALSE),0) -> 0 | AJ193: =IFERROR(VLOOKUP($A193,Filtro_!$A$5:$AK$2954,34,FALSE),0) -> 0 | AK193: =IFERROR(VLOOKUP($A193,Filtro_!$A$5:$AK$2954,35,FALSE),0) -> 0 | AL193: 0 | AM193: 0
A194: 01010078 | B194: 01010078 | C194: Trasplante medula de cordón | D194: =IFERROR(VLOOKUP($A194,Filtro_!$A$5:$AK$2954,2,FALSE),0) -> 0 | E194: =IFERROR(VLOOKUP($A194,Filtro_!$A$5:$AK$2954,3,FALSE),0) -> 0 | F194: =IFERROR(VLOOKUP($A194,Filtro_!$A$5:$AK$2954,4,FALSE),0) -> 0 | G194: =IFERROR(VLOOKUP($A194,Filtro_!$A$5:$AK$2954,5,FALSE),0) -> 0 | H194: =IFERROR(VLOOKUP($A194,Filtro_!$A$5:$AK$2954,6,FALSE),0) -> 0 | AB194: =IFERROR(VLOOKUP($A194,Filtro_!$A$5:$AK$2954,26,FALSE),0) -> 0 | AC194: =IFERROR(VLOOKUP($A194,Filtro_!$A$5:$AK$2954,27,FALSE),0) -> 0 | AD194: =IFERROR(VLOOKUP($A194,Filtro_!$A$5:$AK$2954,28,FALSE),0) -> 0 | AE194: =IFERROR(VLOOKUP($A194,Filtro_!$A$5:$AK$2954,29,FALSE),0) -> 0 | AF194: =IFERROR(VLOOKUP($A194,Filtro_!$A$5:$AK$2954,30,FALSE),0) -> 0 | AG194: =IFERROR(VLOOKUP($A194,Filtro_!$A$5:$AK$2954,31,FALSE),0) -> 0 | AH194: =IFERROR(VLOOKUP($A194,Filtro_!$A$5:$AK$2954,32,FALSE),0) -> 0 | AI194: =IFERROR(VLOOKUP($A194,Filtro_!$A$5:$AK$2954,33,FALSE),0) -> 0 | AJ194: =IFERROR(VLOOKUP($A194,Filtro_!$A$5:$AK$2954,34,FALSE),0) -> 0 | AK194: =IFERROR(VLOOKUP($A194,Filtro_!$A$5:$AK$2954,35,FALSE),0) -> 0 | AL194: 0 | AM194: 0
A195: 01010079 | B195: 01010079 | C195: Trasplante medula aploidentico | D195: =IFERROR(VLOOKUP($A195,Filtro_!$A$5:$AK$2954,2,FALSE),0) -> 0 | E195: =IFERROR(VLOOKUP($A195,Filtro_!$A$5:$AK$2954,3,FALSE),0) -> 0 | F195: =IFERROR(VLOOKUP($A195,Filtro_!$A$5:$AK$2954,4,FALSE),0) -> 0 | G195: =IFERROR(VLOOKUP($A195,Filtro_!$A$5:$AK$2954,5,FALSE),0) -> 0 | H195: =IFERROR(VLOOKUP($A195,Filtro_!$A$5:$AK$2954,6,FALSE),0) -> 0 | AB195: =IFERROR(VLOOKUP($A195,Filtro_!$A$5:$AK$2954,26,FALSE),0) -> 0 | AC195: =IFERROR(VLOOKUP($A195,Filtro_!$A$5:$AK$2954,27,FALSE),0) -> 0 | AD195: =IFERROR(VLOOKUP($A195,Filtro_!$A$5:$AK$2954,28,FALSE),0) -> 0 | AE195: =IFERROR(VLOOKUP($A195,Filtro_!$A$5:$AK$2954,29,FALSE),0) -> 0 | AF195: =IFERROR(VLOOKUP($A195,Filtro_!$A$5:$AK$2954,30,FALSE),0) -> 0 | AG195: =IFERROR(VLOOKUP($A195,Filtro_!$A$5:$AK$2954,31,FALSE),0) -> 0 | AH195: =IFERROR(VLOOKUP($A195,Filtro_!$A$5:$AK$2954,32,FALSE),0) -> 0 | AI195: =IFERROR(VLOOKUP($A195,Filtro_!$A$5:$AK$2954,33,FALSE),0) -> 0 | AJ195: =IFERROR(VLOOKUP($A195,Filtro_!$A$5:$AK$2954,34,FALSE),0) -> 0 | AK195: =IFERROR(VLOOKUP($A195,Filtro_!$A$5:$AK$2954,35,FALSE),0) -> 0 | AL195: 0 | AM195: 0
A196: 01010080 | B196: 01010080 | C196: Trasplante de córnea (incluye procuramiento y seguimiento por un año) | D196: =IFERROR(VLOOKUP($A196,Filtro_!$A$5:$AK$2954,2,FALSE),0) -> 12 | E196: =IFERROR(VLOOKUP($A196,Filtro_!$A$5:$AK$2954,3,FALSE),0) -> 10 | F196: =IFERROR(VLOOKUP($A196,Filtro_!$A$5:$AK$2954,4,FALSE),0) -> 10 | G196: =IFERROR(VLOOKUP($A196,Filtro_!$A$5:$AK$2954,5,FALSE),0) -> 0 | H196: =IFERROR(VLOOKUP($A196,Filtro_!$A$5:$AK$2954,6,FALSE),0) -> 2 | AB196: =IFERROR(VLOOKUP($A196,Filtro_!$A$5:$AK$2954,26,FALSE),0) -> 11 | AC196: =IFERROR(VLOOKUP($A196,Filtro_!$A$5:$AK$2954,27,FALSE),0) -> 1 | AD196: =IFERROR(VLOOKUP($A196,Filtro_!$A$5:$AK$2954,28,FALSE),0) -> 0 | AE196: =IFERROR(VLOOKUP($A196,Filtro_!$A$5:$AK$2954,29,FALSE),0) -> 0 | AF196: =IFERROR(VLOOKUP($A196,Filtro_!$A$5:$AK$2954,30,FALSE),0) -> 0 | AG196: =IFERROR(VLOOKUP($A196,Filtro_!$A$5:$AK$2954,31,FALSE),0) -> 0 | AH196: =IFERROR(VLOOKUP($A196,Filtro_!$A$5:$AK$2954,32,FALSE),0) -> 0 | AI196: =IFERROR(VLOOKUP($A196,Filtro_!$A$5:$AK$2954,33,FALSE),0) -> 0 | AJ196: =IFERROR(VLOOKUP($A196,Filtro_!$A$5:$AK$2954,34,FALSE),0) -> 0 | AK196: =IFERROR(VLOOKUP($A196,Filtro_!$A$5:$AK$2954,35,FALSE),0) -> 0 | AL196: 0 | AM196: 0
A197: 01010081 | B197: 01010081 | C197: Soporte pretrasplante hepático extracorporeo por sesión | D197: =IFERROR(VLOOKUP($A197,Filtro_!$A$5:$AK$2954,2,FALSE),0) -> 0 | E197: =IFERROR(VLOOKUP($A197,Filtro_!$A$5:$AK$2954,3,FALSE),0) -> 0 | F197: =IFERROR(VLOOKUP($A197,Filtro_!$A$5:$AK$2954,4,FALSE),0) -> 0 | G197: =IFERROR(VLOOKUP($A197,Filtro_!$A$5:$AK$2954,5,FALSE),0) -> 0 | H197: =IFERROR(VLOOKUP($A197,Filtro_!$A$5:$AK$2954,6,FALSE),0) -> 0 | AB197: =IFERROR(VLOOKUP($A197,Filtro_!$A$5:$AK$2954,26,FALSE),0) -> 0 | AC197: =IFERROR(VLOOKUP($A197,Filtro_!$A$5:$AK$2954,27,FALSE),0) -> 0 | AD197: =IFERROR(VLOOKUP($A197,Filtro_!$A$5:$AK$2954,28,FALSE),0) -> 0 | AE197: =IFERROR(VLOOKUP($A197,Filtro_!$A$5:$AK$2954,29,FALSE),0) -> 0 | AF197: =IFERROR(VLOOKUP($A197,Filtro_!$A$5:$AK$2954,30,FALSE),0) -> 0 | AG197: =IFERROR(VLOOKUP($A197,Filtro_!$A$5:$AK$2954,31,FALSE),0) -> 0 | AH197: =IFERROR(VLOOKUP($A197,Filtro_!$A$5:$AK$2954,32,FALSE),0) -> 0 | AI197: =IFERROR(VLOOKUP($A197,Filtro_!$A$5:$AK$2954,33,FALSE),0) -> 0 | AJ197: =IFERROR(VLOOKUP($A197,Filtro_!$A$5:$AK$2954,34,FALSE),0) -> 0 | AK197: =IFERROR(VLOOKUP($A197,Filtro_!$A$5:$AK$2954,35,FALSE),0) -> 0 | AL197: 0 | AM197: 0
A198: 01010082 | B198: 01010082 | C198: Mantención donante cadáver (pulmón, corazón o hígado) (muerte cerebral) | D198: =IFERROR(VLOOKUP($A198,Filtro_!$A$5:$AK$2954,2,FALSE),0) -> 8 | E198: =IFERROR(VLOOKUP($A198,Filtro_!$A$5:$AK$2954,3,FALSE),0) -> 5 | F198: =IFERROR(VLOOKUP($A198,Filtro_!$A$5:$AK$2954,4,FALSE),0) -> 5 | G198: =IFERROR(VLOOKUP($A198,Filtro_!$A$5:$AK$2954,5,FALSE),0) -> 0 | H198: =IFERROR(VLOOKUP($A198,Filtro_!$A$5:$AK$2954,6,FALSE),0) -> 3 | AB198: =IFERROR(VLOOKUP($A198,Filtro_!$A$5:$AK$2954,26,FALSE),0) -> 8 | AC198: =IFERROR(VLOOKUP($A198,Filtro_!$A$5:$AK$2954,27,FALSE),0) -> 0 | AD198: =IFERROR(VLOOKUP($A198,Filtro_!$A$5:$AK$2954,28,FALSE),0) -> 0 | AE198: =IFERROR(VLOOKUP($A198,Filtro_!$A$5:$AK$2954,29,FALSE),0) -> 0 | AF198: =IFERROR(VLOOKUP($A198,Filtro_!$A$5:$AK$2954,30,FALSE),0) -> 0 | AG198: =IFERROR(VLOOKUP($A198,Filtro_!$A$5:$AK$2954,31,FALSE),0) -> 0 | AH198: =IFERROR(VLOOKUP($A198,Filtro_!$A$5:$AK$2954,32,FALSE),0) -> 0 | AI198: =IFERROR(VLOOKUP($A198,Filtro_!$A$5:$AK$2954,33,FALSE),0) -> 0 | AJ198: =IFERROR(VLOOKUP($A198,Filtro_!$A$5:$AK$2954,34,FALSE),0) -> 0 | AK198: =IFERROR(VLOOKUP($A198,Filtro_!$A$5:$AK$2954,35,FALSE),0) -> 0 | AL198: 0 | AM198: 0
C199: TOTAL | D199: =SUM(D188:D198) -> 20 | E199: =SUM(E188:E198) -> 15 | F199: =SUM(F188:F198) -> 15 | G199: =SUM(G188:G198) -> 0 | H199: =SUM(H188:H198) -> 5 | AB199: =SUM(AB188:AB198) -> 19 | AC199: 1 | AD199: 0 | AE199: 0 | AF199: 0 | AG199: 0 | AH199: 0 | AI199: 0 | AJ199: 0 | AK199: 0
C200: ATENCION CERRADA
... 3036 more rows

Sheet B17
B1: SERVICIO DE SALUD / ESTABLECIMIENTO MUNICIPAL
B2: =CONCATENATE("COMUNA: ",[1]NOMBRE!B2," - ","( ",[1]NOMBRE!C2,[1]NOMBRE!D2,[1]NOMBRE!E2,[1]NOMBRE!F2,[1]NOMBRE!G2," )") -> COMUNA: - ( )
B3: =CONCATENATE("ESTABLECIMIENTO/ESTRATEGIA: ",[1]NOMBRE!B3," - ","( ",[1]NOMBRE!C3,[1]NOMBRE!D3,[1]NOMBRE!E3,[1]NOMBRE!F3,[1]NOMBRE!G3,[1]NOMBRE!H3," )") -> ESTABLECIMIENTO/ESTRATEGIA: - ( )
B4: =CONCATENATE("MES: ",[1]NOMBRE!B6," - ","( ",[1]NOMBRE!C6,[1]NOMBRE!D6," )") -> MES: - ( )
B5: =CONCATENATE("AÑO: ",[1]NOMBRE!B7) -> AÑO: 2023
E6: REM-B17. ACTIVIDADES DE APOYO DIAGNOSTICO y TERAPEUTICO
B8: SECCION A: ATENCIONES ABIERTAS | E8: E | F8: AL
B9: CODIGOS | C9: IDENTIFICACION DE PRESTACIONES | D9: TOTAL PRODUCCIÓN | E9: TOTAL BENEFICIARIOS MAI | F9: PAGO POR PRESTACIONES ($)
C10: CONSULTAS Y ATENCION MEDICA | D10: =SUM(D11:D17) -> 822211 | E10: =SUM(E11:E17) -> 806933 | F10: =SUM(F11:F17) -> 7,129,467,700
A11: 99100120 | C11: Consulta Médica general | D11: =IFERROR(VLOOKUP($A11,Filtro_!$A$5:$AK$2954,2,FALSE),0) -> 79101 | E11: =IFERROR(VLOOKUP($A11,Filtro_!$A$5:$AK$2954,3,FALSE),0) -> 79101 | F11: =IFERROR(VLOOKUP($A11,Filtro_!$A$5:$AK$2954,4,FALSE),0) -> 503082360
A12: 17400010 | C12: Consulta Médica de Especialidades | D12: =IFERROR(VLOOKUP($A12,Filtro_!$A$5:$AK$2954,2,FALSE),0) -> 407192 | E12: =IFERROR(VLOOKUP($A12,Filtro_!$A$5:$AK$2954,3,FALSE),0) -> 406063 | F12: =IFERROR(VLOOKUP($A12,Filtro_!$A$5:$AK$2954,4,FALSE),0) -> 3,674,870,150
A13: 17400020 | C13: Consulta en Unidades de Urgencia Hospitalaria | D13: =IFERROR(VLOOKUP($A13,Filtro_!$A$5:$AK$2954,2,FALSE),0) -> 307658 | E13: =IFERROR(VLOOKUP($A13,Filtro_!$A$5:$AK$2954,3,FALSE),0) -> 294024 | F13: =IFERROR(VLOOKUP($A13,Filtro_!$A$5:$AK$2954,4,FALSE),0) -> 2,660,917,200
A14: 17400030 | C14: Atención médica del recién nacido en sala de parto o pabellón quirúrgico c/s reanimación cardio-respiratoria | D14: =IFERROR(VLOOKUP($A14,Filtro_!$A$5:$AK$2954,2,FALSE),0) -> 3952 | E14: =IFERROR(VLOOKUP($A14,Filtro_!$A$5:$AK$2954,3,FALSE),0) -> 3505 | F14: =IFERROR(VLOOKUP($A14,Filtro_!$A$5:$AK$2954,4,FALSE),0) -> 58,848,950
A15: 17400040 | C15: Telemedicina/ Teleconsulta por profesional médico | D15: =IFERROR(VLOOKUP($A15,Filtro_!$A$5:$AK$2954,2,FALSE),0) -> 22521 | E15: =IFERROR(VLOOKUP($A15,Filtro_!$A$5:$AK$2954,3,FALSE),0) -> 22453 | F15: =IFERROR(VLOOKUP($A15,Filtro_!$A$5:$AK$2954,4,FALSE),0) -> 169,071,090
A16: 17400060 | C16: Teleinterconsulta (Telemedicina) | D16: =IFERROR(VLOOKUP($A16,Filtro_!$A$5:$AK$2954,2,FALSE),0) -> 85 | E16: =IFERROR(VLOOKUP($A16,Filtro_!$A$5:$AK$2954,3,FALSE),0) -> 85 | F16: =IFERROR(VLOOKUP($A16,Filtro_!$A$5:$AK$2954,4,FALSE),0) -> 640,050
A17: 99000130 | B17: 0903006 | C17: Consultoría de salud mental por psiquiatra (sesión 4 hrs.) (mínimo 8 pacientes) | D17: =IFERROR(VLOOKUP($A17,Filtro_!$A$5:$AK$2954,2,FALSE),0) -> 1702 | E17: =IFERROR(VLOOKUP($A17,Filtro_!$A$5:$AK$2954,3,FALSE),0) -> 1702 | F17: =IFERROR(VLOOKUP($A17,Filtro_!$A$5:$AK$2954,4,FALSE),0) -> 62,037,900
C18: CONSULTAS POR OTROS PROFESIONALES DE LA SALUD | D18: =SUM(D19:D29) -> 348274 | E18: =SUM(E19:E29) -> 347554 | F18: =SUM(F19:F29) -> 768,016,750
A19: 17400070 | B19: 0102008 | C19: Consulta o control por enfermera/o | D19: =IFERROR(VLOOKUP($A19,Filtro_!$A$5:$AK$2954,2,FALSE),0) -> 121796 | E19: =IFERROR(VLOOKUP($A19,Filtro_!$A$5:$AK$2954,3,FALSE),0) -> 121463 | F19: =IFERROR(VLOOKUP($A19,Filtro_!$A$5:$AK$2954,4,FALSE),0) -> 171,262,830
A20: 99000150 | B20: 0102002 | C20: Control de salud niño con EDP por enfermera/o | D20: =IFERROR(VLOOKUP($A20,Filtro_!$A$5:$AK$2954,2,FALSE),0) -> 7997 | E20: =IFERROR(VLOOKUP($A20,Filtro_!$A$5:$AK$2954,3,FALSE),0) -> 7997 | F20: =IFERROR(VLOOKUP($A20,Filtro_!$A$5:$AK$2954,4,FALSE),0) -> 19,272,770
A21: 99000160 | B21: 0102003 | C21: Consulta o control por auxiliar de enfermería | D21: =IFERROR(VLOOKUP($A21,Filtro_!$A$5:$AK$2954,2,FALSE),0) -> 22172 | E21: =IFERROR(VLOOKUP($A21,Filtro_!$A$5:$AK$2954,3,FALSE),0) -> 22171 | F21: =IFERROR(VLOOKUP($A21,Filtro_!$A$5:$AK$2954,4,FALSE),0) -> 17,293,380
A22: 99000170 | B22: 0102005 | C22: Consulta por fonoaudiólogo/a | D22: =IFERROR(VLOOKUP($A22,Filtro_!$A$5:$AK$2954,2,FALSE),0) -> 27858 | E22: =IFERROR(VLOOKUP($A22,Filtro_!$A$5:$AK$2954,3,FALSE),0) -> 27831 | F22: =IFERROR(VLOOKUP($A22,Filtro_!$A$5:$AK$2954,4,FALSE),0) -> 53,435,520
A23: 17400080 | B23: 0102009 | C23: Consulta o control por matron/a | D23: =IFERROR(VLOOKUP($A23,Filtro_!$A$5:$AK$2954,2,FALSE),0) -> 56919 | E23: =IFERROR(VLOOKUP($A23,Filtro_!$A$5:$AK$2954,3,FALSE),0) -> 56686 | F23: =IFERROR(VLOOKUP($A23,Filtro_!$A$5:$AK$2954,4,FALSE),0) -> 79,927,260
A24: 17400090 | B24: 0102010 | C24: Consulta o control por nutricionista | D24: =IFERROR(VLOOKUP($A24,Filtro_!$A$5:$AK$2954,2,FALSE),0) -> 28240 | E24: =IFERROR(VLOOKUP($A24,Filtro_!$A$5:$AK$2954,3,FALSE),0) -> 28198 | F24: =IFERROR(VLOOKUP($A24,Filtro_!$A$5:$AK$2954,4,FALSE),0) -> 39,759,180
A25: 99000200 | B25: 0903002 | C25: Consulta o control psicológico clínico | D25: =IFERROR(VLOOKUP($A25,Filtro_!$A$5:$AK$2954,2,FALSE),0) -> 33794 | E25: =IFERROR(VLOOKUP($A25,Filtro_!$A$5:$AK$2954,3,FALSE),0) -> 33772 | F25: =IFERROR(VLOOKUP($A25,Filtro_!$A$5:$AK$2954,4,FALSE),0) -> 116,513,400
A26: 99000210 | B26: 0903003 | C26: Consulta de salud mental por otros profesionales | D26: =IFERROR(VLOOKUP($A26,Filtro_!$A$5:$AK$2954,2,FALSE),0) -> 40910 | E26: =IFERROR(VLOOKUP($A26,Filtro_!$A$5:$AK$2954,3,FALSE),0) -> 40857 | F26: =IFERROR(VLOOKUP($A26,Filtro_!$A$5:$AK$2954,4,FALSE),0) -> 140,956,650
A27: 99000220 | B27: 0903004 | C27: Intervención psicosocial grupal (4 a 8 pacientes, familiares o cuidadores) | D27: =IFERROR(VLOOKUP($A27,Filtro_!$A$5:$AK$2954,2,FALSE),0) -> 3506 | E27: =IFERROR(VLOOKUP($A27,Filtro_!$A$5:$AK$2954,3,FALSE),0) -> 3497 | F27: =IFERROR(VLOOKUP($A27,Filtro_!$A$5:$AK$2954,4,FALSE),0) -> 47,978,840
A28: 99000230 | B28: 0903005 | C28: Psicoterapia de grupo (por psicólogo o psiquiatra) (4 a 8 pacientes) | D28: =IFERROR(VLOOKUP($A28,Filtro_!$A$5:$AK$2954,2,FALSE),0) -> 5082 | E28: =IFERROR(VLOOKUP($A28,Filtro_!$A$5:$AK$2954,3,FALSE),0) -> 5082 | F28: =IFERROR(VLOOKUP($A28,Filtro_!$A$5:$AK$2954,4,FALSE),0) -> 81,616,920
A29: 17400050 | C29: Telemedicina/ Teleconsulta por profesional no médico | D29: =IFERROR(VLOOKUP($A29,Filtro_!$A$5:$AK$2954,2,FALSE),0) -> 0 | E29: =IFERROR(VLOOKUP($A29,Filtro_!$A$5:$AK$2954,3,FALSE),0) -> 0 | F29: =IFERROR(VLOOKUP($A29,Filtro_!$A$5:$AK$2954,4,FALSE),0) -> 0
C30: OTRAS CONSULTAS Y ATENCION MEDICA | D30: =IFERROR(VLOOKUP($A30,Filtro_!$A$5:$AK$2954,2,FALSE),0) -> 0 | E30: =IFERROR(VLOOKUP($A30,Filtro_!$A$5:$AK$2954,3,FALSE),0) -> 0 | F30: =IFERROR(VLOOKUP($A30,Filtro_!$A$5:$AK$2954,4,FALSE),0) -> 0
A31: 99100170 | C31: Consulta por otros profesionales | D31: =IFERROR(VLOOKUP($A31,Filtro_!$A$5:$AK$2954,2,FALSE),0) -> 25620 | E31: =IFERROR(VLOOKUP($A31,Filtro_!$A$5:$AK$2954,3,FALSE),0) -> 0 | F31: =IFERROR(VLOOKUP($A31,Filtro_!$A$5:$AK$2954,4,FALSE),0) -> 0
A32: 17200390 | C32: Consulta por Trabajador(a) Social | D32: =IFERROR(VLOOKUP($A32,Filtro_!$A$5:$AK$2954,2,FALSE),0) -> 14252 | E32: =IFERROR(VLOOKUP($A32,Filtro_!$A$5:$AK$2954,3,FALSE),0) -> 0 | F32: =IFERROR(VLOOKUP($A32,Filtro_!$A$5:$AK$2954,4,FALSE),0) -> 0
C33: PROGRAMAS DE REHABILITACION | D33: =SUM(D34:D35) -> 0 | E33: =SUM(E34:E35) -> 0 | F33: =SUM(F34:F35) -> 0
A34: 99000240 | B34: 0903007 | C34: Programa de rehabilitación tipo 1 (mensual, grupo 6 a 10 pers.) | D34: =IFERROR(VLOOKUP($A34,Filtro_!$A$5:$AK$2954,2,FALSE),0) -> 0 | E34: =IFERROR(VLOOKUP($A34,Filtro_!$A$5:$AK$2954,3,FALSE),0) -> 0 | F34: =IFERROR(VLOOKUP($A34,Filtro_!$A$5:$AK$2954,4,FALSE),0) -> 0
A35: 99000250 | B35: 0903008 | C35: Programa de rehabilitación tipo 2 (mensual, grupo 5 a 7 pers.) | D35: =IFERROR(VLOOKUP($A35,Filtro_!$A$5:$AK$2954,2,FALSE),0) -> 0 | E35: =IFERROR(VLOOKUP($A35,Filtro_!$A$5:$AK$2954,3,FALSE),0) -> 0 | F35: =IFERROR(VLOOKUP($A35,Filtro_!$A$5:$AK$2954,4,FALSE),0) -> 0
C36: OTROS PROGRAMAS | D36: =IFERROR(VLOOKUP($A36,Filtro_!$A$5:$AK$2954,2,FALSE),0) -> 0 | E36: =IFERROR(VLOOKUP($A36,Filtro_!$A$5:$AK$2954,3,FALSE),0) -> 0 | F36: =IFERROR(VLOOKUP($A36,Filtro_!$A$5:$AK$2954,4,FALSE),0) -> 0
A37: 99100210 | B37: 0901003 | C37: Sesión de terapia electroconvulsivante (hasta 6 sesiones por ciclo o sesiones de mantención) c/ sesión | D37: =IFERROR(VLOOKUP($A37,Filtro_!$A$5:$AK$2954,2,FALSE),0) -> 80 | E37: =IFERROR(VLOOKUP($A37,Filtro_!$A$5:$AK$2954,3,FALSE),0) -> 0 | F37: =IFERROR(VLOOKUP($A37,Filtro_!$A$5:$AK$2954,4,FALSE),0) -> 0
C38: EDUCACION DE GRUPO | D38: =SUM(D39:D44) -> 31780 | E38: =SUM(E39:E44) -> 31123 | F38: =SUM(F39:F44) -> 80,757,680
A39: 99000260 | B39: 0103001 | C39: Educación de grupo por médico | D39: =IFERROR(VLOOKUP($A39,Filtro_!$A$5:$AK$2954,2,FALSE),0) -> 667 | E39: =IFERROR(VLOOKUP($A39,Filtro_!$A$5:$AK$2954,3,FALSE),0) -> 667 | F39: =IFERROR(VLOOKUP($A39,Filtro_!$A$5:$AK$2954,4,FALSE),0) -> 3,094,880
A40: 99000270 | B40: 0103005 | C40: Educación de grupo por enfermera | D40: =IFERROR(VLOOKUP($A40,Filtro_!$A$5:$AK$2954,2,FALSE),0) -> 28,329 | E40: =IFERROR(VLOOKUP($A40,Filtro_!$A$5:$AK$2954,3,FALSE),0) -> 27,673 | F40: =IFERROR(VLOOKUP($A40,Filtro_!$A$5:$AK$2954,4,FALSE),0) -> 70,566,150
A41: 99000280 | B41: 0103003 | C41: Educación de grupo por Trabajador/a Social | D41: =IFERROR(VLOOKUP($A41,Filtro_!$A$5:$AK$2954,2,FALSE),0) -> 250 | E41: =IFERROR(VLOOKUP($A41,Filtro_!$A$5:$AK$2954,3,FALSE),0) -> 250 | F41: =IFERROR(VLOOKUP($A41,Filtro_!$A$5:$AK$2954,4,FALSE),0) -> 637,500
A42: 99000290 | B42: 0103004 | C42: Educación de grupo por auxiliar de enfermería | D42: =IFERROR(VLOOKUP($A42,Filtro_!$A$5:$AK$2954,2,FALSE),0) -> 0 | E42: =IFERROR(VLOOKUP($A42,Filtro_!$A$5:$AK$2954,3,FALSE),0) -> 0 | F42: =IFERROR(VLOOKUP($A42,Filtro_!$A$5:$AK$2954,4,FALSE),0) -> 0
A43: 17400100 | B43: 0103006 | C43: Educación de grupo por matrona | D43: =IFERROR(VLOOKUP($A43,Filtro_!$A$5:$AK$2954,2,FALSE),0) -> 2,436 | E43: =IFERROR(VLOOKUP($A43,Filtro_!$A$5:$AK$2954,3,FALSE),0) -> 2,436 | F43: =IFERROR(VLOOKUP($A43,Filtro_!$A$5:$AK$2954,4,FALSE),0) -> 6,211,800
A44: 17400110 | B44: 0103007 | C44: Educación de grupo por nutricionista | D44: =IFERROR(VLOOKUP($A44,Filtro_!$A$5:$AK$2954,2,FALSE),0) -> 98 | E44: =IFERROR(VLOOKUP($A44,Filtro_!$A$5:$AK$2954,3,FALSE),0) -> 97 | F44: =IFERROR(VLOOKUP($A44,Filtro_!$A$5:$AK$2954,4,FALSE),0) -> 247,350
C45: OTRA EDUCADION DE GRUPO | D45: =IFERROR(VLOOKUP($A45,Filtro_!$A$5:$AK$2954,2,FALSE),0) -> 0 | E45: =IFERROR(VLOOKUP($A45,Filtro_!$A$5:$AK$2954,3,FALSE),0) -> 0 | F45: =IFERROR(VLOOKUP($A45,Filtro_!$A$5:$AK$2954,4,FALSE),0) -> 0
A46: 99100220 | C46: Educación de grupo por otro integrante del equipo de salud | D46: =IFERROR(VLOOKUP($A46,Filtro_!$A$5:$AK$2954,2,FALSE),0) -> 1,735 | E46: =IFERROR(VLOOKUP($A46,Filtro_!$A$5:$AK$2954,3,FALSE),0) -> 0 | F46: =IFERROR(VLOOKUP($A46,Filtro_!$A$5:$AK$2954,4,FALSE),0) -> 0
C47: VISITAS DOMICILIARIAS | D47: =SUM(D48:D52) -> 44,539 | E47: =SUM(E48:E52) -> 44,432 | F47: =SUM(F48:F52) -> 86,412,760
A48: 17400120 | B48: 0104004 | C48: Visita a domicilio por enfermera | D48: =IFERROR(VLOOKUP($A48,Filtro_!$A$5:$AK$2954,2,FALSE),0) -> 27,945 | E48: =IFERROR(VLOOKUP($A48,Filtro_!$A$5:$AK$2954,3,FALSE),0) -> 27,839 | F48: =IFERROR(VLOOKUP($A48,Filtro_!$A$5:$AK$2954,4,FALSE),0) -> 61,524,190
A49: 99000310 | B49: 0104002 | C49: Visita a domicilio por asistente social | D49: =IFERROR(VLOOKUP($A49,Filtro_!$A$5:$AK$2954,2,FALSE),0) -> 2,752 | E49: =IFERROR(VLOOKUP($A49,Filtro_!$A$5:$AK$2954,3,FALSE),0) -> 2,751 | F49: =IFERROR(VLOOKUP($A49,Filtro_!$A$5:$AK$2954,4,FALSE),0) -> 6,079,710
A50: 99000320 | B50: 0104003 | C50: Visita a domicilio por auxiliar de enfermería | D50: =IFERROR(VLOOKUP($A50,Filtro_!$A$5:$AK$2954,2,FALSE),0) -> 12,534 | E50: =IFERROR(VLOOKUP($A50,Filtro_!$A$5:$AK$2954,3,FALSE),0) -> 12,534 | F50: =IFERROR(VLOOKUP($A50,Filtro_!$A$5:$AK$2954,4,FALSE),0) -> 15,918,180
A51: 17400130 | B51: 0104005 | C51: Visita a domicilio por matrona | D51: =IFERROR(VLOOKUP($A51,Filtro_!$A$5:$AK$2954,2,FALSE),0) -> 138 | E51: =IFERROR(VLOOKUP($A51,Filtro_!$A$5:$AK$2954,3,FALSE),0) -> 138 | F51: =IFERROR(VLOOKUP($A51,Filtro_!$A$5:$AK$2954,4,FALSE),0) -> 304,980
A52: 17400140 | B52: 0104006 | C52: Visita a domicilio por nutricionista | D52: =IFERROR(VLOOKUP($A52,Filtro_!$A$5:$AK$2954,2,FALSE),0) -> 1,170 | E52: =IFERROR(VLOOKUP($A52,Filtro_!$A$5:$AK$2954,3,FALSE),0) -> 1,170 | F52: =IFERROR(VLOOKUP($A52,Filtro_!$A$5:$AK$2954,4,FALSE),0) -> 2,585,700
C53: OTRAS VISITAS DOMICILIARIAS | D53: =IFERROR(VLOOKUP($A53,Filtro_!$A$5:$AK$2954,2,FALSE),0) -> 0 | E53: =IFERROR(VLOOKUP($A53,Filtro_!$A$5:$AK$2954,3,FALSE),0) -> 0 | F53: =IFERROR(VLOOKUP($A53,Filtro_!$A$5:$AK$2954,4,FALSE),0) -> 0
A54: 99100230 | C54: Visita a domicilio por otro integrante del equipo de salud | D54: =IFERROR(VLOOKUP($A54,Filtro_!$A$5:$AK$2954,2,FALSE),0) -> 21,492 | E54: =IFERROR(VLOOKUP($A54,Filtro_!$A$5:$AK$2954,3,FALSE),0) -> 0 | F54: =IFERROR(VLOOKUP($A54,Filtro_!$A$5:$AK$2954,4,FALSE),0) -> 0
A55: 99100240 | C55: Visita domiciaria por profesional y técnico paramédico | D55: =IFERROR(VLOOKUP($A55,Filtro_!$A$5:$AK$2954,2,FALSE),0) -> 9,171 | E55: =IFERROR(VLOOKUP($A55,Filtro_!$A$5:$AK$2954,3,FALSE),0) -> 0 | F55: =IFERROR(VLOOKUP($A55,Filtro_!$A$5:$AK$2954,4,FALSE),0) -> 0
C56: TOTAL | D56: =SUM(D57:D61) -> 218,758 | E56: =E10+E18+E33+E38+E47 -> 1,230,042 | F56: =F10+F18+F33+F38+F47 -> 8,064,654,890
B57: SECCION B: ATENCION CERRADA, DIAS DE HOSPITALIZACION
B58: CODIGOS | C58: IDENTIFICACION DE PRESTACIONES | D58: TOTAL PRODUCCIÓN | E58: TOTAL BENEFICIARIOS MAI | F58: PAGO POR PRESTACIONES ($)
C59: ATENCION CERRADA | D59: 0 | E59: 0 | F59: 0
A60: 17400150 | B60: 0201010 | C60: Dia Cama de Hospitalización Integral Cuidados Básicos | D60: =IFERROR(VLOOKUP($A60,Filtro_!$A$5:$AK$2954,2,FALSE),0) -> 34908 | E60: =IFERROR(VLOOKUP($A60,Filtro_!$A$5:$AK$2954,3,FALSE),0) -> 34268 | F60: =IFERROR(VLOOKUP($A60,Filtro_!$A$5:$AK$2954,4,FALSE),0) -> 1,383,399,160
A61: 17400160 | B61: 0201110 | C61: Dia Cama de Hospitalización Integral Cuidados Medios | D61: =IFERROR(VLOOKUP($A61,Filtro_!$A$5:$AK$2954,2,FALSE),0) -> 183850 | E61: =IFERROR(VLOOKUP($A61,Filtro_!$A$5:$AK$2954,3,FALSE),0) -> 179615 | F61: =IFERROR(VLOOKUP($A61,Filtro_!$A$5:$AK$2954,4,FALSE),0) -> 8,163,501,750
A62: 17400170 | B62: 0201301 | C62: Día Cama de Hospitalización Integral Adulto en Unidad de Tratamiento Intermedio (U.T.I) | D62: =IFERROR(VLOOKUP($A62,Filtro_!$A$5:$AK$2954,2,FALSE),0) -> 29573 | E62: =IFERROR(VLOOKUP($A62,Filtro_!$A$5:$AK$2954,3,FALSE),0) -> 29222 | F62: =IFERROR(VLOOKUP($A62,Filtro_!$A$5:$AK$2954,4,FALSE),0) -> 2,469,843,440
A63: 17400180 | B63: 0201302 | C63: Día Cama de Hospitalización Integral Pediátrica en Unidad de Tratamiento Intermedio (U.T.I) | D63: =IFERROR(VLOOKUP($A63,Filtro_!$A$5:$AK$2954,2,FALSE),0) -> 4698 | E63: =IFERROR(VLOOKUP($A63,Filtro_!$A$5:$AK$2954,3,FALSE),0) -> 4568 | F63: =IFERROR(VLOOKUP($A63,Filtro_!$A$5:$AK$2954,4,FALSE),0) -> 386,087,360
A64: 17400190 | B64: 0201303 | C64: Día Cama de Hospitalización Integral Neonatal en Unidad de Tratamiento Intermedio (U.T.I) | D64: =IFERROR(VLOOKUP($A64,Filtro_!$A$5:$AK$2954,2,FALSE),0) -> 4745 | E64: =IFERROR(VLOOKUP($A64,Filtro_!$A$5:$AK$2954,3,FALSE),0) -> 4631 | F64: =IFERROR(VLOOKUP($A64,Filtro_!$A$5:$AK$2954,4,FALSE),0) -> 391,412,120
A65: 17400200 | B65: 0201201 | C65: Día Cama de Hospitalización Integral Adulto en Unidad de Cuidado Intensivo (U.C.I.) | D65: =IFERROR(VLOOKUP($A65,Filtro_!$A$5:$AK$2954,2,FALSE),0) -> 13156 | E65: =IFERROR(VLOOKUP($A65,Filtro_!$A$5:$AK$2954,3,FALSE),0) -> 12963 | F65: =IFERROR(VLOOKUP($A65,Filtro_!$A$5:$AK$2954,4,FALSE),0) -> 2,268,136,110
A66: 17400210 | B66: 0201202 | C66: Día Cama de Hospitalización Integral Pediátrica en Unidad de Cuidado Intensivo (U.C.I). | D66: =IFERROR(VLOOKUP($A66,Filtro_!$A$5:$AK$2954,2,FALSE),0) -> 1201 | E66: =IFERROR(VLOOKUP($A66,Filtro_!$A$5:$AK$2954,3,FALSE),0) -> 1183 | F66: =IFERROR(VLOOKUP($A66,Filtro_!$A$5:$AK$2954,4,FALSE),0) -> 206,989,510
A67: 17400220 | B67: 0201203 | C67: Día Cama de Hospitalización Integral Neonatal en Unidad de Cuidado Intensivo (U.C.I.) | D67: =IFERROR(VLOOKUP($A67,Filtro_!$A$5:$AK$2954,2,FALSE),0) -> 2383 | E67: =IFERROR(VLOOKUP($A67,Filtro_!$A$5:$AK$2954,3,FALSE),0) -> 2357 | F67: =IFERROR(VLOOKUP($A67,Filtro_!$A$5:$AK$2954,4,FALSE),0) -> 412,404,290
A68: 17400230 | B68: 0201410 | C68: Día Cama de Hospitalización Integral Obstetricia | D68: =IFERROR(VLOOKUP($A68,Filtro_!$A$5:$AK$2954,2,FALSE),0) -> 22953 | E68: =IFERROR(VLOOKUP($A68,Filtro_!$A$5:$AK$2954,3,FALSE),0) -> 22567 | F68: =IFERROR(VLOOKUP($A68,Filtro_!$A$5:$AK$2954,4,FALSE),0) -> 912,158,140
A69: 17400240 | B69: 0201403 | C69: Día Cama de Hospitalización Integral Sala Cuna | D69: =IFERROR(VLOOKUP($A69,Filtro_!$A$5:$AK$2954,2,FALSE),0) -> 4263 | E69: =IFERROR(VLOOKUP($A69,Filtro_!$A$5:$AK$2954,3,FALSE),0) -> 4223 | F69: =IFERROR(VLOOKUP($A69,Filtro_!$A$5:$AK$2954,4,FALSE),0) -> 34,459,680
A70: 17400250 | B70: 0201404 | C70: Día Cama de Hospitalización Integral Incubadora | D70: =IFERROR(VLOOKUP($A70,Filtro_!$A$5:$AK$2954,2,FALSE),0) -> 973 | E70: =IFERROR(VLOOKUP($A70,Filtro_!$A$5:$AK$2954,3,FALSE),0) -> 933 | F70: =IFERROR(VLOOKUP($A70,Filtro_!$A$5:$AK$2954,4,FALSE),0) -> 70,749,390
A71: 17400270 | B71: 0201406 | C71: Día Cama de Hospitalización Integral Psiquiatría | D71: =IFERROR(VLOOKUP($A71,Filtro_!$A$5:$AK$2954,2,FALSE),0) -> 12962 | E71: =IFERROR(VLOOKUP($A71,Filtro_!$A$5:$AK$2954,3,FALSE),0) -> 12918 | F71: =IFERROR(VLOOKUP($A71,Filtro_!$A$5:$AK$2954,4,FALSE),0) -> 387,410,820
A72: 17400280 | B72: 0201407 | C72: Día Cama de Hospitalizacion Integral de Observación - Ambulatorio | D72: =IFERROR(VLOOKUP($A72,Filtro_!$A$5:$AK$2954,2,FALSE),0) -> 57237 | E72: =IFERROR(VLOOKUP($A72,Filtro_!$A$5:$AK$2954,3,FALSE),0) -> 56933 | F72: =IFERROR(VLOOKUP($A72,Filtro_!$A$5:$AK$2954,4,FALSE),0) -> 483,930,500
A73: 17400290 | B73: 0201501 | C73: Dia Cama Hospitalizacion Domiciliaria Cuidados Básicos | D73: =IFERROR(VLOOKUP($A73,Filtro_!$A$5:$AK$2954,2,FALSE),0) -> 5513 | E73: =IFERROR(VLOOKUP($A73,Filtro_!$A$5:$AK$2954,3,FALSE),0) -> 5513 | F73: =IFERROR(VLOOKUP($A73,Filtro_!$A$5:$AK$2954,4,FALSE),0) -> 217,212,200
A74: 17400300 | B74: 0201502 | C74: Dia Cama Hospitalizacion Domiciliaria Cuidados Medios | D74: =IFERROR(VLOOKUP($A74,Filtro_!$A$5:$AK$2954,2,FALSE),0) -> 23527 | E74: =IFERROR(VLOOKUP($A74,Filtro_!$A$5:$AK$2954,3,FALSE),0) -> 23455 | F74: =IFERROR(VLOOKUP($A74,Filtro_!$A$5:$AK$2954,4,FALSE),0) -> 1,414,101,950
A75: 17400310 | B75: 0201503 | C75: Dia Cama Hospitalizacion Domiciliaria Cuidados Alta Complejidad | D75: =IFERROR(VLOOKUP($A75,Filtro_!$A$5:$AK$2954,2,FALSE),0) -> 5319 | E75: =IFERROR(VLOOKUP($A75,Filtro_!$A$5:$AK$2954,3,FALSE),0) -> 5207 | F75: =IFERROR(VLOOKUP($A75,Filtro_!$A$5:$AK$2954,4,FALSE),0) -> 522,886,940
C76: TOTAL | D76: =SUM(D60:D75) -> 407261 | E76: =SUM(E60:E75) -> 400556 | F76: =SUM(F60:F75) -> 19,724,683,360
B77: SECCIÓN C:TRATAMIENTO ABREVIADO DE LA TUBERCULOSIS
B78: CODIGOS | C78: TRATAMIENTO ABREVIADO DE LA TUBERCULOSIS | D78: TOTAL PRODUCCIÓN | E78: TOTAL BENEFICIARIOS MAI | F78: PAGO POR PRESTACIONES ($)
A79: 99001860 | B79: 3003001 | C79: TBC, Esquema primario (mensual) | D79: =IFERROR(VLOOKUP($A79,Filtro_!$A$5:$AK$2954,2,FALSE),0) -> 2 | E79: =IFERROR(VLOOKUP($A79,Filtro_!$A$5:$AK$2954,3,FALSE),0) -> 2 | F79: =IFERROR(VLOOKUP($A79,Filtro_!$A$5:$AK$2954,4,FALSE),0) -> 17,580
A80: 99001870 | B80: 3003002 | C80: TBC, Esquema primario simplificado (mensual) | D80: =IFERROR(VLOOKUP($A80,Filtro_!$A$5:$AK$2954,2,FALSE),0) -> 0 | E80: =IFERROR(VLOOKUP($A80,Filtro_!$A$5:$AK$2954,3,FALSE),0) -> 0 | F80: =IFERROR(VLOOKUP($A80,Filtro_!$A$5:$AK$2954,4,FALSE),0) -> 0
A81: 99001880 | B81: 3003003 | C81: TBC, Esquema secundario (mensual) | D81: =IFERROR(VLOOKUP($A81,Filtro_!$A$5:$AK$2954,2,FALSE),0) -> 0 | E81: =IFERROR(VLOOKUP($A81,Filtro_!$A$5:$AK$2954,3,FALSE),0) -> 0 | F81: =IFERROR(VLOOKUP($A81,Filtro_!$A$5:$AK$2954,4,FALSE),0) -> 0
A82: 99001890 | B82: 3003004 | C82: TBC, Esquema normado de retratamiento (mensual) | D82: =IFERROR(VLOOKUP($A82,Filtro_!$A$5:$AK$2954,2,FALSE),0) -> 0 | E82: =IFERROR(VLOOKUP($A82,Filtro_!$A$5:$AK$2954,3,FALSE),0) -> 0 | F82: =IFERROR(VLOOKUP($A82,Filtro_!$A$5:$AK$2954,4,FALSE),0) -> 0
A83: 99001900 | B83: 3003005 | C83: TBC, Esquema especial de retratamiento (mensual) | D83: =IFERROR(VLOOKUP($A83,Filtro_!$A$5:$AK$2954,2,FALSE),0) -> 0 | E83: =IFERROR(VLOOKUP($A83,Filtro_!$A$5:$AK$2954,3,FALSE),0) -> 0 | F83: =IFERROR(VLOOKUP($A83,Filtro_!$A$5:$AK$2954,4,FALSE),0) -> 0
C84: TOTAL | D84: =SUM(D79:D83) -> 2 | E84: =SUM(E79:E83) -> 2 | F84: =SUM(F79:F83) -> 17,580
B85: SECCIÓN D:TRASLADO, RESCATES Y RONDAS RURALES
B86: CODIGOS | C86: TRASLADO, RESCATES Y RONDAS RURALES | D86: TOTAL PRODUCCIÓN | E86: TOTAL BENEFICIARIOS MAI | F86: PAGO POR PRESTACIONES ($)
A87: 99001910 | B87: 2401061 | C87: Rescate simple y/o traslado en móvil 1 | D87: =IFERROR(VLOOKUP($A87,Filtro_!$A$5:$AK$2954,2,FALSE),0) -> 0 | E87: =IFERROR(VLOOKUP($A87,Filtro_!$A$5:$AK$2954,3,FALSE),0) -> 0 | F87: =IFERROR(VLOOKUP($A87,Filtro_!$A$5:$AK$2954,4,FALSE),0) -> 0
A88: 99001920 | B88: 2401062 | C88: Rescate profesionalizado y/o traslado paciente complejo móvil 2 | D88: =IFERROR(VLOOKUP($A88,Filtro_!$A$5:$AK$2954,2,FALSE),0) -> 1,714 | E88: =IFERROR(VLOOKUP($A88,Filtro_!$A$5:$AK$2954,3,FALSE),0) -> 1,672 | F88: =IFERROR(VLOOKUP($A88,Filtro_!$A$5:$AK$2954,4,FALSE),0) -> 123,544,080
A89: 99001930 | B89: 2401063 | C89: Rescate medicalizado y/o traslado paciente critico en móvil 3 | D89: =IFERROR(VLOOKUP($A89,Filtro_!$A$5:$AK$2954,2,FALSE),0) -> 119 | E89: =IFERROR(VLOOKUP($A89,Filtro_!$A$5:$AK$2954,3,FALSE),0) -> 119 | F89: =IFERROR(VLOOKUP($A89,Filtro_!$A$5:$AK$2954,4,FALSE),0) -> 10,899,210
A90: 99001940 | B90: 2401064 | C90: Traslado en ambulancia | D90: =IFERROR(VLOOKUP($A90,Filtro_!$A$5:$AK$2954,2,FALSE),0) -> 45,377 | E90: =IFERROR(VLOOKUP($A90,Filtro_!$A$5:$AK$2954,3,FALSE),0) -> 45,375 | F90: =IFERROR(VLOOKUP($A90,Filtro_!$A$5:$AK$2954,4,FALSE),0) -> 146,561,250
A91: 99001950 | B91: 2401065 | C91: Ronda rural terrestre, c/ km recorrido | D91: =IFERROR(VLOOKUP($A91,Filtro_!$A$5:$AK$2954,2,FALSE),0) -> 99,834 | E91: =IFERROR(VLOOKUP($A91,Filtro_!$A$5:$AK$2954,3,FALSE),0) -> 99,834 | F91: =IFERROR(VLOOKUP($A91,Filtro_!$A$5:$AK$2954,4,FALSE),0) -> 6,988,380
A92: 99001960 | B92: 2401066 | C92: Ronda rural aérea, c/ hora de vuelo | D92: =IFERROR(VLOOKUP($A92,Filtro_!$A$5:$AK$2954,2,FALSE),0) -> 0 | E92: =IFERROR(VLOOKUP($A92,Filtro_!$A$5:$AK$2954,3,FALSE),0) -> 0 | F92: =IFERROR(VLOOKUP($A92,Filtro_!$A$5:$AK$2954,4,FALSE),0) -> 0
A93: 99001970 | B93: 2401067 | C93: Ronda rural marítima, c/ hora de navegación | D93: =IFERROR(VLOOKUP($A93,Filtro_!$A$5:$AK$2954,2,FALSE),0) -> 0 | E93: =IFERROR(VLOOKUP($A93,Filtro_!$A$5:$AK$2954,3,FALSE),0) -> 0 | F93: =IFERROR(VLOOKUP($A93,Filtro_!$A$5:$AK$2954,4,FALSE),0) -> 0
C94: TOTAL | D94: =SUM(D87:D93) -> 147044 | E94: =SUM(E87:E93) -> 147000 | F94: =SUM(F87:F93) -> 287,992,920
B95: SECCION E: PARTOS
B96: CODIGOS | C96: IDENTIFICACION DE PRESTACIONES | D96: TOTAL PRODUCCIÓN | E96: TOTAL BENEFICIARIOS MAI | F96: PAGO POR PRESTACIONES ($)
A97: 99000740 | B97: 2004103 | C97: Parto normal | D97: =IFERROR(VLOOKUP($A97,Filtro_!$A$5:$AK$2954,2,FALSE),0) -> 2982 | E97: =IFERROR(VLOOKUP($A97,Filtro_!$A$5:$AK$2954,3,FALSE),0) -> 2783 | F97: =IFERROR(VLOOKUP($A97,Filtro_!$A$5:$AK$2954,4,FALSE),0) -> 457,386,050
A98: 99000750 | B98: 2004113 | C98: Parto distósico vaginal | D98: =IFERROR(VLOOKUP($A98,Filtro_!$A$5:$AK$2954,2,FALSE),0) -> 52 | E98: =IFERROR(VLOOKUP($A98,Filtro_!$A$5:$AK$2954,3,FALSE),0) -> 46 | F98: =IFERROR(VLOOKUP($A98,Filtro_!$A$5:$AK$2954,4,FALSE),0) -> 7,953,860
C99: TOTAL | D99: =SUM(D97:D98) -> 3034 | E99: =SUM(E97:E98) -> 2829 | F99: =SUM(F97:F98) -> 465,339,910
B100: SECCION F: ATENCION ODONTOLOGICA
C101: Prestaciones | D101: TOTAL PRODUCCIÓN | E101: TOTAL BENEFICIARIOS MAI | F101: PAGO POR PRESTACIONES ($)
A102: 17400320 | B102: 2701XXX | C102: Consulta y atención odontológica | D102: =IFERROR(VLOOKUP($A102,Filtro_!$A$5:$AK$2954,2,FALSE),0) -> 104885 | E102: =IFERROR(VLOOKUP($A102,Filtro_!$A$5:$AK$2954,3,FALSE),0) -> 104752 | F102: =IFERROR(VLOOKUP($A102,Filtro_!$A$5:$AK$2954,4,FALSE),0) -> 439,062,100
A103: 17400330 | B103: 2702XXX | C103: Exámenes imagenológicos odontológico | D103: =IFERROR(VLOOKUP($A103,Filtro_!$A$5:$AK$2954,2,FALSE),0) -> 24447 | E103: =IFERROR(VLOOKUP($A103,Filtro_!$A$5:$AK$2954,3,FALSE),0) -> 24340 | F103: =IFERROR(VLOOKUP($A103,Filtro_!$A$5:$AK$2954,4,FALSE),0) -> 265,531,310
A104: 17400340 | B104: 2703XXX | C104: Odontología general: Actividades preventivas y recuperativas | D104: =IFERROR(VLOOKUP($A104,Filtro_!$A$5:$AK$2954,2,FALSE),0) -> 59944 | E104: =IFERROR(VLOOKUP($A104,Filtro_!$A$5:$AK$2954,3,FALSE),0) -> 59909 | F104: =IFERROR(VLOOKUP($A104,Filtro_!$A$5:$AK$2954,4,FALSE),0) -> 508,103,870
A105: 17400350 | B105: 2704XXX | C105: Especialidades | D105: =IFERROR(VLOOKUP($A105,Filtro_!$A$5:$AK$2954,2,FALSE),0) -> 26751 | E105: =IFERROR(VLOOKUP($A105,Filtro_!$A$5:$AK$2954,3,FALSE),0) -> 26738 | F105: =IFERROR(VLOOKUP($A105,Filtro_!$A$5:$AK$2954,4,FALSE),0) -> 835,170,250
A106: 17400360 | B106: 2705XXX | C106: Cirugías | D106: =IFERROR(VLOOKUP($A106,Filtro_!$A$5:$AK$2954,2,FALSE),0) -> 7673 | E106: =IFERROR(VLOOKUP($A106,Filtro_!$A$5:$AK$2954,3,FALSE),0) -> 7174 | F106: =IFERROR(VLOOKUP($A106,Filtro_!$A$5:$AK$2954,4,FALSE),0) -> 323,553,960
A107: 99100440 | C107: Otras prestaciones odontológicas | D107: =IFERROR(VLOOKUP($A107,Filtro_!$A$5:$AK$2954,2,FALSE),0) -> 22417 | E107: =IFERROR(VLOOKUP($A107,Filtro_!$A$5:$AK$2954,3,FALSE),0) -> 0 | F107: =IFERROR(VLOOKUP($A107,Filtro_!$A$5:$AK$2954,4,FALSE),0) -> 0
C108: TOTAL | D108: =SUM(D102:D107) -> 246117 | E108: =SUM(E102:E106) -> 222913 | F108: =SUM(F102:F106) -> 2,371,421,490
B109: SECCION G: LENTES, AUDIFONOS
B110: CODIGOS | C110: IDENTIFICACION DE PRESTACIONES | D110: TOTAL PRODUCCIÓN | E110: TOTAL BENEFICIARIOS MAI | F110: PAGO POR PRESTACIONES ($)
A111: 99001470 | B111: 3001001 | C111: Lentes ópticos | D111: =IFERROR(VLOOKUP($A111,Filtro_!$A$5:$AK$2954,2,FALSE),0) -> 14923 | E111: =IFERROR(VLOOKUP($A111,Filtro_!$A$5:$AK$2954,3,FALSE),0) -> 14923 | F111: =IFERROR(VLOOKUP($A111,Filtro_!$A$5:$AK$2954,4,FALSE),0) -> 367,255,030
A112: 99001480 | B112: 3001002 | C112: Audífonos | D112: =IFERROR(VLOOKUP($A112,Filtro_!$A$5:$AK$2954,2,FALSE),0) -> 2614 | E112: =IFERROR(VLOOKUP($A112,Filtro_!$A$5:$AK$2954,3,FALSE),0) -> 2614 | F112: =IFERROR(VLOOKUP($A112,Filtro_!$A$5:$AK$2954,4,FALSE),0) -> 806,419,000
C113: TOTAL | D113: =SUM(D111:D112) -> 17537 | E113: =SUM(E111:E112) -> 17537 | F113: =SUM(F111:F112) -> 1,173,674,030
B114: SECCIÓN H: MEDICINA TRANSFUSIONAL
B115: CODIGOS | C115: IDENTIFICACION DE PRESTACIONES | D115: TOTAL PRODUCCIÓN | E115: TOTAL BENEFICIARIOS MAI | F115: PAGO POR PRESTACIONES ($)
A116: 99001490 | B116: Grupo 07 | C116: Medicina Transfusional | D116: =IFERROR(VLOOKUP($A116,Filtro_!$A$5:$AK$2954,2,FALSE),0) -> 111270 | E116: =IFERROR(VLOOKUP($A116,Filtro_!$A$5:$AK$2954,3,FALSE),0) -> 111163 | F116: =IFERROR(VLOOKUP($A116,Filtro_!$A$5:$AK$2954,4,FALSE),0) -> 1,873,578,170
B117: SECCION I: EXAMENES DE DIAGNOSTICO
B118: TIPO DE EXAMEN | D118: TOTAL | E118: EXAMENES REALIZADOS | I118: PROCEDENCIA | L118: PRODUCCION INTRA HOSPITAL | O118: OPERATIVO | P118: COMPRAS REALIZADAS | R118: VENTAS DE SERVICIOS | S118: TOTAL DE PROCEDIMIENTOS INFORMADOS | T118: PAGO POR PRESTACIONES ($)
E119: TOTAL BENEFICIARIOS | F119: BENEFICIARIOS | H119: NO BENEFICIARIOS | I119: ATENCION CERRADA | J119: ATENCION ABIERTA | K119: EMERGENCIA | L119: POR HONORARIOS | M119: POR CONVENIOS | N119: POR CONSULTORES DE LLAMADA | P119: AL SISTEMA | Q119: EXTRA-SISTEMA
F120: MAI | G120: MLE
B121: TOTAL EXAMENES LABORATORIO | D121: 0 | E121: 0 | F121: 0 | G121: 0 | H121: 0 | I121: 0 | J121: 0 | K121: 0 | L121: 0 | M121: 0 | N121: 0 | O121: 0 | P121: 0 | Q121: 0 | R121: 0 | S121: 0 | T121: 0
A122: 17010100 | B122: I | C122: HEMATOLOGICOS | D122: =IFERROR(VLOOKUP($A122,Filtro_!$A$5:$AK$2954,2,FALSE),0) -> 1311956 | E122: =IFERROR(VLOOKUP($A122,Filtro_!$A$5:$AK$2954,3,FALSE),0) -> 1276032 | F122: =IFERROR(VLOOKUP($A122,Filtro_!$A$5:$AK$2954,4,FALSE),0) -> 1273309 | G122: =IFERROR(VLOOKUP($A122,Filtro_!$A$5:$AK$2954,5,FALSE),0) -> 2723 | H122: =IFERROR(VLOOKUP($A122,Filtro_!$A$5:$AK$2954,6,FALSE),0) -> 35924 | I122: =IFERROR(VLOOKUP($A122,Filtro_!$A$5:$AK$2954,7,FALSE),0) -> 397876 | J122: =IFERROR(VLOOKUP($A122,Filtro_!$A$5:$AK$2954,8,FALSE),0) -> 577974 | K122: =IFERROR(VLOOKUP($A122,Filtro_!$A$5:$AK$2954,9,FALSE),0) -> 336208 | L122: =IFERROR(VLOOKUP($A122,Filtro_!$A$5:$AK$2954,10,FALSE),0) -> 0 | M122: =IFERROR(VLOOKUP($A122,Filtro_!$A$5:$AK$2954,11,FALSE),0) -> 0 | N122: =IFERROR(VLOOKUP($A122,Filtro_!$A$5:$AK$2954,12,FALSE),0) -> 0 | O122: =IFERROR(VLOOKUP($A122,Filtro_!$A$5:$AK$2954,13,FALSE),0) -> 0 | P122: =IFERROR(VLOOKUP($A122,Filtro_!$A$5:$AK$2954,14,FALSE),0) -> 1597 | Q122: =IFERROR(VLOOKUP($A122,Filtro_!$A$5:$AK$2954,15,FALSE),0) -> 509 | R122: =IFERROR(VLOOKUP($A122,Filtro_!$A$5:$AK$2954,16,FALSE),0) -> 37849 | S122: =IFERROR(VLOOKUP($A122,Filtro_!$A$5:$AK$2954,17,FALSE),0) -> 0 | T122: =IFERROR(VLOOKUP($A122,Filtro_!$A$5:$AK$2954,18,FALSE),0) -> 2,536,995,560
A123: 17010200 | B123: II | C123: BIOQUIMICOS | D123: =IFERROR(VLOOKUP($A123,Filtro_!$A$5:$AK$2954,2,FALSE),0) -> 2478913 | E123: =IFERROR(VLOOKUP($A123,Filtro_!$A$5:$AK$2954,3,FALSE),0) -> 2436356 | F123: =IFERROR(VLOOKUP($A123,Filtro_!$A$5:$AK$2954,4,FALSE),0) -> 2433132 | G123: =IFERROR(VLOOKUP($A123,Filtro_!$A$5:$AK$2954,5,FALSE),0) -> 3224 | H123: =IFERROR(VLOOKUP($A123,Filtro_!$A$5:$AK$2954,6,FALSE),0) -> 42557 | I123: =IFERROR(VLOOKUP($A123,Filtro_!$A$5:$AK$2954,7,FALSE),0) -> 781809 | J123: =IFERROR(VLOOKUP($A123,Filtro_!$A$5:$AK$2954,8,FALSE),0) -> 1081049 | K123: =IFERROR(VLOOKUP($A123,Filtro_!$A$5:$AK$2954,9,FALSE),0) -> 596675 | L123: =IFERROR(VLOOKUP($A123,Filtro_!$A$5:$AK$2954,10,FALSE),0) -> 0 | M123: =IFERROR(VLOOKUP($A123,Filtro_!$A$5:$AK$2954,11,FALSE),0) -> 0 | N123: =IFERROR(VLOOKUP($A123,Filtro_!$A$5:$AK$2954,12,FALSE),0) -> 0 | O123: =IFERROR(VLOOKUP($A123,Filtro_!$A$5:$AK$2954,13,FALSE),0) -> 0 | P123: =IFERROR(VLOOKUP($A123,Filtro_!$A$5:$AK$2954,14,FALSE),0) -> 2557 | Q123: =IFERROR(VLOOKUP($A123,Filtro_!$A$5:$AK$2954,15,FALSE),0) -> 2377 | R123: =IFERROR(VLOOKUP($A123,Filtro_!$A$5:$AK$2954,16,FALSE),0) -> 59169 | S123: =IFERROR(VLOOKUP($A123,Filtro_!$A$5:$AK$2954,17,FALSE),0) -> 0 | T123: =IFERROR(VLOOKUP($A123,Filtro_!$A$5:$AK$2954,18,FALSE),0) -> 7,270,997,980
A124: 17010300 | B124: III | C124: HORMONALES | D124: =IFERROR(VLOOKUP($A124,Filtro_!$A$5:$AK$2954,2,FALSE),0) -> 225163 | E124: =IFERROR(VLOOKUP($A124,Filtro_!$A$5:$AK$2954,3,FALSE),0) -> 218544 | F124: =IFERROR(VLOOKUP($A124,Filtro_!$A$5:$AK$2954,4,FALSE),0) -> 218516 | G124: =IFERROR(VLOOKUP($A124,Filtro_!$A$5:$AK$2954,5,FALSE),0) -> 28 | H124: =IFERROR(VLOOKUP($A124,Filtro_!$A$5:$AK$2954,6,FALSE),0) -> 6619 | I124: =IFERROR(VLOOKUP($A124,Filtro_!$A$5:$AK$2954,7,FALSE),0) -> 16802 | J124: =IFERROR(VLOOKUP($A124,Filtro_!$A$5:$AK$2954,8,FALSE),0) -> 203522 | K124: =IFERROR(VLOOKUP($A124,Filtro_!$A$5:$AK$2954,9,FALSE),0) -> 4839 | L124: =IFERROR(VLOOKUP($A124,Filtro_!$A$5:$AK$2954,10,FALSE),0) -> 0 | M124: =IFERROR(VLOOKUP($A124,Filtro_!$A$5:$AK$2954,11,FALSE),0) -> 0 | N124: =IFERROR(VLOOKUP($A124,Filtro_!$A$5:$AK$2954,12,FALSE),0) -> 0 | O124: =IFERROR(VLOOKUP($A124,Filtro_!$A$5:$AK$2954,13,FALSE),0) -> 0 | P124: =IFERROR(VLOOKUP($A124,Filtro_!$A$5:$AK$2954,14,FALSE),0) -> 19165 | Q124: =IFERROR(VLOOKUP($A124,Filtro_!$A$5:$AK$2954,15,FALSE),0) -> 775 | R124: =IFERROR(VLOOKUP($A124,Filtro_!$A$5:$AK$2954,16,FALSE),0) -> 11946 | S124: =IFERROR(VLOOKUP($A124,Filtro_!$A$5:$AK$2954,17,FALSE),0) -> 0 | T124: =IFERROR(VLOOKUP($A124,Filtro_!$A$5:$AK$2954,18,FALSE),0) -> 1,234,828,270
A125: 17010400 | B125: IV | C125: GENETICA | D125: =IFERROR(VLOOKUP($A125,Filtro_!$A$5:$AK$2954,2,FALSE),0) -> 0 | E125: =IFERROR(VLOOKUP($A125,Filtro_!$A$5:$AK$2954,3,FALSE),0) -> 0 | F125: =IFERROR(VLOOKUP($A125,Filtro_!$A$5:$AK$2954,4,FALSE),0) -> 0 | G125: =IFERROR(VLOOKUP($A125,Filtro_!$A$5:$AK$2954,5,FALSE),0) -> 0 | H125: =IFERROR(VLOOKUP($A125,Filtro_!$A$5:$AK$2954,6,FALSE),0) -> 0 | I125: =IFERROR(VLOOKUP($A125,Filtro_!$A$5:$AK$2954,7,FALSE),0) -> 0 | J125: =IFERROR(VLOOKUP($A125,Filtro_!$A$5:$AK$2954,8,FALSE),0) -> 0 | K125: =IFERROR(VLOOKUP($A125,Filtro_!$A$5:$AK$2954,9,FALSE),0) -> 0 | L125: =IFERROR(VLOOKUP($A125,Filtro_!$A$5:$AK$2954,10,FALSE),0) -> 0 | M125: =IFERROR(VLOOKUP($A125,Filtro_!$A$5:$AK$2954,11,FALSE),0) -> 0 | N125: =IFERROR(VLOOKUP($A125,Filtro_!$A$5:$AK$2954,12,FALSE),0) -> 0 | O125: =IFERROR(VLOOKUP($A125,Filtro_!$A$5:$AK$2954,13,FALSE),0) -> 0 | P125: =IFERROR(VLOOKUP($A125,Filtro_!$A$5:$AK$2954,14,FALSE),0) -> 0 | Q125: =IFERROR(VLOOKUP($A125,Filtro_!$A$5:$AK$2954,15,FALSE),0) -> 48 | R125: =IFERROR(VLOOKUP($A125,Filtro_!$A$5:$AK$2954,16,FALSE),0) -> 0 | S125: =IFERROR(VLOOKUP($A125,Filtro_!$A$5:$AK$2954,17,FALSE),0) -> 0 | T125: =IFERROR(VLOOKUP($A125,Filtro_!$A$5:$AK$2954,18,FALSE),0) -> 0
A126: 17010500 | B126: V | C126: INMUNOLOGICOS | D126: =IFERROR(VLOOKUP($A126,Filtro_!$A$5:$AK$2954,2,FALSE),0) -> 217251 | E126: =IFERROR(VLOOKUP($A126,Filtro_!$A$5:$AK$2954,3,FALSE),0) -> 216313 | F126: =IFERROR(VLOOKUP($A126,Filtro_!$A$5:$AK$2954,4,FALSE),0) -> 215242 | G126: =IFERROR(VLOOKUP($A126,Filtro_!$A$5:$AK$2954,5,FALSE),0) -> 1071 | H126: =IFERROR(VLOOKUP($A126,Filtro_!$A$5:$AK$2954,6,FALSE),0) -> 938 | I126: =IFERROR(VLOOKUP($A126,Filtro_!$A$5:$AK$2954,7,FALSE),0) -> 63601 | J126: =IFERROR(VLOOKUP($A126,Filtro_!$A$5:$AK$2954,8,FALSE),0) -> 90581 | K126: =IFERROR(VLOOKUP($A126,Filtro_!$A$5:$AK$2954,9,FALSE),0) -> 62172 | L126: =IFERROR(VLOOKUP($A126,Filtro_!$A$5:$AK$2954,10,FALSE),0) -> 0 | M126: =IFERROR(VLOOKUP($A126,Filtro_!$A$5:$AK$2954,11,FALSE),0) -> 0 | N126: =IFERROR(VLOOKUP($A126,Filtro_!$A$5:$AK$2954,12,FALSE),0) -> 0 | O126: =IFERROR(VLOOKUP($A126,Filtro_!$A$5:$AK$2954,13,FALSE),0) -> 0 | P126: =IFERROR(VLOOKUP($A126,Filtro_!$A$5:$AK$2954,14,FALSE),0) -> 11899 | Q126: =IFERROR(VLOOKUP($A126,Filtro_!$A$5:$AK$2954,15,FALSE),0) -> 4493 | R126: =IFERROR(VLOOKUP($A126,Filtro_!$A$5:$AK$2954,16,FALSE),0) -> 1408 | S126: =IFERROR(VLOOKUP($A126,Filtro_!$A$5:$AK$2954,17,FALSE),0) -> 0 | T126: =IFERROR(VLOOKUP($A126,Filtro_!$A$5:$AK$2954,18,FALSE),0) -> 1,382,524,980
B127: VI | C127: MICROBIOLOGICOS | D127: 0 | E127: 0 | F127: 0 | G127: 0 | H127: 0 | I127: 0 | J127: 0 | K127: 0 | L127: 0 | M127: 0 | N127: 0 | O127: 0 | P127: 0 | Q127: 0 | R127: 0 | S127: 0 | T127: 0
A128: 17010601 | C128: a) BACTERIAS Y HONGOS | D128: =IFERROR(VLOOKUP($A128,Filtro_!$A$5:$AK$2954,2,FALSE),0) -> 153144 | E128: =IFERROR(VLOOKUP($A128,Filtro_!$A$5:$AK$2954,3,FALSE),0) -> 150266 | F128: =IFERROR(VLOOKUP($A128,Filtro_!$A$5:$AK$2954,4,FALSE),0) -> 149847 | G128: =IFERROR(VLOOKUP($A128,Filtro_!$A$5:$AK$2954,5,FALSE),0) -> 419 | H128: =IFERROR(VLOOKUP($A128,Filtro_!$A$5:$AK$2954,6,FALSE),0) -> 2878 | I128: =IFERROR(VLOOKUP($A128,Filtro_!$A$5:$AK$2954,7,FALSE),0) -> 44023 | J128: =IFERROR(VLOOKUP($A128,Filtro_!$A$5:$AK$2954,8,FALSE),0) -> 76365 | K128: =IFERROR(VLOOKUP($A128,Filtro_!$A$5:$AK$2954,9,FALSE),0) -> 32494 | L128: =IFERROR(VLOOKUP($A128,Filtro_!$A$5:$AK$2954,10,FALSE),0) -> 0 | M128: =IFERROR(VLOOKUP($A128,Filtro_!$A$5:$AK$2954,11,FALSE),0) -> 0 | N128: =IFERROR(VLOOKUP($A128,Filtro_!$A$5:$AK$2954,12,FALSE),0) -> 0 | O128: =IFERROR(VLOOKUP($A128,Filtro_!$A$5:$AK$2954,13,FALSE),0) -> 0 | P128: =IFERROR(VLOOKUP($A128,Filtro_!$A$5:$AK$2954,14,FALSE),0) -> 86 | Q128: =IFERROR(VLOOKUP($A128,Filtro_!$A$5:$AK$2954,15,FALSE),0) -> 101 | R128: =IFERROR(VLOOKUP($A128,Filtro_!$A$5:$AK$2954,16,FALSE),0) -> 4237 | S128: =IFERROR(VLOOKUP($A128,Filtro_!$A$5:$AK$2954,17,FALSE),0) -> 0 | T128: =IFERROR(VLOOKUP($A128,Filtro_!$A$5:$AK$2954,18,FALSE),0) -> 697,995,150
A129: 17010602 | C129: b) PARASITOS | D129: =IFERROR(VLOOKUP($A129,Filtro_!$A$5:$AK$2954,2,FALSE),0) -> 43622 | E129: =IFERROR(VLOOKUP($A129,Filtro_!$A$5:$AK$2954,3,FALSE),0) -> 43245 | F129: =IFERROR(VLOOKUP($A129,Filtro_!$A$5:$AK$2954,4,FALSE),0) -> 43214 | G129: =IFERROR(VLOOKUP($A129,Filtro_!$A$5:$AK$2954,5,FALSE),0) -> 31 | H129: =IFERROR(VLOOKUP($A129,Filtro_!$A$5:$AK$2954,6,FALSE),0) -> 377 | I129: =IFERROR(VLOOKUP($A129,Filtro_!$A$5:$AK$2954,7,FALSE),0) -> 1966 | J129: =IFERROR(VLOOKUP($A129,Filtro_!$A$5:$AK$2954,8,FALSE),0) -> 41213 | K129: =IFERROR(VLOOKUP($A129,Filtro_!$A$5:$AK$2954,9,FALSE),0) -> 325 | L129: =IFERROR(VLOOKUP($A129,Filtro_!$A$5:$AK$2954,10,FALSE),0) -> 0 | M129: =IFERROR(VLOOKUP($A129,Filtro_!$A$5:$AK$2954,11,FALSE),0) -> 0 | N129: =IFERROR(VLOOKUP($A129,Filtro_!$A$5:$AK$2954,12,FALSE),0) -> 0 | O129: =IFERROR(VLOOKUP($A129,Filtro_!$A$5:$AK$2954,13,FALSE),0) -> 0 | P129: =IFERROR(VLOOKUP($A129,Filtro_!$A$5:$AK$2954,14,FALSE),0) -> 331 | Q129: =IFERROR(VLOOKUP($A129,Filtro_!$A$5:$AK$2954,15,FALSE),0) -> 21 | R129: =IFERROR(VLOOKUP($A129,Filtro_!$A$5:$AK$2954,16,FALSE),0) -> 895 | S129: =IFERROR(VLOOKUP($A129,Filtro_!$A$5:$AK$2954,17,FALSE),0) -> 0 | T129: =IFERROR(VLOOKUP($A129,Filtro_!$A$5:$AK$2954,18,FALSE),0) -> 222,448,500
A130: 17010603 | C130: c) VIRUS | D130: =IFERROR(VLOOKUP($A130,Filtro_!$A$5:$AK$2954,2,FALSE),0) -> 100278 | E130: =IFERROR(VLOOKUP($A130,Filtro_!$A$5:$AK$2954,3,FALSE),0) -> 99382 | F130: =IFERROR(VLOOKUP($A130,Filtro_!$A$5:$AK$2954,4,FALSE),0) -> 99331 | G130: =IFERROR(VLOOKUP($A130,Filtro_!$A$5:$AK$2954,5,FALSE),0) -> 51 | H130: =IFERROR(VLOOKUP($A130,Filtro_!$A$5:$AK$2954,6,FALSE),0) -> 896 | I130: =IFERROR(VLOOKUP($A130,Filtro_!$A$5:$AK$2954,7,FALSE),0) -> 12827 | J130: =IFERROR(VLOOKUP($A130,Filtro_!$A$5:$AK$2954,8,FALSE),0) -> 62340 | K130: =IFERROR(VLOOKUP($A130,Filtro_!$A$5:$AK$2954,9,FALSE),0) -> 25129 | L130: =IFERROR(VLOOKUP($A130,Filtro_!$A$5:$AK$2954,10,FALSE),0) -> 0 | M130: =IFERROR(VLOOKUP($A130,Filtro_!$A$5:$AK$2954,11,FALSE),0) -> 0 | N130: =IFERROR(VLOOKUP($A130,Filtro_!$A$5:$AK$2954,12,FALSE),0) -> 0 | O130: =IFERROR(VLOOKUP($A130,Filtro_!$A$5:$AK$2954,13,FALSE),0) -> 0 | P130: =IFERROR(VLOOKUP($A130,Filtro_!$A$5:$AK$2954,14,FALSE),0) -> 2271 | Q130: =IFERROR(VLOOKUP($A130,Filtro_!$A$5:$AK$2954,15,FALSE),0) -> 110 | R130: =IFERROR(VLOOKUP($A130,Filtro_!$A$5:$AK$2954,16,FALSE),0) -> 1368 | S130: =IFERROR(VLOOKUP($A130,Filtro_!$A$5:$AK$2954,17,FALSE),0) -> 0 | T130: =IFERROR(VLOOKUP($A130,Filtro_!$A$5:$AK$2954,18,FALSE),0) -> 1,858,701,170
A131: 17010700 | B131: VII | C131: PROCEDIMIENTO O DETERMINACION DIRECTA C/PACIENTE | D131: =IFERROR(VLOOKUP($A131,Filtro_!$A$5:$AK$2954,2,FALSE),0) -> 17505 | E131: =IFERROR(VLOOKUP($A131,Filtro_!$A$5:$AK$2954,3,FALSE),0) -> 17505 | F131: =IFERROR(VLOOKUP($A131,Filtro_!$A$5:$AK$2954,4,FALSE),0) -> 17505 | G131: =IFERROR(VLOOKUP($A131,Filtro_!$A$5:$AK$2954,5,FALSE),0) -> 0 | H131: =IFERROR(VLOOKUP($A131,Filtro_!$A$5:$AK$2954,6,FALSE),0) -> 0 | I131: =IFERROR(VLOOKUP($A131,Filtro_!$A$5:$AK$2954,7,FALSE),0) -> 14708 | J131: =IFERROR(VLOOKUP($A131,Filtro_!$A$5:$AK$2954,8,FALSE),0) -> 481 | K131: =IFERROR(VLOOKUP($A131,Filtro_!$A$5:$AK$2954,9,FALSE),0) -> 2316 | L131: =IFERROR(VLOOKUP($A131,Filtro_!$A$5:$AK$2954,10,FALSE),0) -> 0 | M131: =IFERROR(VLOOKUP($A131,Filtro_!$A$5:$AK$2954,11,FALSE),0) -> 0 | N131: =IFERROR(VLOOKUP($A131,Filtro_!$A$5:$AK$2954,12,FALSE),0) -> 0 | O131: =IFERROR(VLOOKUP($A131,Filtro_!$A$5:$AK$2954,13,FALSE),0) -> 0 | P131: =IFERROR(VLOOKUP($A131,Filtro_!$A$5:$AK$2954,14,FALSE),0) -> 0 | Q131: =IFERROR(VLOOKUP($A131,Filtro_!$A$5:$AK$2954,15,FALSE),0) -> 0 | R131: =IFERROR(VLOOKUP($A131,Filtro_!$A$5:$AK$2954,16,FALSE),0) -> 0 | S131: =IFERROR(VLOOKUP($A131,Filtro_!$A$5:$AK$2954,17,FALSE),0) -> 0 | T131: =IFERROR(VLOOKUP($A131,Filtro_!$A$5:$AK$2954,18,FALSE),0) -> 43,332,030
A132: 17010800 | B132: VIII | C132: EX. DE DEPOSICIONES EXUDADOS. SECREC. Y OTROS LIQ. | D132: =IFERROR(VLOOKUP($A132,Filtro_!$A$5:$AK$2954,2,FALSE),0) -> 10696 | E132: =IFERROR(VLOOKUP($A132,Filtro_!$A$5:$AK$2954,3,FALSE),0) -> 10433 | F132: =IFERROR(VLOOKUP($A132,Filtro_!$A$5:$AK$2954,4,FALSE),0) -> 10430 | G132: =IFERROR(VLOOKUP($A132,Filtro_!$A$5:$AK$2954,5,FALSE),0) -> 3 | H132: =IFERROR(VLOOKUP($A132,Filtro_!$A$5:$AK$2954,6,FALSE),0) -> 263 | I132: =IFERROR(VLOOKUP($A132,Filtro_!$A$5:$AK$2954,7,FALSE),0) -> 3617 | J132: =IFERROR(VLOOKUP($A132,Filtro_!$A$5:$AK$2954,8,FALSE),0) -> 4860 | K132: =IFERROR(VLOOKUP($A132,Filtro_!$A$5:$AK$2954,9,FALSE),0) -> 2219 | L132: =IFERROR(VLOOKUP($A132,Filtro_!$A$5:$AK$2954,10,FALSE),0) -> 0 | M132: =IFERROR(VLOOKUP($A132,Filtro_!$A$5:$AK$2954,11,FALSE),0) -> 0 | N132: =IFERROR(VLOOKUP($A132,Filtro_!$A$5:$AK$2954,12,FALSE),0) -> 0 | O132: =IFERROR(VLOOKUP($A132,Filtro_!$A$5:$AK$2954,13,FALSE),0) -> 0 | P132: =IFERROR(VLOOKUP($A132,Filtro_!$A$5:$AK$2954,14,FALSE),0) -> 69 | Q132: =IFERROR(VLOOKUP($A132,Filtro_!$A$5:$AK$2954,15,FALSE),0) -> 206 | R132: =IFERROR(VLOOKUP($A132,Filtro_!$A$5:$AK$2954,16,FALSE),0) -> 153 | S132: =IFERROR(VLOOKUP($A132,Filtro_!$A$5:$AK$2954,17,FALSE),0) -> 0 | T132: =IFERROR(VLOOKUP($A132,Filtro_!$A$5:$AK$2954,18,FALSE),0) -> 25,112,620
A133: 17010900 | B133: IX | C133: ORINA | D133: =IFERROR(VLOOKUP($A133,Filtro_!$A$5:$AK$2954,2,FALSE),0) -> 233184 | E133: =IFERROR(VLOOKUP($A133,Filtro_!$A$5:$AK$2954,3,FALSE),0) -> 219826 | F133: =IFERROR(VLOOKUP($A133,Filtro_!$A$5:$AK$2954,4,FALSE),0) -> 219677 | G133: =IFERROR(VLOOKUP($A133,Filtro_!$A$5:$AK$2954,5,FALSE),0) -> 149 | H133: =IFERROR(VLOOKUP($A133,Filtro_!$A$5:$AK$2954,6,FALSE),0) -> 13358 | I133: =IFERROR(VLOOKUP($A133,Filtro_!$A$5:$AK$2954,7,FALSE),0) -> 18865 | J133: =IFERROR(VLOOKUP($A133,Filtro_!$A$5:$AK$2954,8,FALSE),0) -> 175085 | K133: =IFERROR(VLOOKUP($A133,Filtro_!$A$5:$AK$2954,9,FALSE),0) -> 39255 | L133: =IFERROR(VLOOKUP($A133,Filtro_!$A$5:$AK$2954,10,FALSE),0) -> 0 | M133: =IFERROR(VLOOKUP($A133,Filtro_!$A$5:$AK$2954,11,FALSE),0) -> 0 | N133: =IFERROR(VLOOKUP($A133,Filtro_!$A$5:$AK$2954,12,FALSE),0) -> 0 | O133: =IFERROR(VLOOKUP($A133,Filtro_!$A$5:$AK$2954,13,FALSE),0) -> 0 | P133: =IFERROR(VLOOKUP($A133,Filtro_!$A$5:$AK$2954,14,FALSE),0) -> 9 | Q133: =IFERROR(VLOOKUP($A133,Filtro_!$A$5:$AK$2954,15,FALSE),0) -> 16 | R133: =IFERROR(VLOOKUP($A133,Filtro_!$A$5:$AK$2954,16,FALSE),0) -> 22759 | S133: =IFERROR(VLOOKUP($A133,Filtro_!$A$5:$AK$2954,17,FALSE),0) -> 0 | T133: =IFERROR(VLOOKUP($A133,Filtro_!$A$5:$AK$2954,18,FALSE),0) -> 418,777,550
B134: TOTAL EXAMENES IMAGENOLOGIA | D134: 0 | E134: 0 | F134: 0 | G134: 0 | H134: 0 | I134: 0 | J134: 0 | K134: 0 | L134: 0 | M134: 0 | N134: 0 | O134: 0 | P134: 0 | Q134: 0 | R134: 0 | S134: 0 | T134: 0
A135: 17011001 | B135: I. a) | C135: EX. RADIOLOGICOS SIMPLES | D135: =IFERROR(VLOOKUP($A135,Filtro_!$A$5:$AK$2954,2,FALSE),0) -> 227642 | E135: =IFERROR(VLOOKUP($A135,Filtro_!$A$5:$AK$2954,3,FALSE),0) -> 223735 | F135: =IFERROR(VLOOKUP($A135,Filtro_!$A$5:$AK$2954,4,FALSE),0) -> 223116 | G135: =IFERROR(VLOOKUP($A135,Filtro_!$A$5:$AK$2954,5,FALSE),0) -> 619 | H135: =IFERROR(VLOOKUP($A135,Filtro_!$A$5:$AK$2954,6,FALSE),0) -> 3907 | I135: =IFERROR(VLOOKUP($A135,Filtro_!$A$5:$AK$2954,7,FALSE),0) -> 26267 | J135: =IFERROR(VLOOKUP($A135,Filtro_!$A$5:$AK$2954,8,FALSE),0) -> 83823 | K135: =IFERROR(VLOOKUP($A135,Filtro_!$A$5:$AK$2954,9,FALSE),0) -> 118297 | L135: =IFERROR(VLOOKUP($A135,Filtro_!$A$5:$AK$2954,10,FALSE),0) -> 86 | M135: =IFERROR(VLOOKUP($A135,Filtro_!$A$5:$AK$2954,11,FALSE),0) -> 0 | N135: =IFERROR(VLOOKUP($A135,Filtro_!$A$5:$AK$2954,12,FALSE),0) -> 92 | O135: =IFERROR(VLOOKUP($A135,Filtro_!$A$5:$AK$2954,13,FALSE),0) -> 0 | P135: =IFERROR(VLOOKUP($A135,Filtro_!$A$5:$AK$2954,14,FALSE),0) -> 0 | Q135: =IFERROR(VLOOKUP($A135,Filtro_!$A$5:$AK$2954,15,FALSE),0) -> 491 | R135: =IFERROR(VLOOKUP($A135,Filtro_!$A$5:$AK$2954,16,FALSE),0) -> 26 | S135: =IFERROR(VLOOKUP($A135,Filtro_!$A$5:$AK$2954,17,FALSE),0) -> 0 | T135: =IFERROR(VLOOKUP($A135,Filtro_!$A$5:$AK$2954,18,FALSE),0) -> 2,336,058,890
A136: 17011002 | B136: I. b) | C136: EX. RADIOLOGICOS COMPLEJOS | D136: =IFERROR(VLOOKUP($A136,Filtro_!$A$5:$AK$2954,2,FALSE),0) -> 361 | E136: =IFERROR(VLOOKUP($A136,Filtro_!$A$5:$AK$2954,3,FALSE),0) -> 354 | F136: =IFERROR(VLOOKUP($A136,Filtro_!$A$5:$AK$2954,4,FALSE),0) -> 354 | G136: =IFERROR(VLOOKUP($A136,Filtro_!$A$5:$AK$2954,5,FALSE),0) -> 0 | H136: =IFERROR(VLOOKUP($A136,Filtro_!$A$5:$AK$2954,6,FALSE),0) -> 7 | I136: =IFERROR(VLOOKUP($A136,Filtro_!$A$5:$AK$2954,7,FALSE),0) -> 230 | J136: =IFERROR(VLOOKUP($A136,Filtro_!$A$5:$AK$2954,8,FALSE),0) -> 124 | K136: =IFERROR(VLOOKUP($A136,Filtro_!$A$5:$AK$2954,9,FALSE),0) -> 7 | L136: =IFERROR(VLOOKUP($A136,Filtro_!$A$5:$AK$2954,10,FALSE),0) -> 54 | M136: =IFERROR(VLOOKUP($A136,Filtro_!$A$5:$AK$2954,11,FALSE),0) -> 0 | N136: =IFERROR(VLOOKUP($A136,Filtro_!$A$5:$AK$2954,12,FALSE),0) -> 5 | O136: =IFERROR(VLOOKUP($A136,Filtro_!$A$5:$AK$2954,13,FALSE),0) -> 0 | P136: =IFERROR(VLOOKUP($A136,Filtro_!$A$5:$AK$2954,14,FALSE),0) -> 0 | Q136: =IFERROR(VLOOKUP($A136,Filtro_!$A$5:$AK$2954,15,FALSE),0) -> 11 | R136: =IFERROR(VLOOKUP($A136,Filtro_!$A$5:$AK$2954,16,FALSE),0) -> 0 | S136: =IFERROR(VLOOKUP($A136,Filtro_!$A$5:$AK$2954,17,FALSE),0) -> 0 | T136: =IFERROR(VLOOKUP($A136,Filtro_!$A$5:$AK$2954,18,FALSE),0) -> 21,779,460
A137: 17011003 | B137: II. | C137: TOMOGRAFIA AXIAL COMP. | D137: =IFERROR(VLOOKUP($A137,Filtro_!$A$5:$AK$2954,2,FALSE),0) -> 70720 | E137: =IFERROR(VLOOKUP($A137,Filtro_!$A$5:$AK$2954,3,FALSE),0) -> 69849 | F137: =IFERROR(VLOOKUP($A137,Filtro_!$A$5:$AK$2954,4,FALSE),0) -> 69821 | G137: =IFERROR(VLOOKUP($A137,Filtro_!$A$5:$AK$2954,5,FALSE),0) -> 28 | H137: =IFERROR(VLOOKUP($A137,Filtro_!$A$5:$AK$2954,6,FALSE),0) -> 871 | I137: =IFERROR(VLOOKUP($A137,Filtro_!$A$5:$AK$2954,7,FALSE),0) -> 14193 | J137: =IFERROR(VLOOKUP($A137,Filtro_!$A$5:$AK$2954,8,FALSE),0) -> 20060 | K137: =IFERROR(VLOOKUP($A137,Filtro_!$A$5:$AK$2954,9,FALSE),0) -> 36466 | L137: =IFERROR(VLOOKUP($A137,Filtro_!$A$5:$AK$2954,10,FALSE),0) -> 0 | M137: =IFERROR(VLOOKUP($A137,Filtro_!$A$5:$AK$2954,11,FALSE),0) -> 0 | N137: =IFERROR(VLOOKUP($A137,Filtro_!$A$5:$AK$2954,12,FALSE),0) -> 0 | O137: =IFERROR(VLOOKUP($A137,Filtro_!$A$5:$AK$2954,13,FALSE),0) -> 0 | P137: =IFERROR(VLOOKUP($A137,Filtro_!$A$5:$AK$2954,14,FALSE),0) -> 0 | Q137: =IFERROR(VLOOKUP($A137,Filtro_!$A$5:$AK$2954,15,FALSE),0) -> 5 | R137: =IFERROR(VLOOKUP($A137,Filtro_!$A$5:$AK$2954,16,FALSE),0) -> 0 | S137: =IFERROR(VLOOKUP($A137,Filtro_!$A$5:$AK$2954,17,FALSE),0) -> 0 | T137: =IFERROR(VLOOKUP($A137,Filtro_!$A$5:$AK$2954,18,FALSE),0) -> 5,031,233,020
B138: III | C138: ULTRASONOGRAFIA | D138: 0 | E138: 0 | F138: 0 | G138: 0 | H138: 0 | I138: 0 | J138: 0 | K138: 0 | L138: 0 | M138: 0 | N138: 0 | O138: 0 | P138: 0 | Q138: 0 | R138: 0 | S138: 0 | T138: 0
A139: 17011004 | C139: Ecotomografias ( Sin Ecografía Obstetr. Y Abdominal ) | D139: =IFERROR(VLOOKUP($A139,Filtro_!$A$5:$AK$2954,2,FALSE),0) -> 60016 | E139: =IFERROR(VLOOKUP($A139,Filtro_!$A$5:$AK$2954,3,FALSE),0) -> 59781 | F139: =IFERROR(VLOOKUP($A139,Filtro_!$A$5:$AK$2954,4,FALSE),0) -> 59749 | G139: =IFERROR(VLOOKUP($A139,Filtro_!$A$5:$AK$2954,5,FALSE),0) -> 32 | H139: =IFERROR(VLOOKUP($A139,Filtro_!$A$5:$AK$2954,6,FALSE),0) -> 235 | I139: =IFERROR(VLOOKUP($A139,Filtro_!$A$5:$AK$2954,7,FALSE),0) -> 7404 | J139: =IFERROR(VLOOKUP($A139,Filtro_!$A$5:$AK$2954,8,FALSE),0) -> 41207 | K139: =IFERROR(VLOOKUP($A139,Filtro_!$A$5:$AK$2954,9,FALSE),0) -> 11402 | L139: =IFERROR(VLOOKUP($A139,Filtro_!$A$5:$AK$2954,10,FALSE),0) -> 2115 | M139: =IFERROR(VLOOKUP($A139,Filtro_!$A$5:$AK$2954,11,FALSE),0) -> 0 | N139: =IFERROR(VLOOKUP($A139,Filtro_!$A$5:$AK$2954,12,FALSE),0) -> 37 | O139: =IFERROR(VLOOKUP($A139,Filtro_!$A$5:$AK$2954,13,FALSE),0) -> 56 | P139: =IFERROR(VLOOKUP($A139,Filtro_!$A$5:$AK$2954,14,FALSE),0) -> 0 | Q139: =IFERROR(VLOOKUP($A139,Filtro_!$A$5:$AK$2954,15,FALSE),0) -> 497 | R139: =IFERROR(VLOOKUP($A139,Filtro_!$A$5:$AK$2954,16,FALSE),0) -> 0 | S139: =IFERROR(VLOOKUP($A139,Filtro_!$A$5:$AK$2954,17,FALSE),0) -> 0 | T139: =IFERROR(VLOOKUP($A139,Filtro_!$A$5:$AK$2954,18,FALSE),0) -> 1,136,480,880
A140: 17011005 | C140: Ecografías Obstétricas | D140: =IFERROR(VLOOKUP($A140,Filtro_!$A$5:$AK$2954,2,FALSE),0) -> 16942 | E140: =IFERROR(VLOOKUP($A140,Filtro_!$A$5:$AK$2954,3,FALSE),0) -> 16908 | F140: =IFERROR(VLOOKUP($A140,Filtro_!$A$5:$AK$2954,4,FALSE),0) -> 16908 | G140: =IFERROR(VLOOKUP($A140,Filtro_!$A$5:$AK$2954,5,FALSE),0) -> 0 | H140: =IFERROR(VLOOKUP($A140,Filtro_!$A$5:$AK$2954,6,FALSE),0) -> 34 | I140: =IFERROR(VLOOKUP($A140,Filtro_!$A$5:$AK$2954,7,FALSE),0) -> 219 | J140: =IFERROR(VLOOKUP($A140,Filtro_!$A$5:$AK$2954,8,FALSE),0) -> 9642 | K140: =IFERROR(VLOOKUP($A140,Filtro_!$A$5:$AK$2954,9,FALSE),0) -> 7081 | L140: =IFERROR(VLOOKUP($A140,Filtro_!$A$5:$AK$2954,10,FALSE),0) -> 0 | M140: =IFERROR(VLOOKUP($A140,Filtro_!$A$5:$AK$2954,11,FALSE),0) -> 0 | N140: =IFERROR(VLOOKUP($A140,Filtro_!$A$5:$AK$2954,12,FALSE),0) -> 0 | O140: =IFERROR(VLOOKUP($A140,Filtro_!$A$5:$AK$2954,13,FALSE),0) -> 0 | P140: =IFERROR(VLOOKUP($A140,Filtro_!$A$5:$AK$2954,14,FALSE),0) -> 0 | Q140: =IFERROR(VLOOKUP($A140,Filtro_!$A$5:$AK$2954,15,FALSE),0) -> 0 | R140: =IFERROR(VLOOKUP($A140,Filtro_!$A$5:$AK$2954,16,FALSE),0) -> 0 | S140: =IFERROR(VLOOKUP($A140,Filtro_!$A$5:$AK$2954,17,FALSE),0) -> 0 | T140: =IFERROR(VLOOKUP($A140,Filtro_!$A$5:$AK$2954,18,FALSE),0) -> 109,563,840
A141: 17181000 | C141: Ecotomografias abdominal | D141: =IFERROR(VLOOKUP($A141,Filtro_!$A$5:$AK$2954,2,FALSE),0) -> 8533 | E141: =IFERROR(VLOOKUP($A141,Filtro_!$A$5:$AK$2954,3,FALSE),0) -> 8506 | F141: =IFERROR(VLOOKUP($A141,Filtro_!$A$5:$AK$2954,4,FALSE),0) -> 8495 | G141: =IFERROR(VLOOKUP($A141,Filtro_!$A$5:$AK$2954,5,FALSE),0) -> 11 | H141: =IFERROR(VLOOKUP($A141,Filtro_!$A$5:$AK$2954,6,FALSE),0) -> 27 | I141: =IFERROR(VLOOKUP($A141,Filtro_!$A$5:$AK$2954,7,FALSE),0) -> 1726 | J141: =IFERROR(VLOOKUP($A141,Filtro_!$A$5:$AK$2954,8,FALSE),0) -> 4670 | K141: =IFERROR(VLOOKUP($A141,Filtro_!$A$5:$AK$2954,9,FALSE),0) -> 2137 | L141: =IFERROR(VLOOKUP($A141,Filtro_!$A$5:$AK$2954,10,FALSE),0) -> 340 | M141: =IFERROR(VLOOKUP($A141,Filtro_!$A$5:$AK$2954,11,FALSE),0) -> 0 | N141: =IFERROR(VLOOKUP($A141,Filtro_!$A$5:$AK$2954,12,FALSE),0) -> 0 | O141: =IFERROR(VLOOKUP($A141,Filtro_!$A$5:$AK$2954,13,FALSE),0) -> 96 | P141: =IFERROR(VLOOKUP($A141,Filtro_!$A$5:$AK$2954,14,FALSE),0) -> 0 | Q141: =IFERROR(VLOOKUP($A141,Filtro_!$A$5:$AK$2954,15,FALSE),0) -> 332 | R141: =IFERROR(VLOOKUP($A141,Filtro_!$A$5:$AK$2954,16,FALSE),0) -> 1 | S141: =IFERROR(VLOOKUP($A141,Filtro_!$A$5:$AK$2954,17,FALSE),0) -> 0 | T141: =IFERROR(VLOOKUP($A141,Filtro_!$A$5:$AK$2954,18,FALSE),0) -> 201,671,300
A142: 17019999 | B142: IV | C142: RESONANCIA MAGNÉTICA | D142: =IFERROR(VLOOKUP($A142,Filtro_!$A$5:$AK$2954,2,FALSE),0) -> 5307 | E142: =IFERROR(VLOOKUP($A142,Filtro_!$A$5:$AK$2954,3,FALSE),0) -> 5307 | F142: =IFERROR(VLOOKUP($A142,Filtro_!$A$5:$AK$2954,4,FALSE),0) -> 5307 | G142: =IFERROR(VLOOKUP($A142,Filtro_!$A$5:$AK$2954,5,FALSE),0) -> 0 | H142: =IFERROR(VLOOKUP($A142,Filtro_!$A$5:$AK$2954,6,FALSE),0) -> 0 | I142: =IFERROR(VLOOKUP($A142,Filtro_!$A$5:$AK$2954,7,FALSE),0) -> 1338 | J142: =IFERROR(VLOOKUP($A142,Filtro_!$A$5:$AK$2954,8,FALSE),0) -> 3567 | K142: =IFERROR(VLOOKUP($A142,Filtro_!$A$5:$AK$2954,9,FALSE),0) -> 402 | L142: =IFERROR(VLOOKUP($A142,Filtro_!$A$5:$AK$2954,10,FALSE),0) -> 0 | M142: =IFERROR(VLOOKUP($A142,Filtro_!$A$5:$AK$2954,11,FALSE),0) -> 0 | N142: =IFERROR(VLOOKUP($A142,Filtro_!$A$5:$AK$2954,12,FALSE),0) -> 0 | O142: =IFERROR(VLOOKUP($A142,Filtro_!$A$5:$AK$2954,13,FALSE),0) -> 0 | P142: =IFERROR(VLOOKUP($A142,Filtro_!$A$5:$AK$2954,14,FALSE),0) -> 0 | Q142: =IFERROR(VLOOKUP($A142,Filtro_!$A$5:$AK$2954,15,FALSE),0) -> 745 | R142: =IFERROR(VLOOKUP($A142,Filtro_!$A$5:$AK$2954,16,FALSE),0) -> 0 | S142: =IFERROR(VLOOKUP($A142,Filtro_!$A$5:$AK$2954,17,FALSE),0) -> 0 | T142: =IFERROR(VLOOKUP($A142,Filtro_!$A$5:$AK$2954,18,FALSE),0) -> 932,302,940
A143: 17200110 | C143: OTROS EXÁMENES DE IMÁGENES | D143: =IFERROR(VLOOKUP($A143,Filtro_!$A$5:$AK$2954,2,FALSE),0) -> 416 | E143: =IFERROR(VLOOKUP($A143,Filtro_!$A$5:$AK$2954,3,FALSE),0) -> 416 | F143: =IFERROR(VLOOKUP($A143,Filtro_!$A$5:$AK$2954,4,FALSE),0) -> 416 | G143: =IFERROR(VLOOKUP($A143,Filtro_!$A$5:$AK$2954,5,FALSE),0) -> 0 | H143: =IFERROR(VLOOKUP($A143,Filtro_!$A$5:$AK$2954,6,FALSE),0) -> 0 | I143: =IFERROR(VLOOKUP($A143,Filtro_!$A$5:$AK$2954,7,FALSE),0) -> 15 | J143: =IFERROR(VLOOKUP($A143,Filtro_!$A$5:$AK$2954,8,FALSE),0) -> 401 | K143: =IFERROR(VLOOKUP($A143,Filtro_!$A$5:$AK$2954,9,FALSE),0) -> 0 | L143: =IFERROR(VLOOKUP($A143,Filtro_!$A$5:$AK$2954,10,FALSE),0) -> 0 | M143: =IFERROR(VLOOKUP($A143,Filtro_!$A$5:$AK$2954,11,FALSE),0) -> 0 | N143: =IFERROR(VLOOKUP($A143,Filtro_!$A$5:$AK$2954,12,FALSE),0) -> 0 | O143: =IFERROR(VLOOKUP($A143,Filtro_!$A$5:$AK$2954,13,FALSE),0) -> 0 | P143: =IFERROR(VLOOKUP($A143,Filtro_!$A$5:$AK$2954,14,FALSE),0) -> 0 | Q143: =IFERROR(VLOOKUP($A143,Filtro_!$A$5:$AK$2954,15,FALSE),0) -> 0 | R143: =IFERROR(VLOOKUP($A143,Filtro_!$A$5:$AK$2954,16,FALSE),0) -> 0 | S143: =IFERROR(VLOOKUP($A143,Filtro_!$A$5:$AK$2954,17,FALSE),0) -> 0 | T143: =IFERROR(VLOOKUP($A143,Filtro_!$A$5:$AK$2954,18,FALSE),0) -> 0
A144: 17200120 | B144: TOMA DE MUESTRAS | D144: =IFERROR(VLOOKUP($A144,Filtro_!$A$5:$AK$2954,2,FALSE),0) -> 150876 | E144: =IFERROR(VLOOKUP($A144,Filtro_!$A$5:$AK$2954,3,FALSE),0) -> 150740 | F144: =IFERROR(VLOOKUP($A144,Filtro_!$A$5:$AK$2954,4,FALSE),0) -> 150732 | G144: =IFERROR(VLOOKUP($A144,Filtro_!$A$5:$AK$2954,5,FALSE),0) -> 8 | H144: =IFERROR(VLOOKUP($A144,Filtro_!$A$5:$AK$2954,6,FALSE),0) -> 136 | I144: =IFERROR(VLOOKUP($A144,Filtro_!$A$5:$AK$2954,7,FALSE),0) -> 10509 | J144: =IFERROR(VLOOKUP($A144,Filtro_!$A$5:$AK$2954,8,FALSE),0) -> 133567 | K144: =IFERROR(VLOOKUP($A144,Filtro_!$A$5:$AK$2954,9,FALSE),0) -> 5634 | L144: =IFERROR(VLOOKUP($A144,Filtro_!$A$5:$AK$2954,10,FALSE),0) -> 0 | M144: =IFERROR(VLOOKUP($A144,Filtro_!$A$5:$AK$2954,11,FALSE),0) -> 0 | N144: =IFERROR(VLOOKUP($A144,Filtro_!$A$5:$AK$2954,12,FALSE),0) -> 0 | O144: =IFERROR(VLOOKUP($A144,Filtro_!$A$5:$AK$2954,13,FALSE),0) -> 0 | P144: =IFERROR(VLOOKUP($A144,Filtro_!$A$5:$AK$2954,14,FALSE),0) -> 0 | Q144: =IFERROR(VLOOKUP($A144,Filtro_!$A$5:$AK$2954,15,FALSE),0) -> 0 | R144: =IFERROR(VLOOKUP($A144,Filtro_!$A$5:$AK$2954,16,FALSE),0) -> 0 | S144: =IFERROR(VLOOKUP($A144,Filtro_!$A$5:$AK$2954,17,FALSE),0) -> 0 | T144: =IFERROR(VLOOKUP($A144,Filtro_!$A$5:$AK$2954,18,FALSE),0) -> 0
A145: 99999991 | B145: EXAMENES ANATOMIA PATOLOGICA | D145: =IFERROR(VLOOKUP($A145,Filtro_!$A$5:$AK$2954,2,FALSE),0) -> 102302 | E145: =IFERROR(VLOOKUP($A145,Filtro_!$A$5:$AK$2954,3,FALSE),0) -> 102294 | F145: =IFERROR(VLOOKUP($A145,Filtro_!$A$5:$AK$2954,4,FALSE),0) -> 102294 | G145: =IFERROR(VLOOKUP($A145,Filtro_!$A$5:$AK$2954,5,FALSE),0) -> 0 | H145: =IFERROR(VLOOKUP($A145,Filtro_!$A$5:$AK$2954,6,FALSE),0) -> 8 | I145: =IFERROR(VLOOKUP($A145,Filtro_!$A$5:$AK$2954,7,FALSE),0) -> 16606 | J145: =IFERROR(VLOOKUP($A145,Filtro_!$A$5:$AK$2954,8,FALSE),0) -> 85654 | K145: =IFERROR(VLOOKUP($A145,Filtro_!$A$5:$AK$2954,9,FALSE),0) -> 42 | L145: =IFERROR(VLOOKUP($A145,Filtro_!$A$5:$AK$2954,10,FALSE),0) -> 0 | M145: =IFERROR(VLOOKUP($A145,Filtro_!$A$5:$AK$2954,11,FALSE),0) -> 0 | N145: =IFERROR(VLOOKUP($A145,Filtro_!$A$5:$AK$2954,12,FALSE),0) -> 0 | O145: =IFERROR(VLOOKUP($A145,Filtro_!$A$5:$AK$2954,13,FALSE),0) -> 0 | P145: =IFERROR(VLOOKUP($A145,Filtro_!$A$5:$AK$2954,14,FALSE),0) -> 0 | Q145: =IFERROR(VLOOKUP($A145,Filtro_!$A$5:$AK$2954,15,FALSE),0) -> 2212 | R145: =IFERROR(VLOOKUP($A145,Filtro_!$A$5:$AK$2954,16,FALSE),0) -> 0 | S145: =IFERROR(VLOOKUP($A145,Filtro_!$A$5:$AK$2954,17,FALSE),0) -> 0 | T145: =IFERROR(VLOOKUP($A145,Filtro_!$A$5:$AK$2954,18,FALSE),0) -> 1,197,352,070
B146: SECCION J: MEDICINA NUCLEAR Y RADIOTERAPIA
B147: TIPO DE PROCEDIMIENTO | D147: TOTAL | E147: PROCEDIMIENTOS | I147: PROCEDENCIA | L147: PRODUCCION INTRA HOSPITAL | O147: OPERATIVO | P147: COMPRAS REALIZADAS | R147: VENTAS DE SERVICIOS | S147: PAGO POR PRESTACIONES ($)
E148: TOTAL BENEFICIARIOS | F148: BENEFICIARIOS | H148: NO BENEFICIARIOS | I148: ATENCION CERRADA | J148: ATENCION ABIERTA | K148: EMERGENCIA | L148: POR HONORARIOS | M148: POR CONVENIOS | N148: POR CONSULTORES DE LLAMADA | P148: AL SISTEMA | Q148: EXTRA-SISTEMA
F149: MAI | G149: MLE
A150: 17400370 | B150: MEDICINA NUCLEAR | D150: =IFERROR(VLOOKUP($A150,Filtro_!$A$5:$AK$2954,2,FALSE),0) -> 0 | E150: =IFERROR(VLOOKUP($A150,Filtro_!$A$5:$AK$2954,3,FALSE),0) -> 0 | F150: =IFERROR(VLOOKUP($A150,Filtro_!$A$5:$AK$2954,4,FALSE),0) -> 0 | G150: =IFERROR(VLOOKUP($A150,Filtro_!$A$5:$AK$2954,5,FALSE),0) -> 0 | H150: =IFERROR(VLOOKUP($A150,Filtro_!$A$5:$AK$2954,6,FALSE),0) -> 0 | I150: =IFERROR(VLOOKUP($A150,Filtro_!$A$5:$AK$2954,7,FALSE),0) -> 0 | J150: =IFERROR(VLOOKUP($A150,Filtro_!$A$5:$AK$2954,8,FALSE),0) -> 0 | K150: =IFERROR(VLOOKUP($A150,Filtro_!$A$5:$AK$2954,9,FALSE),0) -> 0 | L150: =IFERROR(VLOOKUP($A150,Filtro_!$A$5:$AK$2954,10,FALSE),0) -> 0 | M150: =IFERROR(VLOOKUP($A150,Filtro_!$A$5:$AK$2954,11,FALSE),0) -> 0 | N150: =IFERROR(VLOOKUP($A150,Filtro_!$A$5:$AK$2954,12,FALSE),0) -> 0 | O150: =IFERROR(VLOOKUP($A150,Filtro_!$A$5:$AK$2954,13,FALSE),0) -> 0 | P150: =IFERROR(VLOOKUP($A150,Filtro_!$A$5:$AK$2954,14,FALSE),0) -> 0 | Q150: =IFERROR(VLOOKUP($A150,Filtro_!$A$5:$AK$2954,15,FALSE),0) -> 198 | R150: =IFERROR(VLOOKUP($A150,Filtro_!$A$5:$AK$2954,16,FALSE),0) -> 0 | S150: =IFERROR(VLOOKUP($A150,Filtro_!$A$5:$AK$2954,17,FALSE),0) -> 0
A151: 17020301 | B151: BRAQUITERAPIA | D151: =IFERROR(VLOOKUP($A151,Filtro_!$A$5:$AK$2954,2,FALSE),0) -> 0 | E151: =IFERROR(VLOOKUP($A151,Filtro_!$A$5:$AK$2954,3,FALSE),0) -> 0 | F151: =IFERROR(VLOOKUP($A151,Filtro_!$A$5:$AK$2954,4,FALSE),0) -> 0 | G151: =IFERROR(VLOOKUP($A151,Filtro_!$A$5:$AK$2954,5,FALSE),0) -> 0 | H151: =IFERROR(VLOOKUP($A151,Filtro_!$A$5:$AK$2954,6,FALSE),0) -> 0 | I151: =IFERROR(VLOOKUP($A151,Filtro_!$A$5:$AK$2954,7,FALSE),0) -> 0 | J151: =IFERROR(VLOOKUP($A151,Filtro_!$A$5:$AK$2954,8,FALSE),0) -> 0 | K151: =IFERROR(VLOOKUP($A151,Filtro_!$A$5:$AK$2954,9,FALSE),0) -> 0 | L151: =IFERROR(VLOOKUP($A151,Filtro_!$A$5:$AK$2954,10,FALSE),0) -> 0 | M151: =IFERROR(VLOOKUP($A151,Filtro_!$A$5:$AK$2954,11,FALSE),0) -> 0 | N151: =IFERROR(VLOOKUP($A151,Filtro_!$A$5:$AK$2954,12,FALSE),0) -> 0 | O151: =IFERROR(VLOOKUP($A151,Filtro_!$A$5:$AK$2954,13,FALSE),0) -> 0 | P151: =IFERROR(VLOOKUP($A151,Filtro_!$A$5:$AK$2954,14,FALSE),0) -> 0 | Q151: =IFERROR(VLOOKUP($A151,Filtro_!$A$5:$AK$2954,15,FALSE),0) -> 0 | R151: =IFERROR(VLOOKUP($A151,Filtro_!$A$5:$AK$2954,16,FALSE),0) -> 0 | S151: =IFERROR(VLOOKUP($A151,Filtro_!$A$5:$AK$2954,17,FALSE),0) -> 0
A152: 99200140 | B152: RADIOTERAPIA | D152: =IFERROR(VLOOKUP($A152,Filtro_!$A$5:$AK$2954,2,FALSE),0) -> 0 | E152: =IFERROR(VLOOKUP($A152,Filtro_!$A$5:$AK$2954,3,FALSE),0) -> 0 | F152: =IFERROR(VLOOKUP($A152,Filtro_!$A$5:$AK$2954,4,FALSE),0) -> 0 | G152: =IFERROR(VLOOKUP($A152,Filtro_!$A$5:$AK$2954,5,FALSE),0) -> 0 | H152: =IFERROR(VLOOKUP($A152,Filtro_!$A$5:$AK$2954,6,FALSE),0) -> 0 | I152: =IFERROR(VLOOKUP($A152,Filtro_!$A$5:$AK$2954,7,FALSE),0) -> 0 | J152: =IFERROR(VLOOKUP($A152,Filtro_!$A$5:$AK$2954,8,FALSE),0) -> 0 | K152: =IFERROR(VLOOKUP($A152,Filtro_!$A$5:$AK$2954,9,FALSE),0) -> 0 | L152: =IFERROR(VLOOKUP($A152,Filtro_!$A$5:$AK$2954,10,FALSE),0) -> 0 | M152: =IFERROR(VLOOKUP($A152,Filtro_!$A$5:$AK$2954,11,FALSE),0) -> 0 | N152: =IFERROR(VLOOKUP($A152,Filtro_!$A$5:$AK$2954,12,FALSE),0) -> 0 | O152: =IFERROR(VLOOKUP($A152,Filtro_!$A$5:$AK$2954,13,FALSE),0) -> 0 | P152: =IFERROR(VLOOKUP($A152,Filtro_!$A$5:$AK$2954,14,FALSE),0) -> 0 | Q152: =IFERROR(VLOOKUP($A152,Filtro_!$A$5:$AK$2954,15,FALSE),0) -> 0 | R152: =IFERROR(VLOOKUP($A152,Filtro_!$A$5:$AK$2954,16,FALSE),0) -> 0 | S152: =IFERROR(VLOOKUP($A152,Filtro_!$A$5:$AK$2954,17,FALSE),0) -> 0
A153: 17400381 | B153: QUIMIOTERAPIA | D153: =IFERROR(VLOOKUP($A153,Filtro_!$A$5:$AK$2954,2,FALSE),0) -> 6681 | E153: =IFERROR(VLOOKUP($A153,Filtro_!$A$5:$AK$2954,3,FALSE),0) -> 6660 | F153: =IFERROR(VLOOKUP($A153,Filtro_!$A$5:$AK$2954,4,FALSE),0) -> 6660 | G153: =IFERROR(VLOOKUP($A153,Filtro_!$A$5:$AK$2954,5,FALSE),0) -> 0 | H153: =IFERROR(VLOOKUP($A153,Filtro_!$A$5:$AK$2954,6,FALSE),0) -> 21 | I153: =IFERROR(VLOOKUP($A153,Filtro_!$A$5:$AK$2954,7,FALSE),0) -> 15 | J153: =IFERROR(VLOOKUP($A153,Filtro_!$A$5:$AK$2954,8,FALSE),0) -> 6666 | K153: =IFERROR(VLOOKUP($A153,Filtro_!$A$5:$AK$2954,9,FALSE),0) -> 0 | L153: =IFERROR(VLOOKUP($A153,Filtro_!$A$5:$AK$2954,10,FALSE),0) -> 0 | M153: =IFERROR(VLOOKUP($A153,Filtro_!$A$5:$AK$2954,11,FALSE),0) -> 0 | N153: =IFERROR(VLOOKUP($A153,Filtro_!$A$5:$AK$2954,12,FALSE),0) -> 0 | O153: =IFERROR(VLOOKUP($A153,Filtro_!$A$5:$AK$2954,13,FALSE),0) -> 0 | P153: =IFERROR(VLOOKUP($A153,Filtro_!$A$5:$AK$2954,14,FALSE),0) -> 0 | Q153: =IFERROR(VLOOKUP($A153,Filtro_!$A$5:$AK$2954,15,FALSE),0) -> 0 | R153: =IFERROR(VLOOKUP($A153,Filtro_!$A$5:$AK$2954,16,FALSE),0) -> 0 | S153: =IFERROR(VLOOKUP($A153,Filtro_!$A$5:$AK$2954,17,FALSE),0) -> 3,215,421,180
A154: 99200150 | B154: RADIOCIRUGÍA | D154: =IFERROR(VLOOKUP($A154,Filtro_!$A$5:$AK$2954,2,FALSE),0) -> 0 | E154: =IFERROR(VLOOKUP($A154,Filtro_!$A$5:$AK$2954,3,FALSE),0) -> 0 | F154: =IFERROR(VLOOKUP($A154,Filtro_!$A$5:$AK$2954,4,FALSE),0) -> 0 | G154: =IFERROR(VLOOKUP($A154,Filtro_!$A$5:$AK$2954,5,FALSE),0) -> 0 | H154: =IFERROR(VLOOKUP($A154,Filtro_!$A$5:$AK$2954,6,FALSE),0) -> 0 | I154: =IFERROR(VLOOKUP($A154,Filtro_!$A$5:$AK$2954,7,FALSE),0) -> 0 | J154: =IFERROR(VLOOKUP($A154,Filtro_!$A$5:$AK$2954,8,FALSE),0) -> 0 | K154: =IFERROR(VLOOKUP($A154,Filtro_!$A$5:$AK$2954,9,FALSE),0) -> 0 | L154: =IFERROR(VLOOKUP($A154,Filtro_!$A$5:$AK$2954,10,FALSE),0) -> 0 | M154: =IFERROR(VLOOKUP($A154,Filtro_!$A$5:$AK$2954,11,FALSE),0) -> 0 | N154: =IFERROR(VLOOKUP($A154,Filtro_!$A$5:$AK$2954,12,FALSE),0) -> 0 | O154: =IFERROR(VLOOKUP($A154,Filtro_!$A$5:$AK$2954,13,FALSE),0) -> 0 | P154: =IFERROR(VLOOKUP($A154,Filtro_!$A$5:$AK$2954,14,FALSE),0) -> 0 | Q154: =IFERROR(VLOOKUP($A154,Filtro_!$A$5:$AK$2954,15,FALSE),0) -> 0 | R154: =IFERROR(VLOOKUP($A154,Filtro_!$A$5:$AK$2954,16,FALSE),0) -> 0 | S154: =IFERROR(VLOOKUP($A154,Filtro_!$A$5:$AK$2954,17,FALSE),0) -> 0
B155: TOTAL | D155: =IFERROR(VLOOKUP($A155,Filtro_!$A$5:$AK$2954,2,FALSE),0) -> 0 | E155: =IFERROR(VLOOKUP($A155,Filtro_!$A$5:$AK$2954,3,FALSE),0) -> 0 | F155: =IFERROR(VLOOKUP($A155,Filtro_!$A$5:$AK$2954,4,FALSE),0) -> 0 | G155: =IFERROR(VLOOKUP($A155,Filtro_!$A$5:$AK$2954,5,FALSE),0) -> 0 | H155: =IFERROR(VLOOKUP($A155,Filtro_!$A$5:$AK$2954,6,FALSE),0) -> 0 | I155: =IFERROR(VLOOKUP($A155,Filtro_!$A$5:$AK$2954,7,FALSE),0) -> 0 | J155: =IFERROR(VLOOKUP($A155,Filtro_!$A$5:$AK$2954,8,FALSE),0) -> 0 | K155: =IFERROR(VLOOKUP($A155,Filtro_!$A$5:$AK$2954,9,FALSE),0) -> 0 | L155: =IFERROR(VLOOKUP($A155,Filtro_!$A$5:$AK$2954,10,FALSE),0) -> 0 | M155: =IFERROR(VLOOKUP($A155,Filtro_!$A$5:$AK$2954,11,FALSE),0) -> 0 | N155: =IFERROR(VLOOKUP($A155,Filtro_!$A$5:$AK$2954,12,FALSE),0) -> 0 | O155: =IFERROR(VLOOKUP($A155,Filtro_!$A$5:$AK$2954,13,FALSE),0) -> 0 | P155: =IFERROR(VLOOKUP($A155,Filtro_!$A$5:$AK$2954,14,FALSE),0) -> 0 | Q155: =IFERROR(VLOOKUP($A155,Filtro_!$A$5:$AK$2954,15,FALSE),0) -> 0 | R155: =IFERROR(VLOOKUP($A155,Filtro_!$A$5:$AK$2954,16,FALSE),0) -> 0 | S155: =IFERROR(VLOOKUP($A155,Filtro_!$A$5:$AK$2954,17,FALSE),0) -> 0
B156: SECCION K: HEMODIALISIS
B157: HEMODIALISIS | D157: TOTAL | E157: PROCEDIMIENTOS | I157: PROCEDENCIA | L157: PRODUCCION INTRA HOSPITAL | O157: OPERATIVO | P157: COMPRAS REALIZADAS | R157: VENTAS DE SERVICIOS | S157: PAGO POR PRESTACIONES ($)
E158: TOTAL BENEFI-CIARIOS | F158: BENEFICIARIOS | H158: NO BENEFI-CIARIOS | I158: ATENCION CERRADA | J158: ATENCION ABIERTA | K158: EMERGENCIA | L158: POR HONORARIOS | M158: POR CONVENIOS | N158: POR CONSULTORES DE LLAMADA | P158: AL SISTEMA | Q158: EXTRA-SISTEMA
F159: MAI | G159: MLE
A160: 17040100 | B160: 1901023 | C160: Hemodiálisis con insumos incluidos | D160: =IFERROR(VLOOKUP($A160,Filtro_!$A$5:$AK$2954,2,FALSE),0) -> 0 | E160: =IFERROR(VLOOKUP($A160,Filtro_!$A$5:$AK$2954,3,FALSE),0) -> 0 | F160: =IFERROR(VLOOKUP($A160,Filtro_!$A$5:$AK$2954,4,FALSE),0) -> 0 | G160: =IFERROR(VLOOKUP($A160,Filtro_!$A$5:$AK$2954,5,FALSE),0) -> 0 | H160: =IFERROR(VLOOKUP($A160,Filtro_!$A$5:$AK$2954,6,FALSE),0) -> 0 | I160: =IFERROR(VLOOKUP($A160,Filtro_!$A$5:$AK$2954,7,FALSE),0) -> 0 | J160: =IFERROR(VLOOKUP($A160,Filtro_!$A$5:$AK$2954,8,FALSE),0) -> 0 | K160: =IFERROR(VLOOKUP($A160,Filtro_!$A$5:$AK$2954,9,FALSE),0) -> 0 | L160: =IFERROR(VLOOKUP($A160,Filtro_!$A$5:$AK$2954,10,FALSE),0) -> 0 | M160: =IFERROR(VLOOKUP($A160,Filtro_!$A$5:$AK$2954,11,FALSE),0) -> 0 | N160: =IFERROR(VLOOKUP($A160,Filtro_!$A$5:$AK$2954,12,FALSE),0) -> 0 | O160: =IFERROR(VLOOKUP($A160,Filtro_!$A$5:$AK$2954,13,FALSE),0) -> 0 | P160: =IFERROR(VLOOKUP($A160,Filtro_!$A$5:$AK$2954,14,FALSE),0) -> 0 | Q160: =IFERROR(VLOOKUP($A160,Filtro_!$A$5:$AK$2954,15,FALSE),0) -> 0 | R160: =IFERROR(VLOOKUP($A160,Filtro_!$A$5:$AK$2954,16,FALSE),0) -> 0 | S160: =IFERROR(VLOOKUP($A160,Filtro_!$A$5:$AK$2954,17,FALSE),0) -> 0
A161: 17200130 | B161: 1901024 | C161: Hemodiálisis sin insumos | D161: =IFERROR(VLOOKUP($A161,Filtro_!$A$5:$AK$2954,2,FALSE),0) -> 883 | E161: =IFERROR(VLOOKUP($A161,Filtro_!$A$5:$AK$2954,3,FALSE),0) -> 883 | F161: =IFERROR(VLOOKUP($A161,Filtro_!$A$5:$AK$2954,4,FALSE),0) -> 883 | G161: =IFERROR(VLOOKUP($A161,Filtro_!$A$5:$AK$2954,5,FALSE),0) -> 0 | H161: =IFERROR(VLOOKUP($A161,Filtro_!$A$5:$AK$2954,6,FALSE),0) -> 0 | I161: =IFERROR(VLOOKUP($A161,Filtro_!$A$5:$AK$2954,7,FALSE),0) -> 879 | J161: =IFERROR(VLOOKUP($A161,Filtro_!$A$5:$AK$2954,8,FALSE),0) -> 0 | K161: =IFERROR(VLOOKUP($A161,Filtro_!$A$5:$AK$2954,9,FALSE),0) -> 4 | L161: =IFERROR(VLOOKUP($A161,Filtro_!$A$5:$AK$2954,10,FALSE),0) -> 0 | M161: =IFERROR(VLOOKUP($A161,Filtro_!$A$5:$AK$2954,11,FALSE),0) -> 0 | N161: =IFERROR(VLOOKUP($A161,Filtro_!$A$5:$AK$2954,12,FALSE),0) -> 0 | O161: =IFERROR(VLOOKUP($A161,Filtro_!$A$5:$AK$2954,13,FALSE),0) -> 0 | P161: =IFERROR(VLOOKUP($A161,Filtro_!$A$5:$AK$2954,14,FALSE),0) -> 0 | Q161: =IFERROR(VLOOKUP($A161,Filtro_!$A$5:$AK$2954,15,FALSE),0) -> 0 | R161: =IFERROR(VLOOKUP($A161,Filtro_!$A$5:$AK$2954,16,FALSE),0) -> 0 | S161: =IFERROR(VLOOKUP($A161,Filtro_!$A$5:$AK$2954,17,FALSE),0) -> 29,421,560
A162: 17040200 | B162: 1901025 | C162: Peritoneodiálisis (incluye insumos) | D162: =IFERROR(VLOOKUP($A162,Filtro_!$A$5:$AK$2954,2,FALSE),0) -> 442 | E162: =IFERROR(VLOOKUP($A162,Filtro_!$A$5:$AK$2954,3,FALSE),0) -> 442 | F162: =IFERROR(VLOOKUP($A162,Filtro_!$A$5:$AK$2954,4,FALSE),0) -> 442 | G162: =IFERROR(VLOOKUP($A162,Filtro_!$A$5:$AK$2954,5,FALSE),0) -> 0 | H162: =IFERROR(VLOOKUP($A162,Filtro_!$A$5:$AK$2954,6,FALSE),0) -> 0 | I162: =IFERROR(VLOOKUP($A162,Filtro_!$A$5:$AK$2954,7,FALSE),0) -> 400 | J162: =IFERROR(VLOOKUP($A162,Filtro_!$A$5:$AK$2954,8,FALSE),0) -> 42 | K162: =IFERROR(VLOOKUP($A162,Filtro_!$A$5:$AK$2954,9,FALSE),0) -> 0 | L162: =IFERROR(VLOOKUP($A162,Filtro_!$A$5:$AK$2954,10,FALSE),0) -> 0 | M162: =IFERROR(VLOOKUP($A162,Filtro_!$A$5:$AK$2954,11,FALSE),0) -> 0 | N162: =IFERROR(VLOOKUP($A162,Filtro_!$A$5:$AK$2954,12,FALSE),0) -> 0 | O162: =IFERROR(VLOOKUP($A162,Filtro_!$A$5:$AK$2954,13,FALSE),0) -> 0 | P162: =IFERROR(VLOOKUP($A162,Filtro_!$A$5:$AK$2954,14,FALSE),0) -> 0 | Q162: =IFERROR(VLOOKUP($A162,Filtro_!$A$5:$AK$2954,15,FALSE),0) -> 0 | R162: =IFERROR(VLOOKUP($A162,Filtro_!$A$5:$AK$2954,16,FALSE),0) -> 0 | S162: =IFERROR(VLOOKUP($A162,Filtro_!$A$5:$AK$2954,17,FALSE),0) -> 15,165,020
A163: 17200140 | B163: 1901026 | C163: Peritoneodiálisis continua en paciente crónico (adulto o niños) (tratamiento mensual) | D163: =IFERROR(VLOOKUP($A163,Filtro_!$A$5:$AK$2954,2,FALSE),0) -> 255 | E163: =IFERROR(VLOOKUP($A163,Filtro_!$A$5:$AK$2954,3,FALSE),0) -> 255 | F163: =IFERROR(VLOOKUP($A163,Filtro_!$A$5:$AK$2954,4,FALSE),0) -> 255 | G163: =IFERROR(VLOOKUP($A163,Filtro_!$A$5:$AK$2954,5,FALSE),0) -> 0 | H163: =IFERROR(VLOOKUP($A163,Filtro_!$A$5:$AK$2954,6,FALSE),0) -> 0 | I163: =IFERROR(VLOOKUP($A163,Filtro_!$A$5:$AK$2954,7,FALSE),0) -> 234 | J163: =IFERROR(VLOOKUP($A163,Filtro_!$A$5:$AK$2954,8,FALSE),0) -> 21 | K163: =IFERROR(VLOOKUP($A163,Filtro_!$A$5:$AK$2954,9,FALSE),0) -> 0 | L163: =IFERROR(VLOOKUP($A163,Filtro_!$A$5:$AK$2954,10,FALSE),0) -> 0 | M163: =IFERROR(VLOOKUP($A163,Filtro_!$A$5:$AK$2954,11,FALSE),0) -> 0 | N163: =IFERROR(VLOOKUP($A163,Filtro_!$A$5:$AK$2954,12,FALSE),0) -> 0 | O163: =IFERROR(VLOOKUP($A163,Filtro_!$A$5:$AK$2954,13,FALSE),0) -> 0 | P163: =IFERROR(VLOOKUP($A163,Filtro_!$A$5:$AK$2954,14,FALSE),0) -> 0 | Q163: =IFERROR(VLOOKUP($A163,Filtro_!$A$5:$AK$2954,15,FALSE),0) -> 0 | R163: =IFERROR(VLOOKUP($A163,Filtro_!$A$5:$AK$2954,16,FALSE),0) -> 0 | S163: =IFERROR(VLOOKUP($A163,Filtro_!$A$5:$AK$2954,17,FALSE),0) -> 262,632,150
A164: 17190440 | B164: 1901126 | C164: Instalación de cateter para peritoneodiális | D164: =IFERROR(VLOOKUP($A164,Filtro_!$A$5:$AK$2954,2,FALSE),0) -> 10 | E164: =IFERROR(VLOOKUP($A164,Filtro_!$A$5:$AK$2954,3,FALSE),0) -> 10 | F164: =IFERROR(VLOOKUP($A164,Filtro_!$A$5:$AK$2954,4,FALSE),0) -> 10 | G164: =IFERROR(VLOOKUP($A164,Filtro_!$A$5:$AK$2954,5,FALSE),0) -> 0 | H164: =IFERROR(VLOOKUP($A164,Filtro_!$A$5:$AK$2954,6,FALSE),0) -> 0 | I164: =IFERROR(VLOOKUP($A164,Filtro_!$A$5:$AK$2954,7,FALSE),0) -> 8 | J164: =IFERROR(VLOOKUP($A164,Filtro_!$A$5:$AK$2954,8,FALSE),0) -> 1 | K164: =IFERROR(VLOOKUP($A164,Filtro_!$A$5:$AK$2954,9,FALSE),0) -> 1 | L164: =IFERROR(VLOOKUP($A164,Filtro_!$A$5:$AK$2954,10,FALSE),0) -> 0 | M164: =IFERROR(VLOOKUP($A164,Filtro_!$A$5:$AK$2954,11,FALSE),0) -> 0 | N164: =IFERROR(VLOOKUP($A164,Filtro_!$A$5:$AK$2954,12,FALSE),0) -> 0 | O164: =IFERROR(VLOOKUP($A164,Filtro_!$A$5:$AK$2954,13,FALSE),0) -> 0 | P164: =IFERROR(VLOOKUP($A164,Filtro_!$A$5:$AK$2954,14,FALSE),0) -> 0 | Q164: =IFERROR(VLOOKUP($A164,Filtro_!$A$5:$AK$2954,15,FALSE),0) -> 0 | R164: =IFERROR(VLOOKUP($A164,Filtro_!$A$5:$AK$2954,16,FALSE),0) -> 0 | S164: =IFERROR(VLOOKUP($A164,Filtro_!$A$5:$AK$2954,17,FALSE),0) -> 4,678,100
A165: 17040400 | B165: 1901027 | C165: Hemodiálisis, tratamiento mensual (con insumos incluidos) | D165: =IFERROR(VLOOKUP($A165,Filtro_!$A$5:$AK$2954,2,FALSE),0) -> 0 | E165: =IFERROR(VLOOKUP($A165,Filtro_!$A$5:$AK$2954,3,FALSE),0) -> 0 | F165: =IFERROR(VLOOKUP($A165,Filtro_!$A$5:$AK$2954,4,FALSE),0) -> 0 | G165: =IFERROR(VLOOKUP($A165,Filtro_!$A$5:$AK$2954,5,FALSE),0) -> 0 | H165: =IFERROR(VLOOKUP($A165,Filtro_!$A$5:$AK$2954,6,FALSE),0) -> 0 | I165: =IFERROR(VLOOKUP($A165,Filtro_!$A$5:$AK$2954,7,FALSE),0) -> 0 | J165: =IFERROR(VLOOKUP($A165,Filtro_!$A$5:$AK$2954,8,FALSE),0) -> 0 | K165: =IFERROR(VLOOKUP($A165,Filtro_!$A$5:$AK$2954,9,FALSE),0) -> 0 | L165: =IFERROR(VLOOKUP($A165,Filtro_!$A$5:$AK$2954,10,FALSE),0) -> 0 | M165: =IFERROR(VLOOKUP($A165,Filtro_!$A$5:$AK$2954,11,FALSE),0) -> 0 | N165: =IFERROR(VLOOKUP($A165,Filtro_!$A$5:$AK$2954,12,FALSE),0) -> 0 | O165: =IFERROR(VLOOKUP($A165,Filtro_!$A$5:$AK$2954,13,FALSE),0) -> 0 | P165: =IFERROR(VLOOKUP($A165,Filtro_!$A$5:$AK$2954,14,FALSE),0) -> 0 | Q165: =IFERROR(VLOOKUP($A165,Filtro_!$A$5:$AK$2954,15,FALSE),0) -> 0 | R165: =IFERROR(VLOOKUP($A165,Filtro_!$A$5:$AK$2954,16,FALSE),0) -> 0 | S165: =IFERROR(VLOOKUP($A165,Filtro_!$A$5:$AK$2954,17,FALSE),0) -> 0
A166: 17040500 | B166: 1901028 | C166: Hemodiálisis con bicarbonato con insumos (por sesion) | D166: =IFERROR(VLOOKUP($A166,Filtro_!$A$5:$AK$2954,2,FALSE),0) -> 7157 | E166: =IFERROR(VLOOKUP($A166,Filtro_!$A$5:$AK$2954,3,FALSE),0) -> 7100 | F166: =IFERROR(VLOOKUP($A166,Filtro_!$A$5:$AK$2954,4,FALSE),0) -> 7089 | G166: =IFERROR(VLOOKUP($A166,Filtro_!$A$5:$AK$2954,5,FALSE),0) -> 11 | H166: =IFERROR(VLOOKUP($A166,Filtro_!$A$5:$AK$2954,6,FALSE),0) -> 57 | I166: =IFERROR(VLOOKUP($A166,Filtro_!$A$5:$AK$2954,7,FALSE),0) -> 2043 | J166: =IFERROR(VLOOKUP($A166,Filtro_!$A$5:$AK$2954,8,FALSE),0) -> 5083 | K166: =IFERROR(VLOOKUP($A166,Filtro_!$A$5:$AK$2954,9,FALSE),0) -> 18 | L166: =IFERROR(VLOOKUP($A166,Filtro_!$A$5:$AK$2954,10,FALSE),0) -> 0 | M166: =IFERROR(VLOOKUP($A166,Filtro_!$A$5:$AK$2954,11,FALSE),0) -> 0 | N166: =IFERROR(VLOOKUP($A166,Filtro_!$A$5:$AK$2954,12,FALSE),0) -> 0 | O166: =IFERROR(VLOOKUP($A166,Filtro_!$A$5:$AK$2954,13,FALSE),0) -> 0 | P166: =IFERROR(VLOOKUP($A166,Filtro_!$A$5:$AK$2954,14,FALSE),0) -> 0 | Q166: =IFERROR(VLOOKUP($A166,Filtro_!$A$5:$AK$2954,15,FALSE),0) -> 32 | R166: =IFERROR(VLOOKUP($A166,Filtro_!$A$5:$AK$2954,16,FALSE),0) -> 0 | S166: =IFERROR(VLOOKUP($A166,Filtro_!$A$5:$AK$2954,17,FALSE),0) -> 457,240,500
A167: 17200150 | B167: 1901029 | C167: Hemodiálisis con bicarbonato con insumos (tratamiento mensual) | D167: =IFERROR(VLOOKUP($A167,Filtro_!$A$5:$AK$2954,2,FALSE),0) -> 1322 | E167: =IFERROR(VLOOKUP($A167,Filtro_!$A$5:$AK$2954,3,FALSE),0) -> 1308 | F167: =IFERROR(VLOOKUP($A167,Filtro_!$A$5:$AK$2954,4,FALSE),0) -> 1308 | G167: =IFERROR(VLOOKUP($A167,Filtro_!$A$5:$AK$2954,5,FALSE),0) -> 0 | H167: =IFERROR(VLOOKUP($A167,Filtro_!$A$5:$AK$2954,6,FALSE),0) -> 14 | I167: =IFERROR(VLOOKUP($A167,Filtro_!$A$5:$AK$2954,7,FALSE),0) -> 12 | J167: =IFERROR(VLOOKUP($A167,Filtro_!$A$5:$AK$2954,8,FALSE),0) -> 1310 | K167: =IFERROR(VLOOKUP($A167,Filtro_!$A$5:$AK$2954,9,FALSE),0) -> 0 | L167: =IFERROR(VLOOKUP($A167,Filtro_!$A$5:$AK$2954,10,FALSE),0) -> 0 | M167: =IFERROR(VLOOKUP($A167,Filtro_!$A$5:$AK$2954,11,FALSE),0) -> 0 | N167: =IFERROR(VLOOKUP($A167,Filtro_!$A$5:$AK$2954,12,FALSE),0) -> 0 | O167: =IFERROR(VLOOKUP($A167,Filtro_!$A$5:$AK$2954,13,FALSE),0) -> 0 | P167: =IFERROR(VLOOKUP($A167,Filtro_!$A$5:$AK$2954,14,FALSE),0) -> 0 | Q167: =IFERROR(VLOOKUP($A167,Filtro_!$A$5:$AK$2954,15,FALSE),0) -> 0 | R167: =IFERROR(VLOOKUP($A167,Filtro_!$A$5:$AK$2954,16,FALSE),0) -> 0 | S167: =IFERROR(VLOOKUP($A167,Filtro_!$A$5:$AK$2954,17,FALSE),0) -> 1,096,692,600
A168: 17400382 | B168: 1901031 | C168: Instalación de catéter de peritoneodiálisis laparoscopia | D168: =IFERROR(VLOOKUP($A168,Filtro_!$A$5:$AK$2954,2,FALSE),0) -> 20 | E168: =IFERROR(VLOOKUP($A168,Filtro_!$A$5:$AK$2954,3,FALSE),0) -> 20 | F168: =IFERROR(VLOOKUP($A168,Filtro_!$A$5:$AK$2954,4,FALSE),0) -> 20 | G168: =IFERROR(VLOOKUP($A168,Filtro_!$A$5:$AK$2954,5,FALSE),0) -> 0 | H168: =IFERROR(VLOOKUP($A168,Filtro_!$A$5:$AK$2954,6,FALSE),0) -> 0 | I168: =IFERROR(VLOOKUP($A168,Filtro_!$A$5:$AK$2954,7,FALSE),0) -> 18 | J168: =IFERROR(VLOOKUP($A168,Filtro_!$A$5:$AK$2954,8,FALSE),0) -> 2 | K168: =IFERROR(VLOOKUP($A168,Filtro_!$A$5:$AK$2954,9,FALSE),0) -> 0 | L168: =IFERROR(VLOOKUP($A168,Filtro_!$A$5:$AK$2954,10,FALSE),0) -> 0 | M168: =IFERROR(VLOOKUP($A168,Filtro_!$A$5:$AK$2954,11,FALSE),0) -> 0 | N168: =IFERROR(VLOOKUP($A168,Filtro_!$A$5:$AK$2954,12,FALSE),0) -> 0 | O168: =IFERROR(VLOOKUP($A168,Filtro_!$A$5:$AK$2954,13,FALSE),0) -> 0 | P168: =IFERROR(VLOOKUP($A168,Filtro_!$A$5:$AK$2954,14,FALSE),0) -> 0 | Q168: =IFERROR(VLOOKUP($A168,Filtro_!$A$5:$AK$2954,15,FALSE),0) -> 0 | R168: =IFERROR(VLOOKUP($A168,Filtro_!$A$5:$AK$2954,16,FALSE),0) -> 0 | S168: =IFERROR(VLOOKUP($A168,Filtro_!$A$5:$AK$2954,17,FALSE),0) -> 11,676,600
A169: 17400383 | B169: 1901032 | C169: Retiro de catéter de peritoneodiálisis | D169: =IFERROR(VLOOKUP($A169,Filtro_!$A$5:$AK$2954,2,FALSE),0) -> 17 | E169: =IFERROR(VLOOKUP($A169,Filtro_!$A$5:$AK$2954,3,FALSE),0) -> 17 | F169: =IFERROR(VLOOKUP($A169,Filtro_!$A$5:$AK$2954,4,FALSE),0) -> 17 | G169: =IFERROR(VLOOKUP($A169,Filtro_!$A$5:$AK$2954,5,FALSE),0) -> 0 | H169: =IFERROR(VLOOKUP($A169,Filtro_!$A$5:$AK$2954,6,FALSE),0) -> 0 | I169: =IFERROR(VLOOKUP($A169,Filtro_!$A$5:$AK$2954,7,FALSE),0) -> 9 | J169: =IFERROR(VLOOKUP($A169,Filtro_!$A$5:$AK$2954,8,FALSE),0) -> 6 | K169: =IFERROR(VLOOKUP($A169,Filtro_!$A$5:$AK$2954,9,FALSE),0) -> 2 | L169: =IFERROR(VLOOKUP($A169,Filtro_!$A$5:$AK$2954,10,FALSE),0) -> 0 | M169: =IFERROR(VLOOKUP($A169,Filtro_!$A$5:$AK$2954,11,FALSE),0) -> 0 | N169: =IFERROR(VLOOKUP($A169,Filtro_!$A$5:$AK$2954,12,FALSE),0) -> 0 | O169: =IFERROR(VLOOKUP($A169,Filtro_!$A$5:$AK$2954,13,FALSE),0) -> 0 | P169: =IFERROR(VLOOKUP($A169,Filtro_!$A$5:$AK$2954,14,FALSE),0) -> 0 | Q169: =IFERROR(VLOOKUP($A169,Filtro_!$A$5:$AK$2954,15,FALSE),0) -> 0 | R169: =IFERROR(VLOOKUP($A169,Filtro_!$A$5:$AK$2954,16,FALSE),0) -> 0 | S169: =IFERROR(VLOOKUP($A169,Filtro_!$A$5:$AK$2954,17,FALSE),0) -> 2,652,850
A170: 17400384 | B170: 1901033 | C170: Revisión de catéter de peritoneodiálisis laparoscopia | D170: =IFERROR(VLOOKUP($A170,Filtro_!$A$5:$AK$2954,2,FALSE),0) -> 4 | E170: =IFERROR(VLOOKUP($A170,Filtro_!$A$5:$AK$2954,3,FALSE),0) -> 4 | F170: =IFERROR(VLOOKUP($A170,Filtro_!$A$5:$AK$2954,4,FALSE),0) -> 4 | G170: =IFERROR(VLOOKUP($A170,Filtro_!$A$5:$AK$2954,5,FALSE),0) -> 0 | H170: =IFERROR(VLOOKUP($A170,Filtro_!$A$5:$AK$2954,6,FALSE),0) -> 0 | I170: =IFERROR(VLOOKUP($A170,Filtro_!$A$5:$AK$2954,7,FALSE),0) -> 3 | J170: =IFERROR(VLOOKUP($A170,Filtro_!$A$5:$AK$2954,8,FALSE),0) -> 0 | K170: =IFERROR(VLOOKUP($A170,Filtro_!$A$5:$AK$2954,9,FALSE),0) -> 1 | L170: =IFERROR(VLOOKUP($A170,Filtro_!$A$5:$AK$2954,10,FALSE),0) -> 0 | M170: =IFERROR(VLOOKUP($A170,Filtro_!$A$5:$AK$2954,11,FALSE),0) -> 0 | N170: =IFERROR(VLOOKUP($A170,Filtro_!$A$5:$AK$2954,12,FALSE),0) -> 0 | O170: =IFERROR(VLOOKUP($A170,Filtro_!$A$5:$AK$2954,13,FALSE),0) -> 0 | P170: =IFERROR(VLOOKUP($A170,Filtro_!$A$5:$AK$2954,14,FALSE),0) -> 0 | Q170: =IFERROR(VLOOKUP($A170,Filtro_!$A$5:$AK$2954,15,FALSE),0) -> 0 | R170: =IFERROR(VLOOKUP($A170,Filtro_!$A$5:$AK$2954,16,FALSE),0) -> 0 | S170: =IFERROR(VLOOKUP($A170,Filtro_!$A$5:$AK$2954,17,FALSE),0) -> 1,272,040
B171: TOTAL | D171: =SUM(D160:D167) -> 10069 | E171: 9998 | F171: 9987 | G171: 11 | H171: 71 | I171: 3576 | J171: 6457 | K171: 23 | L171: 0 | M171: 0 | N171: 0 | O171: 0 | P171: 0 | Q171: 32 | R171: 0 | S171: 1,865,829,930
B172: SECCION L: INTERVENCIONES QUIRURGICAS
B173: TIPO DE INTERVENCION QUIRURGICA | D173: TOTAL PRODUCCIÓN | E173: TOTAL BENEFICIARIOS | F173: INTERVENCIONES QUIRÚRGICAS | L173: CIRUGÍAS MENORES | M173: PRODUCCION INTRA HOSPITAL | P173: OPERATIVO | Q173: COMPRAS REALIZADAS | S173: VENTAS DE SERVICIOS | T173: INTERVENCIONES 100% | U173: INTERVENCIONES 50% | V173: INTERVENCIONES 75% | W173: PAGO POR PRESTACIONES ($)
F174: PRINCIPAL | I174: SECUNDARIA
F175: MAI | G175: MLE | H175: NO BENEFI-CIARIOS | I175: MAI | J175: MLE | K175: NO BENEFI-CIARIOS | M175: POR HONORARIOS | N175: POR CONVENIOS | O175: POR CONSULTORES DE LLAMADA | Q175: AL SISTEMA | R175: EXTRA-SISTEMA
A176: 17050100 | B176: I | C176: NEUROCIRUGIA | D176: =IFERROR(VLOOKUP($A176,Filtro_!$A$5:$AK$2954,2,FALSE),0) -> 1,448 | E176: =IFERROR(VLOOKUP($A176,Filtro_!$A$5:$AK$2954,3,FALSE),0) -> 1,228 | F176: =IFERROR(VLOOKUP($A176,Filtro_!$A$5:$AK$2954,4,FALSE),0) -> 1,193 | G176: =IFERROR(VLOOKUP($A176,Filtro_!$A$5:$AK$2954,5,FALSE),0) -> 35 | H176: =IFERROR(VLOOKUP($A176,Filtro_!$A$5:$AK$2954,6,FALSE),0) -> 34 | I176: =IFERROR(VLOOKUP($A176,Filtro_!$A$5:$AK$2954,7,FALSE),0) -> 183 | J176: =IFERROR(VLOOKUP($A176,Filtro_!$A$5:$AK$2954,8,FALSE),0) -> 0 | K176: =IFERROR(VLOOKUP($A176,Filtro_!$A$5:$AK$2954,9,FALSE),0) -> 3 | L176: =IFERROR(VLOOKUP($A176,Filtro_!$A$5:$AK$2954,10,FALSE),0) -> 0 | M176: =IFERROR(VLOOKUP($A176,Filtro_!$A$5:$AK$2954,11,FALSE),0) -> 0 | N176: =IFERROR(VLOOKUP($A176,Filtro_!$A$5:$AK$2954,12,FALSE),0) -> 0 | O176: =IFERROR(VLOOKUP($A176,Filtro_!$A$5:$AK$2954,13,FALSE),0) -> 0 | P176: =IFERROR(VLOOKUP($A176,Filtro_!$A$5:$AK$2954,14,FALSE),0) -> 0 | Q176: =IFERROR(VLOOKUP($A176,Filtro_!$A$5:$AK$2954,15,FALSE),0) -> 0 | R176: =IFERROR(VLOOKUP($A176,Filtro_!$A$5:$AK$2954,16,FALSE),0) -> 0 | S176: =IFERROR(VLOOKUP($A176,Filtro_!$A$5:$AK$2954,17,FALSE),0) -> 0 | T176: =IFERROR(VLOOKUP($A176,Filtro_!$A$5:$AK$2954,18,FALSE),0) -> 1,193 | U176: =IFERROR(VLOOKUP($A176,Filtro_!$A$5:$AK$2954,19,FALSE),0) -> 183 | V176: =IFERROR(VLOOKUP($A176,Filtro_!$A$5:$AK$2954,20,FALSE),0) -> 0 | W176: =IFERROR(VLOOKUP($A176,Filtro_!$A$5:$AK$2954,21,FALSE),0) -> 541,736,470
A177: 17050200 | B177: II | C177: CIRUGIA OFTALMOLOGICA | D177: =IFERROR(VLOOKUP($A177,Filtro_!$A$5:$AK$2954,2,FALSE),0) -> 7,705 | E177: =IFERROR(VLOOKUP($A177,Filtro_!$A$5:$AK$2954,3,FALSE),0) -> 6,459 | F177: =IFERROR(VLOOKUP($A177,Filtro_!$A$5:$AK$2954,4,FALSE),0) -> 6,459 | G177: =IFERROR(VLOOKUP($A177,Filtro_!$A$5:$AK$2954,5,FALSE),0) -> 0 | H177: =IFERROR(VLOOKUP($A177,Filtro_!$A$5:$AK$2954,6,FALSE),0) -> 25 | I177: =IFERROR(VLOOKUP($A177,Filtro_!$A$5:$AK$2954,7,FALSE),0) -> 1,209 | J177: =IFERROR(VLOOKUP($A177,Filtro_!$A$5:$AK$2954,8,FALSE),0) -> 0 | K177: =IFERROR(VLOOKUP($A177,Filtro_!$A$5:$AK$2954,9,FALSE),0) -> 12 | L177: =IFERROR(VLOOKUP($A177,Filtro_!$A$5:$AK$2954,10,FALSE),0) -> 1,594 | M177: =IFERROR(VLOOKUP($A177,Filtro_!$A$5:$AK$2954,11,FALSE),0) -> 1,187 | N177: =IFERROR(VLOOKUP($A177,Filtro_!$A$5:$AK$2954,12,FALSE),0) -> 0 | O177: =IFERROR(VLOOKUP($A177,Filtro_!$A$5:$AK$2954,13,FALSE),0) -> 35 | P177: =IFERROR(VLOOKUP($A177,Filtro_!$A$5:$AK$2954,14,FALSE),0) -> 0 | Q177: =IFERROR(VLOOKUP($A177,Filtro_!$A$5:$AK$2954,15,FALSE),0) -> 0 | R177: =IFERROR(VLOOKUP($A177,Filtro_!$A$5:$AK$2954,16,FALSE),0) -> 0 | S177: =IFERROR(VLOOKUP($A177,Filtro_!$A$5:$AK$2954,17,FALSE),0) -> 0 | T177: =IFERROR(VLOOKUP($A177,Filtro_!$A$5:$AK$2954,18,FALSE),0) -> 6,459 | U177: =IFERROR(VLOOKUP($A177,Filtro_!$A$5:$AK$2954,19,FALSE),0) -> 1,209 | V177: =IFERROR(VLOOKUP($A177,Filtro_!$A$5:$AK$2954,20,FALSE),0) -> 0 | W177: =IFERROR(VLOOKUP($A177,Filtro_!$A$5:$AK$2954,21,FALSE),0) -> 3,377,751,230
A178: 17050300 | B178: III | C178: CIRUGIA OTORRINOLOGICA | D178: =IFERROR(VLOOKUP($A178,Filtro_!$A$5:$AK$2954,2,FALSE),0) -> 2,157 | E178: =IFERROR(VLOOKUP($A178,Filtro_!$A$5:$AK$2954,3,FALSE),0) -> 1,733 | F178: =IFERROR(VLOOKUP($A178,Filtro_!$A$5:$AK$2954,4,FALSE),0) -> 1,730 | G178: =IFERROR(VLOOKUP($A178,Filtro_!$A$5:$AK$2954,5,FALSE),0) -> 3 | H178: =IFERROR(VLOOKUP($A178,Filtro_!$A$5:$AK$2954,6,FALSE),0) -> 12 | I178: =IFERROR(VLOOKUP($A178,Filtro_!$A$5:$AK$2954,7,FALSE),0) -> 406 | J178: =IFERROR(VLOOKUP($A178,Filtro_!$A$5:$AK$2954,8,FALSE),0) -> 2 | K178: =IFERROR(VLOOKUP($A178,Filtro_!$A$5:$AK$2954,9,FALSE),0) -> 4 | L178: =IFERROR(VLOOKUP($A178,Filtro_!$A$5:$AK$2954,10,FALSE),0) -> 691 | M178: =IFERROR(VLOOKUP($A178,Filtro_!$A$5:$AK$2954,11,FALSE),0) -> 54 | N178: =IFERROR(VLOOKUP($A178,Filtro_!$A$5:$AK$2954,12,FALSE),0) -> 0 | O178: =IFERROR(VLOOKUP($A178,Filtro_!$A$5:$AK$2954,13,FALSE),0) -> 4 | P178: =IFERROR(VLOOKUP($A178,Filtro_!$A$5:$AK$2954,14,FALSE),0) -> 0 | Q178: =IFERROR(VLOOKUP($A178,Filtro_!$A$5:$AK$2954,15,FALSE),0) -> 0 | R178: =IFERROR(VLOOKUP($A178,Filtro_!$A$5:$AK$2954,16,FALSE),0) -> 0 | S178: =IFERROR(VLOOKUP($A178,Filtro_!$A$5:$AK$2954,17,FALSE),0) -> 0 | T178: =IFERROR(VLOOKUP($A178,Filtro_!$A$5:$AK$2954,18,FALSE),0) -> 1,730 | U178: =IFERROR(VLOOKUP($A178,Filtro_!$A$5:$AK$2954,19,FALSE),0) -> 406 | V178: =IFERROR(VLOOKUP($A178,Filtro_!$A$5:$AK$2954,20,FALSE),0) -> 0 | W178: =IFERROR(VLOOKUP($A178,Filtro_!$A$5:$AK$2954,21,FALSE),0) -> 271,873,770
A179: 17050400 | B179: IV | C179: CIRUGIA DE CABEZA Y CUELLO | D179: =IFERROR(VLOOKUP($A179,Filtro_!$A$5:$AK$2954,2,FALSE),0) -> 549 | E179: =IFERROR(VLOOKUP($A179,Filtro_!$A$5:$AK$2954,3,FALSE),0) -> 442 | F179: =IFERROR(VLOOKUP($A179,Filtro_!$A$5:$AK$2954,4,FALSE),0) -> 430 | G179: =IFERROR(VLOOKUP($A179,Filtro_!$A$5:$AK$2954,5,FALSE),0) -> 12 | H179: =IFERROR(VLOOKUP($A179,Filtro_!$A$5:$AK$2954,6,FALSE),0) -> 11 | I179: =IFERROR(VLOOKUP($A179,Filtro_!$A$5:$AK$2954,7,FALSE),0) -> 90 | J179: =IFERROR(VLOOKUP($A179,Filtro_!$A$5:$AK$2954,8,FALSE),0) -> 1 | K179: =IFERROR(VLOOKUP($A179,Filtro_!$A$5:$AK$2954,9,FALSE),0) -> 5 | L179: =IFERROR(VLOOKUP($A179,Filtro_!$A$5:$AK$2954,10,FALSE),0) -> 137 | M179: =IFERROR(VLOOKUP($A179,Filtro_!$A$5:$AK$2954,11,FALSE),0) -> 0 | N179: =IFERROR(VLOOKUP($A179,Filtro_!$A$5:$AK$2954,12,FALSE),0) -> 0 | O179: =IFERROR(VLOOKUP($A179,Filtro_!$A$5:$AK$2954,13,FALSE),0) -> 0 | P179: =IFERROR(VLOOKUP($A179,Filtro_!$A$5:$AK$2954,14,FALSE),0) -> 0 | Q179: =IFERROR(VLOOKUP($A179,Filtro_!$A$5:$AK$2954,15,FALSE),0) -> 0 | R179: =IFERROR(VLOOKUP($A179,Filtro_!$A$5:$AK$2954,16,FALSE),0) -> 0 | S179: =IFERROR(VLOOKUP($A179,Filtro_!$A$5:$AK$2954,17,FALSE),0) -> 0 | T179: =IFERROR(VLOOKUP($A179,Filtro_!$A$5:$AK$2954,18,FALSE),0) -> 430 | U179: =IFERROR(VLOOKUP($A179,Filtro_!$A$5:$AK$2954,19,FALSE),0) -> 90 | V179: =IFERROR(VLOOKUP($A179,Filtro_!$A$5:$AK$2954,20,FALSE),0) -> 0 | W179: =IFERROR(VLOOKUP($A179,Filtro_!$A$5:$AK$2954,21,FALSE),0) -> 109,902,090
A180: 17050500 | B180: V | C180: CIRUGIA PLASTICA Y REPARADORA | D180: =IFERROR(VLOOKUP($A180,Filtro_!$A$5:$AK$2954,2,FALSE),0) -> 1,205 | E180: =IFERROR(VLOOKUP($A180,Filtro_!$A$5:$AK$2954,3,FALSE),0) -> 988 | F180: =IFERROR(VLOOKUP($A180,Filtro_!$A$5:$AK$2954,4,FALSE),0) -> 970 | G180: =IFERROR(VLOOKUP($A180,Filtro_!$A$5:$AK$2954,5,FALSE),0) -> 18 | H180: =IFERROR(VLOOKUP($A180,Filtro_!$A$5:$AK$2954,6,FALSE),0) -> 27 | I180: =IFERROR(VLOOKUP($A180,Filtro_!$A$5:$AK$2954,7,FALSE),0) -> 176 | J180: =IFERROR(VLOOKUP($A180,Filtro_!$A$5:$AK$2954,8,FALSE),0) -> 1 | K180: =IFERROR(VLOOKUP($A180,Filtro_!$A$5:$AK$2954,9,FALSE),0) -> 13 | L180: =IFERROR(VLOOKUP($A180,Filtro_!$A$5:$AK$2954,10,FALSE),0) -> 601 | M180: =IFERROR(VLOOKUP($A180,Filtro_!$A$5:$AK$2954,11,FALSE),0) -> 4 | N180: =IFERROR(VLOOKUP($A180,Filtro_!$A$5:$AK$2954,12,FALSE),0) -> 0 | O180: =IFERROR(VLOOKUP($A180,Filtro_!$A$5:$AK$2954,13,FALSE),0) -> 7 | P180: =IFERROR(VLOOKUP($A180,Filtro_!$A$5:$AK$2954,14,FALSE),0) -> 0 | Q180: =IFERROR(VLOOKUP($A180,Filtro_!$A$5:$AK$2954,15,FALSE),0) -> 0 | R180: =IFERROR(VLOOKUP($A180,Filtro_!$A$5:$AK$2954,16,FALSE),0) -> 0 | S180: =IFERROR(VLOOKUP($A180,Filtro_!$A$5:$AK$2954,17,FALSE),0) -> 0 | T180: =IFERROR(VLOOKUP($A180,Filtro_!$A$5:$AK$2954,18,FALSE),0) -> 970 | U180: =IFERROR(VLOOKUP($A180,Filtro_!$A$5:$AK$2954,19,FALSE),0) -> 176 | V180: =IFERROR(VLOOKUP($A180,Filtro_!$A$5:$AK$2954,20,FALSE),0) -> 0 | W180: =IFERROR(VLOOKUP($A180,Filtro_!$A$5:$AK$2954,21,FALSE),0) -> 124,054,345
A181: 17050600 | B181: VI | C181: DERMATOLOGÍA Y TEGUMENTOS | D181: =IFERROR(VLOOKUP($A181,Filtro_!$A$5:$AK$2954,2,FALSE),0) -> 4,944 | E181: =IFERROR(VLOOKUP($A181,Filtro_!$A$5:$AK$2954,3,FALSE),0) -> 4,691 | F181: =IFERROR(VLOOKUP($A181,Filtro_!$A$5:$AK$2954,4,FALSE),0) -> 4,673 | G181: =IFERROR(VLOOKUP($A181,Filtro_!$A$5:$AK$2954,5,FALSE),0) -> 18 | H181: =IFERROR(VLOOKUP($A181,Filtro_!$A$5:$AK$2954,6,FALSE),0) -> 53 | I181: =IFERROR(VLOOKUP($A181,Filtro_!$A$5:$AK$2954,7,FALSE),0) -> 191 | J181: =IFERROR(VLOOKUP($A181,Filtro_!$A$5:$AK$2954,8,FALSE),0) -> 6 | K181: =IFERROR(VLOOKUP($A181,Filtro_!$A$5:$AK$2954,9,FALSE),0) -> 3 | L181: =IFERROR(VLOOKUP($A181,Filtro_!$A$5:$AK$2954,10,FALSE),0) -> 4,896 | M181: =IFERROR(VLOOKUP($A181,Filtro_!$A$5:$AK$2954,11,FALSE),0) -> 12 | N181: =IFERROR(VLOOKUP($A181,Filtro_!$A$5:$AK$2954,12,FALSE),0) -> 0 | O181: =IFERROR(VLOOKUP($A181,Filtro_!$A$5:$AK$2954,13,FALSE),0) -> 8 | P181: =IFERROR(VLOOKUP($A181,Filtro_!$A$5:$AK$2954,14,FALSE),0) -> 142 | Q181: =IFERROR(VLOOKUP($A181,Filtro_!$A$5:$AK$2954,15,FALSE),0) -> 0 | R181: =IFERROR(VLOOKUP($A181,Filtro_!$A$5:$AK$2954,16,FALSE),0) -> 142 | S181: =IFERROR(VLOOKUP($A181,Filtro_!$A$5:$AK$2954,17,FALSE),0) -> 0 | T181: =IFERROR(VLOOKUP($A181,Filtro_!$A$5:$AK$2954,18,FALSE),0) -> 4,673 | U181: =IFERROR(VLOOKUP($A181,Filtro_!$A$5:$AK$2954,19,FALSE),0) -> 191 | V181: =IFERROR(VLOOKUP($A181,Filtro_!$A$5:$AK$2954,20,FALSE),0) -> 0 | W181: =IFERROR(VLOOKUP($A181,Filtro_!$A$5:$AK$2954,21,FALSE),0) -> 281,455,470
A182: 17050700 | B182: VII | C182: CIRUGIA CARDIOVASCULAR | D182: =IFERROR(VLOOKUP($A182,Filtro_!$A$5:$AK$2954,2,FALSE),0) -> 2,283 | E182: =IFERROR(VLOOKUP($A182,Filtro_!$A$5:$AK$2954,3,FALSE),0) -> 1,961 | F182: =IFERROR(VLOOKUP($A182,Filtro_!$A$5:$AK$2954,4,FALSE),0) -> 1,866 | G182: =IFERROR(VLOOKUP($A182,Filtro_!$A$5:$AK$2954,5,FALSE),0) -> 95 | H182: =IFERROR(VLOOKUP($A182,Filtro_!$A$5:$AK$2954,6,FALSE),0) -> 25 | I182: =IFERROR(VLOOKUP($A182,Filtro_!$A$5:$AK$2954,7,FALSE),0) -> 214 | J182: =IFERROR(VLOOKUP($A182,Filtro_!$A$5:$AK$2954,8,FALSE),0) -> 77 | K182: =IFERROR(VLOOKUP($A182,Filtro_!$A$5:$AK$2954,9,FALSE),0) -> 6 | L182: =IFERROR(VLOOKUP($A182,Filtro_!$A$5:$AK$2954,10,FALSE),0) -> 130 | M182: =IFERROR(VLOOKUP($A182,Filtro_!$A$5:$AK$2954,11,FALSE),0) -> 69 | N182: =IFERROR(VLOOKUP($A182,Filtro_!$A$5:$AK$2954,12,FALSE),0) -> 0 | O182: =IFERROR(VLOOKUP($A182,Filtro_!$A$5:$AK$2954,13,FALSE),0) -> 38 | P182: =IFERROR(VLOOKUP($A182,Filtro_!$A$5:$AK$2954,14,FALSE),0) -> 0 | Q182: =IFERROR(VLOOKUP($A182,Filtro_!$A$5:$AK$2954,15,FALSE),0) -> 0 | R182: =IFERROR(VLOOKUP($A182,Filtro_!$A$5:$AK$2954,16,FALSE),0) -> 0 | S182: =IFERROR(VLOOKUP($A182,Filtro_!$A$5:$AK$2954,17,FALSE),0) -> 0 | T182: =IFERROR(VLOOKUP($A182,Filtro_!$A$5:$AK$2954,18,FALSE),0) -> 1,866 | U182: =IFERROR(VLOOKUP($A182,Filtro_!$A$5:$AK$2954,19,FALSE),0) -> 214 | V182: =IFERROR(VLOOKUP($A182,Filtro_!$A$5:$AK$2954,20,FALSE),0) -> 0 | W182: =IFERROR(VLOOKUP($A182,Filtro_!$A$5:$AK$2954,21,FALSE),0) -> 1,351,720,635
A183: 17050800 | B183: VIII | C183: CIRUGIA DE TORAX | D183: =IFERROR(VLOOKUP($A183,Filtro_!$A$5:$AK$2954,2,FALSE),0) -> 330 | E183: =IFERROR(VLOOKUP($A183,Filtro_!$A$5:$AK$2954,3,FALSE),0) -> 283 | F183: =IFERROR(VLOOKUP($A183,Filtro_!$A$5:$AK$2954,4,FALSE),0) -> 283 | G183: =IFERROR(VLOOKUP($A183,Filtro_!$A$5:$AK$2954,5,FALSE),0) -> 0 | H183: =IFERROR(VLOOKUP($A183,Filtro_!$A$5:$AK$2954,6,FALSE),0) -> 5 | I183: =IFERROR(VLOOKUP($A183,Filtro_!$A$5:$AK$2954,7,FALSE),0) -> 42 | J183: =IFERROR(VLOOKUP($A183,Filtro_!$A$5:$AK$2954,8,FALSE),0) -> 0 | K183: =IFERROR(VLOOKUP($A183,Filtro_!$A$5:$AK$2954,9,FALSE),0) -> 0 | L183: =IFERROR(VLOOKUP($A183,Filtro_!$A$5:$AK$2954,10,FALSE),0) -> 43 | M183: =IFERROR(VLOOKUP($A183,Filtro_!$A$5:$AK$2954,11,FALSE),0) -> 0 | N183: =IFERROR(VLOOKUP($A183,Filtro_!$A$5:$AK$2954,12,FALSE),0) -> 0 | O183: =IFERROR(VLOOKUP($A183,Filtro_!$A$5:$AK$2954,13,FALSE),0) -> 0 | P183: =IFERROR(VLOOKUP($A183,Filtro_!$A$5:$AK$2954,14,FALSE),0) -> 0 | Q183: =IFERROR(VLOOKUP($A183,Filtro_!$A$5:$AK$2954,15,FALSE),0) -> 0 | R183: =IFERROR(VLOOKUP($A183,Filtro_!$A$5:$AK$2954,16,FALSE),0) -> 0 | S183: =IFERROR(VLOOKUP($A183,Filtro_!$A$5:$AK$2954,17,FALSE),0) -> 0 | T183: =IFERROR(VLOOKUP($A183,Filtro_!$A$5:$AK$2954,18,FALSE),0) -> 283 | U183: =IFERROR(VLOOKUP($A183,Filtro_!$A$5:$AK$2954,19,FALSE),0) -> 42 | V183: =IFERROR(VLOOKUP($A183,Filtro_!$A$5:$AK$2954,20,FALSE),0) -> 0 | W183: =IFERROR(VLOOKUP($A183,Filtro_!$A$5:$AK$2954,21,FALSE),0) -> 93,834,615
A184: 17050900 | B184: IX | C184: CIRUGIA ABDOMINAL | D184: =IFERROR(VLOOKUP($A184,Filtro_!$A$5:$AK$2954,2,FALSE),0) -> 7,920 | E184: =IFERROR(VLOOKUP($A184,Filtro_!$A$5:$AK$2954,3,FALSE),0) -> 6,948 | F184: =IFERROR(VLOOKUP($A184,Filtro_!$A$5:$AK$2954,4,FALSE),0) -> 6,492 | G184: =IFERROR(VLOOKUP($A184,Filtro_!$A$5:$AK$2954,5,FALSE),0) -> 456 | H184: =IFERROR(VLOOKUP($A184,Filtro_!$A$5:$AK$2954,6,FALSE),0) -> 137 | I184: =IFERROR(VLOOKUP($A184,Filtro_!$A$5:$AK$2954,7,FALSE),0) -> 788 | J184: =IFERROR(VLOOKUP($A184,Filtro_!$A$5:$AK$2954,8,FALSE),0) -> 29 | K184: =IFERROR(VLOOKUP($A184,Filtro_!$A$5:$AK$2954,9,FALSE),0) -> 18 | L184: =IFERROR(VLOOKUP($A184,Filtro_!$A$5:$AK$2954,10,FALSE),0) -> 0 | M184: =IFERROR(VLOOKUP($A184,Filtro_!$A$5:$AK$2954,11,FALSE),0) -> 650 | N184: =IFERROR(VLOOKUP($A184,Filtro_!$A$5:$AK$2954,12,FALSE),0) -> 0 | O184: =IFERROR(VLOOKUP($A184,Filtro_!$A$5:$AK$2954,13,FALSE),0) -> 28 | P184: =IFERROR(VLOOKUP($A184,Filtro_!$A$5:$AK$2954,14,FALSE),0) -> 0 | Q184: =IFERROR(VLOOKUP($A184,Filtro_!$A$5:$AK$2954,15,FALSE),0) -> 0 | R184: =IFERROR(VLOOKUP($A184,Filtro_!$A$5:$AK$2954,16,FALSE),0) -> 0 | S184: =IFERROR(VLOOKUP($A184,Filtro_!$A$5:$AK$2954,17,FALSE),0) -> 0 | T184: =IFERROR(VLOOKUP($A184,Filtro_!$A$5:$AK$2954,18,FALSE),0) -> 6,492 | U184: =IFERROR(VLOOKUP($A184,Filtro_!$A$5:$AK$2954,19,FALSE),0) -> 788 | V184: =IFERROR(VLOOKUP($A184,Filtro_!$A$5:$AK$2954,20,FALSE),0) -> 0 | W184: =IFERROR(VLOOKUP($A184,Filtro_!$A$5:$AK$2954,21,FALSE),0) -> 2,288,268,875
A185: 17051000 | B185: X | C185: CIRUGIA PROCTOLOGICA | D185: =IFERROR(VLOOKUP($A185,Filtro_!$A$5:$AK$2954,2,FALSE),0) -> 597 | E185: =IFERROR(VLOOKUP($A185,Filtro_!$A$5:$AK$2954,3,FALSE),0) -> 543 | F185: =IFERROR(VLOOKUP($A185,Filtro_!$A$5:$AK$2954,4,FALSE),0) -> 452 | G185: =IFERROR(VLOOKUP($A185,Filtro_!$A$5:$AK$2954,5,FALSE),0) -> 91 | H185: =IFERROR(VLOOKUP($A185,Filtro_!$A$5:$AK$2954,6,FALSE),0) -> 15 | I185: =IFERROR(VLOOKUP($A185,Filtro_!$A$5:$AK$2954,7,FALSE),0) -> 35 | J185: =IFERROR(VLOOKUP($A185,Filtro_!$A$5:$AK$2954,8,FALSE),0) -> 4 | K185: =IFERROR(VLOOKUP($A185,Filtro_!$A$5:$AK$2954,9,FALSE),0) -> 0 | L185: =IFERROR(VLOOKUP($A185,Filtro_!$A$5:$AK$2954,10,FALSE),0) -> 63 | M185: =IFERROR(VLOOKUP($A185,Filtro_!$A$5:$AK$2954,11,FALSE),0) -> 4 | N185: =IFERROR(VLOOKUP($A185,Filtro_!$A$5:$AK$2954,12,FALSE),0) -> 0 | O185: =IFERROR(VLOOKUP($A185,Filtro_!$A$5:$AK$2954,13,FALSE),0) -> 0 | P185: =IFERROR(VLOOKUP($A185,Filtro_!$A$5:$AK$2954,14,FALSE),0) -> 0 | Q185: =IFERROR(VLOOKUP($A185,Filtro_!$A$5:$AK$2954,15,FALSE),0) -> 0 | R185: =IFERROR(VLOOKUP($A185,Filtro_!$A$5:$AK$2954,16,FALSE),0) -> 0 | S185: =IFERROR(VLOOKUP($A185,Filtro_!$A$5:$AK$2954,17,FALSE),0) -> 0 | T185: =IFERROR(VLOOKUP($A185,Filtro_!$A$5:$AK$2954,18,FALSE),0) -> 452 | U185: =IFERROR(VLOOKUP($A185,Filtro_!$A$5:$AK$2954,19,FALSE),0) -> 35 | V185: =IFERROR(VLOOKUP($A185,Filtro_!$A$5:$AK$2954,20,FALSE),0) -> 0 | W185: =IFERROR(VLOOKUP($A185,Filtro_!$A$5:$AK$2954,21,FALSE),0) -> 88,838,195
A186: 17051100 | B186: XI | C186: CIRUGIA UROLOGICA Y SUPRARRENAL | D186: =IFERROR(VLOOKUP($A186,Filtro_!$A$5:$AK$2954,2,FALSE),0) -> 4,028 | E186: =IFERROR(VLOOKUP($A186,Filtro_!$A$5:$AK$2954,3,FALSE),0) -> 2,825 | F186: =IFERROR(VLOOKUP($A186,Filtro_!$A$5:$AK$2954,4,FALSE),0) -> 2,576 | G186: =IFERROR(VLOOKUP($A186,Filtro_!$A$5:$AK$2954,5,FALSE),0) -> 249 | H186: =IFERROR(VLOOKUP($A186,Filtro_!$A$5:$AK$2954,6,FALSE),0) -> 69 | I186: =IFERROR(VLOOKUP($A186,Filtro_!$A$5:$AK$2954,7,FALSE),0) -> 1,048 | J186: =IFERROR(VLOOKUP($A186,Filtro_!$A$5:$AK$2954,8,FALSE),0) -> 56 | K186: =IFERROR(VLOOKUP($A186,Filtro_!$A$5:$AK$2954,9,FALSE),0) -> 30 | L186: =IFERROR(VLOOKUP($A186,Filtro_!$A$5:$AK$2954,10,FALSE),0) -> 27 | M186: =IFERROR(VLOOKUP($A186,Filtro_!$A$5:$AK$2954,11,FALSE),0) -> 331 | N186: =IFERROR(VLOOKUP($A186,Filtro_!$A$5:$AK$2954,12,FALSE),0) -> 0 | O186: =IFERROR(VLOOKUP($A186,Filtro_!$A$5:$AK$2954,13,FALSE),0) -> 417 | P186: =IFERROR(VLOOKUP($A186,Filtro_!$A$5:$AK$2954,14,FALSE),0) -> 0 | Q186: =IFERROR(VLOOKUP($A186,Filtro_!$A$5:$AK$2954,15,FALSE),0) -> 0 | R186: =IFERROR(VLOOKUP($A186,Filtro_!$A$5:$AK$2954,16,FALSE),0) -> 0 | S186: =IFERROR(VLOOKUP($A186,Filtro_!$A$5:$AK$2954,17,FALSE),0) -> 0 | T186: =IFERROR(VLOOKUP($A186,Filtro_!$A$5:$AK$2954,18,FALSE),0) -> 2,576 | U186: =IFERROR(VLOOKUP($A186,Filtro_!$A$5:$AK$2954,19,FALSE),0) -> 1,048 | V186: =IFERROR(VLOOKUP($A186,Filtro_!$A$5:$AK$2954,20,FALSE),0) -> 0 | W186: =IFERROR(VLOOKUP($A186,Filtro_!$A$5:$AK$2954,21,FALSE),0) -> 912,539,545
A187: 17051200 | B187: XII | C187: CIRUGIA DE LA MAMA | D187: =IFERROR(VLOOKUP($A187,Filtro_!$A$5:$AK$2954,2,FALSE),0) -> 498 | E187: =IFERROR(VLOOKUP($A187,Filtro_!$A$5:$AK$2954,3,FALSE),0) -> 402 | F187: =IFERROR(VLOOKUP($A187,Filtro_!$A$5:$AK$2954,4,FALSE),0) -> 400 | G187: =IFERROR(VLOOKUP($A187,Filtro_!$A$5:$AK$2954,5,FALSE),0) -> 2 | H187: =IFERROR(VLOOKUP($A187,Filtro_!$A$5:$AK$2954,6,FALSE),0) -> 9 | I187: =IFERROR(VLOOKUP($A187,Filtro_!$A$5:$AK$2954,7,FALSE),0) -> 85 | J187: =IFERROR(VLOOKUP($A187,Filtro_!$A$5:$AK$2954,8,FALSE),0) -> 0 | K187: =IFERROR(VLOOKUP($A187,Filtro_!$A$5:$AK$2954,9,FALSE),0) -> 2 | L187: =IFERROR(VLOOKUP($A187,Filtro_!$A$5:$AK$2954,10,FALSE),0) -> 45 | M187: =IFERROR(VLOOKUP($A187,Filtro_!$A$5:$AK$2954,11,FALSE),0) -> 0 | N187: =IFERROR(VLOOKUP($A187,Filtro_!$A$5:$AK$2954,12,FALSE),0) -> 0 | O187: =IFERROR(VLOOKUP($A187,Filtro_!$A$5:$AK$2954,13,FALSE),0) -> 0 | P187: =IFERROR(VLOOKUP($A187,Filtro_!$A$5:$AK$2954,14,FALSE),0) -> 0 | Q187: =IFERROR(VLOOKUP($A187,Filtro_!$A$5:$AK$2954,15,FALSE),0) -> 0 | R187: =IFERROR(VLOOKUP($A187,Filtro_!$A$5:$AK$2954,16,FALSE),0) -> 0 | S187: =IFERROR(VLOOKUP($A187,Filtro_!$A$5:$AK$2954,17,FALSE),0) -> 0 | T187: =IFERROR(VLOOKUP($A187,Filtro_!$A$5:$AK$2954,18,FALSE),0) -> 400 | U187: =IFERROR(VLOOKUP($A187,Filtro_!$A$5:$AK$2954,19,FALSE),0) -> 85 | V187: =IFERROR(VLOOKUP($A187,Filtro_!$A$5:$AK$2954,20,FALSE),0) -> 0 | W187: =IFERROR(VLOOKUP($A187,Filtro_!$A$5:$AK$2954,21,FALSE),0) -> 110,791,050
A188: 17051300 | B188: XIII | C188: CIRUGIA GINECOLOGICA | D188: =IFERROR(VLOOKUP($A188,Filtro_!$A$5:$AK$2954,2,FALSE),0) -> 2,987 | E188: =IFERROR(VLOOKUP($A188,Filtro_!$A$5:$AK$2954,3,FALSE),0) -> 2,503 | F188: =IFERROR(VLOOKUP($A188,Filtro_!$A$5:$AK$2954,4,FALSE),0) -> 2,380 | G188: =IFERROR(VLOOKUP($A188,Filtro_!$A$5:$AK$2954,5,FALSE),0) -> 123 | H188: =IFERROR(VLOOKUP($A188,Filtro_!$A$5:$AK$2954,6,FALSE),0) -> 41 | I188: =IFERROR(VLOOKUP($A188,Filtro_!$A$5:$AK$2954,7,FALSE),0) -> 396 | J188: =IFERROR(VLOOKUP($A188,Filtro_!$A$5:$AK$2954,8,FALSE),0) -> 38 | K188: =IFERROR(VLOOKUP($A188,Filtro_!$A$5:$AK$2954,9,FALSE),0) -> 9 | L188: =IFERROR(VLOOKUP($A188,Filtro_!$A$5:$AK$2954,10,FALSE),0) -> 210 | M188: =IFERROR(VLOOKUP($A188,Filtro_!$A$5:$AK$2954,11,FALSE),0) -> 6 | N188: =IFERROR(VLOOKUP($A188,Filtro_!$A$5:$AK$2954,12,FALSE),0) -> 0 | O188: =IFERROR(VLOOKUP($A188,Filtro_!$A$5:$AK$2954,13,FALSE),0) -> 0 | P188: =IFERROR(VLOOKUP($A188,Filtro_!$A$5:$AK$2954,14,FALSE),0) -> 0 | Q188: =IFERROR(VLOOKUP($A188,Filtro_!$A$5:$AK$2954,15,FALSE),0) -> 0 | R188: =IFERROR(VLOOKUP($A188,Filtro_!$A$5:$AK$2954,16,FALSE),0) -> 0 | S188: =IFERROR(VLOOKUP($A188,Filtro_!$A$5:$AK$2954,17,FALSE),0) -> 0 | T188: =IFERROR(VLOOKUP($A188,Filtro_!$A$5:$AK$2954,18,FALSE),0) -> 2,380 | U188: =IFERROR(VLOOKUP($A188,Filtro_!$A$5:$AK$2954,19,FALSE),0) -> 396 | V188: =IFERROR(VLOOKUP($A188,Filtro_!$A$5:$AK$2954,20,FALSE),0) -> 0 | W188: =IFERROR(VLOOKUP($A188,Filtro_!$A$5:$AK$2954,21,FALSE),0) -> 610,373,415
A189: 17051400 | B189: XIV | C189: CIRUGIA OBSTETRICA | D189: =IFERROR(VLOOKUP($A189,Filtro_!$A$5:$AK$2954,2,FALSE),0) -> 3,088 | E189: =IFERROR(VLOOKUP($A189,Filtro_!$A$5:$AK$2954,3,FALSE),0) -> 2,982 | F189: =IFERROR(VLOOKUP($A189,Filtro_!$A$5:$AK$2954,4,FALSE),0) -> 2,003 | G189: =IFERROR(VLOOKUP($A189,Filtro_!$A$5:$AK$2954,5,FALSE),0) -> 979 | H189: =IFERROR(VLOOKUP($A189,Filtro_!$A$5:$AK$2954,6,FALSE),0) -> 82 | I189: =IFERROR(VLOOKUP($A189,Filtro_!$A$5:$AK$2954,7,FALSE),0) -> 7 | J189: =IFERROR(VLOOKUP($A189,Filtro_!$A$5:$AK$2954,8,FALSE),0) -> 16 | K189: =IFERROR(VLOOKUP($A189,Filtro_!$A$5:$AK$2954,9,FALSE),0) -> 1 | L189: =IFERROR(VLOOKUP($A189,Filtro_!$A$5:$AK$2954,10,FALSE),0) -> 0 | M189: =IFERROR(VLOOKUP($A189,Filtro_!$A$5:$AK$2954,11,FALSE),0) -> 1 | N189: =IFERROR(VLOOKUP($A189,Filtro_!$A$5:$AK$2954,12,FALSE),0) -> 0 | O189: =IFERROR(VLOOKUP($A189,Filtro_!$A$5:$AK$2954,13,FALSE),0) -> 0 | P189: =IFERROR(VLOOKUP($A189,Filtro_!$A$5:$AK$2954,14,FALSE),0) -> 0 | Q189: =IFERROR(VLOOKUP($A189,Filtro_!$A$5:$AK$2954,15,FALSE),0) -> 0 | R189: =IFERROR(VLOOKUP($A189,Filtro_!$A$5:$AK$2954,16,FALSE),0) -> 0 | S189: =IFERROR(VLOOKUP($A189,Filtro_!$A$5:$AK$2954,17,FALSE),0) -> 0 | T189: =IFERROR(VLOOKUP($A189,Filtro_!$A$5:$AK$2954,18,FALSE),0) -> 3,992 | U189: =IFERROR(VLOOKUP($A189,Filtro_!$A$5:$AK$2954,19,FALSE),0) -> 12 | V189: =IFERROR(VLOOKUP($A189,Filtro_!$A$5:$AK$2954,20,FALSE),0) -> 0 | W189: =IFERROR(VLOOKUP($A189,Filtro_!$A$5:$AK$2954,21,FALSE),0) -> 330,896,340
